Workbook

Sheet Notes
C4: Re-financing and uncertainty
C5: Fixing debt
C6: Structuring Model
C7: Stupid formulas
C8: Horrible Offset Use
C9: Crazy Hour by Hour
C10: Operating Reserves

Sheet Summary
B2: Returns | D2: Unlevered | E2: Levered | L2: TRUE
C3: Basic | D3: ='Consolidated Time'!E14 -> 0.08019987047 | E3: ='Consolidated Time'!E90 -> 0.1575414121
C4: Without Cost Padding | D4: ='Consolidated Time'!E17 -> 0.1010074914 | E4: ='Consolidated Time'!E93 -> 0.3195877612
H5: Capacity (kWp) | J5: ='Control Panel'!D9 -> 6602
B6: Sources & Uses | H6: Production (kWH) | J6: =SUM('Monthly Operations'!L36:W36) -> 1267637.461
C7: Uses | D7: $/kW | E7: Total | H7: Capacity Factor | J7: =(J6/8760)/J5 -> 0.02191873262
C8: Base EPC Cost and Development | D8: =E8/$J$5 -> 2335.104291 | E8: ='Monthly Pre-COD'!E7 -> 15416358.53
C9: Interest During Construction | D9: 10.68918863 | E9: ='Monthly Pre-COD'!E8 -> 70570.02333 | H9: Debt Parameters for Structuring
C10: Up-Front Fee | D10: 24.55409805 | E10: ='Monthly Pre-COD'!E9 -> 162106.1553 | I10: Amortisation Period | J10: ='Control Panel'!D37 -> 17.25
C11: Commitment Fee | D11: 2.655630773 | E11: ='Monthly Pre-COD'!E10 -> 17532.47436 | I11: DSCR - P50 | J11: ='Control Panel'!D31 -> 1.35
C12: DSRA Funded | D12: 57.24489569 | E12: ='Monthly Pre-COD'!E11 -> 377930.8013 | I12: DSCR - P99 | J12: ='Control Panel'!D32 -> 1
C13: Reserves Funded | D13: 14.42100879 | E13: ='Monthly Pre-COD'!E12 -> 95207.5 | I13: Interest Rate | J13: ='Control Panel'!D47 -> 0.055
C14: Total Uses | D14: 2444.669113 | E14: =SUM(E8:E13) -> 16139705.48 | I14: Fund DSCR | J14: ='Control Panel'!D59 -> TRUE
C16: Sources | D16: $/kW | E16: Total | F16: Percent | H16: Re-financing Assumptions
C17: Sponsor | D17: =E17/$J$5 -> 807.7292431 | E17: ='Monthly Pre-COD'!E17 -> 5332628.463 | F17: =Summary!E17/E14 -> 0.3304043229 | I17: Re-finance/ Mini-perm Period | J17: ='Control Panel'!D39 -> 9
C18: Perm Debt | D18: =E18/$J$5 -> 1636.93987 | E18: ='Monthly Pre-COD'!E16 -> 10807077.02 | F18: =100%-F17 -> 0.6695956771 | I18: Include Re-financing | J18: ='Control Panel'!D51 -> TRUE
C19: Total Sources | D19: =E19/$J$5 -> 2444.669113 | E19: =SUM(E17:E18) -> 16139705.48 | F19: =E19/E14 -> 1 | I19: Same Re-financing as Balloon | J19: ='Control Panel'!$D$54 -> FALSE
I20: DSCR for Re-financing | J20: ='Control Panel'!$D$55 -> 1.2
D21: Amount | E21: $/kW-yr | I21: Interest Rate for Re-financing | J21: ='Control Panel'!D56 -> 0.055
C22: O&M Cost per kW-year - Base | D22: =-SUM('Monthly Operations'!L24:W24) -> 192170.2044 | E22: =D22/$J$5 -> 29.10787706 | I22: Tenor of Re-financing | J22: ='Control Panel'!D52 -> 20
C23: Other Costs per kW-year | D23: =D25-D22-D24 -> 327734.8544 | E23: =D23/$J$5 -> 49.64175316 | I23: Re-finance Amount
C24: Major Maintance per kW-year | D24: =SUM('Monthly Operations'!L52:W52) -> 21007.564 | E24: =D24/$J$5 -> 3.182
C25: Total Costs per kW-year | D25: =-SUM('Monthly Operations'!L31:W31)+D24 -> 540912.6227 | E25: =D25/$J$5 -> 81.93163022

Sheet Control Panel
B2: Choose Case | D2: 1 | G2: TRUE
B4: Case Number | F4: 1 | G4: 2 | H4: 3 | I4: 4 | J4: 5 | K4: 6
B5: Case Description | F5: P50 (Base Case) | G5: P90 | H5: Stress Case | I5: Best Case | J5: Other | K5: Other
A7: Part 1: Operations
B8: Project General Info and Dates
B9: Size - DC | C9: kW dc | D9: =OFFSET(D9,0,1+$D$2) -> 6602 | F9: 6602 | G9: 6602 | H9: 6602 | I9: 6602 | J9: 6602 | K9: 6602
B10: Size - AC | C10: kW ac | D10: 5000 | F10: 5000 | G10: 5000 | H10: 5000 | I10: 5000 | J10: 5000 | K10: 5000
B11: Construction Start Date | C11: mm/dd/yyyy | D11: 2016-12-31 | F11: 2016-12-31 | G11: =F11 -> 2016-12-31 | H11: =G11 -> 2016-12-31 | I11: =H11 -> 2016-12-31 | J11: =I11 -> 2016-12-31 | K11: =J11 -> 2016-12-31
B12: Construction Period | C12: Months | D12: =INDEX(F12:K12,$D$2) -> 6 | F12: 6 | G12: 6 | H12: 6 | I12: 6 | J12: 6 | K12: 6
B13: Commercial Operation Date | C13: mm/dd/yyyy | D13: 2017-06-30 | F13: =EDATE(F11,F12) -> 2017-06-30 | G13: =EDATE(G11,G12) -> 2017-06-30 | H13: 2017-06-30 | I13: 2017-06-30 | J13: 2017-06-30 | K13: 2017-06-30
B14: PPA Period | F14: 25 | G14: 25 | H14: 25 | I14: 25 | J14: 25 | K14: 25
B15: PPA Termination Date | C15: mm/dd/yyyy | D15: 2042-06-30 | F15: =EOMONTH(F13,F14*12) -> 2042-06-30 | G15: =EOMONTH(G13,G14*12) -> 2042-06-30 | H15: 2042-06-30 | I15: 2042-06-30 | J15: 2042-06-30 | K15: 2042-06-30
B16: Operating Life | F16: 30 | G16: 30 | H16: 30 | I16: 30 | J16: 30 | K16: 30
B17: Project Liquidation Date | C17: mm/dd/yyyy | D17: 2047-06-30 | F17: =EOMONTH(F13,F16*12) -> 2047-06-30 | G17: =EOMONTH(G13,G16*12) -> 2047-06-30 | H17: 2047-06-30 | I17: 2047-06-30 | J17: 2047-06-30 | K17: 2047-06-30
B19: Project Stress Testing
B20: Energy Production Stress | C20: % | D20: =INDEX(F20:K20,$D$2) -> 1 | F20: 1 | G20: =F20*0.97757 -> 0.97757 | H20: =F20*0.8 -> 0.8 | I20: =(F20*1.1) -> 1.1 | J20: 1 | K20: 1
B21: Fixed O&M Stress | C21: % | D21: =INDEX(F21:K21,$D$2) -> 1 | F21: 1 | G21: 1 | H21: 1 | I21: 1 | J21: 1 | K21: 1
B22: Insurance Stress | C22: % | D22: 1 | F22: 1 | G22: 1 | H22: 1 | I22: 1 | J22: 1 | K22: 1
B23: Asset Mgmt Stress | C23: % | D23: 1 | F23: 1 | G23: 1 | H23: 1 | I23: 1 | J23: 1 | K23: 1
B25: Module Degradation | C25: % | D25: 0.005 | F25: 0.005 | G25: 0.005 | H25: 0.005 | I25: 0.005 | J25: 0.005 | K25: 0.005
B26: Residual Value Assumption | C26: % | D26: =OFFSET(D26,0,1+$D$2) -> 0.1 | F26: 0.1 | G26: 0.1 | H26: 0.1 | I26: 0.1 | J26: 0.1 | K26: 0.1
A28: Part 2: Debt
B29: Project Non-recourse Debt
B30: Debt Size
B31: P50 DSCR Target DSCR | C31: x | D31: =E31/100 -> 1.35 | E31: 135 | F31: dscr_p50 | G31: 135 | H31: dscr_p50_base
B32: P99 1 Year DSCR Target DSCR | C32: x | D32: 1 | E32: 100 | F32: dscr_p99 | G32: 100 | H32: dscr_p99_base
B33: Funding
B34: Front-End Equity Percent | C34: % | D34: 1
B35: Pro-Rata Equity Percent | C35: % | D35: =1-D34 -> 0 | G35: Base Case
B36: Repayment
B37: Amortisation Period Years | C37: Years | D37: =amort_period/100 -> 17.25 | E37: 1725 | F37: amort_period | G37: 1725 | H37: amort_period_base
B38: Amortisation Period Quarters | C38: Quarters | D38: =D37*4 -> 69
B39: Term Debt Maturity | C39: Yrs | D39: =E39 -> 9 | E39: 9 | F39: maturity | G39: 9 | H39: maturity_base
B40: Term Debt Maturity Period | C40: Qtrs | D40: =D39*4 -> 36
B41: Grace Period (Principal) | C41: Qtrs | D41: 1
B42: Start of Repayment | C42: Date | D42: =EOMONTH(D13,D41*3) -> 2017-09-30
B43: End of Amortisation Period | C43: Date | D43: =EOMONTH(D13,D38*3) -> 2034-09-30
B44: Maturity Period | C44: Date | D44: =EOMONTH(D13,D39*12) -> 2026-06-30
B45: Interest Rate and Fees
B46: Construction Debt Yield | C46: % | D46: =const_int/10000 -> 0.0372 | E46: 372 | F46: const_int | G46: 372 | H46: const_int_base
B47: Term Debt Yield | C47: % | D47: =term_int/10000 -> 0.055 | E47: 550 | F47: term_int | G47: 550 | H47: term_int_base
B48: Upfront Fee | C48: % | D48: =up_front/10000 -> 0.015 | E48: 150 | F48: up_front | G48: 150 | H48: up_front_base
B49: Annual Commitment Fee | C49: % | D49: =comit_fee/10000 -> 0.005 | E49: 50 | F49: comit_fee | G49: 50 | H49: comit_fee_base
B50: Re-finance
B51: Include Re-finance | C51: Switch | D51: TRUE
B52: Final Maturity of Re-finance | C52: Years | D52: =mat_refin/100 -> 20 | E52: 2000 | F52: mat_refin | G52: 20 | H52: mat_refin_base
B53: Re-finance Maturity | C53: Date | D53: =EOMONTH(D13,D52*12) -> 2037-06-30
B54: Debt Size = Balloon Payment | C54: Switch | D54: FALSE
B55: DSCR for Debt Size | C55: x | D55: =dscr_refin/100 -> 1.2 | E55: 120 | F55: dscr_refin | G55: 120 | H55: dscr_refin_base
B56: Re-Finance All-in Rate | C56: % | D56: =rate_refin/10000 -> 0.055 | E56: 550 | F56: rate_refin | G56: 550 | H56: rate_refin_base
B57: Debt Service Reserve
B58: Required Terms of Reserve | C58: months | D58: 6
B59: Fund the DSRA | C59: Switch | D59: TRUE
B60: L/C Fee per annum | C60: % | D60: 0.01
B61: Dividend Blocker | C61: x | D61: 1.2
B62: Cash Flow Sweep | C62: % | D62: 0
B64: Project Reserve Account
B65: O&M Reserve
B66: Required Terms of Reserve | C66: months | D66: 6
B67: Total O&M per Year | C67: $ | D67: ='Inputs S'!E10 -> 190415
B68: Deposit Amount | C68: $ | D68: =D67/12*D66 -> 95207.5
B70: Major Equipment Replacement Reserve | D70: 31.82 | E70: per kW
B71: Capacity | D71: =D9 -> 6602
B72: Cost of Replacement | D72: =D70*D71 -> 210075.64
B73: Years to Replace | C73: Years | D73: 10
B74: Months to Replace | C74: Months | D74: =D73*12 -> 120
B75: Number of Replacements | C75: # | D75: 2
B76: Total Months covered | C76: Months | D76: =D74*D75 -> 240
B78: Income Tax
B79: Federal Tax Rate | C79: % | D79: 0
B80: State Tax Rate | C80: % | D80: 0
B81: Effective Tax Rate | C81: % | D81: 0

Sheet Inputs S
B1: Year | E1: 2017 | F1: 2018 | G1: 2019 | H1: 2020 | I1: 2021 | J1: 2022 | K1: 2023 | L1: 2024 | M1: 2025 | N1: 2026 | O1: 2027 | P1: 2028 | Q1: 2029 | R1: 2030 | S1: 2031 | T1: 2032 | U1: 2033 | V1: 2034 | W1: 2035 | X1: 2036 | Y1: 2037 | Z1: 2038 | AA1: 2039 | AB1: 2040 | AC1: 2041 | AD1: 2041 | AE1: 2041 | AF1: 2041 | AG1: 2041 | AH1: 2041 | AI1: 2041
B2: Year Number | E2: 1 | F2: 2 | G2: 3 | H2: 4 | I2: 5 | J2: 6 | K2: 7 | L2: 8 | M2: 9 | N2: 10 | O2: 11 | P2: 12 | Q2: 13 | R2: 14 | S2: 15 | T2: 16 | U2: 17 | V2: 18 | W2: 19 | X2: 20 | Y2: 21 | Z2: 22 | AA2: 23 | AB2: 24 | AC2: 25
B4: PPA Rate | E4: 170 | F4: 173 | G4: 175 | H4: 178 | I4: 180 | J4: 183 | K4: 186 | L4: 189 | M4: 192 | N4: 194 | O4: 197 | P4: 200 | Q4: 203 | R4: 206 | S4: 209 | T4: 213 | U4: 216 | V4: 219 | W4: 222 | X4: 226 | Y4: 229 | Z4: 232 | AA4: 236 | AB4: 239 | AC4: 243 | AD4: =AC4 -> 243 | AE4: =AD4 -> 243 | AF4: 243 | AG4: 243 | AH4: 243 | AI4: 243
B5: Avoided Cost | E5: 170 | F5: 173 | G5: 175 | H5: 178 | I5: 180 | J5: 183 | K5: 186 | L5: 189 | M5: 192 | N5: 194 | O5: 197 | P5: 200 | Q5: 203 | R5: 206 | S5: 209 | T5: 213 | U5: 216 | V5: 219 | W5: 222 | X5: 226 | Y5: 229 | Z5: 232 | AA5: 236 | AB5: 239 | AC5: 243 | AD5: 246.645 | AE5: 250.344675 | AF5: 254.0998451 | AG5: 257.9113428 | AH5: 261.7800129 | AI5: 265.7067131
B6: Percent Increase | F6: =F4/E4-1 -> 0.01764705882 | G6: =G4/F4-1 -> 0.01156069364 | H6: 0.01714285714 | I6: 0.01123595506 | J6: 0.01666666667 | K6: 0.01639344262 | L6: 0.01612903226 | M6: 0.01587301587 | N6: 0.01041666667 | O6: 0.01546391753 | P6: 0.0152284264 | Q6: 0.015 | R6: 0.01477832512 | S6: 0.0145631068 | T6: 0.01913875598 | U6: 0.01408450704 | V6: 0.01388888889 | W6: 0.01369863014 | X6: 0.01801801802 | Y6: 0.01327433628 | Z6: 0.01310043668 | AA6: 0.01724137931 | AB6: 0.01271186441 | AC6: 0.01673640167
B8: Operating Cost
C9: Fixed O&M
C10: Total Fixed Cost | E10: =190415 -> 190415
C11: Capacity (kWp DC) | E11: ='Control Panel'!D9 -> 6602
C12: Cost | D12: $/kW dc | E12: =E10/E11 -> 28.84201757
C13: Escalator | D13: % | E13: 0.02
E14: 0.022
C16: SG&A | E16: 1 | F16: =E16+1 -> 2 | G16: =F16+1 -> 3 | H16: 4 | I16: 5 | J16: 6 | K16: 7 | L16: 8 | M16: 9 | N16: 10 | O16: 11 | P16: 12 | Q16: 13 | R16: 14 | S16: =R16+1 -> 15 | T16: 16 | U16: 17 | V16: 18 | W16: 19 | X16: 20 | Y16: 21 | Z16: =Y16+1 -> 22 | AA16: 23 | AB16: 24 | AC16: 25 | AD16: 26 | AE16: =AD16+1 -> 27 | AF16: 28 | AG16: =AF16+1 -> 29 | AH16: 30 | AI16: 31
C17: Insurance | E17: 165000 | F17: =E17 -> 165000 | G17: =F17 -> 165000 | H17: 165000 | I17: 165000 | J17: 165000 | K17: 165000 | L17: 165000 | M17: 165000 | N17: 165000 | O17: 165000 | P17: 165000 | Q17: 165000 | R17: 165000 | S17: 165000 | T17: 165000 | U17: 165000 | V17: 165000 | W17: 165000 | X17: 165000 | Y17: 165000 | Z17: 165000 | AA17: 165000 | AB17: 165000 | AC17: 165000 | AD17: 165000 | AE17: 165000 | AF17: 165000 | AG17: 165000 | AH17: 165000 | AI17: 165000
C18: Asset Mgmt | E18: 0 | F18: =E18*1.02 -> 0 | G18: =F18*1.02 -> 0 | H18: 0 | I18: 0 | J18: 0 | K18: 0 | L18: 0 | M18: 0 | N18: 0 | O18: 0 | P18: 0 | Q18: 0 | R18: 0 | S18: 0 | T18: 0 | U18: 0 | V18: 0 | W18: 0 | X18: 0 | Y18: 0 | Z18: 0 | AA18: 0 | AB18: 0 | AC18: 0 | AD18: 0 | AE18: 0 | AF18: 0 | AG18: 0 | AH18: 0 | AI18: 0
C19: Land Lease | E19: =5000*25 -> 125000 | F19: =E19*1.0085 -> 126062.5 | G19: =F19*1.0085 -> 127134.0312 | H19: 128214.6705 | I19: 129304.4952 | J19: 130403.5834 | K19: 131512.0139 | L19: 132629.866 | M19: 133757.2199 | N19: 134894.1562 | O19: 136040.7566 | P19: 137197.103 | Q19: 138363.2784 | R19: 139539.3662 | S19: 140725.4508 | T19: 141921.6172 | U19: 143127.9509 | V19: 144344.5385 | W19: 145571.4671 | X19: 146808.8246 | Y19: 148056.6996 | Z19: 149315.1815 | AA19: 150584.3606 | AB19: 151864.3276 | AC19: 153155.1744 | AD19: 154456.9934 | AE19: 155769.8778 | AF19: 157093.9218 | AG19: 158429.2201 | AH19: 159775.8685 | AI19: 161133.9634
C20: Interconnection O&M | E20: =MAX(11038,0.015*Summary!$E$10) -> 11038 | F20: =E20*(1+0.0125+0.5*$E$14) -> 11297.393 | G20: 11562.88174 | H20: 11834.60946 | I20: 12112.72278 | J20: 12397.37176 | K20: 12688.71 | L20: 12986.89469 | M20: 13292.08671 | N20: 13604.45075 | O20: 13924.15534 | P20: 14251.37299 | Q20: 14586.28026 | R20: 14929.05784 | S20: 15279.8907 | T20: 15638.96813 | U20: 16006.48388 | V20: 16382.63626 | W20: 16767.62821 | X20: 17161.66747 | Y20: 17564.96666 | Z20: 17977.74337 | AA20: 18400.22034 | AB20: 18832.62552 | AC20: 19275.19222 | AD20: 19728.15924 | AE20: 20191.77098 | AF20: 20666.2776 | AG20: 21151.93512 | AH20: 21649.0056 | AI20: 22157.75723
C21: SCADA O&M ($/kWh) | E21: 0.002 | F21: =E21*(1+0.0125+0.5*$E$14) -> 0.002047 | G21: 0.0020951045 | H21: 0.002144339456 | I21: 0.002194731433 | J21: 0.002246307622 | K21: 0.002299095851 | L21: 0.002353124603 | M21: 0.002408423031 | N21: 0.002465020973 | O21: 0.002522948966 | P21: 0.002582238266 | Q21: 0.002642920865 | R21: 0.002705029506 | S21: 0.002768597699 | T21: 0.002833659745 | U21: 0.002900250749 | V21: 0.002968406642 | W21: 0.003038164198 | X21: 0.003109561056 | Y21: 0.003182635741 | Z21: 0.003257427681 | AA21: 0.003333977232 | AB21: 0.003412325697 | AC21: 0.003492515351 | AD21: 0.003574589461 | AE21: 0.003658592314 | AF21: 0.003744569233 | AG21: 0.00383256661 | AH21: 0.003922631925 | AI21: 0.004014813776
C22: Interconnection Insurance | E22: 5820 | F22: =E22*(1+0.0125+0.5*$E$14) -> 5956.77 | G22: 6096.754095 | H22: 6240.027816 | I22: 6386.66847 | J22: 6536.755179 | K22: 6690.368926 | L22: 6847.592595 | M22: 7008.511021 | N22: 7173.21103 | O22: 7341.78149 | P22: 7514.313355 | Q22: 7690.899718 | R22: 7871.635862 | S22: 8056.619305 | T22: 8245.949858 | U22: 8439.72968 | V22: 8638.063327 | W22: 8841.057816 | X22: 9048.822674 | Y22: 9261.470007 | Z22: 9479.114552 | AA22: 9701.873744 | AB22: 9929.867777 | AC22: 10163.21967 | AD22: 10402.05533 | AE22: 10646.50363 | AF22: 10896.69647 | AG22: 11152.76883 | AH22: 11414.8589 | AI22: 11683.10809
C24: Total EPC Cost | E24: ='Project Budget Detail'!E28 -> 10463238.53
C25: Other Development and Acquisition | E25: ='Project Budget Detail'!E44 -> 4953120
C26: Total Non-Financing | E26: =SUM(E24:E25) -> 15416358.53
C28: Construcion Period | E28: 1 | F28: 2 | G28: 3 | H28: 4 | I28: 5 | J28: 6 | K28: 7 | L28: 8 | M28: 9 | N28: 10 | O28: 11
C29: Construction Draws Percentage | E29: 0.1 | F29: 0.25 | G29: 0.3 | H29: 0.2 | I29: 0.1 | J29: =1-SUM(E29:I29) -> 0.05 | K29: 0 | L29: 0 | M29: 0 | N29: 0 | O29: 0

Sheet Monthly Operations
B1: Time | F1: ='Control Panel'!D11 -> 2016-12-31 | G1: =EOMONTH(F1,1) -> 2017-01-31 | H1: =EOMONTH(G1,1) -> 2017-02-28 | I1: 2017-03-31 | J1: 2017-04-30 | K1: 2017-05-31 | L1: 2017-06-30 | M1: 2017-07-31 | N1: 2017-08-31 | O1: 2017-09-30 | P1: 2017-10-31 | Q1: 2017-11-30 | R1: 2017-12-31 | S1: 2018-01-31 | T1: 2018-02-28 | U1: 2018-03-31 | V1: 2018-04-30 | W1: 2018-05-31 | X1: 2018-06-30 | Y1: 2018-07-31 | Z1: 2018-08-31 | AA1: 2018-09-30 | AB1: 2018-10-31 | AC1: 2018-11-30 | AD1: 2018-12-31 | AE1: 2019-01-31 | AF1: 2019-02-28 | AG1: 2019-03-31 | AH1: 2019-04-30 | AI1: 2019-05-31 | AJ1: 2019-06-30 | AK1: 2019-07-31 | AL1: 2019-08-31 | AM1: 2019-09-30 | AN1: 2019-10-31 | AO1: 2019-11-30 | AP1: 2019-12-31 | AQ1: 2020-01-31 | AR1: 2020-02-29 | AS1: 2020-03-31 | AT1: 2020-04-30 | AU1: 2020-05-31 | AV1: 2020-06-30 | AW1: 2020-07-31 | AX1: 2020-08-31 | AY1: 2020-09-30 | AZ1: 2020-10-31 | BA1: 2020-11-30 | BB1: 2020-12-31 | BC1: 2021-01-31 | BD1: 2021-02-28 | BE1: 2021-03-31 | BF1: 2021-04-30 | BG1: 2021-05-31 | BH1: 2021-06-30 | BI1: 2021-07-31 | BJ1: 2021-08-31 | BK1: 2021-09-30 | BL1: 2021-10-31 | BM1: 2021-11-30 | BN1: 2021-12-31 | BO1: 2022-01-31 | BP1: 2022-02-28 | BQ1: 2022-03-31 | BR1: 2022-04-30 | BS1: 2022-05-31 | BT1: =EOMONTH(BS1,1) -> 2022-06-30 | BU1: 2022-07-31 | BV1: 2022-08-31 | BW1: 2022-09-30 | BX1: 2022-10-31 | BY1: 2022-11-30 | BZ1: 2022-12-31 | CA1: 2023-01-31 | CB1: 2023-02-28 | CC1: 2023-03-31 | CD1: 2023-04-30 | CE1: 2023-05-31 | CF1: 2023-06-30 | CG1: 2023-07-31 | CH1: 2023-08-31 | CI1: 2023-09-30 | CJ1: 2023-10-31 | CK1: 2023-11-30 | CL1: 2023-12-31 | CM1: 2024-01-31 | CN1: 2024-02-29 | CO1: 2024-03-31 | CP1: 2024-04-30 | CQ1: 2024-05-31 | CR1: 2024-06-30 | CS1: 2024-07-31 | CT1: 2024-08-31 | CU1: 2024-09-30 | CV1: 2024-10-31 | CW1: 2024-11-30 | CX1: 2024-12-31 | CY1: 2025-01-31 | CZ1: 2025-02-28 | DA1: 2025-03-31 | DB1: 2025-04-30 | DC1: 2025-05-31 | DD1: 2025-06-30 | DE1: 2025-07-31 | DF1: 2025-08-31 | DG1: 2025-09-30 | DH1: 2025-10-31 | DI1: 2025-11-30 | DJ1: 2025-12-31 | DK1: 2026-01-31 | DL1: 2026-02-28 | DM1: 2026-03-31 | DN1: 2026-04-30 | DO1: 2026-05-31 | DP1: 2026-06-30 | DQ1: 2026-07-31 | DR1: 2026-08-31 | DS1: 2026-09-30 | DT1: 2026-10-31 | DU1: 2026-11-30 | DV1: 2026-12-31 | DW1: 2027-01-31 | DX1: 2027-02-28 | DY1: 2027-03-31 | DZ1: 2027-04-30 | EA1: 2027-05-31 | EB1: 2027-06-30 | EC1: 2027-07-31 | ED1: 2027-08-31 | EE1: 2027-09-30 | EF1: =EOMONTH(EE1,1) -> 2027-10-31 | EG1: 2027-11-30 | EH1: 2027-12-31 | EI1: 2028-01-31 | EJ1: 2028-02-29 | EK1: 2028-03-31 | EL1: 2028-04-30 | EM1: 2028-05-31 | EN1: 2028-06-30 | EO1: 2028-07-31 | EP1: 2028-08-31 | EQ1: 2028-09-30 | ER1: 2028-10-31 | ES1: 2028-11-30 | ET1: 2028-12-31 | EU1: 2029-01-31 | EV1: 2029-02-28 | EW1: 2029-03-31 | EX1: 2029-04-30 | EY1: 2029-05-31 | EZ1: 2029-06-30 | FA1: 2029-07-31 | FB1: 2029-08-31 | FC1: 2029-09-30 | FD1: 2029-10-31 | FE1: 2029-11-30 | FF1: 2029-12-31 | FG1: 2030-01-31 | FH1: 2030-02-28 | FI1: 2030-03-31 | FJ1: 2030-04-30 | FK1: 2030-05-31 | FL1: 2030-06-30 | FM1: 2030-07-31 | FN1: 2030-08-31 | FO1: 2030-09-30 | FP1: 2030-10-31 | FQ1: 2030-11-30 | FR1: 2030-12-31 | FS1: 2031-01-31 | FT1: 2031-02-28 | FU1: 2031-03-31 | FV1: 2031-04-30 | FW1: 2031-05-31 | FX1: 2031-06-30 | FY1: 2031-07-31 | FZ1: 2031-08-31 | GA1: 2031-09-30 | GB1: 2031-10-31 | GC1: 2031-11-30 | GD1: 2031-12-31 | GE1: 2032-01-31 | GF1: 2032-02-29 | GG1: 2032-03-31 | GH1: 2032-04-30 | GI1: 2032-05-31 | GJ1: 2032-06-30 | GK1: 2032-07-31 | GL1: 2032-08-31 | GM1: 2032-09-30 | GN1: 2032-10-31 | GO1: 2032-11-30 | GP1: 2032-12-31 | GQ1: 2033-01-31 | GR1: =EOMONTH(GQ1,1) -> 2033-02-28 | GS1: 2033-03-31 | GT1: 2033-04-30 | GU1: 2033-05-31 | GV1: 2033-06-30 | GW1: 2033-07-31 | GX1: 2033-08-31 | GY1: 2033-09-30 | GZ1: 2033-10-31 | HA1: 2033-11-30 | HB1: 2033-12-31 | HC1: 2034-01-31 | HD1: 2034-02-28 | HE1: 2034-03-31 | HF1: 2034-04-30 | HG1: 2034-05-31 | HH1: 2034-06-30 | HI1: 2034-07-31 | HJ1: 2034-08-31 | HK1: 2034-09-30 | HL1: 2034-10-31 | HM1: 2034-11-30 | HN1: 2034-12-31 | HO1: 2035-01-31 | HP1: 2035-02-28 | HQ1: 2035-03-31 | HR1: 2035-04-30 | HS1: 2035-05-31 | HT1: 2035-06-30 | HU1: 2035-07-31 | HV1: 2035-08-31 | HW1: 2035-09-30 | HX1: 2035-10-31 | HY1: 2035-11-30 | HZ1: 2035-12-31 | IA1: 2036-01-31 | IB1: 2036-02-29 | IC1: 2036-03-31 | ID1: 2036-04-30 | IE1: 2036-05-31 | IF1: 2036-06-30 | IG1: 2036-07-31 | IH1: 2036-08-31 | II1: 2036-09-30 | IJ1: 2036-10-31 | IK1: 2036-11-30 | IL1: 2036-12-31 | IM1: 2037-01-31 | IN1: 2037-02-28 | IO1: 2037-03-31 | IP1: 2037-04-30 | IQ1: 2037-05-31 | IR1: 2037-06-30 | IS1: 2037-07-31 | IT1: 2037-08-31 | IU1: 2037-09-30 | IV1: 2037-10-31 | IW1: 2037-11-30 | IX1: 2037-12-31 | IY1: 2038-01-31 | IZ1: 2038-02-28 | JA1: 2038-03-31 | JB1: 2038-04-30 | JC1: 2038-05-31 | JD1: =EOMONTH(JC1,1) -> 2038-06-30 | JE1: 2038-07-31 | JF1: 2038-08-31 | JG1: 2038-09-30 | JH1: 2038-10-31 | JI1: 2038-11-30 | JJ1: 2038-12-31 | JK1: 2039-01-31 | JL1: 2039-02-28 | JM1: 2039-03-31 | JN1: 2039-04-30 | JO1: 2039-05-31 | JP1: 2039-06-30 | JQ1: 2039-07-31 | JR1: 2039-08-31 | JS1: 2039-09-30 | JT1: 2039-10-31 | JU1: 2039-11-30 | JV1: 2039-12-31 | JW1: 2040-01-31 | JX1: 2040-02-29 | JY1: 2040-03-31 | JZ1: 2040-04-30 | KA1: 2040-05-31 | KB1: 2040-06-30 | KC1: 2040-07-31 | KD1: 2040-08-31 | KE1: 2040-09-30 | KF1: 2040-10-31 | KG1: 2040-11-30 | KH1: 2040-12-31 | KI1: 2041-01-31 | KJ1: 2041-02-28 | KK1: 2041-03-31 | KL1: 2041-04-30 | KM1: 2041-05-31 | KN1: 2041-06-30 | KO1: 2041-07-31 | KP1: 2041-08-31 | KQ1: 2041-09-30 | KR1: 2041-10-31 | KS1: 2041-11-30 | KT1: 2041-12-31 | KU1: 2042-01-31 | KV1: 2042-02-28 | KW1: 2042-03-31 | KX1: 2042-04-30 | KY1: 2042-05-31 | KZ1: 2042-06-30 | LA1: 2042-07-31 | LB1: 2042-08-31 | LC1: 2042-09-30 | LD1: 2042-10-31 | LE1: 2042-11-30 | LF1: 2042-12-31 | LG1: 2043-01-31 | LH1: 2043-02-28 | LI1: 2043-03-31 | LJ1: 2043-04-30 | LK1: 2043-05-31 | LL1: 2043-06-30 | LM1: 2043-07-31 | LN1: 2043-08-31 | LO1: 2043-09-30 | LP1: =EOMONTH(LO1,1) -> 2043-10-31 | LQ1: 2043-11-30 | LR1: 2043-12-31 | LS1: 2044-01-31 | LT1: 2044-02-29 | LU1: 2044-03-31 | LV1: 2044-04-30 | LW1: 2044-05-31 | LX1: 2044-06-30 | LY1: 2044-07-31 | LZ1: 2044-08-31 | MA1: 2044-09-30 | MB1: 2044-10-31 | MC1: 2044-11-30 | MD1: 2044-12-31 | ME1: 2045-01-31 | MF1: 2045-02-28 | MG1: 2045-03-31 | MH1: 2045-04-30 | MI1: 2045-05-31 | MJ1: 2045-06-30 | MK1: 2045-07-31 | ML1: 2045-08-31 | MM1: 2045-09-30 | MN1: 2045-10-31 | MO1: 2045-11-30 | MP1: 2045-12-31 | MQ1: 2046-01-31 | MR1: 2046-02-28 | MS1: 2046-03-31 | MT1: 2046-04-30 | MU1: 2046-05-31 | MV1: 2046-06-30 | MW1: 2046-07-31 | MX1: 2046-08-31 | MY1: 2046-09-30 | MZ1: 2046-10-31 | NA1: 2046-11-30 | NB1: 2046-12-31 | NC1: 2047-01-31 | ND1: 2047-02-28 | NE1: 2047-03-31 | NF1: 2047-04-30 | NG1: 2047-05-31 | NH1: 2047-06-30 | NI1: 2047-07-31 | NJ1: 2047-08-31 | NK1: 2047-09-30 | NL1: 2047-10-31 | NM1: 2047-11-30 | NN1: 2047-12-31
C2: End of Quarter | G2: =eoqtr(G1) -> 2017-03-31 | H2: =eoqtr(H1) -> 2017-03-31 | I2: 2017-03-31 | J2: 2017-06-30 | K2: 2017-06-30 | L2: 2017-06-30 | M2: 2017-09-30 | N2: 2017-09-30 | O2: 2017-09-30 | P2: 2017-12-31 | Q2: 2017-12-31 | R2: 2017-12-31 | S2: 2018-03-31 | T2: 2018-03-31 | U2: 2018-03-31 | V2: 2018-06-30 | W2: 2018-06-30 | X2: 2018-06-30 | Y2: 2018-09-30 | Z2: 2018-09-30 | AA2: 2018-09-30 | AB2: 2018-12-31 | AC2: 2018-12-31 | AD2: 2018-12-31 | AE2: 2019-03-31 | AF2: 2019-03-31 | AG2: 2019-03-31 | AH2: 2019-06-30 | AI2: 2019-06-30 | AJ2: 2019-06-30 | AK2: 2019-09-30 | AL2: 2019-09-30 | AM2: 2019-09-30 | AN2: 2019-12-31 | AO2: 2019-12-31 | AP2: 2019-12-31 | AQ2: 2020-03-31 | AR2: 2020-03-31 | AS2: 2020-03-31 | AT2: 2020-06-30 | AU2: 2020-06-30 | AV2: 2020-06-30 | AW2: 2020-09-30 | AX2: 2020-09-30 | AY2: 2020-09-30 | AZ2: 2020-12-31 | BA2: 2020-12-31 | BB2: 2020-12-31 | BC2: 2021-03-31 | BD2: 2021-03-31 | BE2: 2021-03-31 | BF2: 2021-06-30 | BG2: 2021-06-30 | BH2: 2021-06-30 | BI2: 2021-09-30 | BJ2: 2021-09-30 | BK2: 2021-09-30 | BL2: 2021-12-31 | BM2: 2021-12-31 | BN2: 2021-12-31 | BO2: 2022-03-31 | BP2: 2022-03-31 | BQ2: 2022-03-31 | BR2: 2022-06-30 | BS2: 2022-06-30 | BT2: =eoqtr(BT1) -> 2022-06-30 | BU2: 2022-09-30 | BV2: 2022-09-30 | BW2: 2022-09-30 | BX2: 2022-12-31 | BY2: 2022-12-31 | BZ2: 2022-12-31 | CA2: 2023-03-31 | CB2: 2023-03-31 | CC2: 2023-03-31 | CD2: 2023-06-30 | CE2: 2023-06-30 | CF2: 2023-06-30 | CG2: 2023-09-30 | CH2: 2023-09-30 | CI2: 2023-09-30 | CJ2: 2023-12-31 | CK2: 2023-12-31 | CL2: 2023-12-31 | CM2: 2024-03-31 | CN2: 2024-03-31 | CO2: 2024-03-31 | CP2: 2024-06-30 | CQ2: 2024-06-30 | CR2: 2024-06-30 | CS2: 2024-09-30 | CT2: 2024-09-30 | CU2: 2024-09-30 | CV2: 2024-12-31 | CW2: 2024-12-31 | CX2: 2024-12-31 | CY2: 2025-03-31 | CZ2: 2025-03-31 | DA2: 2025-03-31 | DB2: 2025-06-30 | DC2: 2025-06-30 | DD2: 2025-06-30 | DE2: 2025-09-30 | DF2: 2025-09-30 | DG2: 2025-09-30 | DH2: 2025-12-31 | DI2: 2025-12-31 | DJ2: 2025-12-31 | DK2: 2026-03-31 | DL2: 2026-03-31 | DM2: 2026-03-31 | DN2: 2026-06-30 | DO2: 2026-06-30 | DP2: 2026-06-30 | DQ2: 2026-09-30 | DR2: 2026-09-30 | DS2: 2026-09-30 | DT2: 2026-12-31 | DU2: 2026-12-31 | DV2: 2026-12-31 | DW2: 2027-03-31 | DX2: 2027-03-31 | DY2: 2027-03-31 | DZ2: 2027-06-30 | EA2: 2027-06-30 | EB2: 2027-06-30 | EC2: 2027-09-30 | ED2: 2027-09-30 | EE2: 2027-09-30 | EF2: =eoqtr(EF1) -> 2027-12-31 | EG2: 2027-12-31 | EH2: 2027-12-31 | EI2: 2028-03-31 | EJ2: 2028-03-31 | EK2: 2028-03-31 | EL2: 2028-06-30 | EM2: 2028-06-30 | EN2: 2028-06-30 | EO2: 2028-09-30 | EP2: 2028-09-30 | EQ2: 2028-09-30 | ER2: 2028-12-31 | ES2: 2028-12-31 | ET2: 2028-12-31 | EU2: 2029-03-31 | EV2: 2029-03-31 | EW2: 2029-03-31 | EX2: 2029-06-30 | EY2: 2029-06-30 | EZ2: 2029-06-30 | FA2: 2029-09-30 | FB2: 2029-09-30 | FC2: 2029-09-30 | FD2: 2029-12-31 | FE2: 2029-12-31 | FF2: 2029-12-31 | FG2: 2030-03-31 | FH2: 2030-03-31 | FI2: 2030-03-31 | FJ2: 2030-06-30 | FK2: 2030-06-30 | FL2: 2030-06-30 | FM2: 2030-09-30 | FN2: 2030-09-30 | FO2: 2030-09-30 | FP2: 2030-12-31 | FQ2: 2030-12-31 | FR2: 2030-12-31 | FS2: 2031-03-31 | FT2: 2031-03-31 | FU2: 2031-03-31 | FV2: 2031-06-30 | FW2: 2031-06-30 | FX2: 2031-06-30 | FY2: 2031-09-30 | FZ2: 2031-09-30 | GA2: 2031-09-30 | GB2: 2031-12-31 | GC2: 2031-12-31 | GD2: 2031-12-31 | GE2: 2032-03-31 | GF2: 2032-03-31 | GG2: 2032-03-31 | GH2: 2032-06-30 | GI2: 2032-06-30 | GJ2: 2032-06-30 | GK2: 2032-09-30 | GL2: 2032-09-30 | GM2: 2032-09-30 | GN2: 2032-12-31 | GO2: 2032-12-31 | GP2: 2032-12-31 | GQ2: 2033-03-31 | GR2: =eoqtr(GR1) -> 2033-03-31 | GS2: 2033-03-31 | GT2: 2033-06-30 | GU2: 2033-06-30 | GV2: 2033-06-30 | GW2: 2033-09-30 | GX2: 2033-09-30 | GY2: 2033-09-30 | GZ2: 2033-12-31 | HA2: 2033-12-31 | HB2: 2033-12-31 | HC2: 2034-03-31 | HD2: 2034-03-31 | HE2: 2034-03-31 | HF2: 2034-06-30 | HG2: 2034-06-30 | HH2: 2034-06-30 | HI2: 2034-09-30 | HJ2: 2034-09-30 | HK2: 2034-09-30 | HL2: 2034-12-31 | HM2: 2034-12-31 | HN2: 2034-12-31 | HO2: 2035-03-31 | HP2: 2035-03-31 | HQ2: 2035-03-31 | HR2: 2035-06-30 | HS2: 2035-06-30 | HT2: 2035-06-30 | HU2: 2035-09-30 | HV2: 2035-09-30 | HW2: 2035-09-30 | HX2: 2035-12-31 | HY2: 2035-12-31 | HZ2: 2035-12-31 | IA2: 2036-03-31 | IB2: 2036-03-31 | IC2: 2036-03-31 | ID2: 2036-06-30 | IE2: 2036-06-30 | IF2: 2036-06-30 | IG2: 2036-09-30 | IH2: 2036-09-30 | II2: 2036-09-30 | IJ2: 2036-12-31 | IK2: 2036-12-31 | IL2: 2036-12-31 | IM2: 2037-03-31 | IN2: 2037-03-31 | IO2: 2037-03-31 | IP2: 2037-06-30 | IQ2: 2037-06-30 | IR2: 2037-06-30 | IS2: 2037-09-30 | IT2: 2037-09-30 | IU2: 2037-09-30 | IV2: 2037-12-31 | IW2: 2037-12-31 | IX2: 2037-12-31 | IY2: 2038-03-31 | IZ2: 2038-03-31 | JA2: 2038-03-31 | JB2: 2038-06-30 | JC2: 2038-06-30 | JD2: =eoqtr(JD1) -> 2038-06-30 | JE2: 2038-09-30 | JF2: 2038-09-30 | JG2: 2038-09-30 | JH2: 2038-12-31 | JI2: 2038-12-31 | JJ2: 2038-12-31 | JK2: 2039-03-31 | JL2: 2039-03-31 | JM2: 2039-03-31 | JN2: 2039-06-30 | JO2: 2039-06-30 | JP2: 2039-06-30 | JQ2: 2039-09-30 | JR2: 2039-09-30 | JS2: 2039-09-30 | JT2: 2039-12-31 | JU2: 2039-12-31 | JV2: 2039-12-31 | JW2: 2040-03-31 | JX2: 2040-03-31 | JY2: 2040-03-31 | JZ2: 2040-06-30 | KA2: 2040-06-30 | KB2: 2040-06-30 | KC2: 2040-09-30 | KD2: 2040-09-30 | KE2: 2040-09-30 | KF2: 2040-12-31 | KG2: 2040-12-31 | KH2: 2040-12-31 | KI2: 2041-03-31 | KJ2: 2041-03-31 | KK2: 2041-03-31 | KL2: 2041-06-30 | KM2: 2041-06-30 | KN2: 2041-06-30 | KO2: 2041-09-30 | KP2: 2041-09-30 | KQ2: 2041-09-30 | KR2: 2041-12-31 | KS2: 2041-12-31 | KT2: 2041-12-31 | KU2: 2042-03-31 | KV2: 2042-03-31 | KW2: 2042-03-31 | KX2: 2042-06-30 | KY2: 2042-06-30 | KZ2: 2042-06-30 | LA2: 2042-09-30 | LB2: 2042-09-30 | LC2: 2042-09-30 | LD2: 2042-12-31 | LE2: 2042-12-31 | LF2: 2042-12-31 | LG2: 2043-03-31 | LH2: 2043-03-31 | LI2: 2043-03-31 | LJ2: 2043-06-30 | LK2: 2043-06-30 | LL2: 2043-06-30 | LM2: 2043-09-30 | LN2: 2043-09-30 | LO2: 2043-09-30 | LP2: =eoqtr(LP1) -> 2043-12-31 | LQ2: 2043-12-31 | LR2: 2043-12-31 | LS2: 2044-03-31 | LT2: 2044-03-31 | LU2: 2044-03-31 | LV2: 2044-06-30 | LW2: 2044-06-30 | LX2: 2044-06-30 | LY2: 2044-09-30 | LZ2: 2044-09-30 | MA2: 2044-09-30 | MB2: 2044-12-31 | MC2: 2044-12-31 | MD2: 2044-12-31 | ME2: 2045-03-31 | MF2: 2045-03-31 | MG2: 2045-03-31 | MH2: 2045-06-30 | MI2: 2045-06-30 | MJ2: 2045-06-30 | MK2: 2045-09-30 | ML2: 2045-09-30 | MM2: 2045-09-30 | MN2: 2045-12-31 | MO2: 2045-12-31 | MP2: 2045-12-31 | MQ2: 2046-03-31 | MR2: 2046-03-31 | MS2: 2046-03-31 | MT2: 2046-06-30 | MU2: 2046-06-30 | MV2: 2046-06-30 | MW2: 2046-09-30 | MX2: 2046-09-30 | MY2: 2046-09-30 | MZ2: 2046-12-31 | NA2: 2046-12-31 | NB2: 2046-12-31 | NC2: 2047-03-31 | ND2: 2047-03-31 | NE2: 2047-03-31 | NF2: 2047-06-30 | NG2: 2047-06-30 | NH2: 2047-06-30 | NI2: 2047-09-30 | NJ2: 2047-09-30 | NK2: 2047-09-30 | NL2: 2047-12-31 | NM2: 2047-12-31 | NN2: 2047-12-31
C3: Year | G3: =YEAR('Control Panel'!D13) -> 2017 | H3: =IF(MOD(G62,12)=0,G3+1,G3) -> 2017 | I3: 2017 | J3: 2017 | K3: 2017 | L3: 2017 | M3: 2017 | N3: 2017 | O3: 2017 | P3: 2017 | Q3: 2017 | R3: 2017 | S3: 2018 | T3: 2018 | U3: 2018 | V3: 2018 | W3: 2018 | X3: 2018 | Y3: 2018 | Z3: 2018 | AA3: 2018 | AB3: 2018 | AC3: 2018 | AD3: 2018 | AE3: 2019 | AF3: 2019 | AG3: 2019 | AH3: 2019 | AI3: 2019 | AJ3: 2019 | AK3: 2019 | AL3: 2019 | AM3: 2019 | AN3: 2019 | AO3: 2019 | AP3: 2019 | AQ3: 2020 | AR3: 2020 | AS3: 2020 | AT3: 2020 | AU3: 2020 | AV3: 2020 | AW3: 2020 | AX3: 2020 | AY3: 2020 | AZ3: 2020 | BA3: 2020 | BB3: 2020 | BC3: 2021 | BD3: 2021 | BE3: 2021 | BF3: 2021 | BG3: 2021 | BH3: 2021 | BI3: 2021 | BJ3: 2021 | BK3: 2021 | BL3: 2021 | BM3: 2021 | BN3: 2021 | BO3: 2022 | BP3: 2022 | BQ3: 2022 | BR3: 2022 | BS3: 2022 | BT3: =IF(MOD(BS62,12)=0,BS3+1,BS3) -> 2022 | BU3: 2022 | BV3: 2022 | BW3: 2022 | BX3: 2022 | BY3: 2022 | BZ3: 2022 | CA3: 2023 | CB3: 2023 | CC3: 2023 | CD3: 2023 | CE3: 2023 | CF3: 2023 | CG3: 2023 | CH3: 2023 | CI3: 2023 | CJ3: 2023 | CK3: 2023 | CL3: 2023 | CM3: 2024 | CN3: 2024 | CO3: 2024 | CP3: 2024 | CQ3: 2024 | CR3: 2024 | CS3: 2024 | CT3: 2024 | CU3: 2024 | CV3: 2024 | CW3: 2024 | CX3: 2024 | CY3: 2025 | CZ3: 2025 | DA3: 2025 | DB3: 2025 | DC3: 2025 | DD3: 2025 | DE3: 2025 | DF3: 2025 | DG3: 2025 | DH3: 2025 | DI3: 2025 | DJ3: 2025 | DK3: 2026 | DL3: 2026 | DM3: 2026 | DN3: 2026 | DO3: 2026 | DP3: 2026 | DQ3: 2026 | DR3: 2026 | DS3: 2026 | DT3: 2026 | DU3: 2026 | DV3: 2026 | DW3: 2027 | DX3: 2027 | DY3: 2027 | DZ3: 2027 | EA3: 2027 | EB3: 2027 | EC3: 2027 | ED3: 2027 | EE3: 2027 | EF3: =IF(MOD(EE62,12)=0,EE3+1,EE3) -> 2027 | EG3: 2027 | EH3: 2027 | EI3: 2028 | EJ3: 2028 | EK3: 2028 | EL3: 2028 | EM3: 2028 | EN3: 2028 | EO3: 2028 | EP3: 2028 | EQ3: 2028 | ER3: 2028 | ES3: 2028 | ET3: 2028 | EU3: 2029 | EV3: 2029 | EW3: 2029 | EX3: 2029 | EY3: 2029 | EZ3: 2029 | FA3: 2029 | FB3: 2029 | FC3: 2029 | FD3: 2029 | FE3: 2029 | FF3: 2029 | FG3: 2030 | FH3: 2030 | FI3: 2030 | FJ3: 2030 | FK3: 2030 | FL3: 2030 | FM3: 2030 | FN3: 2030 | FO3: 2030 | FP3: 2030 | FQ3: 2030 | FR3: 2030 | FS3: 2031 | FT3: 2031 | FU3: 2031 | FV3: 2031 | FW3: 2031 | FX3: 2031 | FY3: 2031 | FZ3: 2031 | GA3: 2031 | GB3: 2031 | GC3: 2031 | GD3: 2031 | GE3: 2032 | GF3: 2032 | GG3: 2032 | GH3: 2032 | GI3: 2032 | GJ3: 2032 | GK3: 2032 | GL3: 2032 | GM3: 2032 | GN3: 2032 | GO3: 2032 | GP3: 2032 | GQ3: 2033 | GR3: =IF(MOD(GQ62,12)=0,GQ3+1,GQ3) -> 2033 | GS3: 2033 | GT3: 2033 | GU3: 2033 | GV3: 2033 | GW3: 2033 | GX3: 2033 | GY3: 2033 | GZ3: 2033 | HA3: 2033 | HB3: 2033 | HC3: 2034 | HD3: 2034 | HE3: 2034 | HF3: 2034 | HG3: 2034 | HH3: 2034 | HI3: 2034 | HJ3: 2034 | HK3: 2034 | HL3: 2034 | HM3: 2034 | HN3: 2034 | HO3: 2035 | HP3: 2035 | HQ3: 2035 | HR3: 2035 | HS3: 2035 | HT3: 2035 | HU3: 2035 | HV3: 2035 | HW3: 2035 | HX3: 2035 | HY3: 2035 | HZ3: 2035 | IA3: 2036 | IB3: 2036 | IC3: 2036 | ID3: 2036 | IE3: 2036 | IF3: 2036 | IG3: 2036 | IH3: 2036 | II3: 2036 | IJ3: 2036 | IK3: 2036 | IL3: 2036 | IM3: 2037 | IN3: 2037 | IO3: 2037 | IP3: 2037 | IQ3: 2037 | IR3: 2037 | IS3: 2037 | IT3: 2037 | IU3: 2037 | IV3: 2037 | IW3: 2037 | IX3: 2037 | IY3: 2038 | IZ3: 2038 | JA3: 2038 | JB3: 2038 | JC3: 2038 | JD3: =IF(MOD(JC62,12)=0,JC3+1,JC3) -> 2038 | JE3: 2038 | JF3: 2038 | JG3: 2038 | JH3: 2038 | JI3: 2038 | JJ3: 2038 | JK3: 2039 | JL3: 2039 | JM3: 2039 | JN3: 2039 | JO3: 2039 | JP3: 2039 | JQ3: 2039 | JR3: 2039 | JS3: 2039 | JT3: 2039 | JU3: 2039 | JV3: 2039 | JW3: 2040 | JX3: 2040 | JY3: 2040 | JZ3: 2040 | KA3: 2040 | KB3: 2040 | KC3: 2040 | KD3: 2040 | KE3: 2040 | KF3: 2040 | KG3: 2040 | KH3: 2040 | KI3: 2041 | KJ3: 2041 | KK3: 2041 | KL3: 2041 | KM3: 2041 | KN3: 2041 | KO3: 2041 | KP3: 2041 | KQ3: 2041 | KR3: 2041 | KS3: 2041 | KT3: 2041 | KU3: 2042 | KV3: 2042 | KW3: 2042 | KX3: 2042 | KY3: 2042 | KZ3: 2042 | LA3: 2042 | LB3: 2042 | LC3: 2042 | LD3: 2042 | LE3: 2042 | LF3: 2042 | LG3: 2043 | LH3: 2043 | LI3: 2043 | LJ3: 2043 | LK3: 2043 | LL3: 2043 | LM3: 2043 | LN3: 2043 | LO3: 2043 | LP3: =IF(MOD(LO62,12)=0,LO3+1,LO3) -> 2043 | LQ3: 2043 | LR3: 2043 | LS3: 2044 | LT3: 2044 | LU3: 2044 | LV3: 2044 | LW3: 2044 | LX3: 2044 | LY3: 2044 | LZ3: 2044 | MA3: 2044 | MB3: 2044 | MC3: 2044 | MD3: 2044 | ME3: 2045 | MF3: 2045 | MG3: 2045 | MH3: 2045 | MI3: 2045 | MJ3: 2045 | MK3: 2045 | ML3: 2045 | MM3: 2045 | MN3: 2045 | MO3: 2045 | MP3: 2045 | MQ3: 2046 | MR3: 2046 | MS3: 2046 | MT3: 2046 | MU3: 2046 | MV3: 2046 | MW3: 2046 | MX3: 2046 | MY3: 2046 | MZ3: 2046 | NA3: 2046 | NB3: 2046 | NC3: 2047 | ND3: 2047 | NE3: 2047 | NF3: 2047 | NG3: 2047 | NH3: 2047 | NI3: 2047 | NJ3: 2047 | NK3: 2047 | NL3: 2047 | NM3: 2047 | NN3: 2047
C4: Operating Switch | E4: ='Control Panel'!D13 -> 2017-06-30 | F4: ='Control Panel'!D17 -> 2047-06-30 | G4: =AND(G1>=$E$4,G1<$F$4)*1 -> 0 | H4: =AND(H1>=$E$4,H1<$F$4)*1 -> 0 | I4: 0 | J4: 0 | K4: 0 | L4: 1 | M4: 1 | N4: 1 | O4: 1 | P4: 1 | Q4: 1 | R4: 1 | S4: 1 | T4: 1 | U4: 1 | V4: 1 | W4: 1 | X4: 1 | Y4: 1 | Z4: 1 | AA4: 1 | AB4: 1 | AC4: 1 | AD4: 1 | AE4: 1 | AF4: 1 | AG4: 1 | AH4: 1 | AI4: 1 | AJ4: 1 | AK4: 1 | AL4: 1 | AM4: 1 | AN4: 1 | AO4: 1 | AP4: 1 | AQ4: 1 | AR4: 1 | AS4: 1 | AT4: 1 | AU4: 1 | AV4: 1 | AW4: 1 | AX4: 1 | AY4: 1 | AZ4: 1 | BA4: 1 | BB4: 1 | BC4: 1 | BD4: 1 | BE4: 1 | BF4: 1 | BG4: 1 | BH4: 1 | BI4: 1 | BJ4: 1 | BK4: 1 | BL4: 1 | BM4: 1 | BN4: 1 | BO4: 1 | BP4: 1 | BQ4: 1 | BR4: 1 | BS4: 1 | BT4: =AND(BT1>=$E$4,BT1<$F$4)*1 -> 1 | BU4: 1 | BV4: 1 | BW4: 1 | BX4: 1 | BY4: 1 | BZ4: 1 | CA4: 1 | CB4: 1 | CC4: 1 | CD4: 1 | CE4: 1 | CF4: 1 | CG4: 1 | CH4: 1 | CI4: 1 | CJ4: 1 | CK4: 1 | CL4: 1 | CM4: 1 | CN4: 1 | CO4: 1 | CP4: 1 | CQ4: 1 | CR4: 1 | CS4: 1 | CT4: 1 | CU4: 1 | CV4: 1 | CW4: 1 | CX4: 1 | CY4: 1 | CZ4: 1 | DA4: 1 | DB4: 1 | DC4: 1 | DD4: 1 | DE4: 1 | DF4: 1 | DG4: 1 | DH4: 1 | DI4: 1 | DJ4: 1 | DK4: 1 | DL4: 1 | DM4: 1 | DN4: 1 | DO4: 1 | DP4: 1 | DQ4: 1 | DR4: 1 | DS4: 1 | DT4: 1 | DU4: 1 | DV4: 1 | DW4: 1 | DX4: 1 | DY4: 1 | DZ4: 1 | EA4: 1 | EB4: 1 | EC4: 1 | ED4: 1 | EE4: 1 | EF4: =AND(EF1>=$E$4,EF1<$F$4)*1 -> 1 | EG4: 1 | EH4: 1 | EI4: 1 | EJ4: 1 | EK4: 1 | EL4: 1 | EM4: 1 | EN4: 1 | EO4: 1 | EP4: 1 | EQ4: 1 | ER4: 1 | ES4: 1 | ET4: 1 | EU4: 1 | EV4: 1 | EW4: 1 | EX4: 1 | EY4: 1 | EZ4: 1 | FA4: 1 | FB4: 1 | FC4: 1 | FD4: 1 | FE4: 1 | FF4: 1 | FG4: 1 | FH4: 1 | FI4: 1 | FJ4: 1 | FK4: 1 | FL4: 1 | FM4: 1 | FN4: 1 | FO4: 1 | FP4: 1 | FQ4: 1 | FR4: 1 | FS4: 1 | FT4: 1 | FU4: 1 | FV4: 1 | FW4: 1 | FX4: 1 | FY4: 1 | FZ4: 1 | GA4: 1 | GB4: 1 | GC4: 1 | GD4: 1 | GE4: 1 | GF4: 1 | GG4: 1 | GH4: 1 | GI4: 1 | GJ4: 1 | GK4: 1 | GL4: 1 | GM4: 1 | GN4: 1 | GO4: 1 | GP4: 1 | GQ4: 1 | GR4: =AND(GR1>=$E$4,GR1<$F$4)*1 -> 1 | GS4: 1 | GT4: 1 | GU4: 1 | GV4: 1 | GW4: 1 | GX4: 1 | GY4: 1 | GZ4: 1 | HA4: 1 | HB4: 1 | HC4: 1 | HD4: 1 | HE4: 1 | HF4: 1 | HG4: 1 | HH4: 1 | HI4: 1 | HJ4: 1 | HK4: 1 | HL4: 1 | HM4: 1 | HN4: 1 | HO4: 1 | HP4: 1 | HQ4: 1 | HR4: 1 | HS4: 1 | HT4: 1 | HU4: 1 | HV4: 1 | HW4: 1 | HX4: 1 | HY4: 1 | HZ4: 1 | IA4: 1 | IB4: 1 | IC4: 1 | ID4: 1 | IE4: 1 | IF4: 1 | IG4: 1 | IH4: 1 | II4: 1 | IJ4: 1 | IK4: 1 | IL4: 1 | IM4: 1 | IN4: 1 | IO4: 1 | IP4: 1 | IQ4: 1 | IR4: 1 | IS4: 1 | IT4: 1 | IU4: 1 | IV4: 1 | IW4: 1 | IX4: 1 | IY4: 1 | IZ4: 1 | JA4: 1 | JB4: 1 | JC4: 1 | JD4: =AND(JD1>=$E$4,JD1<$F$4)*1 -> 1 | JE4: 1 | JF4: 1 | JG4: 1 | JH4: 1 | JI4: 1 | JJ4: 1 | JK4: 1 | JL4: 1 | JM4: 1 | JN4: 1 | JO4: 1 | JP4: 1 | JQ4: 1 | JR4: 1 | JS4: 1 | JT4: 1 | JU4: 1 | JV4: 1 | JW4: 1 | JX4: 1 | JY4: 1 | JZ4: 1 | KA4: 1 | KB4: 1 | KC4: 1 | KD4: 1 | KE4: 1 | KF4: 1 | KG4: 1 | KH4: 1 | KI4: 1 | KJ4: 1 | KK4: 1 | KL4: 1 | KM4: 1 | KN4: 1 | KO4: 1 | KP4: 1 | KQ4: 1 | KR4: 1 | KS4: 1 | KT4: 1 | KU4: 1 | KV4: 1 | KW4: 1 | KX4: 1 | KY4: 1 | KZ4: 1 | LA4: 1 | LB4: 1 | LC4: 1 | LD4: 1 | LE4: 1 | LF4: 1 | LG4: 1 | LH4: 1 | LI4: 1 | LJ4: 1 | LK4: 1 | LL4: 1 | LM4: 1 | LN4: 1 | LO4: 1 | LP4: =AND(LP1>=$E$4,LP1<$F$4)*1 -> 1 | LQ4: 1 | LR4: 1 | LS4: 1 | LT4: 1 | LU4: 1 | LV4: 1 | LW4: 1 | LX4: 1 | LY4: 1 | LZ4: 1 | MA4: 1 | MB4: 1 | MC4: 1 | MD4: 1 | ME4: 1 | MF4: 1 | MG4: 1 | MH4: 1 | MI4: 1 | MJ4: 1 | MK4: 1 | ML4: 1 | MM4: 1 | MN4: 1 | MO4: 1 | MP4: 1 | MQ4: 1 | MR4: 1 | MS4: 1 | MT4: 1 | MU4: 1 | MV4: 1 | MW4: 1 | MX4: 1 | MY4: 1 | MZ4: 1 | NA4: 1 | NB4: 1 | NC4: 1 | ND4: 1 | NE4: 1 | NF4: 1 | NG4: 1 | NH4: 0 | NI4: 0 | NJ4: 0 | NK4: 0 | NL4: 0 | NM4: 0 | NN4: 0
A5: EBITDA
B6: Revenue
C7: Production - P50 | G7: =LOOKUP(G$3,'Kwh Estimate'!$L:$L,'Kwh Estimate'!$O:$O)/12*G4 -> 0 | H7: =LOOKUP(H$3,'Kwh Estimate'!$L:$L,'Kwh Estimate'!$O:$O)/12*H4 -> 0 | I7: =LOOKUP(I$3,'Kwh Estimate'!$L:$L,'Kwh Estimate'!$O:$O)/12*I4 -> 0 | J7: =LOOKUP(J$3,'Kwh Estimate'!$L:$L,'Kwh Estimate'!$O:$O)/12*J4 -> 0 | K7: =LOOKUP(K$3,'Kwh Estimate'!$L:$L,'Kwh Estimate'!$O:$O)/12*K4 -> 0 | L7: =LOOKUP(L$3,'Kwh Estimate'!$L:$L,'Kwh Estimate'!$O:$O)/12*L4 -> 871.6849427 | M7: =LOOKUP(M$3,'Kwh Estimate'!$L:$L,'Kwh Estimate'!$O:$O)/12*M4 -> 871.6849427 | N7: =LOOKUP(N$3,'Kwh Estimate'!$L:$L,'Kwh Estimate'!$O:$O)/12*N4 -> 871.6849427 | O7: =LOOKUP(O$3,'Kwh Estimate'!$L:$L,'Kwh Estimate'!$O:$O)/12*O4 -> 871.6849427 | P7: =LOOKUP(P$3,'Kwh Estimate'!$L:$L,'Kwh Estimate'!$O:$O)/12*P4 -> 871.6849427 | Q7: =LOOKUP(Q$3,'Kwh Estimate'!$L:$L,'Kwh Estimate'!$O:$O)/12*Q4 -> 871.6849427 | R7: =LOOKUP(R$3,'Kwh Estimate'!$L:$L,'Kwh Estimate'!$O:$O)/12*R4 -> 871.6849427 | S7: =LOOKUP(S$3,'Kwh Estimate'!$L:$L,'Kwh Estimate'!$O:$O)/12*S4 -> 867.326518 | T7: =LOOKUP(T$3,'Kwh Estimate'!$L:$L,'Kwh Estimate'!$O:$O)/12*T4 -> 867.326518 | U7: =LOOKUP(U$3,'Kwh Estimate'!$L:$L,'Kwh Estimate'!$O:$O)/12*U4 -> 867.326518 | V7: =LOOKUP(V$3,'Kwh Estimate'!$L:$L,'Kwh Estimate'!$O:$O)/12*V4 -> 867.326518 | W7: =LOOKUP(W$3,'Kwh Estimate'!$L:$L,'Kwh Estimate'!$O:$O)/12*W4 -> 867.326518 | X7: =LOOKUP(X$3,'Kwh Estimate'!$L:$L,'Kwh Estimate'!$O:$O)/12*X4 -> 867.326518 | Y7: =LOOKUP(Y$3,'Kwh Estimate'!$L:$L,'Kwh Estimate'!$O:$O)/12*Y4 -> 867.326518 | Z7: =LOOKUP(Z$3,'Kwh Estimate'!$L:$L,'Kwh Estimate'!$O:$O)/12*Z4 -> 867.326518 | AA7: =LOOKUP(AA$3,'Kwh Estimate'!$L:$L,'Kwh Estimate'!$O:$O)/12*AA4 -> 867.326518 | AB7: =LOOKUP(AB$3,'Kwh Estimate'!$L:$L,'Kwh Estimate'!$O:$O)/12*AB4 -> 867.326518 | AC7: =LOOKUP(AC$3,'Kwh Estimate'!$L:$L,'Kwh Estimate'!$O:$O)/12*AC4 -> 867.326518 | AD7: =LOOKUP(AD$3,'Kwh Estimate'!$L:$L,'Kwh Estimate'!$O:$O)/12*AD4 -> 867.326518 | AE7: =LOOKUP(AE$3,'Kwh Estimate'!$L:$L,'Kwh Estimate'!$O:$O)/12*AE4 -> 862.9680933 | AF7: =LOOKUP(AF$3,'Kwh Estimate'!$L:$L,'Kwh Estimate'!$O:$O)/12*AF4 -> 862.9680933 | AG7: =LOOKUP(AG$3,'Kwh Estimate'!$L:$L,'Kwh Estimate'!$O:$O)/12*AG4 -> 862.9680933 | AH7: =LOOKUP(AH$3,'Kwh Estimate'!$L:$L,'Kwh Estimate'!$O:$O)/12*AH4 -> 862.9680933 | AI7: =LOOKUP(AI$3,'Kwh Estimate'!$L:$L,'Kwh Estimate'!$O:$O)/12*AI4 -> 862.9680933 | AJ7: =LOOKUP(AJ$3,'Kwh Estimate'!$L:$L,'Kwh Estimate'!$O:$O)/12*AJ4 -> 862.9680933 | AK7: =LOOKUP(AK$3,'Kwh Estimate'!$L:$L,'Kwh Estimate'!$O:$O)/12*AK4 -> 862.9680933 | AL7: =LOOKUP(AL$3,'Kwh Estimate'!$L:$L,'Kwh Estimate'!$O:$O)/12*AL4 -> 862.9680933 | AM7: =LOOKUP(AM$3,'Kwh Estimate'!$L:$L,'Kwh Estimate'!$O:$O)/12*AM4 -> 862.9680933 | AN7: =LOOKUP(AN$3,'Kwh Estimate'!$L:$L,'Kwh Estimate'!$O:$O)/12*AN4 -> 862.9680933 | AO7: =LOOKUP(AO$3,'Kwh Estimate'!$L:$L,'Kwh Estimate'!$O:$O)/12*AO4 -> 862.9680933 | AP7: =LOOKUP(AP$3,'Kwh Estimate'!$L:$L,'Kwh Estimate'!$O:$O)/12*AP4 -> 862.9680933 | AQ7: =LOOKUP(AQ$3,'Kwh Estimate'!$L:$L,'Kwh Estimate'!$O:$O)/12*AQ4 -> 858.6096686 | AR7: =LOOKUP(AR$3,'Kwh Estimate'!$L:$L,'Kwh Estimate'!$O:$O)/12*AR4 -> 858.6096686 | AS7: =LOOKUP(AS$3,'Kwh Estimate'!$L:$L,'Kwh Estimate'!$O:$O)/12*AS4 -> 858.6096686 | AT7: =LOOKUP(AT$3,'Kwh Estimate'!$L:$L,'Kwh Estimate'!$O:$O)/12*AT4 -> 858.6096686 | AU7: =LOOKUP(AU$3,'Kwh Estimate'!$L:$L,'Kwh Estimate'!$O:$O)/12*AU4 -> 858.6096686 | AV7: =LOOKUP(AV$3,'Kwh Estimate'!$L:$L,'Kwh Estimate'!$O:$O)/12*AV4 -> 858.6096686 | AW7: =LOOKUP(AW$3,'Kwh Estimate'!$L:$L,'Kwh Estimate'!$O:$O)/12*AW4 -> 858.6096686 | AX7: =LOOKUP(AX$3,'Kwh Estimate'!$L:$L,'Kwh Estimate'!$O:$O)/12*AX4 -> 858.6096686 | AY7: =LOOKUP(AY$3,'Kwh Estimate'!$L:$L,'Kwh Estimate'!$O:$O)/12*AY4 -> 858.6096686 | AZ7: =LOOKUP(AZ$3,'Kwh Estimate'!$L:$L,'Kwh Estimate'!$O:$O)/12*AZ4 -> 858.6096686 | BA7: =LOOKUP(BA$3,'Kwh Estimate'!$L:$L,'Kwh Estimate'!$O:$O)/12*BA4 -> 858.6096686 | BB7: =LOOKUP(BB$3,'Kwh Estimate'!$L:$L,'Kwh Estimate'!$O:$O)/12*BB4 -> 858.6096686 | BC7: =LOOKUP(BC$3,'Kwh Estimate'!$L:$L,'Kwh Estimate'!$O:$O)/12*BC4 -> 854.2512439 | BD7: =LOOKUP(BD$3,'Kwh Estimate'!$L:$L,'Kwh Estimate'!$O:$O)/12*BD4 -> 854.2512439 | BE7: =LOOKUP(BE$3,'Kwh Estimate'!$L:$L,'Kwh Estimate'!$O:$O)/12*BE4 -> 854.2512439 | BF7: =LOOKUP(BF$3,'Kwh Estimate'!$L:$L,'Kwh Estimate'!$O:$O)/12*BF4 -> 854.2512439 | BG7: =LOOKUP(BG$3,'Kwh Estimate'!$L:$L,'Kwh Estimate'!$O:$O)/12*BG4 -> 854.2512439 | BH7: =LOOKUP(BH$3,'Kwh Estimate'!$L:$L,'Kwh Estimate'!$O:$O)/12*BH4 -> 854.2512439 | BI7: =LOOKUP(BI$3,'Kwh Estimate'!$L:$L,'Kwh Estimate'!$O:$O)/12*BI4 -> 854.2512439 | BJ7: =LOOKUP(BJ$3,'Kwh Estimate'!$L:$L,'Kwh Estimate'!$O:$O)/12*BJ4 -> 854.2512439 | BK7: =LOOKUP(BK$3,'Kwh Estimate'!$L:$L,'Kwh Estimate'!$O:$O)/12*BK4 -> 854.2512439 | BL7: =LOOKUP(BL$3,'Kwh Estimate'!$L:$L,'Kwh Estimate'!$O:$O)/12*BL4 -> 854.2512439 | BM7: =LOOKUP(BM$3,'Kwh Estimate'!$L:$L,'Kwh Estimate'!$O:$O)/12*BM4 -> 854.2512439 | BN7: =LOOKUP(BN$3,'Kwh Estimate'!$L:$L,'Kwh Estimate'!$O:$O)/12*BN4 -> 854.2512439 | BO7: =LOOKUP(BO$3,'Kwh Estimate'!$L:$L,'Kwh Estimate'!$O:$O)/12*BO4 -> 849.8928192 | BP7: =LOOKUP(BP$3,'Kwh Estimate'!$L:$L,'Kwh Estimate'!$O:$O)/12*BP4 -> 849.8928192 | BQ7: =LOOKUP(BQ$3,'Kwh Estimate'!$L:$L,'Kwh Estimate'!$O:$O)/12*BQ4 -> 849.8928192 | BR7: =LOOKUP(BR$3,'Kwh Estimate'!$L:$L,'Kwh Estimate'!$O:$O)/12*BR4 -> 849.8928192 | BS7: =LOOKUP(BS$3,'Kwh Estimate'!$L:$L,'Kwh Estimate'!$O:$O)/12*BS4 -> 849.8928192 | BT7: =LOOKUP(BT$3,'Kwh Estimate'!$L:$L,'Kwh Estimate'!$O:$O)/12*BT4 -> 849.8928192 | BU7: =LOOKUP(BU$3,'Kwh Estimate'!$L:$L,'Kwh Estimate'!$O:$O)/12*BU4 -> 849.8928192 | BV7: =LOOKUP(BV$3,'Kwh Estimate'!$L:$L,'Kwh Estimate'!$O:$O)/12*BV4 -> 849.8928192 | BW7: =LOOKUP(BW$3,'Kwh Estimate'!$L:$L,'Kwh Estimate'!$O:$O)/12*BW4 -> 849.8928192 | BX7: =LOOKUP(BX$3,'Kwh Estimate'!$L:$L,'Kwh Estimate'!$O:$O)/12*BX4 -> 849.8928192 | BY7: =LOOKUP(BY$3,'Kwh Estimate'!$L:$L,'Kwh Estimate'!$O:$O)/12*BY4 -> 849.8928192 | BZ7: =LOOKUP(BZ$3,'Kwh Estimate'!$L:$L,'Kwh Estimate'!$O:$O)/12*BZ4 -> 849.8928192 | CA7: =LOOKUP(CA$3,'Kwh Estimate'!$L:$L,'Kwh Estimate'!$O:$O)/12*CA4 -> 845.5343945 | CB7: =LOOKUP(CB$3,'Kwh Estimate'!$L:$L,'Kwh Estimate'!$O:$O)/12*CB4 -> 845.5343945 | CC7: =LOOKUP(CC$3,'Kwh Estimate'!$L:$L,'Kwh Estimate'!$O:$O)/12*CC4 -> 845.5343945 | CD7: =LOOKUP(CD$3,'Kwh Estimate'!$L:$L,'Kwh Estimate'!$O:$O)/12*CD4 -> 845.5343945 | CE7: =LOOKUP(CE$3,'Kwh Estimate'!$L:$L,'Kwh Estimate'!$O:$O)/12*CE4 -> 845.5343945 | CF7: =LOOKUP(CF$3,'Kwh Estimate'!$L:$L,'Kwh Estimate'!$O:$O)/12*CF4 -> 845.5343945 | CG7: =LOOKUP(CG$3,'Kwh Estimate'!$L:$L,'Kwh Estimate'!$O:$O)/12*CG4 -> 845.5343945 | CH7: =LOOKUP(CH$3,'Kwh Estimate'!$L:$L,'Kwh Estimate'!$O:$O)/12*CH4 -> 845.5343945 | CI7: =LOOKUP(CI$3,'Kwh Estimate'!$L:$L,'Kwh Estimate'!$O:$O)/12*CI4 -> 845.5343945 | CJ7: =LOOKUP(CJ$3,'Kwh Estimate'!$L:$L,'Kwh Estimate'!$O:$O)/12*CJ4 -> 845.5343945 | CK7: =LOOKUP(CK$3,'Kwh Estimate'!$L:$L,'Kwh Estimate'!$O:$O)/12*CK4 -> 845.5343945 | CL7: =LOOKUP(CL$3,'Kwh Estimate'!$L:$L,'Kwh Estimate'!$O:$O)/12*CL4 -> 845.5343945 | CM7: =LOOKUP(CM$3,'Kwh Estimate'!$L:$L,'Kwh Estimate'!$O:$O)/12*CM4 -> 841.1759697 | CN7: =LOOKUP(CN$3,'Kwh Estimate'!$L:$L,'Kwh Estimate'!$O:$O)/12*CN4 -> 841.1759697 | CO7: =LOOKUP(CO$3,'Kwh Estimate'!$L:$L,'Kwh Estimate'!$O:$O)/12*CO4 -> 841.1759697 | CP7: =LOOKUP(CP$3,'Kwh Estimate'!$L:$L,'Kwh Estimate'!$O:$O)/12*CP4 -> 841.1759697 | CQ7: =LOOKUP(CQ$3,'Kwh Estimate'!$L:$L,'Kwh Estimate'!$O:$O)/12*CQ4 -> 841.1759697 | CR7: =LOOKUP(CR$3,'Kwh Estimate'!$L:$L,'Kwh Estimate'!$O:$O)/12*CR4 -> 841.1759697 | CS7: =LOOKUP(CS$3,'Kwh Estimate'!$L:$L,'Kwh Estimate'!$O:$O)/12*CS4 -> 841.1759697 | CT7: =LOOKUP(CT$3,'Kwh Estimate'!$L:$L,'Kwh Estimate'!$O:$O)/12*CT4 -> 841.1759697 | CU7: =LOOKUP(CU$3,'Kwh Estimate'!$L:$L,'Kwh Estimate'!$O:$O)/12*CU4 -> 841.1759697 | CV7: =LOOKUP(CV$3,'Kwh Estimate'!$L:$L,'Kwh Estimate'!$O:$O)/12*CV4 -> 841.1759697 | CW7: =LOOKUP(CW$3,'Kwh Estimate'!$L:$L,'Kwh Estimate'!$O:$O)/12*CW4 -> 841.1759697 | CX7: =LOOKUP(CX$3,'Kwh Estimate'!$L:$L,'Kwh Estimate'!$O:$O)/12*CX4 -> 841.1759697 | CY7: =LOOKUP(CY$3,'Kwh Estimate'!$L:$L,'Kwh Estimate'!$O:$O)/12*CY4 -> 836.817545 | CZ7: =LOOKUP(CZ$3,'Kwh Estimate'!$L:$L,'Kwh Estimate'!$O:$O)/12*CZ4 -> 836.817545 | DA7: =LOOKUP(DA$3,'Kwh Estimate'!$L:$L,'Kwh Estimate'!$O:$O)/12*DA4 -> 836.817545 | DB7: =LOOKUP(DB$3,'Kwh Estimate'!$L:$L,'Kwh Estimate'!$O:$O)/12*DB4 -> 836.817545 | DC7: =LOOKUP(DC$3,'Kwh Estimate'!$L:$L,'Kwh Estimate'!$O:$O)/12*DC4 -> 836.817545 | DD7: =LOOKUP(DD$3,'Kwh Estimate'!$L:$L,'Kwh Estimate'!$O:$O)/12*DD4 -> 836.817545 | DE7: =LOOKUP(DE$3,'Kwh Estimate'!$L:$L,'Kwh Estimate'!$O:$O)/12*DE4 -> 836.817545 | DF7: =LOOKUP(DF$3,'Kwh Estimate'!$L:$L,'Kwh Estimate'!$O:$O)/12*DF4 -> 836.817545 | DG7: =LOOKUP(DG$3,'Kwh Estimate'!$L:$L,'Kwh Estimate'!$O:$O)/12*DG4 -> 836.817545 | DH7: =LOOKUP(DH$3,'Kwh Estimate'!$L:$L,'Kwh Estimate'!$O:$O)/12*DH4 -> 836.817545 | DI7: =LOOKUP(DI$3,'Kwh Estimate'!$L:$L,'Kwh Estimate'!$O:$O)/12*DI4 -> 836.817545 | DJ7: =LOOKUP(DJ$3,'Kwh Estimate'!$L:$L,'Kwh Estimate'!$O:$O)/12*DJ4 -> 836.817545 | DK7: =LOOKUP(DK$3,'Kwh Estimate'!$L:$L,'Kwh Estimate'!$O:$O)/12*DK4 -> 832.4591203 | DL7: =LOOKUP(DL$3,'Kwh Estimate'!$L:$L,'Kwh Estimate'!$O:$O)/12*DL4 -> 832.4591203 | DM7: =LOOKUP(DM$3,'Kwh Estimate'!$L:$L,'Kwh Estimate'!$O:$O)/12*DM4 -> 832.4591203 | DN7: =LOOKUP(DN$3,'Kwh Estimate'!$L:$L,'Kwh Estimate'!$O:$O)/12*DN4 -> 832.4591203 | DO7: =LOOKUP(DO$3,'Kwh Estimate'!$L:$L,'Kwh Estimate'!$O:$O)/12*DO4 -> 832.4591203 | DP7: =LOOKUP(DP$3,'Kwh Estimate'!$L:$L,'Kwh Estimate'!$O:$O)/12*DP4 -> 832.4591203 | DQ7: =LOOKUP(DQ$3,'Kwh Estimate'!$L:$L,'Kwh Estimate'!$O:$O)/12*DQ4 -> 832.4591203 | DR7: =LOOKUP(DR$3,'Kwh Estimate'!$L:$L,'Kwh Estimate'!$O:$O)/12*DR4 -> 832.4591203 | DS7: =LOOKUP(DS$3,'Kwh Estimate'!$L:$L,'Kwh Estimate'!$O:$O)/12*DS4 -> 832.4591203 | DT7: =LOOKUP(DT$3,'Kwh Estimate'!$L:$L,'Kwh Estimate'!$O:$O)/12*DT4 -> 832.4591203 | DU7: =LOOKUP(DU$3,'Kwh Estimate'!$L:$L,'Kwh Estimate'!$O:$O)/12*DU4 -> 832.4591203 | DV7: =LOOKUP(DV$3,'Kwh Estimate'!$L:$L,'Kwh Estimate'!$O:$O)/12*DV4 -> 832.4591203 | DW7: =LOOKUP(DW$3,'Kwh Estimate'!$L:$L,'Kwh Estimate'!$O:$O)/12*DW4 -> 828.1006956 | DX7: =LOOKUP(DX$3,'Kwh Estimate'!$L:$L,'Kwh Estimate'!$O:$O)/12*DX4 -> 828.1006956 | DY7: =LOOKUP(DY$3,'Kwh Estimate'!$L:$L,'Kwh Estimate'!$O:$O)/12*DY4 -> 828.1006956 | DZ7: =LOOKUP(DZ$3,'Kwh Estimate'!$L:$L,'Kwh Estimate'!$O:$O)/12*DZ4 -> 828.1006956 | EA7: =LOOKUP(EA$3,'Kwh Estimate'!$L:$L,'Kwh Estimate'!$O:$O)/12*EA4 -> 828.1006956 | EB7: =LOOKUP(EB$3,'Kwh Estimate'!$L:$L,'Kwh Estimate'!$O:$O)/12*EB4 -> 828.1006956 | EC7: =LOOKUP(EC$3,'Kwh Estimate'!$L:$L,'Kwh Estimate'!$O:$O)/12*EC4 -> 828.1006956 | ED7: =LOOKUP(ED$3,'Kwh Estimate'!$L:$L,'Kwh Estimate'!$O:$O)/12*ED4 -> 828.1006956 | EE7: =LOOKUP(EE$3,'Kwh Estimate'!$L:$L,'Kwh Estimate'!$O:$O)/12*EE4 -> 828.1006956 | EF7: =LOOKUP(EF$3,'Kwh Estimate'!$L:$L,'Kwh Estimate'!$O:$O)/12*EF4 -> 828.1006956 | EG7: =LOOKUP(EG$3,'Kwh Estimate'!$L:$L,'Kwh Estimate'!$O:$O)/12*EG4 -> 828.1006956 | EH7: =LOOKUP(EH$3,'Kwh Estimate'!$L:$L,'Kwh Estimate'!$O:$O)/12*EH4 -> 828.1006956 | EI7: =LOOKUP(EI$3,'Kwh Estimate'!$L:$L,'Kwh Estimate'!$O:$O)/12*EI4 -> 823.7422709 | EJ7: =LOOKUP(EJ$3,'Kwh Estimate'!$L:$L,'Kwh Estimate'!$O:$O)/12*EJ4 -> 823.7422709 | EK7: =LOOKUP(EK$3,'Kwh Estimate'!$L:$L,'Kwh Estimate'!$O:$O)/12*EK4 -> 823.7422709 | EL7: =LOOKUP(EL$3,'Kwh Estimate'!$L:$L,'Kwh Estimate'!$O:$O)/12*EL4 -> 823.7422709 | EM7: =LOOKUP(EM$3,'Kwh Estimate'!$L:$L,'Kwh Estimate'!$O:$O)/12*EM4 -> 823.7422709 | EN7: =LOOKUP(EN$3,'Kwh Estimate'!$L:$L,'Kwh Estimate'!$O:$O)/12*EN4 -> 823.7422709 | EO7: =LOOKUP(EO$3,'Kwh Estimate'!$L:$L,'Kwh Estimate'!$O:$O)/12*EO4 -> 823.7422709 | EP7: =LOOKUP(EP$3,'Kwh Estimate'!$L:$L,'Kwh Estimate'!$O:$O)/12*EP4 -> 823.7422709 | EQ7: =LOOKUP(EQ$3,'Kwh Estimate'!$L:$L,'Kwh Estimate'!$O:$O)/12*EQ4 -> 823.7422709 | ER7: =LOOKUP(ER$3,'Kwh Estimate'!$L:$L,'Kwh Estimate'!$O:$O)/12*ER4 -> 823.7422709 | ES7: =LOOKUP(ES$3,'Kwh Estimate'!$L:$L,'Kwh Estimate'!$O:$O)/12*ES4 -> 823.7422709 | ET7: =LOOKUP(ET$3,'Kwh Estimate'!$L:$L,'Kwh Estimate'!$O:$O)/12*ET4 -> 823.7422709 | EU7: =LOOKUP(EU$3,'Kwh Estimate'!$L:$L,'Kwh Estimate'!$O:$O)/12*EU4 -> 819.3838462 | EV7: =LOOKUP(EV$3,'Kwh Estimate'!$L:$L,'Kwh Estimate'!$O:$O)/12*EV4 -> 819.3838462 | EW7: =LOOKUP(EW$3,'Kwh Estimate'!$L:$L,'Kwh Estimate'!$O:$O)/12*EW4 -> 819.3838462 | EX7: =LOOKUP(EX$3,'Kwh Estimate'!$L:$L,'Kwh Estimate'!$O:$O)/12*EX4 -> 819.3838462 | EY7: =LOOKUP(EY$3,'Kwh Estimate'!$L:$L,'Kwh Estimate'!$O:$O)/12*EY4 -> 819.3838462 | EZ7: =LOOKUP(EZ$3,'Kwh Estimate'!$L:$L,'Kwh Estimate'!$O:$O)/12*EZ4 -> 819.3838462 | FA7: =LOOKUP(FA$3,'Kwh Estimate'!$L:$L,'Kwh Estimate'!$O:$O)/12*FA4 -> 819.3838462 | FB7: =LOOKUP(FB$3,'Kwh Estimate'!$L:$L,'Kwh Estimate'!$O:$O)/12*FB4 -> 819.3838462 | FC7: =LOOKUP(FC$3,'Kwh Estimate'!$L:$L,'Kwh Estimate'!$O:$O)/12*FC4 -> 819.3838462 | FD7: =LOOKUP(FD$3,'Kwh Estimate'!$L:$L,'Kwh Estimate'!$O:$O)/12*FD4 -> 819.3838462 | FE7: =LOOKUP(FE$3,'Kwh Estimate'!$L:$L,'Kwh Estimate'!$O:$O)/12*FE4 -> 819.3838462 | FF7: =LOOKUP(FF$3,'Kwh Estimate'!$L:$L,'Kwh Estimate'!$O:$O)/12*FF4 -> 819.3838462 | FG7: =LOOKUP(FG$3,'Kwh Estimate'!$L:$L,'Kwh Estimate'!$O:$O)/12*FG4 -> 815.0254215 | FH7: =LOOKUP(FH$3,'Kwh Estimate'!$L:$L,'Kwh Estimate'!$O:$O)/12*FH4 -> 815.0254215 | FI7: =LOOKUP(FI$3,'Kwh Estimate'!$L:$L,'Kwh Estimate'!$O:$O)/12*FI4 -> 815.0254215 | FJ7: =LOOKUP(FJ$3,'Kwh Estimate'!$L:$L,'Kwh Estimate'!$O:$O)/12*FJ4 -> 815.0254215 | FK7: =LOOKUP(FK$3,'Kwh Estimate'!$L:$L,'Kwh Estimate'!$O:$O)/12*FK4 -> 815.0254215 | FL7: =LOOKUP(FL$3,'Kwh Estimate'!$L:$L,'Kwh Estimate'!$O:$O)/12*FL4 -> 815.0254215 | FM7: =LOOKUP(FM$3,'Kwh Estimate'!$L:$L,'Kwh Estimate'!$O:$O)/12*FM4 -> 815.0254215 | FN7: =LOOKUP(FN$3,'Kwh Estimate'!$L:$L,'Kwh Estimate'!$O:$O)/12*FN4 -> 815.0254215 | FO7: =LOOKUP(FO$3,'Kwh Estimate'!$L:$L,'Kwh Estimate'!$O:$O)/12*FO4 -> 815.0254215 | FP7: =LOOKUP(FP$3,'Kwh Estimate'!$L:$L,'Kwh Estimate'!$O:$O)/12*FP4 -> 815.0254215 | FQ7: =LOOKUP(FQ$3,'Kwh Estimate'!$L:$L,'Kwh Estimate'!$O:$O)/12*FQ4 -> 815.0254215 | FR7: =LOOKUP(FR$3,'Kwh Estimate'!$L:$L,'Kwh Estimate'!$O:$O)/12*FR4 -> 815.0254215 | FS7: =LOOKUP(FS$3,'Kwh Estimate'!$L:$L,'Kwh Estimate'!$O:$O)/12*FS4 -> 810.6669967 | FT7: =LOOKUP(FT$3,'Kwh Estimate'!$L:$L,'Kwh Estimate'!$O:$O)/12*FT4 -> 810.6669967 | FU7: =LOOKUP(FU$3,'Kwh Estimate'!$L:$L,'Kwh Estimate'!$O:$O)/12*FU4 -> 810.6669967 | FV7: =LOOKUP(FV$3,'Kwh Estimate'!$L:$L,'Kwh Estimate'!$O:$O)/12*FV4 -> 810.6669967 | FW7: =LOOKUP(FW$3,'Kwh Estimate'!$L:$L,'Kwh Estimate'!$O:$O)/12*FW4 -> 810.6669967 | FX7: =LOOKUP(FX$3,'Kwh Estimate'!$L:$L,'Kwh Estimate'!$O:$O)/12*FX4 -> 810.6669967 | FY7: =LOOKUP(FY$3,'Kwh Estimate'!$L:$L,'Kwh Estimate'!$O:$O)/12*FY4 -> 810.6669967 | FZ7: =LOOKUP(FZ$3,'Kwh Estimate'!$L:$L,'Kwh Estimate'!$O:$O)/12*FZ4 -> 810.6669967 | GA7: =LOOKUP(GA$3,'Kwh Estimate'!$L:$L,'Kwh Estimate'!$O:$O)/12*GA4 -> 810.6669967 | GB7: =LOOKUP(GB$3,'Kwh Estimate'!$L:$L,'Kwh Estimate'!$O:$O)/12*GB4 -> 810.6669967 | GC7: =LOOKUP(GC$3,'Kwh Estimate'!$L:$L,'Kwh Estimate'!$O:$O)/12*GC4 -> 810.6669967 | GD7: =LOOKUP(GD$3,'Kwh Estimate'!$L:$L,'Kwh Estimate'!$O:$O)/12*GD4 -> 810.6669967 | GE7: =LOOKUP(GE$3,'Kwh Estimate'!$L:$L,'Kwh Estimate'!$O:$O)/12*GE4 -> 806.308572 | GF7: =LOOKUP(GF$3,'Kwh Estimate'!$L:$L,'Kwh Estimate'!$O:$O)/12*GF4 -> 806.308572 | GG7: =LOOKUP(GG$3,'Kwh Estimate'!$L:$L,'Kwh Estimate'!$O:$O)/12*GG4 -> 806.308572 | GH7: =LOOKUP(GH$3,'Kwh Estimate'!$L:$L,'Kwh Estimate'!$O:$O)/12*GH4 -> 806.308572 | GI7: =LOOKUP(GI$3,'Kwh Estimate'!$L:$L,'Kwh Estimate'!$O:$O)/12*GI4 -> 806.308572 | GJ7: =LOOKUP(GJ$3,'Kwh Estimate'!$L:$L,'Kwh Estimate'!$O:$O)/12*GJ4 -> 806.308572 | GK7: =LOOKUP(GK$3,'Kwh Estimate'!$L:$L,'Kwh Estimate'!$O:$O)/12*GK4 -> 806.308572 | GL7: =LOOKUP(GL$3,'Kwh Estimate'!$L:$L,'Kwh Estimate'!$O:$O)/12*GL4 -> 806.308572 | GM7: =LOOKUP(GM$3,'Kwh Estimate'!$L:$L,'Kwh Estimate'!$O:$O)/12*GM4 -> 806.308572 | GN7: =LOOKUP(GN$3,'Kwh Estimate'!$L:$L,'Kwh Estimate'!$O:$O)/12*GN4 -> 806.308572 | GO7: =LOOKUP(GO$3,'Kwh Estimate'!$L:$L,'Kwh Estimate'!$O:$O)/12*GO4 -> 806.308572 | GP7: =LOOKUP(GP$3,'Kwh Estimate'!$L:$L,'Kwh Estimate'!$O:$O)/12*GP4 -> 806.308572 | GQ7: =LOOKUP(GQ$3,'Kwh Estimate'!$L:$L,'Kwh Estimate'!$O:$O)/12*GQ4 -> 801.9501473 | GR7: =LOOKUP(GR$3,'Kwh Estimate'!$L:$L,'Kwh Estimate'!$O:$O)/12*GR4 -> 801.9501473 | GS7: =LOOKUP(GS$3,'Kwh Estimate'!$L:$L,'Kwh Estimate'!$O:$O)/12*GS4 -> 801.9501473 | GT7: =LOOKUP(GT$3,'Kwh Estimate'!$L:$L,'Kwh Estimate'!$O:$O)/12*GT4 -> 801.9501473 | GU7: =LOOKUP(GU$3,'Kwh Estimate'!$L:$L,'Kwh Estimate'!$O:$O)/12*GU4 -> 801.9501473 | GV7: =LOOKUP(GV$3,'Kwh Estimate'!$L:$L,'Kwh Estimate'!$O:$O)/12*GV4 -> 801.9501473 | GW7: =LOOKUP(GW$3,'Kwh Estimate'!$L:$L,'Kwh Estimate'!$O:$O)/12*GW4 -> 801.9501473 | GX7: =LOOKUP(GX$3,'Kwh Estimate'!$L:$L,'Kwh Estimate'!$O:$O)/12*GX4 -> 801.9501473 | GY7: =LOOKUP(GY$3,'Kwh Estimate'!$L:$L,'Kwh Estimate'!$O:$O)/12*GY4 -> 801.9501473 | GZ7: =LOOKUP(GZ$3,'Kwh Estimate'!$L:$L,'Kwh Estimate'!$O:$O)/12*GZ4 -> 801.9501473 | HA7: =LOOKUP(HA$3,'Kwh Estimate'!$L:$L,'Kwh Estimate'!$O:$O)/12*HA4 -> 801.9501473 | HB7: =LOOKUP(HB$3,'Kwh Estimate'!$L:$L,'Kwh Estimate'!$O:$O)/12*HB4 -> 801.9501473 | HC7: =LOOKUP(HC$3,'Kwh Estimate'!$L:$L,'Kwh Estimate'!$O:$O)/12*HC4 -> 797.5917226 | HD7: =LOOKUP(HD$3,'Kwh Estimate'!$L:$L,'Kwh Estimate'!$O:$O)/12*HD4 -> 797.5917226 | HE7: =LOOKUP(HE$3,'Kwh Estimate'!$L:$L,'Kwh Estimate'!$O:$O)/12*HE4 -> 797.5917226 | HF7: =LOOKUP(HF$3,'Kwh Estimate'!$L:$L,'Kwh Estimate'!$O:$O)/12*HF4 -> 797.5917226 | HG7: =LOOKUP(HG$3,'Kwh Estimate'!$L:$L,'Kwh Estimate'!$O:$O)/12*HG4 -> 797.5917226 | HH7: =LOOKUP(HH$3,'Kwh Estimate'!$L:$L,'Kwh Estimate'!$O:$O)/12*HH4 -> 797.5917226 | HI7: =LOOKUP(HI$3,'Kwh Estimate'!$L:$L,'Kwh Estimate'!$O:$O)/12*HI4 -> 797.5917226 | HJ7: =LOOKUP(HJ$3,'Kwh Estimate'!$L:$L,'Kwh Estimate'!$O:$O)/12*HJ4 -> 797.5917226 | HK7: =LOOKUP(HK$3,'Kwh Estimate'!$L:$L,'Kwh Estimate'!$O:$O)/12*HK4 -> 797.5917226 | HL7: =LOOKUP(HL$3,'Kwh Estimate'!$L:$L,'Kwh Estimate'!$O:$O)/12*HL4 -> 797.5917226 | HM7: =LOOKUP(HM$3,'Kwh Estimate'!$L:$L,'Kwh Estimate'!$O:$O)/12*HM4 -> 797.5917226 | HN7: =LOOKUP(HN$3,'Kwh Estimate'!$L:$L,'Kwh Estimate'!$O:$O)/12*HN4 -> 797.5917226 | HO7: =LOOKUP(HO$3,'Kwh Estimate'!$L:$L,'Kwh Estimate'!$O:$O)/12*HO4 -> 793.2332979 | HP7: =LOOKUP(HP$3,'Kwh Estimate'!$L:$L,'Kwh Estimate'!$O:$O)/12*HP4 -> 793.2332979 | HQ7: =LOOKUP(HQ$3,'Kwh Estimate'!$L:$L,'Kwh Estimate'!$O:$O)/12*HQ4 -> 793.2332979 | HR7: =LOOKUP(HR$3,'Kwh Estimate'!$L:$L,'Kwh Estimate'!$O:$O)/12*HR4 -> 793.2332979 | HS7: =LOOKUP(HS$3,'Kwh Estimate'!$L:$L,'Kwh Estimate'!$O:$O)/12*HS4 -> 793.2332979 | HT7: =LOOKUP(HT$3,'Kwh Estimate'!$L:$L,'Kwh Estimate'!$O:$O)/12*HT4 -> 793.2332979 | HU7: =LOOKUP(HU$3,'Kwh Estimate'!$L:$L,'Kwh Estimate'!$O:$O)/12*HU4 -> 793.2332979 | HV7: =LOOKUP(HV$3,'Kwh Estimate'!$L:$L,'Kwh Estimate'!$O:$O)/12*HV4 -> 793.2332979 | HW7: =LOOKUP(HW$3,'Kwh Estimate'!$L:$L,'Kwh Estimate'!$O:$O)/12*HW4 -> 793.2332979 | HX7: =LOOKUP(HX$3,'Kwh Estimate'!$L:$L,'Kwh Estimate'!$O:$O)/12*HX4 -> 793.2332979 | HY7: =LOOKUP(HY$3,'Kwh Estimate'!$L:$L,'Kwh Estimate'!$O:$O)/12*HY4 -> 793.2332979 | HZ7: =LOOKUP(HZ$3,'Kwh Estimate'!$L:$L,'Kwh Estimate'!$O:$O)/12*HZ4 -> 793.2332979 | IA7: =LOOKUP(IA$3,'Kwh Estimate'!$L:$L,'Kwh Estimate'!$O:$O)/12*IA4 -> 788.8748732 | IB7: =LOOKUP(IB$3,'Kwh Estimate'!$L:$L,'Kwh Estimate'!$O:$O)/12*IB4 -> 788.8748732 | IC7: =LOOKUP(IC$3,'Kwh Estimate'!$L:$L,'Kwh Estimate'!$O:$O)/12*IC4 -> 788.8748732 | ID7: =LOOKUP(ID$3,'Kwh Estimate'!$L:$L,'Kwh Estimate'!$O:$O)/12*ID4 -> 788.8748732 | IE7: =LOOKUP(IE$3,'Kwh Estimate'!$L:$L,'Kwh Estimate'!$O:$O)/12*IE4 -> 788.8748732 | IF7: =LOOKUP(IF$3,'Kwh Estimate'!$L:$L,'Kwh Estimate'!$O:$O)/12*IF4 -> 788.8748732 | IG7: =LOOKUP(IG$3,'Kwh Estimate'!$L:$L,'Kwh Estimate'!$O:$O)/12*IG4 -> 788.8748732 | IH7: =LOOKUP(IH$3,'Kwh Estimate'!$L:$L,'Kwh Estimate'!$O:$O)/12*IH4 -> 788.8748732 | II7: =LOOKUP(II$3,'Kwh Estimate'!$L:$L,'Kwh Estimate'!$O:$O)/12*II4 -> 788.8748732 | IJ7: =LOOKUP(IJ$3,'Kwh Estimate'!$L:$L,'Kwh Estimate'!$O:$O)/12*IJ4 -> 788.8748732 | IK7: =LOOKUP(IK$3,'Kwh Estimate'!$L:$L,'Kwh Estimate'!$O:$O)/12*IK4 -> 788.8748732 | IL7: =LOOKUP(IL$3,'Kwh Estimate'!$L:$L,'Kwh Estimate'!$O:$O)/12*IL4 -> 788.8748732 | IM7: =LOOKUP(IM$3,'Kwh Estimate'!$L:$L,'Kwh Estimate'!$O:$O)/12*IM4 -> 784.5164485 | IN7: =LOOKUP(IN$3,'Kwh Estimate'!$L:$L,'Kwh Estimate'!$O:$O)/12*IN4 -> 784.5164485 | IO7: =LOOKUP(IO$3,'Kwh Estimate'!$L:$L,'Kwh Estimate'!$O:$O)/12*IO4 -> 784.5164485 | IP7: =LOOKUP(IP$3,'Kwh Estimate'!$L:$L,'Kwh Estimate'!$O:$O)/12*IP4 -> 784.5164485 | IQ7: =LOOKUP(IQ$3,'Kwh Estimate'!$L:$L,'Kwh Estimate'!$O:$O)/12*IQ4 -> 784.5164485 | IR7: =LOOKUP(IR$3,'Kwh Estimate'!$L:$L,'Kwh Estimate'!$O:$O)/12*IR4 -> 784.5164485 | IS7: =LOOKUP(IS$3,'Kwh Estimate'!$L:$L,'Kwh Estimate'!$O:$O)/12*IS4 -> 784.5164485 | IT7: =LOOKUP(IT$3,'Kwh Estimate'!$L:$L,'Kwh Estimate'!$O:$O)/12*IT4 -> 784.5164485 | IU7: =LOOKUP(IU$3,'Kwh Estimate'!$L:$L,'Kwh Estimate'!$O:$O)/12*IU4 -> 784.5164485 | IV7: =LOOKUP(IV$3,'Kwh Estimate'!$L:$L,'Kwh Estimate'!$O:$O)/12*IV4 -> 784.5164485 | IW7: =LOOKUP(IW$3,'Kwh Estimate'!$L:$L,'Kwh Estimate'!$O:$O)/12*IW4 -> 784.5164485 | IX7: =LOOKUP(IX$3,'Kwh Estimate'!$L:$L,'Kwh Estimate'!$O:$O)/12*IX4 -> 784.5164485 | IY7: =LOOKUP(IY$3,'Kwh Estimate'!$L:$L,'Kwh Estimate'!$O:$O)/12*IY4 -> 780.1580237 | IZ7: =LOOKUP(IZ$3,'Kwh Estimate'!$L:$L,'Kwh Estimate'!$O:$O)/12*IZ4 -> 780.1580237 | JA7: =LOOKUP(JA$3,'Kwh Estimate'!$L:$L,'Kwh Estimate'!$O:$O)/12*JA4 -> 780.1580237 | JB7: =LOOKUP(JB$3,'Kwh Estimate'!$L:$L,'Kwh Estimate'!$O:$O)/12*JB4 -> 780.1580237 | JC7: =LOOKUP(JC$3,'Kwh Estimate'!$L:$L,'Kwh Estimate'!$O:$O)/12*JC4 -> 780.1580237 | JD7: =LOOKUP(JD$3,'Kwh Estimate'!$L:$L,'Kwh Estimate'!$O:$O)/12*JD4 -> 780.1580237 | JE7: =LOOKUP(JE$3,'Kwh Estimate'!$L:$L,'Kwh Estimate'!$O:$O)/12*JE4 -> 780.1580237 | JF7: =LOOKUP(JF$3,'Kwh Estimate'!$L:$L,'Kwh Estimate'!$O:$O)/12*JF4 -> 780.1580237 | JG7: =LOOKUP(JG$3,'Kwh Estimate'!$L:$L,'Kwh Estimate'!$O:$O)/12*JG4 -> 780.1580237 | JH7: =LOOKUP(JH$3,'Kwh Estimate'!$L:$L,'Kwh Estimate'!$O:$O)/12*JH4 -> 780.1580237 | JI7: =LOOKUP(JI$3,'Kwh Estimate'!$L:$L,'Kwh Estimate'!$O:$O)/12*JI4 -> 780.1580237 | JJ7: =LOOKUP(JJ$3,'Kwh Estimate'!$L:$L,'Kwh Estimate'!$O:$O)/12*JJ4 -> 780.1580237 | JK7: =LOOKUP(JK$3,'Kwh Estimate'!$L:$L,'Kwh Estimate'!$O:$O)/12*JK4 -> 775.799599 | JL7: =LOOKUP(JL$3,'Kwh Estimate'!$L:$L,'Kwh Estimate'!$O:$O)/12*JL4 -> 775.799599 | JM7: =LOOKUP(JM$3,'Kwh Estimate'!$L:$L,'Kwh Estimate'!$O:$O)/12*JM4 -> 775.799599 | JN7: =LOOKUP(JN$3,'Kwh Estimate'!$L:$L,'Kwh Estimate'!$O:$O)/12*JN4 -> 775.799599 | JO7: =LOOKUP(JO$3,'Kwh Estimate'!$L:$L,'Kwh Estimate'!$O:$O)/12*JO4 -> 775.799599 | JP7: =LOOKUP(JP$3,'Kwh Estimate'!$L:$L,'Kwh Estimate'!$O:$O)/12*JP4 -> 775.799599 | JQ7: =LOOKUP(JQ$3,'Kwh Estimate'!$L:$L,'Kwh Estimate'!$O:$O)/12*JQ4 -> 775.799599 | JR7: =LOOKUP(JR$3,'Kwh Estimate'!$L:$L,'Kwh Estimate'!$O:$O)/12*JR4 -> 775.799599 | JS7: =LOOKUP(JS$3,'Kwh Estimate'!$L:$L,'Kwh Estimate'!$O:$O)/12*JS4 -> 775.799599 | JT7: =LOOKUP(JT$3,'Kwh Estimate'!$L:$L,'Kwh Estimate'!$O:$O)/12*JT4 -> 775.799599 | JU7: =LOOKUP(JU$3,'Kwh Estimate'!$L:$L,'Kwh Estimate'!$O:$O)/12*JU4 -> 775.799599 | JV7: =LOOKUP(JV$3,'Kwh Estimate'!$L:$L,'Kwh Estimate'!$O:$O)/12*JV4 -> 775.799599 | JW7: =LOOKUP(JW$3,'Kwh Estimate'!$L:$L,'Kwh Estimate'!$O:$O)/12*JW4 -> 771.4411743 | JX7: =LOOKUP(JX$3,'Kwh Estimate'!$L:$L,'Kwh Estimate'!$O:$O)/12*JX4 -> 771.4411743 | JY7: =LOOKUP(JY$3,'Kwh Estimate'!$L:$L,'Kwh Estimate'!$O:$O)/12*JY4 -> 771.4411743 | JZ7: =LOOKUP(JZ$3,'Kwh Estimate'!$L:$L,'Kwh Estimate'!$O:$O)/12*JZ4 -> 771.4411743 | KA7: =LOOKUP(KA$3,'Kwh Estimate'!$L:$L,'Kwh Estimate'!$O:$O)/12*KA4 -> 771.4411743 | KB7: =LOOKUP(KB$3,'Kwh Estimate'!$L:$L,'Kwh Estimate'!$O:$O)/12*KB4 -> 771.4411743 | KC7: =LOOKUP(KC$3,'Kwh Estimate'!$L:$L,'Kwh Estimate'!$O:$O)/12*KC4 -> 771.4411743 | KD7: =LOOKUP(KD$3,'Kwh Estimate'!$L:$L,'Kwh Estimate'!$O:$O)/12*KD4 -> 771.4411743 | KE7: =LOOKUP(KE$3,'Kwh Estimate'!$L:$L,'Kwh Estimate'!$O:$O)/12*KE4 -> 771.4411743 | KF7: =LOOKUP(KF$3,'Kwh Estimate'!$L:$L,'Kwh Estimate'!$O:$O)/12*KF4 -> 771.4411743 | KG7: =LOOKUP(KG$3,'Kwh Estimate'!$L:$L,'Kwh Estimate'!$O:$O)/12*KG4 -> 771.4411743 | KH7: =LOOKUP(KH$3,'Kwh Estimate'!$L:$L,'Kwh Estimate'!$O:$O)/12*KH4 -> 771.4411743 | KI7: =LOOKUP(KI$3,'Kwh Estimate'!$L:$L,'Kwh Estimate'!$O:$O)/12*KI4 -> 767.0827496 | KJ7: =LOOKUP(KJ$3,'Kwh Estimate'!$L:$L,'Kwh Estimate'!$O:$O)/12*KJ4 -> 767.0827496 | KK7: =LOOKUP(KK$3,'Kwh Estimate'!$L:$L,'Kwh Estimate'!$O:$O)/12*KK4 -> 767.0827496 | KL7: =LOOKUP(KL$3,'Kwh Estimate'!$L:$L,'Kwh Estimate'!$O:$O)/12*KL4 -> 767.0827496 | KM7: =LOOKUP(KM$3,'Kwh Estimate'!$L:$L,'Kwh Estimate'!$O:$O)/12*KM4 -> 767.0827496 | KN7: =LOOKUP(KN$3,'Kwh Estimate'!$L:$L,'Kwh Estimate'!$O:$O)/12*KN4 -> 767.0827496 | KO7: =LOOKUP(KO$3,'Kwh Estimate'!$L:$L,'Kwh Estimate'!$O:$O)/12*KO4 -> 767.0827496 | KP7: =LOOKUP(KP$3,'Kwh Estimate'!$L:$L,'Kwh Estimate'!$O:$O)/12*KP4 -> 767.0827496 | KQ7: =LOOKUP(KQ$3,'Kwh Estimate'!$L:$L,'Kwh Estimate'!$O:$O)/12*KQ4 -> 767.0827496 | KR7: =LOOKUP(KR$3,'Kwh Estimate'!$L:$L,'Kwh Estimate'!$O:$O)/12*KR4 -> 767.0827496 | KS7: =LOOKUP(KS$3,'Kwh Estimate'!$L:$L,'Kwh Estimate'!$O:$O)/12*KS4 -> 767.0827496 | KT7: =LOOKUP(KT$3,'Kwh Estimate'!$L:$L,'Kwh Estimate'!$O:$O)/12*KT4 -> 767.0827496 | KU7: =LOOKUP(KU$3,'Kwh Estimate'!$L:$L,'Kwh Estimate'!$O:$O)/12*KU4 -> 762.7243249 | KV7: =LOOKUP(KV$3,'Kwh Estimate'!$L:$L,'Kwh Estimate'!$O:$O)/12*KV4 -> 762.7243249 | KW7: =LOOKUP(KW$3,'Kwh Estimate'!$L:$L,'Kwh Estimate'!$O:$O)/12*KW4 -> 762.7243249 | KX7: =LOOKUP(KX$3,'Kwh Estimate'!$L:$L,'Kwh Estimate'!$O:$O)/12*KX4 -> 762.7243249 | KY7: =LOOKUP(KY$3,'Kwh Estimate'!$L:$L,'Kwh Estimate'!$O:$O)/12*KY4 -> 762.7243249 | KZ7: =LOOKUP(KZ$3,'Kwh Estimate'!$L:$L,'Kwh Estimate'!$O:$O)/12*KZ4 -> 762.7243249 | LA7: =LOOKUP(LA$3,'Kwh Estimate'!$L:$L,'Kwh Estimate'!$O:$O)/12*LA4 -> 762.7243249 | LB7: =LOOKUP(LB$3,'Kwh Estimate'!$L:$L,'Kwh Estimate'!$O:$O)/12*LB4 -> 762.7243249 | LC7: =LOOKUP(LC$3,'Kwh Estimate'!$L:$L,'Kwh Estimate'!$O:$O)/12*LC4 -> 762.7243249 | LD7: =LOOKUP(LD$3,'Kwh Estimate'!$L:$L,'Kwh Estimate'!$O:$O)/12*LD4 -> 762.7243249 | LE7: =LOOKUP(LE$3,'Kwh Estimate'!$L:$L,'Kwh Estimate'!$O:$O)/12*LE4 -> 762.7243249 | LF7: =LOOKUP(LF$3,'Kwh Estimate'!$L:$L,'Kwh Estimate'!$O:$O)/12*LF4 -> 762.7243249 | LG7: =LOOKUP(LG$3,'Kwh Estimate'!$L:$L,'Kwh Estimate'!$O:$O)/12*LG4 -> 758.3659002 | LH7: =LOOKUP(LH$3,'Kwh Estimate'!$L:$L,'Kwh Estimate'!$O:$O)/12*LH4 -> 758.3659002 | LI7: =LOOKUP(LI$3,'Kwh Estimate'!$L:$L,'Kwh Estimate'!$O:$O)/12*LI4 -> 758.3659002 | LJ7: =LOOKUP(LJ$3,'Kwh Estimate'!$L:$L,'Kwh Estimate'!$O:$O)/12*LJ4 -> 758.3659002 | LK7: =LOOKUP(LK$3,'Kwh Estimate'!$L:$L,'Kwh Estimate'!$O:$O)/12*LK4 -> 758.3659002 | LL7: =LOOKUP(LL$3,'Kwh Estimate'!$L:$L,'Kwh Estimate'!$O:$O)/12*LL4 -> 758.3659002 | LM7: =LOOKUP(LM$3,'Kwh Estimate'!$L:$L,'Kwh Estimate'!$O:$O)/12*LM4 -> 758.3659002 | LN7: =LOOKUP(LN$3,'Kwh Estimate'!$L:$L,'Kwh Estimate'!$O:$O)/12*LN4 -> 758.3659002 | LO7: =LOOKUP(LO$3,'Kwh Estimate'!$L:$L,'Kwh Estimate'!$O:$O)/12*LO4 -> 758.3659002 | LP7: =LOOKUP(LP$3,'Kwh Estimate'!$L:$L,'Kwh Estimate'!$O:$O)/12*LP4 -> 758.3659002 | LQ7: =LOOKUP(LQ$3,'Kwh Estimate'!$L:$L,'Kwh Estimate'!$O:$O)/12*LQ4 -> 758.3659002 | LR7: =LOOKUP(LR$3,'Kwh Estimate'!$L:$L,'Kwh Estimate'!$O:$O)/12*LR4 -> 758.3659002 | LS7: =LOOKUP(LS$3,'Kwh Estimate'!$L:$L,'Kwh Estimate'!$O:$O)/12*LS4 -> 754.0074755 | LT7: =LOOKUP(LT$3,'Kwh Estimate'!$L:$L,'Kwh Estimate'!$O:$O)/12*LT4 -> 754.0074755 | LU7: =LOOKUP(LU$3,'Kwh Estimate'!$L:$L,'Kwh Estimate'!$O:$O)/12*LU4 -> 754.0074755 | LV7: =LOOKUP(LV$3,'Kwh Estimate'!$L:$L,'Kwh Estimate'!$O:$O)/12*LV4 -> 754.0074755 | LW7: =LOOKUP(LW$3,'Kwh Estimate'!$L:$L,'Kwh Estimate'!$O:$O)/12*LW4 -> 754.0074755 | LX7: =LOOKUP(LX$3,'Kwh Estimate'!$L:$L,'Kwh Estimate'!$O:$O)/12*LX4 -> 754.0074755 | LY7: =LOOKUP(LY$3,'Kwh Estimate'!$L:$L,'Kwh Estimate'!$O:$O)/12*LY4 -> 754.0074755 | LZ7: =LOOKUP(LZ$3,'Kwh Estimate'!$L:$L,'Kwh Estimate'!$O:$O)/12*LZ4 -> 754.0074755 | MA7: =LOOKUP(MA$3,'Kwh Estimate'!$L:$L,'Kwh Estimate'!$O:$O)/12*MA4 -> 754.0074755 | MB7: =LOOKUP(MB$3,'Kwh Estimate'!$L:$L,'Kwh Estimate'!$O:$O)/12*MB4 -> 754.0074755 | MC7: =LOOKUP(MC$3,'Kwh Estimate'!$L:$L,'Kwh Estimate'!$O:$O)/12*MC4 -> 754.0074755 | MD7: =LOOKUP(MD$3,'Kwh Estimate'!$L:$L,'Kwh Estimate'!$O:$O)/12*MD4 -> 754.0074755 | ME7: =LOOKUP(ME$3,'Kwh Estimate'!$L:$L,'Kwh Estimate'!$O:$O)/12*ME4 -> 749.6490508 | MF7: =LOOKUP(MF$3,'Kwh Estimate'!$L:$L,'Kwh Estimate'!$O:$O)/12*MF4 -> 749.6490508 | MG7: =LOOKUP(MG$3,'Kwh Estimate'!$L:$L,'Kwh Estimate'!$O:$O)/12*MG4 -> 749.6490508 | MH7: =LOOKUP(MH$3,'Kwh Estimate'!$L:$L,'Kwh Estimate'!$O:$O)/12*MH4 -> 749.6490508 | MI7: =LOOKUP(MI$3,'Kwh Estimate'!$L:$L,'Kwh Estimate'!$O:$O)/12*MI4 -> 749.6490508 | MJ7: =LOOKUP(MJ$3,'Kwh Estimate'!$L:$L,'Kwh Estimate'!$O:$O)/12*MJ4 -> 749.6490508 | MK7: =LOOKUP(MK$3,'Kwh Estimate'!$L:$L,'Kwh Estimate'!$O:$O)/12*MK4 -> 749.6490508 | ML7: =LOOKUP(ML$3,'Kwh Estimate'!$L:$L,'Kwh Estimate'!$O:$O)/12*ML4 -> 749.6490508 | MM7: =LOOKUP(MM$3,'Kwh Estimate'!$L:$L,'Kwh Estimate'!$O:$O)/12*MM4 -> 749.6490508 | MN7: =LOOKUP(MN$3,'Kwh Estimate'!$L:$L,'Kwh Estimate'!$O:$O)/12*MN4 -> 749.6490508 | MO7: =LOOKUP(MO$3,'Kwh Estimate'!$L:$L,'Kwh Estimate'!$O:$O)/12*MO4 -> 749.6490508 | MP7: =LOOKUP(MP$3,'Kwh Estimate'!$L:$L,'Kwh Estimate'!$O:$O)/12*MP4 -> 749.6490508 | MQ7: =LOOKUP(MQ$3,'Kwh Estimate'!$L:$L,'Kwh Estimate'!$O:$O)/12*MQ4 -> 745.290626 | MR7: =LOOKUP(MR$3,'Kwh Estimate'!$L:$L,'Kwh Estimate'!$O:$O)/12*MR4 -> 745.290626 | MS7: =LOOKUP(MS$3,'Kwh Estimate'!$L:$L,'Kwh Estimate'!$O:$O)/12*MS4 -> 745.290626 | MT7: =LOOKUP(MT$3,'Kwh Estimate'!$L:$L,'Kwh Estimate'!$O:$O)/12*MT4 -> 745.290626 | MU7: =LOOKUP(MU$3,'Kwh Estimate'!$L:$L,'Kwh Estimate'!$O:$O)/12*MU4 -> 745.290626 | MV7: =LOOKUP(MV$3,'Kwh Estimate'!$L:$L,'Kwh Estimate'!$O:$O)/12*MV4 -> 745.290626 | MW7: =LOOKUP(MW$3,'Kwh Estimate'!$L:$L,'Kwh Estimate'!$O:$O)/12*MW4 -> 745.290626 | MX7: =LOOKUP(MX$3,'Kwh Estimate'!$L:$L,'Kwh Estimate'!$O:$O)/12*MX4 -> 745.290626 | MY7: =LOOKUP(MY$3,'Kwh Estimate'!$L:$L,'Kwh Estimate'!$O:$O)/12*MY4 -> 745.290626 | MZ7: =LOOKUP(MZ$3,'Kwh Estimate'!$L:$L,'Kwh Estimate'!$O:$O)/12*MZ4 -> 745.290626 | NA7: =LOOKUP(NA$3,'Kwh Estimate'!$L:$L,'Kwh Estimate'!$O:$O)/12*NA4 -> 745.290626 | NB7: =LOOKUP(NB$3,'Kwh Estimate'!$L:$L,'Kwh Estimate'!$O:$O)/12*NB4 -> 745.290626 | NC7: =LOOKUP(NC$3,'Kwh Estimate'!$L:$L,'Kwh Estimate'!$O:$O)/12*NC4 -> 740.9322013 | ND7: =LOOKUP(ND$3,'Kwh Estimate'!$L:$L,'Kwh Estimate'!$O:$O)/12*ND4 -> 740.9322013 | NE7: =LOOKUP(NE$3,'Kwh Estimate'!$L:$L,'Kwh Estimate'!$O:$O)/12*NE4 -> 740.9322013 | NF7: =LOOKUP(NF$3,'Kwh Estimate'!$L:$L,'Kwh Estimate'!$O:$O)/12*NF4 -> 740.9322013 | NG7: =LOOKUP(NG$3,'Kwh Estimate'!$L:$L,'Kwh Estimate'!$O:$O)/12*NG4 -> 740.9322013 | NH7: =LOOKUP(NH$3,'Kwh Estimate'!$L:$L,'Kwh Estimate'!$O:$O)/12*NH4 -> 0 | NI7: =LOOKUP(NI$3,'Kwh Estimate'!$L:$L,'Kwh Estimate'!$O:$O)/12*NI4 -> 0 | NJ7: =LOOKUP(NJ$3,'Kwh Estimate'!$L:$L,'Kwh Estimate'!$O:$O)/12*NJ4 -> 0 | NK7: =LOOKUP(NK$3,'Kwh Estimate'!$L:$L,'Kwh Estimate'!$O:$O)/12*NK4 -> 0 | NL7: =LOOKUP(NL$3,'Kwh Estimate'!$L:$L,'Kwh Estimate'!$O:$O)/12*NL4 -> 0 | NM7: =LOOKUP(NM$3,'Kwh Estimate'!$L:$L,'Kwh Estimate'!$O:$O)/12*NM4 -> 0 | NN7: =LOOKUP(NN$3,'Kwh Estimate'!$L:$L,'Kwh Estimate'!$O:$O)/12*NN4 -> 0
C8: Production - 1 Year P99 | G8: =LOOKUP(G$3,'Kwh Estimate'!$L:$L,'Kwh Estimate'!$S:$S)/12*G4 -> 0 | H8: =LOOKUP(H$3,'Kwh Estimate'!$L:$L,'Kwh Estimate'!$S:$S)/12*H4 -> 0 | I8: =LOOKUP(I$3,'Kwh Estimate'!$L:$L,'Kwh Estimate'!$S:$S)/12*I4 -> 0 | J8: =LOOKUP(J$3,'Kwh Estimate'!$L:$L,'Kwh Estimate'!$S:$S)/12*J4 -> 0 | K8: =LOOKUP(K$3,'Kwh Estimate'!$L:$L,'Kwh Estimate'!$S:$S)/12*K4 -> 0 | L8: =LOOKUP(L$3,'Kwh Estimate'!$L:$L,'Kwh Estimate'!$S:$S)/12*L4 -> 740.0192336 | M8: =LOOKUP(M$3,'Kwh Estimate'!$L:$L,'Kwh Estimate'!$S:$S)/12*M4 -> 740.0192336 | N8: =LOOKUP(N$3,'Kwh Estimate'!$L:$L,'Kwh Estimate'!$S:$S)/12*N4 -> 740.0192336 | O8: =LOOKUP(O$3,'Kwh Estimate'!$L:$L,'Kwh Estimate'!$S:$S)/12*O4 -> 740.0192336 | P8: =LOOKUP(P$3,'Kwh Estimate'!$L:$L,'Kwh Estimate'!$S:$S)/12*P4 -> 740.0192336 | Q8: =LOOKUP(Q$3,'Kwh Estimate'!$L:$L,'Kwh Estimate'!$S:$S)/12*Q4 -> 740.0192336 | R8: =LOOKUP(R$3,'Kwh Estimate'!$L:$L,'Kwh Estimate'!$S:$S)/12*R4 -> 740.0192336 | S8: =LOOKUP(S$3,'Kwh Estimate'!$L:$L,'Kwh Estimate'!$S:$S)/12*S4 -> 736.3191374 | T8: =LOOKUP(T$3,'Kwh Estimate'!$L:$L,'Kwh Estimate'!$S:$S)/12*T4 -> 736.3191374 | U8: =LOOKUP(U$3,'Kwh Estimate'!$L:$L,'Kwh Estimate'!$S:$S)/12*U4 -> 736.3191374 | V8: =LOOKUP(V$3,'Kwh Estimate'!$L:$L,'Kwh Estimate'!$S:$S)/12*V4 -> 736.3191374 | W8: =LOOKUP(W$3,'Kwh Estimate'!$L:$L,'Kwh Estimate'!$S:$S)/12*W4 -> 736.3191374 | X8: =LOOKUP(X$3,'Kwh Estimate'!$L:$L,'Kwh Estimate'!$S:$S)/12*X4 -> 736.3191374 | Y8: =LOOKUP(Y$3,'Kwh Estimate'!$L:$L,'Kwh Estimate'!$S:$S)/12*Y4 -> 736.3191374 | Z8: =LOOKUP(Z$3,'Kwh Estimate'!$L:$L,'Kwh Estimate'!$S:$S)/12*Z4 -> 736.3191374 | AA8: =LOOKUP(AA$3,'Kwh Estimate'!$L:$L,'Kwh Estimate'!$S:$S)/12*AA4 -> 736.3191374 | AB8: =LOOKUP(AB$3,'Kwh Estimate'!$L:$L,'Kwh Estimate'!$S:$S)/12*AB4 -> 736.3191374 | AC8: =LOOKUP(AC$3,'Kwh Estimate'!$L:$L,'Kwh Estimate'!$S:$S)/12*AC4 -> 736.3191374 | AD8: =LOOKUP(AD$3,'Kwh Estimate'!$L:$L,'Kwh Estimate'!$S:$S)/12*AD4 -> 736.3191374 | AE8: =LOOKUP(AE$3,'Kwh Estimate'!$L:$L,'Kwh Estimate'!$S:$S)/12*AE4 -> 732.6190413 | AF8: =LOOKUP(AF$3,'Kwh Estimate'!$L:$L,'Kwh Estimate'!$S:$S)/12*AF4 -> 732.6190413 | AG8: =LOOKUP(AG$3,'Kwh Estimate'!$L:$L,'Kwh Estimate'!$S:$S)/12*AG4 -> 732.6190413 | AH8: =LOOKUP(AH$3,'Kwh Estimate'!$L:$L,'Kwh Estimate'!$S:$S)/12*AH4 -> 732.6190413 | AI8: =LOOKUP(AI$3,'Kwh Estimate'!$L:$L,'Kwh Estimate'!$S:$S)/12*AI4 -> 732.6190413 | AJ8: =LOOKUP(AJ$3,'Kwh Estimate'!$L:$L,'Kwh Estimate'!$S:$S)/12*AJ4 -> 732.6190413 | AK8: =LOOKUP(AK$3,'Kwh Estimate'!$L:$L,'Kwh Estimate'!$S:$S)/12*AK4 -> 732.6190413 | AL8: =LOOKUP(AL$3,'Kwh Estimate'!$L:$L,'Kwh Estimate'!$S:$S)/12*AL4 -> 732.6190413 | AM8: =LOOKUP(AM$3,'Kwh Estimate'!$L:$L,'Kwh Estimate'!$S:$S)/12*AM4 -> 732.6190413 | AN8: =LOOKUP(AN$3,'Kwh Estimate'!$L:$L,'Kwh Estimate'!$S:$S)/12*AN4 -> 732.6190413 | AO8: =LOOKUP(AO$3,'Kwh Estimate'!$L:$L,'Kwh Estimate'!$S:$S)/12*AO4 -> 732.6190413 | AP8: =LOOKUP(AP$3,'Kwh Estimate'!$L:$L,'Kwh Estimate'!$S:$S)/12*AP4 -> 732.6190413 | AQ8: =LOOKUP(AQ$3,'Kwh Estimate'!$L:$L,'Kwh Estimate'!$S:$S)/12*AQ4 -> 728.9189451 | AR8: =LOOKUP(AR$3,'Kwh Estimate'!$L:$L,'Kwh Estimate'!$S:$S)/12*AR4 -> 728.9189451 | AS8: =LOOKUP(AS$3,'Kwh Estimate'!$L:$L,'Kwh Estimate'!$S:$S)/12*AS4 -> 728.9189451 | AT8: =LOOKUP(AT$3,'Kwh Estimate'!$L:$L,'Kwh Estimate'!$S:$S)/12*AT4 -> 728.9189451 | AU8: =LOOKUP(AU$3,'Kwh Estimate'!$L:$L,'Kwh Estimate'!$S:$S)/12*AU4 -> 728.9189451 | AV8: =LOOKUP(AV$3,'Kwh Estimate'!$L:$L,'Kwh Estimate'!$S:$S)/12*AV4 -> 728.9189451 | AW8: =LOOKUP(AW$3,'Kwh Estimate'!$L:$L,'Kwh Estimate'!$S:$S)/12*AW4 -> 728.9189451 | AX8: =LOOKUP(AX$3,'Kwh Estimate'!$L:$L,'Kwh Estimate'!$S:$S)/12*AX4 -> 728.9189451 | AY8: =LOOKUP(AY$3,'Kwh Estimate'!$L:$L,'Kwh Estimate'!$S:$S)/12*AY4 -> 728.9189451 | AZ8: =LOOKUP(AZ$3,'Kwh Estimate'!$L:$L,'Kwh Estimate'!$S:$S)/12*AZ4 -> 728.9189451 | BA8: =LOOKUP(BA$3,'Kwh Estimate'!$L:$L,'Kwh Estimate'!$S:$S)/12*BA4 -> 728.9189451 | BB8: =LOOKUP(BB$3,'Kwh Estimate'!$L:$L,'Kwh Estimate'!$S:$S)/12*BB4 -> 728.9189451 | BC8: =LOOKUP(BC$3,'Kwh Estimate'!$L:$L,'Kwh Estimate'!$S:$S)/12*BC4 -> 725.2188489 | BD8: =LOOKUP(BD$3,'Kwh Estimate'!$L:$L,'Kwh Estimate'!$S:$S)/12*BD4 -> 725.2188489 | BE8: =LOOKUP(BE$3,'Kwh Estimate'!$L:$L,'Kwh Estimate'!$S:$S)/12*BE4 -> 725.2188489 | BF8: =LOOKUP(BF$3,'Kwh Estimate'!$L:$L,'Kwh Estimate'!$S:$S)/12*BF4 -> 725.2188489 | BG8: =LOOKUP(BG$3,'Kwh Estimate'!$L:$L,'Kwh Estimate'!$S:$S)/12*BG4 -> 725.2188489 | BH8: =LOOKUP(BH$3,'Kwh Estimate'!$L:$L,'Kwh Estimate'!$S:$S)/12*BH4 -> 725.2188489 | BI8: =LOOKUP(BI$3,'Kwh Estimate'!$L:$L,'Kwh Estimate'!$S:$S)/12*BI4 -> 725.2188489 | BJ8: =LOOKUP(BJ$3,'Kwh Estimate'!$L:$L,'Kwh Estimate'!$S:$S)/12*BJ4 -> 725.2188489 | BK8: =LOOKUP(BK$3,'Kwh Estimate'!$L:$L,'Kwh Estimate'!$S:$S)/12*BK4 -> 725.2188489 | BL8: =LOOKUP(BL$3,'Kwh Estimate'!$L:$L,'Kwh Estimate'!$S:$S)/12*BL4 -> 725.2188489 | BM8: =LOOKUP(BM$3,'Kwh Estimate'!$L:$L,'Kwh Estimate'!$S:$S)/12*BM4 -> 725.2188489 | BN8: =LOOKUP(BN$3,'Kwh Estimate'!$L:$L,'Kwh Estimate'!$S:$S)/12*BN4 -> 725.2188489 | BO8: =LOOKUP(BO$3,'Kwh Estimate'!$L:$L,'Kwh Estimate'!$S:$S)/12*BO4 -> 721.5187528 | BP8: =LOOKUP(BP$3,'Kwh Estimate'!$L:$L,'Kwh Estimate'!$S:$S)/12*BP4 -> 721.5187528 | BQ8: =LOOKUP(BQ$3,'Kwh Estimate'!$L:$L,'Kwh Estimate'!$S:$S)/12*BQ4 -> 721.5187528 | BR8: =LOOKUP(BR$3,'Kwh Estimate'!$L:$L,'Kwh Estimate'!$S:$S)/12*BR4 -> 721.5187528 | BS8: =LOOKUP(BS$3,'Kwh Estimate'!$L:$L,'Kwh Estimate'!$S:$S)/12*BS4 -> 721.5187528 | BT8: =LOOKUP(BT$3,'Kwh Estimate'!$L:$L,'Kwh Estimate'!$S:$S)/12*BT4 -> 721.5187528 | BU8: =LOOKUP(BU$3,'Kwh Estimate'!$L:$L,'Kwh Estimate'!$S:$S)/12*BU4 -> 721.5187528 | BV8: =LOOKUP(BV$3,'Kwh Estimate'!$L:$L,'Kwh Estimate'!$S:$S)/12*BV4 -> 721.5187528 | BW8: =LOOKUP(BW$3,'Kwh Estimate'!$L:$L,'Kwh Estimate'!$S:$S)/12*BW4 -> 721.5187528 | BX8: =LOOKUP(BX$3,'Kwh Estimate'!$L:$L,'Kwh Estimate'!$S:$S)/12*BX4 -> 721.5187528 | BY8: =LOOKUP(BY$3,'Kwh Estimate'!$L:$L,'Kwh Estimate'!$S:$S)/12*BY4 -> 721.5187528 | BZ8: =LOOKUP(BZ$3,'Kwh Estimate'!$L:$L,'Kwh Estimate'!$S:$S)/12*BZ4 -> 721.5187528 | CA8: =LOOKUP(CA$3,'Kwh Estimate'!$L:$L,'Kwh Estimate'!$S:$S)/12*CA4 -> 717.8186566 | CB8: =LOOKUP(CB$3,'Kwh Estimate'!$L:$L,'Kwh Estimate'!$S:$S)/12*CB4 -> 717.8186566 | CC8: =LOOKUP(CC$3,'Kwh Estimate'!$L:$L,'Kwh Estimate'!$S:$S)/12*CC4 -> 717.8186566 | CD8: =LOOKUP(CD$3,'Kwh Estimate'!$L:$L,'Kwh Estimate'!$S:$S)/12*CD4 -> 717.8186566 | CE8: =LOOKUP(CE$3,'Kwh Estimate'!$L:$L,'Kwh Estimate'!$S:$S)/12*CE4 -> 717.8186566 | CF8: =LOOKUP(CF$3,'Kwh Estimate'!$L:$L,'Kwh Estimate'!$S:$S)/12*CF4 -> 717.8186566 | CG8: =LOOKUP(CG$3,'Kwh Estimate'!$L:$L,'Kwh Estimate'!$S:$S)/12*CG4 -> 717.8186566 | CH8: =LOOKUP(CH$3,'Kwh Estimate'!$L:$L,'Kwh Estimate'!$S:$S)/12*CH4 -> 717.8186566 | CI8: =LOOKUP(CI$3,'Kwh Estimate'!$L:$L,'Kwh Estimate'!$S:$S)/12*CI4 -> 717.8186566 | CJ8: =LOOKUP(CJ$3,'Kwh Estimate'!$L:$L,'Kwh Estimate'!$S:$S)/12*CJ4 -> 717.8186566 | CK8: =LOOKUP(CK$3,'Kwh Estimate'!$L:$L,'Kwh Estimate'!$S:$S)/12*CK4 -> 717.8186566 | CL8: =LOOKUP(CL$3,'Kwh Estimate'!$L:$L,'Kwh Estimate'!$S:$S)/12*CL4 -> 717.8186566 | CM8: =LOOKUP(CM$3,'Kwh Estimate'!$L:$L,'Kwh Estimate'!$S:$S)/12*CM4 -> 714.1185604 | CN8: =LOOKUP(CN$3,'Kwh Estimate'!$L:$L,'Kwh Estimate'!$S:$S)/12*CN4 -> 714.1185604 | CO8: =LOOKUP(CO$3,'Kwh Estimate'!$L:$L,'Kwh Estimate'!$S:$S)/12*CO4 -> 714.1185604 | CP8: =LOOKUP(CP$3,'Kwh Estimate'!$L:$L,'Kwh Estimate'!$S:$S)/12*CP4 -> 714.1185604 | CQ8: =LOOKUP(CQ$3,'Kwh Estimate'!$L:$L,'Kwh Estimate'!$S:$S)/12*CQ4 -> 714.1185604 | CR8: =LOOKUP(CR$3,'Kwh Estimate'!$L:$L,'Kwh Estimate'!$S:$S)/12*CR4 -> 714.1185604 | CS8: =LOOKUP(CS$3,'Kwh Estimate'!$L:$L,'Kwh Estimate'!$S:$S)/12*CS4 -> 714.1185604 | CT8: =LOOKUP(CT$3,'Kwh Estimate'!$L:$L,'Kwh Estimate'!$S:$S)/12*CT4 -> 714.1185604 | CU8: =LOOKUP(CU$3,'Kwh Estimate'!$L:$L,'Kwh Estimate'!$S:$S)/12*CU4 -> 714.1185604 | CV8: =LOOKUP(CV$3,'Kwh Estimate'!$L:$L,'Kwh Estimate'!$S:$S)/12*CV4 -> 714.1185604 | CW8: =LOOKUP(CW$3,'Kwh Estimate'!$L:$L,'Kwh Estimate'!$S:$S)/12*CW4 -> 714.1185604 | CX8: =LOOKUP(CX$3,'Kwh Estimate'!$L:$L,'Kwh Estimate'!$S:$S)/12*CX4 -> 714.1185604 | CY8: =LOOKUP(CY$3,'Kwh Estimate'!$L:$L,'Kwh Estimate'!$S:$S)/12*CY4 -> 710.4184643 | CZ8: =LOOKUP(CZ$3,'Kwh Estimate'!$L:$L,'Kwh Estimate'!$S:$S)/12*CZ4 -> 710.4184643 | DA8: =LOOKUP(DA$3,'Kwh Estimate'!$L:$L,'Kwh Estimate'!$S:$S)/12*DA4 -> 710.4184643 | DB8: =LOOKUP(DB$3,'Kwh Estimate'!$L:$L,'Kwh Estimate'!$S:$S)/12*DB4 -> 710.4184643 | DC8: =LOOKUP(DC$3,'Kwh Estimate'!$L:$L,'Kwh Estimate'!$S:$S)/12*DC4 -> 710.4184643 | DD8: =LOOKUP(DD$3,'Kwh Estimate'!$L:$L,'Kwh Estimate'!$S:$S)/12*DD4 -> 710.4184643 | DE8: =LOOKUP(DE$3,'Kwh Estimate'!$L:$L,'Kwh Estimate'!$S:$S)/12*DE4 -> 710.4184643 | DF8: =LOOKUP(DF$3,'Kwh Estimate'!$L:$L,'Kwh Estimate'!$S:$S)/12*DF4 -> 710.4184643 | DG8: =LOOKUP(DG$3,'Kwh Estimate'!$L:$L,'Kwh Estimate'!$S:$S)/12*DG4 -> 710.4184643 | DH8: =LOOKUP(DH$3,'Kwh Estimate'!$L:$L,'Kwh Estimate'!$S:$S)/12*DH4 -> 710.4184643 | DI8: =LOOKUP(DI$3,'Kwh Estimate'!$L:$L,'Kwh Estimate'!$S:$S)/12*DI4 -> 710.4184643 | DJ8: =LOOKUP(DJ$3,'Kwh Estimate'!$L:$L,'Kwh Estimate'!$S:$S)/12*DJ4 -> 710.4184643 | DK8: =LOOKUP(DK$3,'Kwh Estimate'!$L:$L,'Kwh Estimate'!$S:$S)/12*DK4 -> 706.7183681 | DL8: =LOOKUP(DL$3,'Kwh Estimate'!$L:$L,'Kwh Estimate'!$S:$S)/12*DL4 -> 706.7183681 | DM8: =LOOKUP(DM$3,'Kwh Estimate'!$L:$L,'Kwh Estimate'!$S:$S)/12*DM4 -> 706.7183681 | DN8: =LOOKUP(DN$3,'Kwh Estimate'!$L:$L,'Kwh Estimate'!$S:$S)/12*DN4 -> 706.7183681 | DO8: =LOOKUP(DO$3,'Kwh Estimate'!$L:$L,'Kwh Estimate'!$S:$S)/12*DO4 -> 706.7183681 | DP8: =LOOKUP(DP$3,'Kwh Estimate'!$L:$L,'Kwh Estimate'!$S:$S)/12*DP4 -> 706.7183681 | DQ8: =LOOKUP(DQ$3,'Kwh Estimate'!$L:$L,'Kwh Estimate'!$S:$S)/12*DQ4 -> 706.7183681 | DR8: =LOOKUP(DR$3,'Kwh Estimate'!$L:$L,'Kwh Estimate'!$S:$S)/12*DR4 -> 706.7183681 | DS8: =LOOKUP(DS$3,'Kwh Estimate'!$L:$L,'Kwh Estimate'!$S:$S)/12*DS4 -> 706.7183681 | DT8: =LOOKUP(DT$3,'Kwh Estimate'!$L:$L,'Kwh Estimate'!$S:$S)/12*DT4 -> 706.7183681 | DU8: =LOOKUP(DU$3,'Kwh Estimate'!$L:$L,'Kwh Estimate'!$S:$S)/12*DU4 -> 706.7183681 | DV8: =LOOKUP(DV$3,'Kwh Estimate'!$L:$L,'Kwh Estimate'!$S:$S)/12*DV4 -> 706.7183681 | DW8: =LOOKUP(DW$3,'Kwh Estimate'!$L:$L,'Kwh Estimate'!$S:$S)/12*DW4 -> 703.0182719 | DX8: =LOOKUP(DX$3,'Kwh Estimate'!$L:$L,'Kwh Estimate'!$S:$S)/12*DX4 -> 703.0182719 | DY8: =LOOKUP(DY$3,'Kwh Estimate'!$L:$L,'Kwh Estimate'!$S:$S)/12*DY4 -> 703.0182719 | DZ8: =LOOKUP(DZ$3,'Kwh Estimate'!$L:$L,'Kwh Estimate'!$S:$S)/12*DZ4 -> 703.0182719 | EA8: =LOOKUP(EA$3,'Kwh Estimate'!$L:$L,'Kwh Estimate'!$S:$S)/12*EA4 -> 703.0182719 | EB8: =LOOKUP(EB$3,'Kwh Estimate'!$L:$L,'Kwh Estimate'!$S:$S)/12*EB4 -> 703.0182719 | EC8: =LOOKUP(EC$3,'Kwh Estimate'!$L:$L,'Kwh Estimate'!$S:$S)/12*EC4 -> 703.0182719 | ED8: =LOOKUP(ED$3,'Kwh Estimate'!$L:$L,'Kwh Estimate'!$S:$S)/12*ED4 -> 703.0182719 | EE8: =LOOKUP(EE$3,'Kwh Estimate'!$L:$L,'Kwh Estimate'!$S:$S)/12*EE4 -> 703.0182719 | EF8: =LOOKUP(EF$3,'Kwh Estimate'!$L:$L,'Kwh Estimate'!$S:$S)/12*EF4 -> 703.0182719 | EG8: =LOOKUP(EG$3,'Kwh Estimate'!$L:$L,'Kwh Estimate'!$S:$S)/12*EG4 -> 703.0182719 | EH8: =LOOKUP(EH$3,'Kwh Estimate'!$L:$L,'Kwh Estimate'!$S:$S)/12*EH4 -> 703.0182719 | EI8: =LOOKUP(EI$3,'Kwh Estimate'!$L:$L,'Kwh Estimate'!$S:$S)/12*EI4 -> 699.3181758 | EJ8: =LOOKUP(EJ$3,'Kwh Estimate'!$L:$L,'Kwh Estimate'!$S:$S)/12*EJ4 -> 699.3181758 | EK8: =LOOKUP(EK$3,'Kwh Estimate'!$L:$L,'Kwh Estimate'!$S:$S)/12*EK4 -> 699.3181758 | EL8: =LOOKUP(EL$3,'Kwh Estimate'!$L:$L,'Kwh Estimate'!$S:$S)/12*EL4 -> 699.3181758 | EM8: =LOOKUP(EM$3,'Kwh Estimate'!$L:$L,'Kwh Estimate'!$S:$S)/12*EM4 -> 699.3181758 | EN8: =LOOKUP(EN$3,'Kwh Estimate'!$L:$L,'Kwh Estimate'!$S:$S)/12*EN4 -> 699.3181758 | EO8: =LOOKUP(EO$3,'Kwh Estimate'!$L:$L,'Kwh Estimate'!$S:$S)/12*EO4 -> 699.3181758 | EP8: =LOOKUP(EP$3,'Kwh Estimate'!$L:$L,'Kwh Estimate'!$S:$S)/12*EP4 -> 699.3181758 | EQ8: =LOOKUP(EQ$3,'Kwh Estimate'!$L:$L,'Kwh Estimate'!$S:$S)/12*EQ4 -> 699.3181758 | ER8: =LOOKUP(ER$3,'Kwh Estimate'!$L:$L,'Kwh Estimate'!$S:$S)/12*ER4 -> 699.3181758 | ES8: =LOOKUP(ES$3,'Kwh Estimate'!$L:$L,'Kwh Estimate'!$S:$S)/12*ES4 -> 699.3181758 | ET8: =LOOKUP(ET$3,'Kwh Estimate'!$L:$L,'Kwh Estimate'!$S:$S)/12*ET4 -> 699.3181758 | EU8: =LOOKUP(EU$3,'Kwh Estimate'!$L:$L,'Kwh Estimate'!$S:$S)/12*EU4 -> 695.6180796 | EV8: =LOOKUP(EV$3,'Kwh Estimate'!$L:$L,'Kwh Estimate'!$S:$S)/12*EV4 -> 695.6180796 | EW8: =LOOKUP(EW$3,'Kwh Estimate'!$L:$L,'Kwh Estimate'!$S:$S)/12*EW4 -> 695.6180796 | EX8: =LOOKUP(EX$3,'Kwh Estimate'!$L:$L,'Kwh Estimate'!$S:$S)/12*EX4 -> 695.6180796 | EY8: =LOOKUP(EY$3,'Kwh Estimate'!$L:$L,'Kwh Estimate'!$S:$S)/12*EY4 -> 695.6180796 | EZ8: =LOOKUP(EZ$3,'Kwh Estimate'!$L:$L,'Kwh Estimate'!$S:$S)/12*EZ4 -> 695.6180796 | FA8: =LOOKUP(FA$3,'Kwh Estimate'!$L:$L,'Kwh Estimate'!$S:$S)/12*FA4 -> 695.6180796 | FB8: =LOOKUP(FB$3,'Kwh Estimate'!$L:$L,'Kwh Estimate'!$S:$S)/12*FB4 -> 695.6180796 | FC8: =LOOKUP(FC$3,'Kwh Estimate'!$L:$L,'Kwh Estimate'!$S:$S)/12*FC4 -> 695.6180796 | FD8: =LOOKUP(FD$3,'Kwh Estimate'!$L:$L,'Kwh Estimate'!$S:$S)/12*FD4 -> 695.6180796 | FE8: =LOOKUP(FE$3,'Kwh Estimate'!$L:$L,'Kwh Estimate'!$S:$S)/12*FE4 -> 695.6180796 | FF8: =LOOKUP(FF$3,'Kwh Estimate'!$L:$L,'Kwh Estimate'!$S:$S)/12*FF4 -> 695.6180796 | FG8: =LOOKUP(FG$3,'Kwh Estimate'!$L:$L,'Kwh Estimate'!$S:$S)/12*FG4 -> 691.9179834 | FH8: =LOOKUP(FH$3,'Kwh Estimate'!$L:$L,'Kwh Estimate'!$S:$S)/12*FH4 -> 691.9179834 | FI8: =LOOKUP(FI$3,'Kwh Estimate'!$L:$L,'Kwh Estimate'!$S:$S)/12*FI4 -> 691.9179834 | FJ8: =LOOKUP(FJ$3,'Kwh Estimate'!$L:$L,'Kwh Estimate'!$S:$S)/12*FJ4 -> 691.9179834 | FK8: =LOOKUP(FK$3,'Kwh Estimate'!$L:$L,'Kwh Estimate'!$S:$S)/12*FK4 -> 691.9179834 | FL8: =LOOKUP(FL$3,'Kwh Estimate'!$L:$L,'Kwh Estimate'!$S:$S)/12*FL4 -> 691.9179834 | FM8: =LOOKUP(FM$3,'Kwh Estimate'!$L:$L,'Kwh Estimate'!$S:$S)/12*FM4 -> 691.9179834 | FN8: =LOOKUP(FN$3,'Kwh Estimate'!$L:$L,'Kwh Estimate'!$S:$S)/12*FN4 -> 691.9179834 | FO8: =LOOKUP(FO$3,'Kwh Estimate'!$L:$L,'Kwh Estimate'!$S:$S)/12*FO4 -> 691.9179834 | FP8: =LOOKUP(FP$3,'Kwh Estimate'!$L:$L,'Kwh Estimate'!$S:$S)/12*FP4 -> 691.9179834 | FQ8: =LOOKUP(FQ$3,'Kwh Estimate'!$L:$L,'Kwh Estimate'!$S:$S)/12*FQ4 -> 691.9179834 | FR8: =LOOKUP(FR$3,'Kwh Estimate'!$L:$L,'Kwh Estimate'!$S:$S)/12*FR4 -> 691.9179834 | FS8: =LOOKUP(FS$3,'Kwh Estimate'!$L:$L,'Kwh Estimate'!$S:$S)/12*FS4 -> 688.2178873 | FT8: =LOOKUP(FT$3,'Kwh Estimate'!$L:$L,'Kwh Estimate'!$S:$S)/12*FT4 -> 688.2178873 | FU8: =LOOKUP(FU$3,'Kwh Estimate'!$L:$L,'Kwh Estimate'!$S:$S)/12*FU4 -> 688.2178873 | FV8: =LOOKUP(FV$3,'Kwh Estimate'!$L:$L,'Kwh Estimate'!$S:$S)/12*FV4 -> 688.2178873 | FW8: =LOOKUP(FW$3,'Kwh Estimate'!$L:$L,'Kwh Estimate'!$S:$S)/12*FW4 -> 688.2178873 | FX8: =LOOKUP(FX$3,'Kwh Estimate'!$L:$L,'Kwh Estimate'!$S:$S)/12*FX4 -> 688.2178873 | FY8: =LOOKUP(FY$3,'Kwh Estimate'!$L:$L,'Kwh Estimate'!$S:$S)/12*FY4 -> 688.2178873 | FZ8: =LOOKUP(FZ$3,'Kwh Estimate'!$L:$L,'Kwh Estimate'!$S:$S)/12*FZ4 -> 688.2178873 | GA8: =LOOKUP(GA$3,'Kwh Estimate'!$L:$L,'Kwh Estimate'!$S:$S)/12*GA4 -> 688.2178873 | GB8: =LOOKUP(GB$3,'Kwh Estimate'!$L:$L,'Kwh Estimate'!$S:$S)/12*GB4 -> 688.2178873 | GC8: =LOOKUP(GC$3,'Kwh Estimate'!$L:$L,'Kwh Estimate'!$S:$S)/12*GC4 -> 688.2178873 | GD8: =LOOKUP(GD$3,'Kwh Estimate'!$L:$L,'Kwh Estimate'!$S:$S)/12*GD4 -> 688.2178873 | GE8: =LOOKUP(GE$3,'Kwh Estimate'!$L:$L,'Kwh Estimate'!$S:$S)/12*GE4 -> 684.5177911 | GF8: =LOOKUP(GF$3,'Kwh Estimate'!$L:$L,'Kwh Estimate'!$S:$S)/12*GF4 -> 684.5177911 | GG8: =LOOKUP(GG$3,'Kwh Estimate'!$L:$L,'Kwh Estimate'!$S:$S)/12*GG4 -> 684.5177911 | GH8: =LOOKUP(GH$3,'Kwh Estimate'!$L:$L,'Kwh Estimate'!$S:$S)/12*GH4 -> 684.5177911 | GI8: =LOOKUP(GI$3,'Kwh Estimate'!$L:$L,'Kwh Estimate'!$S:$S)/12*GI4 -> 684.5177911 | GJ8: =LOOKUP(GJ$3,'Kwh Estimate'!$L:$L,'Kwh Estimate'!$S:$S)/12*GJ4 -> 684.5177911 | GK8: =LOOKUP(GK$3,'Kwh Estimate'!$L:$L,'Kwh Estimate'!$S:$S)/12*GK4 -> 684.5177911 | GL8: =LOOKUP(GL$3,'Kwh Estimate'!$L:$L,'Kwh Estimate'!$S:$S)/12*GL4 -> 684.5177911 | GM8: =LOOKUP(GM$3,'Kwh Estimate'!$L:$L,'Kwh Estimate'!$S:$S)/12*GM4 -> 684.5177911 | GN8: =LOOKUP(GN$3,'Kwh Estimate'!$L:$L,'Kwh Estimate'!$S:$S)/12*GN4 -> 684.5177911 | GO8: =LOOKUP(GO$3,'Kwh Estimate'!$L:$L,'Kwh Estimate'!$S:$S)/12*GO4 -> 684.5177911 | GP8: =LOOKUP(GP$3,'Kwh Estimate'!$L:$L,'Kwh Estimate'!$S:$S)/12*GP4 -> 684.5177911 | GQ8: =LOOKUP(GQ$3,'Kwh Estimate'!$L:$L,'Kwh Estimate'!$S:$S)/12*GQ4 -> 680.8176949 | GR8: =LOOKUP(GR$3,'Kwh Estimate'!$L:$L,'Kwh Estimate'!$S:$S)/12*GR4 -> 680.8176949 | GS8: =LOOKUP(GS$3,'Kwh Estimate'!$L:$L,'Kwh Estimate'!$S:$S)/12*GS4 -> 680.8176949 | GT8: =LOOKUP(GT$3,'Kwh Estimate'!$L:$L,'Kwh Estimate'!$S:$S)/12*GT4 -> 680.8176949 | GU8: =LOOKUP(GU$3,'Kwh Estimate'!$L:$L,'Kwh Estimate'!$S:$S)/12*GU4 -> 680.8176949 | GV8: =LOOKUP(GV$3,'Kwh Estimate'!$L:$L,'Kwh Estimate'!$S:$S)/12*GV4 -> 680.8176949 | GW8: =LOOKUP(GW$3,'Kwh Estimate'!$L:$L,'Kwh Estimate'!$S:$S)/12*GW4 -> 680.8176949 | GX8: =LOOKUP(GX$3,'Kwh Estimate'!$L:$L,'Kwh Estimate'!$S:$S)/12*GX4 -> 680.8176949 | GY8: =LOOKUP(GY$3,'Kwh Estimate'!$L:$L,'Kwh Estimate'!$S:$S)/12*GY4 -> 680.8176949 | GZ8: =LOOKUP(GZ$3,'Kwh Estimate'!$L:$L,'Kwh Estimate'!$S:$S)/12*GZ4 -> 680.8176949 | HA8: =LOOKUP(HA$3,'Kwh Estimate'!$L:$L,'Kwh Estimate'!$S:$S)/12*HA4 -> 680.8176949 | HB8: =LOOKUP(HB$3,'Kwh Estimate'!$L:$L,'Kwh Estimate'!$S:$S)/12*HB4 -> 680.8176949 | HC8: =LOOKUP(HC$3,'Kwh Estimate'!$L:$L,'Kwh Estimate'!$S:$S)/12*HC4 -> 677.1175987 | HD8: =LOOKUP(HD$3,'Kwh Estimate'!$L:$L,'Kwh Estimate'!$S:$S)/12*HD4 -> 677.1175987 | HE8: =LOOKUP(HE$3,'Kwh Estimate'!$L:$L,'Kwh Estimate'!$S:$S)/12*HE4 -> 677.1175987 | HF8: =LOOKUP(HF$3,'Kwh Estimate'!$L:$L,'Kwh Estimate'!$S:$S)/12*HF4 -> 677.1175987 | HG8: =LOOKUP(HG$3,'Kwh Estimate'!$L:$L,'Kwh Estimate'!$S:$S)/12*HG4 -> 677.1175987 | HH8: =LOOKUP(HH$3,'Kwh Estimate'!$L:$L,'Kwh Estimate'!$S:$S)/12*HH4 -> 677.1175987 | HI8: =LOOKUP(HI$3,'Kwh Estimate'!$L:$L,'Kwh Estimate'!$S:$S)/12*HI4 -> 677.1175987 | HJ8: =LOOKUP(HJ$3,'Kwh Estimate'!$L:$L,'Kwh Estimate'!$S:$S)/12*HJ4 -> 677.1175987 | HK8: =LOOKUP(HK$3,'Kwh Estimate'!$L:$L,'Kwh Estimate'!$S:$S)/12*HK4 -> 677.1175987 | HL8: =LOOKUP(HL$3,'Kwh Estimate'!$L:$L,'Kwh Estimate'!$S:$S)/12*HL4 -> 677.1175987 | HM8: =LOOKUP(HM$3,'Kwh Estimate'!$L:$L,'Kwh Estimate'!$S:$S)/12*HM4 -> 677.1175987 | HN8: =LOOKUP(HN$3,'Kwh Estimate'!$L:$L,'Kwh Estimate'!$S:$S)/12*HN4 -> 677.1175987 | HO8: =LOOKUP(HO$3,'Kwh Estimate'!$L:$L,'Kwh Estimate'!$S:$S)/12*HO4 -> 673.4175026 | HP8: =LOOKUP(HP$3,'Kwh Estimate'!$L:$L,'Kwh Estimate'!$S:$S)/12*HP4 -> 673.4175026 | HQ8: =LOOKUP(HQ$3,'Kwh Estimate'!$L:$L,'Kwh Estimate'!$S:$S)/12*HQ4 -> 673.4175026 | HR8: =LOOKUP(HR$3,'Kwh Estimate'!$L:$L,'Kwh Estimate'!$S:$S)/12*HR4 -> 673.4175026 | HS8: =LOOKUP(HS$3,'Kwh Estimate'!$L:$L,'Kwh Estimate'!$S:$S)/12*HS4 -> 673.4175026 | HT8: =LOOKUP(HT$3,'Kwh Estimate'!$L:$L,'Kwh Estimate'!$S:$S)/12*HT4 -> 673.4175026 | HU8: =LOOKUP(HU$3,'Kwh Estimate'!$L:$L,'Kwh Estimate'!$S:$S)/12*HU4 -> 673.4175026 | HV8: =LOOKUP(HV$3,'Kwh Estimate'!$L:$L,'Kwh Estimate'!$S:$S)/12*HV4 -> 673.4175026 | HW8: =LOOKUP(HW$3,'Kwh Estimate'!$L:$L,'Kwh Estimate'!$S:$S)/12*HW4 -> 673.4175026 | HX8: =LOOKUP(HX$3,'Kwh Estimate'!$L:$L,'Kwh Estimate'!$S:$S)/12*HX4 -> 673.4175026 | HY8: =LOOKUP(HY$3,'Kwh Estimate'!$L:$L,'Kwh Estimate'!$S:$S)/12*HY4 -> 673.4175026 | HZ8: =LOOKUP(HZ$3,'Kwh Estimate'!$L:$L,'Kwh Estimate'!$S:$S)/12*HZ4 -> 673.4175026 | IA8: =LOOKUP(IA$3,'Kwh Estimate'!$L:$L,'Kwh Estimate'!$S:$S)/12*IA4 -> 669.7174064 | IB8: =LOOKUP(IB$3,'Kwh Estimate'!$L:$L,'Kwh Estimate'!$S:$S)/12*IB4 -> 669.7174064 | IC8: =LOOKUP(IC$3,'Kwh Estimate'!$L:$L,'Kwh Estimate'!$S:$S)/12*IC4 -> 669.7174064 | ID8: =LOOKUP(ID$3,'Kwh Estimate'!$L:$L,'Kwh Estimate'!$S:$S)/12*ID4 -> 669.7174064 | IE8: =LOOKUP(IE$3,'Kwh Estimate'!$L:$L,'Kwh Estimate'!$S:$S)/12*IE4 -> 669.7174064 | IF8: =LOOKUP(IF$3,'Kwh Estimate'!$L:$L,'Kwh Estimate'!$S:$S)/12*IF4 -> 669.7174064 | IG8: =LOOKUP(IG$3,'Kwh Estimate'!$L:$L,'Kwh Estimate'!$S:$S)/12*IG4 -> 669.7174064 | IH8: =LOOKUP(IH$3,'Kwh Estimate'!$L:$L,'Kwh Estimate'!$S:$S)/12*IH4 -> 669.7174064 | II8: =LOOKUP(II$3,'Kwh Estimate'!$L:$L,'Kwh Estimate'!$S:$S)/12*II4 -> 669.7174064 | IJ8: =LOOKUP(IJ$3,'Kwh Estimate'!$L:$L,'Kwh Estimate'!$S:$S)/12*IJ4 -> 669.7174064 | IK8: =LOOKUP(IK$3,'Kwh Estimate'!$L:$L,'Kwh Estimate'!$S:$S)/12*IK4 -> 669.7174064 | IL8: =LOOKUP(IL$3,'Kwh Estimate'!$L:$L,'Kwh Estimate'!$S:$S)/12*IL4 -> 669.7174064 | IM8: =LOOKUP(IM$3,'Kwh Estimate'!$L:$L,'Kwh Estimate'!$S:$S)/12*IM4 -> 666.0173102 | IN8: =LOOKUP(IN$3,'Kwh Estimate'!$L:$L,'Kwh Estimate'!$S:$S)/12*IN4 -> 666.0173102 | IO8: =LOOKUP(IO$3,'Kwh Estimate'!$L:$L,'Kwh Estimate'!$S:$S)/12*IO4 -> 666.0173102 | IP8: =LOOKUP(IP$3,'Kwh Estimate'!$L:$L,'Kwh Estimate'!$S:$S)/12*IP4 -> 666.0173102 | IQ8: =LOOKUP(IQ$3,'Kwh Estimate'!$L:$L,'Kwh Estimate'!$S:$S)/12*IQ4 -> 666.0173102 | IR8: =LOOKUP(IR$3,'Kwh Estimate'!$L:$L,'Kwh Estimate'!$S:$S)/12*IR4 -> 666.0173102 | IS8: =LOOKUP(IS$3,'Kwh Estimate'!$L:$L,'Kwh Estimate'!$S:$S)/12*IS4 -> 666.0173102 | IT8: =LOOKUP(IT$3,'Kwh Estimate'!$L:$L,'Kwh Estimate'!$S:$S)/12*IT4 -> 666.0173102 | IU8: =LOOKUP(IU$3,'Kwh Estimate'!$L:$L,'Kwh Estimate'!$S:$S)/12*IU4 -> 666.0173102 | IV8: =LOOKUP(IV$3,'Kwh Estimate'!$L:$L,'Kwh Estimate'!$S:$S)/12*IV4 -> 666.0173102 | IW8: =LOOKUP(IW$3,'Kwh Estimate'!$L:$L,'Kwh Estimate'!$S:$S)/12*IW4 -> 666.0173102 | IX8: =LOOKUP(IX$3,'Kwh Estimate'!$L:$L,'Kwh Estimate'!$S:$S)/12*IX4 -> 666.0173102 | IY8: =LOOKUP(IY$3,'Kwh Estimate'!$L:$L,'Kwh Estimate'!$S:$S)/12*IY4 -> 662.3172141 | IZ8: =LOOKUP(IZ$3,'Kwh Estimate'!$L:$L,'Kwh Estimate'!$S:$S)/12*IZ4 -> 662.3172141 | JA8: =LOOKUP(JA$3,'Kwh Estimate'!$L:$L,'Kwh Estimate'!$S:$S)/12*JA4 -> 662.3172141 | JB8: =LOOKUP(JB$3,'Kwh Estimate'!$L:$L,'Kwh Estimate'!$S:$S)/12*JB4 -> 662.3172141 | JC8: =LOOKUP(JC$3,'Kwh Estimate'!$L:$L,'Kwh Estimate'!$S:$S)/12*JC4 -> 662.3172141 | JD8: =LOOKUP(JD$3,'Kwh Estimate'!$L:$L,'Kwh Estimate'!$S:$S)/12*JD4 -> 662.3172141 | JE8: =LOOKUP(JE$3,'Kwh Estimate'!$L:$L,'Kwh Estimate'!$S:$S)/12*JE4 -> 662.3172141 | JF8: =LOOKUP(JF$3,'Kwh Estimate'!$L:$L,'Kwh Estimate'!$S:$S)/12*JF4 -> 662.3172141 | JG8: =LOOKUP(JG$3,'Kwh Estimate'!$L:$L,'Kwh Estimate'!$S:$S)/12*JG4 -> 662.3172141 | JH8: =LOOKUP(JH$3,'Kwh Estimate'!$L:$L,'Kwh Estimate'!$S:$S)/12*JH4 -> 662.3172141 | JI8: =LOOKUP(JI$3,'Kwh Estimate'!$L:$L,'Kwh Estimate'!$S:$S)/12*JI4 -> 662.3172141 | JJ8: =LOOKUP(JJ$3,'Kwh Estimate'!$L:$L,'Kwh Estimate'!$S:$S)/12*JJ4 -> 662.3172141 | JK8: =LOOKUP(JK$3,'Kwh Estimate'!$L:$L,'Kwh Estimate'!$S:$S)/12*JK4 -> 658.6171179 | JL8: =LOOKUP(JL$3,'Kwh Estimate'!$L:$L,'Kwh Estimate'!$S:$S)/12*JL4 -> 658.6171179 | JM8: =LOOKUP(JM$3,'Kwh Estimate'!$L:$L,'Kwh Estimate'!$S:$S)/12*JM4 -> 658.6171179 | JN8: =LOOKUP(JN$3,'Kwh Estimate'!$L:$L,'Kwh Estimate'!$S:$S)/12*JN4 -> 658.6171179 | JO8: =LOOKUP(JO$3,'Kwh Estimate'!$L:$L,'Kwh Estimate'!$S:$S)/12*JO4 -> 658.6171179 | JP8: =LOOKUP(JP$3,'Kwh Estimate'!$L:$L,'Kwh Estimate'!$S:$S)/12*JP4 -> 658.6171179 | JQ8: =LOOKUP(JQ$3,'Kwh Estimate'!$L:$L,'Kwh Estimate'!$S:$S)/12*JQ4 -> 658.6171179 | JR8: =LOOKUP(JR$3,'Kwh Estimate'!$L:$L,'Kwh Estimate'!$S:$S)/12*JR4 -> 658.6171179 | JS8: =LOOKUP(JS$3,'Kwh Estimate'!$L:$L,'Kwh Estimate'!$S:$S)/12*JS4 -> 658.6171179 | JT8: =LOOKUP(JT$3,'Kwh Estimate'!$L:$L,'Kwh Estimate'!$S:$S)/12*JT4 -> 658.6171179 | JU8: =LOOKUP(JU$3,'Kwh Estimate'!$L:$L,'Kwh Estimate'!$S:$S)/12*JU4 -> 658.6171179 | JV8: =LOOKUP(JV$3,'Kwh Estimate'!$L:$L,'Kwh Estimate'!$S:$S)/12*JV4 -> 658.6171179 | JW8: =LOOKUP(JW$3,'Kwh Estimate'!$L:$L,'Kwh Estimate'!$S:$S)/12*JW4 -> 654.9170217 | JX8: =LOOKUP(JX$3,'Kwh Estimate'!$L:$L,'Kwh Estimate'!$S:$S)/12*JX4 -> 654.9170217 | JY8: =LOOKUP(JY$3,'Kwh Estimate'!$L:$L,'Kwh Estimate'!$S:$S)/12*JY4 -> 654.9170217 | JZ8: =LOOKUP(JZ$3,'Kwh Estimate'!$L:$L,'Kwh Estimate'!$S:$S)/12*JZ4 -> 654.9170217 | KA8: =LOOKUP(KA$3,'Kwh Estimate'!$L:$L,'Kwh Estimate'!$S:$S)/12*KA4 -> 654.9170217 | KB8: =LOOKUP(KB$3,'Kwh Estimate'!$L:$L,'Kwh Estimate'!$S:$S)/12*KB4 -> 654.9170217 | KC8: =LOOKUP(KC$3,'Kwh Estimate'!$L:$L,'Kwh Estimate'!$S:$S)/12*KC4 -> 654.9170217 | KD8: =LOOKUP(KD$3,'Kwh Estimate'!$L:$L,'Kwh Estimate'!$S:$S)/12*KD4 -> 654.9170217 | KE8: =LOOKUP(KE$3,'Kwh Estimate'!$L:$L,'Kwh Estimate'!$S:$S)/12*KE4 -> 654.9170217 | KF8: =LOOKUP(KF$3,'Kwh Estimate'!$L:$L,'Kwh Estimate'!$S:$S)/12*KF4 -> 654.9170217 | KG8: =LOOKUP(KG$3,'Kwh Estimate'!$L:$L,'Kwh Estimate'!$S:$S)/12*KG4 -> 654.9170217 | KH8: =LOOKUP(KH$3,'Kwh Estimate'!$L:$L,'Kwh Estimate'!$S:$S)/12*KH4 -> 654.9170217 | KI8: =LOOKUP(KI$3,'Kwh Estimate'!$L:$L,'Kwh Estimate'!$S:$S)/12*KI4 -> 651.2169256 | KJ8: =LOOKUP(KJ$3,'Kwh Estimate'!$L:$L,'Kwh Estimate'!$S:$S)/12*KJ4 -> 651.2169256 | KK8: =LOOKUP(KK$3,'Kwh Estimate'!$L:$L,'Kwh Estimate'!$S:$S)/12*KK4 -> 651.2169256 | KL8: =LOOKUP(KL$3,'Kwh Estimate'!$L:$L,'Kwh Estimate'!$S:$S)/12*KL4 -> 651.2169256 | KM8: =LOOKUP(KM$3,'Kwh Estimate'!$L:$L,'Kwh Estimate'!$S:$S)/12*KM4 -> 651.2169256 | KN8: =LOOKUP(KN$3,'Kwh Estimate'!$L:$L,'Kwh Estimate'!$S:$S)/12*KN4 -> 651.2169256 | KO8: =LOOKUP(KO$3,'Kwh Estimate'!$L:$L,'Kwh Estimate'!$S:$S)/12*KO4 -> 651.2169256 | KP8: =LOOKUP(KP$3,'Kwh Estimate'!$L:$L,'Kwh Estimate'!$S:$S)/12*KP4 -> 651.2169256 | KQ8: =LOOKUP(KQ$3,'Kwh Estimate'!$L:$L,'Kwh Estimate'!$S:$S)/12*KQ4 -> 651.2169256 | KR8: =LOOKUP(KR$3,'Kwh Estimate'!$L:$L,'Kwh Estimate'!$S:$S)/12*KR4 -> 651.2169256 | KS8: =LOOKUP(KS$3,'Kwh Estimate'!$L:$L,'Kwh Estimate'!$S:$S)/12*KS4 -> 651.2169256 | KT8: =LOOKUP(KT$3,'Kwh Estimate'!$L:$L,'Kwh Estimate'!$S:$S)/12*KT4 -> 651.2169256 | KU8: =LOOKUP(KU$3,'Kwh Estimate'!$L:$L,'Kwh Estimate'!$S:$S)/12*KU4 -> 647.5168294 | KV8: =LOOKUP(KV$3,'Kwh Estimate'!$L:$L,'Kwh Estimate'!$S:$S)/12*KV4 -> 647.5168294 | KW8: =LOOKUP(KW$3,'Kwh Estimate'!$L:$L,'Kwh Estimate'!$S:$S)/12*KW4 -> 647.5168294 | KX8: =LOOKUP(KX$3,'Kwh Estimate'!$L:$L,'Kwh Estimate'!$S:$S)/12*KX4 -> 647.5168294 | KY8: =LOOKUP(KY$3,'Kwh Estimate'!$L:$L,'Kwh Estimate'!$S:$S)/12*KY4 -> 647.5168294 | KZ8: =LOOKUP(KZ$3,'Kwh Estimate'!$L:$L,'Kwh Estimate'!$S:$S)/12*KZ4 -> 647.5168294 | LA8: =LOOKUP(LA$3,'Kwh Estimate'!$L:$L,'Kwh Estimate'!$S:$S)/12*LA4 -> 647.5168294 | LB8: =LOOKUP(LB$3,'Kwh Estimate'!$L:$L,'Kwh Estimate'!$S:$S)/12*LB4 -> 647.5168294 | LC8: =LOOKUP(LC$3,'Kwh Estimate'!$L:$L,'Kwh Estimate'!$S:$S)/12*LC4 -> 647.5168294 | LD8: =LOOKUP(LD$3,'Kwh Estimate'!$L:$L,'Kwh Estimate'!$S:$S)/12*LD4 -> 647.5168294 | LE8: =LOOKUP(LE$3,'Kwh Estimate'!$L:$L,'Kwh Estimate'!$S:$S)/12*LE4 -> 647.5168294 | LF8: =LOOKUP(LF$3,'Kwh Estimate'!$L:$L,'Kwh Estimate'!$S:$S)/12*LF4 -> 647.5168294 | LG8: =LOOKUP(LG$3,'Kwh Estimate'!$L:$L,'Kwh Estimate'!$S:$S)/12*LG4 -> 643.8167332 | LH8: =LOOKUP(LH$3,'Kwh Estimate'!$L:$L,'Kwh Estimate'!$S:$S)/12*LH4 -> 643.8167332 | LI8: =LOOKUP(LI$3,'Kwh Estimate'!$L:$L,'Kwh Estimate'!$S:$S)/12*LI4 -> 643.8167332 | LJ8: =LOOKUP(LJ$3,'Kwh Estimate'!$L:$L,'Kwh Estimate'!$S:$S)/12*LJ4 -> 643.8167332 | LK8: =LOOKUP(LK$3,'Kwh Estimate'!$L:$L,'Kwh Estimate'!$S:$S)/12*LK4 -> 643.8167332 | LL8: =LOOKUP(LL$3,'Kwh Estimate'!$L:$L,'Kwh Estimate'!$S:$S)/12*LL4 -> 643.8167332 | LM8: =LOOKUP(LM$3,'Kwh Estimate'!$L:$L,'Kwh Estimate'!$S:$S)/12*LM4 -> 643.8167332 | LN8: =LOOKUP(LN$3,'Kwh Estimate'!$L:$L,'Kwh Estimate'!$S:$S)/12*LN4 -> 643.8167332 | LO8: =LOOKUP(LO$3,'Kwh Estimate'!$L:$L,'Kwh Estimate'!$S:$S)/12*LO4 -> 643.8167332 | LP8: =LOOKUP(LP$3,'Kwh Estimate'!$L:$L,'Kwh Estimate'!$S:$S)/12*LP4 -> 643.8167332 | LQ8: =LOOKUP(LQ$3,'Kwh Estimate'!$L:$L,'Kwh Estimate'!$S:$S)/12*LQ4 -> 643.8167332 | LR8: =LOOKUP(LR$3,'Kwh Estimate'!$L:$L,'Kwh Estimate'!$S:$S)/12*LR4 -> 643.8167332 | LS8: =LOOKUP(LS$3,'Kwh Estimate'!$L:$L,'Kwh Estimate'!$S:$S)/12*LS4 -> 640.1166371 | LT8: =LOOKUP(LT$3,'Kwh Estimate'!$L:$L,'Kwh Estimate'!$S:$S)/12*LT4 -> 640.1166371 | LU8: =LOOKUP(LU$3,'Kwh Estimate'!$L:$L,'Kwh Estimate'!$S:$S)/12*LU4 -> 640.1166371 | LV8: =LOOKUP(LV$3,'Kwh Estimate'!$L:$L,'Kwh Estimate'!$S:$S)/12*LV4 -> 640.1166371 | LW8: =LOOKUP(LW$3,'Kwh Estimate'!$L:$L,'Kwh Estimate'!$S:$S)/12*LW4 -> 640.1166371 | LX8: =LOOKUP(LX$3,'Kwh Estimate'!$L:$L,'Kwh Estimate'!$S:$S)/12*LX4 -> 640.1166371 | LY8: =LOOKUP(LY$3,'Kwh Estimate'!$L:$L,'Kwh Estimate'!$S:$S)/12*LY4 -> 640.1166371 | LZ8: =LOOKUP(LZ$3,'Kwh Estimate'!$L:$L,'Kwh Estimate'!$S:$S)/12*LZ4 -> 640.1166371 | MA8: =LOOKUP(MA$3,'Kwh Estimate'!$L:$L,'Kwh Estimate'!$S:$S)/12*MA4 -> 640.1166371 | MB8: =LOOKUP(MB$3,'Kwh Estimate'!$L:$L,'Kwh Estimate'!$S:$S)/12*MB4 -> 640.1166371 | MC8: =LOOKUP(MC$3,'Kwh Estimate'!$L:$L,'Kwh Estimate'!$S:$S)/12*MC4 -> 640.1166371 | MD8: =LOOKUP(MD$3,'Kwh Estimate'!$L:$L,'Kwh Estimate'!$S:$S)/12*MD4 -> 640.1166371 | ME8: =LOOKUP(ME$3,'Kwh Estimate'!$L:$L,'Kwh Estimate'!$S:$S)/12*ME4 -> 636.4165409 | MF8: =LOOKUP(MF$3,'Kwh Estimate'!$L:$L,'Kwh Estimate'!$S:$S)/12*MF4 -> 636.4165409 | MG8: =LOOKUP(MG$3,'Kwh Estimate'!$L:$L,'Kwh Estimate'!$S:$S)/12*MG4 -> 636.4165409 | MH8: =LOOKUP(MH$3,'Kwh Estimate'!$L:$L,'Kwh Estimate'!$S:$S)/12*MH4 -> 636.4165409 | MI8: =LOOKUP(MI$3,'Kwh Estimate'!$L:$L,'Kwh Estimate'!$S:$S)/12*MI4 -> 636.4165409 | MJ8: =LOOKUP(MJ$3,'Kwh Estimate'!$L:$L,'Kwh Estimate'!$S:$S)/12*MJ4 -> 636.4165409 | MK8: =LOOKUP(MK$3,'Kwh Estimate'!$L:$L,'Kwh Estimate'!$S:$S)/12*MK4 -> 636.4165409 | ML8: =LOOKUP(ML$3,'Kwh Estimate'!$L:$L,'Kwh Estimate'!$S:$S)/12*ML4 -> 636.4165409 | MM8: =LOOKUP(MM$3,'Kwh Estimate'!$L:$L,'Kwh Estimate'!$S:$S)/12*MM4 -> 636.4165409 | MN8: =LOOKUP(MN$3,'Kwh Estimate'!$L:$L,'Kwh Estimate'!$S:$S)/12*MN4 -> 636.4165409 | MO8: =LOOKUP(MO$3,'Kwh Estimate'!$L:$L,'Kwh Estimate'!$S:$S)/12*MO4 -> 636.4165409 | MP8: =LOOKUP(MP$3,'Kwh Estimate'!$L:$L,'Kwh Estimate'!$S:$S)/12*MP4 -> 636.4165409 | MQ8: =LOOKUP(MQ$3,'Kwh Estimate'!$L:$L,'Kwh Estimate'!$S:$S)/12*MQ4 -> 632.7164447 | MR8: =LOOKUP(MR$3,'Kwh Estimate'!$L:$L,'Kwh Estimate'!$S:$S)/12*MR4 -> 632.7164447 | MS8: =LOOKUP(MS$3,'Kwh Estimate'!$L:$L,'Kwh Estimate'!$S:$S)/12*MS4 -> 632.7164447 | MT8: =LOOKUP(MT$3,'Kwh Estimate'!$L:$L,'Kwh Estimate'!$S:$S)/12*MT4 -> 632.7164447 | MU8: =LOOKUP(MU$3,'Kwh Estimate'!$L:$L,'Kwh Estimate'!$S:$S)/12*MU4 -> 632.7164447 | MV8: =LOOKUP(MV$3,'Kwh Estimate'!$L:$L,'Kwh Estimate'!$S:$S)/12*MV4 -> 632.7164447 | MW8: =LOOKUP(MW$3,'Kwh Estimate'!$L:$L,'Kwh Estimate'!$S:$S)/12*MW4 -> 632.7164447 | MX8: =LOOKUP(MX$3,'Kwh Estimate'!$L:$L,'Kwh Estimate'!$S:$S)/12*MX4 -> 632.7164447 | MY8: =LOOKUP(MY$3,'Kwh Estimate'!$L:$L,'Kwh Estimate'!$S:$S)/12*MY4 -> 632.7164447 | MZ8: =LOOKUP(MZ$3,'Kwh Estimate'!$L:$L,'Kwh Estimate'!$S:$S)/12*MZ4 -> 632.7164447 | NA8: =LOOKUP(NA$3,'Kwh Estimate'!$L:$L,'Kwh Estimate'!$S:$S)/12*NA4 -> 632.7164447 | NB8: =LOOKUP(NB$3,'Kwh Estimate'!$L:$L,'Kwh Estimate'!$S:$S)/12*NB4 -> 632.7164447 | NC8: =LOOKUP(NC$3,'Kwh Estimate'!$L:$L,'Kwh Estimate'!$S:$S)/12*NC4 -> 629.0163486 | ND8: =LOOKUP(ND$3,'Kwh Estimate'!$L:$L,'Kwh Estimate'!$S:$S)/12*ND4 -> 629.0163486 | NE8: =LOOKUP(NE$3,'Kwh Estimate'!$L:$L,'Kwh Estimate'!$S:$S)/12*NE4 -> 629.0163486 | NF8: =LOOKUP(NF$3,'Kwh Estimate'!$L:$L,'Kwh Estimate'!$S:$S)/12*NF4 -> 629.0163486 | NG8: =LOOKUP(NG$3,'Kwh Estimate'!$L:$L,'Kwh Estimate'!$S:$S)/12*NG4 -> 629.0163486 | NH8: =LOOKUP(NH$3,'Kwh Estimate'!$L:$L,'Kwh Estimate'!$S:$S)/12*NH4 -> 0 | NI8: =LOOKUP(NI$3,'Kwh Estimate'!$L:$L,'Kwh Estimate'!$S:$S)/12*NI4 -> 0 | NJ8: =LOOKUP(NJ$3,'Kwh Estimate'!$L:$L,'Kwh Estimate'!$S:$S)/12*NJ4 -> 0 | NK8: =LOOKUP(NK$3,'Kwh Estimate'!$L:$L,'Kwh Estimate'!$S:$S)/12*NK4 -> 0 | NL8: =LOOKUP(NL$3,'Kwh Estimate'!$L:$L,'Kwh Estimate'!$S:$S)/12*NL4 -> 0 | NM8: =LOOKUP(NM$3,'Kwh Estimate'!$L:$L,'Kwh Estimate'!$S:$S)/12*NM4 -> 0 | NN8: =LOOKUP(NN$3,'Kwh Estimate'!$L:$L,'Kwh Estimate'!$S:$S)/12*NN4 -> 0
C9: P99/P50 | G9: =IF(G7,G8/G7) -> FALSE | H9: =IF(H7,H8/H7) -> FALSE | I9: FALSE | J9: FALSE | K9: FALSE | L9: 0.8489526403 | M9: 0.8489526403 | N9: 0.8489526403 | O9: 0.8489526403 | P9: 0.8489526403 | Q9: 0.8489526403 | R9: 0.8489526403 | S9: 0.8489526403 | T9: 0.8489526403 | U9: 0.8489526403 | V9: 0.8489526403 | W9: 0.8489526403 | X9: 0.8489526403 | Y9: 0.8489526403 | Z9: 0.8489526403 | AA9: 0.8489526403 | AB9: 0.8489526403 | AC9: 0.8489526403 | AD9: 0.8489526403 | AE9: 0.8489526403 | AF9: 0.8489526403 | AG9: 0.8489526403 | AH9: 0.8489526403 | AI9: 0.8489526403 | AJ9: 0.8489526403 | AK9: 0.8489526403 | AL9: 0.8489526403 | AM9: 0.8489526403 | AN9: 0.8489526403 | AO9: 0.8489526403 | AP9: 0.8489526403 | AQ9: 0.8489526403 | AR9: 0.8489526403 | AS9: 0.8489526403 | AT9: 0.8489526403 | AU9: 0.8489526403 | AV9: 0.8489526403 | AW9: 0.8489526403 | AX9: 0.8489526403 | AY9: 0.8489526403 | AZ9: 0.8489526403 | BA9: 0.8489526403 | BB9: 0.8489526403 | BC9: 0.8489526403 | BD9: 0.8489526403 | BE9: 0.8489526403 | BF9: 0.8489526403 | BG9: 0.8489526403 | BH9: 0.8489526403 | BI9: 0.8489526403 | BJ9: 0.8489526403 | BK9: 0.8489526403 | BL9: 0.8489526403 | BM9: 0.8489526403 | BN9: 0.8489526403 | BO9: 0.8489526403 | BP9: 0.8489526403 | BQ9: 0.8489526403 | BR9: 0.8489526403 | BS9: 0.8489526403 | BT9: =IF(BT7,BT8/BT7) -> 0.8489526403 | BU9: 0.8489526403 | BV9: 0.8489526403 | BW9: 0.8489526403 | BX9: 0.8489526403 | BY9: 0.8489526403 | BZ9: 0.8489526403 | CA9: 0.8489526403 | CB9: 0.8489526403 | CC9: 0.8489526403 | CD9: 0.8489526403 | CE9: 0.8489526403 | CF9: 0.8489526403 | CG9: 0.8489526403 | CH9: 0.8489526403 | CI9: 0.8489526403 | CJ9: 0.8489526403 | CK9: 0.8489526403 | CL9: 0.8489526403 | CM9: 0.8489526403 | CN9: 0.8489526403 | CO9: 0.8489526403 | CP9: 0.8489526403 | CQ9: 0.8489526403 | CR9: 0.8489526403 | CS9: 0.8489526403 | CT9: 0.8489526403 | CU9: 0.8489526403 | CV9: 0.8489526403 | CW9: 0.8489526403 | CX9: 0.8489526403 | CY9: 0.8489526403 | CZ9: 0.8489526403 | DA9: 0.8489526403 | DB9: 0.8489526403 | DC9: 0.8489526403 | DD9: 0.8489526403 | DE9: 0.8489526403 | DF9: 0.8489526403 | DG9: 0.8489526403 | DH9: 0.8489526403 | DI9: 0.8489526403 | DJ9: 0.8489526403 | DK9: 0.8489526403 | DL9: 0.8489526403 | DM9: 0.8489526403 | DN9: 0.8489526403 | DO9: 0.8489526403 | DP9: 0.8489526403 | DQ9: 0.8489526403 | DR9: 0.8489526403 | DS9: 0.8489526403 | DT9: 0.8489526403 | DU9: 0.8489526403 | DV9: 0.8489526403 | DW9: 0.8489526403 | DX9: 0.8489526403 | DY9: 0.8489526403 | DZ9: 0.8489526403 | EA9: 0.8489526403 | EB9: 0.8489526403 | EC9: 0.8489526403 | ED9: 0.8489526403 | EE9: 0.8489526403 | EF9: =IF(EF7,EF8/EF7) -> 0.8489526403 | EG9: 0.8489526403 | EH9: 0.8489526403 | EI9: 0.8489526403 | EJ9: 0.8489526403 | EK9: 0.8489526403 | EL9: 0.8489526403 | EM9: 0.8489526403 | EN9: 0.8489526403 | EO9: 0.8489526403 | EP9: 0.8489526403 | EQ9: 0.8489526403 | ER9: 0.8489526403 | ES9: 0.8489526403 | ET9: 0.8489526403 | EU9: 0.8489526403 | EV9: 0.8489526403 | EW9: 0.8489526403 | EX9: 0.8489526403 | EY9: 0.8489526403 | EZ9: 0.8489526403 | FA9: 0.8489526403 | FB9: 0.8489526403 | FC9: 0.8489526403 | FD9: 0.8489526403 | FE9: 0.8489526403 | FF9: 0.8489526403 | FG9: 0.8489526403 | FH9: 0.8489526403 | FI9: 0.8489526403 | FJ9: 0.8489526403 | FK9: 0.8489526403 | FL9: 0.8489526403 | FM9: 0.8489526403 | FN9: 0.8489526403 | FO9: 0.8489526403 | FP9: 0.8489526403 | FQ9: 0.8489526403 | FR9: 0.8489526403 | FS9: 0.8489526403 | FT9: 0.8489526403 | FU9: 0.8489526403 | FV9: 0.8489526403 | FW9: 0.8489526403 | FX9: 0.8489526403 | FY9: 0.8489526403 | FZ9: 0.8489526403 | GA9: 0.8489526403 | GB9: 0.8489526403 | GC9: 0.8489526403 | GD9: 0.8489526403 | GE9: 0.8489526403 | GF9: 0.8489526403 | GG9: 0.8489526403 | GH9: 0.8489526403 | GI9: 0.8489526403 | GJ9: 0.8489526403 | GK9: 0.8489526403 | GL9: 0.8489526403 | GM9: 0.8489526403 | GN9: 0.8489526403 | GO9: 0.8489526403 | GP9: 0.8489526403 | GQ9: 0.8489526403 | GR9: =IF(GR7,GR8/GR7) -> 0.8489526403 | GS9: 0.8489526403 | GT9: 0.8489526403 | GU9: 0.8489526403 | GV9: 0.8489526403 | GW9: 0.8489526403 | GX9: 0.8489526403 | GY9: 0.8489526403 | GZ9: 0.8489526403 | HA9: 0.8489526403 | HB9: 0.8489526403 | HC9: 0.8489526403 | HD9: 0.8489526403 | HE9: 0.8489526403 | HF9: 0.8489526403 | HG9: 0.8489526403 | HH9: 0.8489526403 | HI9: 0.8489526403 | HJ9: 0.8489526403 | HK9: 0.8489526403 | HL9: 0.8489526403 | HM9: 0.8489526403 | HN9: 0.8489526403 | HO9: 0.8489526403 | HP9: 0.8489526403 | HQ9: 0.8489526403 | HR9: 0.8489526403 | HS9: 0.8489526403 | HT9: 0.8489526403 | HU9: 0.8489526403 | HV9: 0.8489526403 | HW9: 0.8489526403 | HX9: 0.8489526403 | HY9: 0.8489526403 | HZ9: 0.8489526403 | IA9: 0.8489526403 | IB9: 0.8489526403 | IC9: 0.8489526403 | ID9: 0.8489526403 | IE9: 0.8489526403 | IF9: 0.8489526403 | IG9: 0.8489526403 | IH9: 0.8489526403 | II9: 0.8489526403 | IJ9: 0.8489526403 | IK9: 0.8489526403 | IL9: 0.8489526403 | IM9: 0.8489526403 | IN9: 0.8489526403 | IO9: 0.8489526403 | IP9: 0.8489526403 | IQ9: 0.8489526403 | IR9: 0.8489526403 | IS9: 0.8489526403 | IT9: 0.8489526403 | IU9: 0.8489526403 | IV9: 0.8489526403 | IW9: 0.8489526403 | IX9: 0.8489526403 | IY9: 0.8489526403 | IZ9: 0.8489526403 | JA9: 0.8489526403 | JB9: 0.8489526403 | JC9: 0.8489526403 | JD9: =IF(JD7,JD8/JD7) -> 0.8489526403 | JE9: 0.8489526403 | JF9: 0.8489526403 | JG9: 0.8489526403 | JH9: 0.8489526403 | JI9: 0.8489526403 | JJ9: 0.8489526403 | JK9: 0.8489526403 | JL9: 0.8489526403 | JM9: 0.8489526403 | JN9: 0.8489526403 | JO9: 0.8489526403 | JP9: 0.8489526403 | JQ9: 0.8489526403 | JR9: 0.8489526403 | JS9: 0.8489526403 | JT9: 0.8489526403 | JU9: 0.8489526403 | JV9: 0.8489526403 | JW9: 0.8489526403 | JX9: 0.8489526403 | JY9: 0.8489526403 | JZ9: 0.8489526403 | KA9: 0.8489526403 | KB9: 0.8489526403 | KC9: 0.8489526403 | KD9: 0.8489526403 | KE9: 0.8489526403 | KF9: 0.8489526403 | KG9: 0.8489526403 | KH9: 0.8489526403 | KI9: 0.8489526403 | KJ9: 0.8489526403 | KK9: 0.8489526403 | KL9: 0.8489526403 | KM9: 0.8489526403 | KN9: 0.8489526403 | KO9: 0.8489526403 | KP9: 0.8489526403 | KQ9: 0.8489526403 | KR9: 0.8489526403 | KS9: 0.8489526403 | KT9: 0.8489526403 | KU9: 0.8489526403 | KV9: 0.8489526403 | KW9: 0.8489526403 | KX9: 0.8489526403 | KY9: 0.8489526403 | KZ9: 0.8489526403 | LA9: 0.8489526403 | LB9: 0.8489526403 | LC9: 0.8489526403 | LD9: 0.8489526403 | LE9: 0.8489526403 | LF9: 0.8489526403 | LG9: 0.8489526403 | LH9: 0.8489526403 | LI9: 0.8489526403 | LJ9: 0.8489526403 | LK9: 0.8489526403 | LL9: 0.8489526403 | LM9: 0.8489526403 | LN9: 0.8489526403 | LO9: 0.8489526403 | LP9: =IF(LP7,LP8/LP7) -> 0.8489526403 | LQ9: 0.8489526403 | LR9: 0.8489526403 | LS9: 0.8489526403 | LT9: 0.8489526403 | LU9: 0.8489526403 | LV9: 0.8489526403 | LW9: 0.8489526403 | LX9: 0.8489526403 | LY9: 0.8489526403 | LZ9: 0.8489526403 | MA9: 0.8489526403 | MB9: 0.8489526403 | MC9: 0.8489526403 | MD9: 0.8489526403 | ME9: 0.8489526403 | MF9: 0.8489526403 | MG9: 0.8489526403 | MH9: 0.8489526403 | MI9: 0.8489526403 | MJ9: 0.8489526403 | MK9: 0.8489526403 | ML9: 0.8489526403 | MM9: 0.8489526403 | MN9: 0.8489526403 | MO9: 0.8489526403 | MP9: 0.8489526403 | MQ9: 0.8489526403 | MR9: 0.8489526403 | MS9: 0.8489526403 | MT9: 0.8489526403 | MU9: 0.8489526403 | MV9: 0.8489526403 | MW9: 0.8489526403 | MX9: 0.8489526403 | MY9: 0.8489526403 | MZ9: 0.8489526403 | NA9: 0.8489526403 | NB9: 0.8489526403 | NC9: 0.8489526403 | ND9: 0.8489526403 | NE9: 0.8489526403 | NF9: 0.8489526403 | NG9: 0.8489526403 | NH9: FALSE | NI9: FALSE | NJ9: FALSE | NK9: FALSE | NL9: FALSE | NM9: FALSE | NN9: FALSE
C10: P50/P99 | G10: =IF(G8,G7/G8) -> FALSE | H10: =IF(H8,H7/H8) -> FALSE | I10: FALSE | J10: FALSE | K10: FALSE | L10: 1.17792201 | M10: 1.17792201 | N10: 1.17792201 | O10: 1.17792201 | P10: 1.17792201 | Q10: 1.17792201 | R10: 1.17792201 | S10: 1.17792201 | T10: 1.17792201 | U10: 1.17792201 | V10: 1.17792201 | W10: 1.17792201 | X10: 1.17792201 | Y10: 1.17792201 | Z10: 1.17792201 | AA10: 1.17792201 | AB10: 1.17792201 | AC10: 1.17792201 | AD10: 1.17792201 | AE10: 1.17792201 | AF10: 1.17792201 | AG10: 1.17792201 | AH10: 1.17792201 | AI10: 1.17792201 | AJ10: 1.17792201 | AK10: 1.17792201 | AL10: 1.17792201 | AM10: 1.17792201 | AN10: 1.17792201 | AO10: 1.17792201 | AP10: 1.17792201 | AQ10: 1.17792201 | AR10: 1.17792201 | AS10: 1.17792201 | AT10: 1.17792201 | AU10: 1.17792201 | AV10: 1.17792201 | AW10: 1.17792201 | AX10: 1.17792201 | AY10: 1.17792201 | AZ10: 1.17792201 | BA10: 1.17792201 | BB10: 1.17792201 | BC10: 1.17792201 | BD10: 1.17792201 | BE10: 1.17792201 | BF10: 1.17792201 | BG10: 1.17792201 | BH10: 1.17792201 | BI10: 1.17792201 | BJ10: 1.17792201 | BK10: 1.17792201 | BL10: 1.17792201 | BM10: 1.17792201 | BN10: 1.17792201 | BO10: 1.17792201 | BP10: 1.17792201 | BQ10: 1.17792201 | BR10: 1.17792201 | BS10: 1.17792201 | BT10: =IF(BT8,BT7/BT8) -> 1.17792201 | BU10: 1.17792201 | BV10: 1.17792201 | BW10: 1.17792201 | BX10: 1.17792201 | BY10: 1.17792201 | BZ10: 1.17792201 | CA10: 1.17792201 | CB10: 1.17792201 | CC10: 1.17792201 | CD10: 1.17792201 | CE10: 1.17792201 | CF10: 1.17792201 | CG10: 1.17792201 | CH10: 1.17792201 | CI10: 1.17792201 | CJ10: 1.17792201 | CK10: 1.17792201 | CL10: 1.17792201 | CM10: 1.17792201 | CN10: 1.17792201 | CO10: 1.17792201 | CP10: 1.17792201 | CQ10: 1.17792201 | CR10: 1.17792201 | CS10: 1.17792201 | CT10: 1.17792201 | CU10: 1.17792201 | CV10: 1.17792201 | CW10: 1.17792201 | CX10: 1.17792201 | CY10: 1.17792201 | CZ10: 1.17792201 | DA10: 1.17792201 | DB10: 1.17792201 | DC10: 1.17792201 | DD10: 1.17792201 | DE10: 1.17792201 | DF10: 1.17792201 | DG10: 1.17792201 | DH10: 1.17792201 | DI10: 1.17792201 | DJ10: 1.17792201 | DK10: 1.17792201 | DL10: 1.17792201 | DM10: 1.17792201 | DN10: 1.17792201 | DO10: 1.17792201 | DP10: 1.17792201 | DQ10: 1.17792201 | DR10: 1.17792201 | DS10: 1.17792201 | DT10: 1.17792201 | DU10: 1.17792201 | DV10: 1.17792201 | DW10: 1.17792201 | DX10: 1.17792201 | DY10: 1.17792201 | DZ10: 1.17792201 | EA10: 1.17792201 | EB10: 1.17792201 | EC10: 1.17792201 | ED10: 1.17792201 | EE10: 1.17792201 | EF10: =IF(EF8,EF7/EF8) -> 1.17792201 | EG10: 1.17792201 | EH10: 1.17792201 | EI10: 1.17792201 | EJ10: 1.17792201 | EK10: 1.17792201 | EL10: 1.17792201 | EM10: 1.17792201 | EN10: 1.17792201 | EO10: 1.17792201 | EP10: 1.17792201 | EQ10: 1.17792201 | ER10: 1.17792201 | ES10: 1.17792201 | ET10: 1.17792201 | EU10: 1.17792201 | EV10: 1.17792201 | EW10: 1.17792201 | EX10: 1.17792201 | EY10: 1.17792201 | EZ10: 1.17792201 | FA10: 1.17792201 | FB10: 1.17792201 | FC10: 1.17792201 | FD10: 1.17792201 | FE10: 1.17792201 | FF10: 1.17792201 | FG10: 1.17792201 | FH10: 1.17792201 | FI10: 1.17792201 | FJ10: 1.17792201 | FK10: 1.17792201 | FL10: 1.17792201 | FM10: 1.17792201 | FN10: 1.17792201 | FO10: 1.17792201 | FP10: 1.17792201 | FQ10: 1.17792201 | FR10: 1.17792201 | FS10: 1.17792201 | FT10: 1.17792201 | FU10: 1.17792201 | FV10: 1.17792201 | FW10: 1.17792201 | FX10: 1.17792201 | FY10: 1.17792201 | FZ10: 1.17792201 | GA10: 1.17792201 | GB10: 1.17792201 | GC10: 1.17792201 | GD10: 1.17792201 | GE10: 1.17792201 | GF10: 1.17792201 | GG10: 1.17792201 | GH10: 1.17792201 | GI10: 1.17792201 | GJ10: 1.17792201 | GK10: 1.17792201 | GL10: 1.17792201 | GM10: 1.17792201 | GN10: 1.17792201 | GO10: 1.17792201 | GP10: 1.17792201 | GQ10: 1.17792201 | GR10: =IF(GR8,GR7/GR8) -> 1.17792201 | GS10: 1.17792201 | GT10: 1.17792201 | GU10: 1.17792201 | GV10: 1.17792201 | GW10: 1.17792201 | GX10: 1.17792201 | GY10: 1.17792201 | GZ10: 1.17792201 | HA10: 1.17792201 | HB10: 1.17792201 | HC10: 1.17792201 | HD10: 1.17792201 | HE10: 1.17792201 | HF10: 1.17792201 | HG10: 1.17792201 | HH10: 1.17792201 | HI10: 1.17792201 | HJ10: 1.17792201 | HK10: 1.17792201 | HL10: 1.17792201 | HM10: 1.17792201 | HN10: 1.17792201 | HO10: 1.17792201 | HP10: 1.17792201 | HQ10: 1.17792201 | HR10: 1.17792201 | HS10: 1.17792201 | HT10: 1.17792201 | HU10: 1.17792201 | HV10: 1.17792201 | HW10: 1.17792201 | HX10: 1.17792201 | HY10: 1.17792201 | HZ10: 1.17792201 | IA10: 1.17792201 | IB10: 1.17792201 | IC10: 1.17792201 | ID10: 1.17792201 | IE10: 1.17792201 | IF10: 1.17792201 | IG10: 1.17792201 | IH10: 1.17792201 | II10: 1.17792201 | IJ10: 1.17792201 | IK10: 1.17792201 | IL10: 1.17792201 | IM10: 1.17792201 | IN10: 1.17792201 | IO10: 1.17792201 | IP10: 1.17792201 | IQ10: 1.17792201 | IR10: 1.17792201 | IS10: 1.17792201 | IT10: 1.17792201 | IU10: 1.17792201 | IV10: 1.17792201 | IW10: 1.17792201 | IX10: 1.17792201 | IY10: 1.17792201 | IZ10: 1.17792201 | JA10: 1.17792201 | JB10: 1.17792201 | JC10: 1.17792201 | JD10: =IF(JD8,JD7/JD8) -> 1.17792201 | JE10: 1.17792201 | JF10: 1.17792201 | JG10: 1.17792201 | JH10: 1.17792201 | JI10: 1.17792201 | JJ10: 1.17792201 | JK10: 1.17792201 | JL10: 1.17792201 | JM10: 1.17792201 | JN10: 1.17792201 | JO10: 1.17792201 | JP10: 1.17792201 | JQ10: 1.17792201 | JR10: 1.17792201 | JS10: 1.17792201 | JT10: 1.17792201 | JU10: 1.17792201 | JV10: 1.17792201 | JW10: 1.17792201 | JX10: 1.17792201 | JY10: 1.17792201 | JZ10: 1.17792201 | KA10: 1.17792201 | KB10: 1.17792201 | KC10: 1.17792201 | KD10: 1.17792201 | KE10: 1.17792201 | KF10: 1.17792201 | KG10: 1.17792201 | KH10: 1.17792201 | KI10: 1.17792201 | KJ10: 1.17792201 | KK10: 1.17792201 | KL10: 1.17792201 | KM10: 1.17792201 | KN10: 1.17792201 | KO10: 1.17792201 | KP10: 1.17792201 | KQ10: 1.17792201 | KR10: 1.17792201 | KS10: 1.17792201 | KT10: 1.17792201 | KU10: 1.17792201 | KV10: 1.17792201 | KW10: 1.17792201 | KX10: 1.17792201 | KY10: 1.17792201 | KZ10: 1.17792201 | LA10: 1.17792201 | LB10: 1.17792201 | LC10: 1.17792201 | LD10: 1.17792201 | LE10: 1.17792201 | LF10: 1.17792201 | LG10: 1.17792201 | LH10: 1.17792201 | LI10: 1.17792201 | LJ10: 1.17792201 | LK10: 1.17792201 | LL10: 1.17792201 | LM10: 1.17792201 | LN10: 1.17792201 | LO10: 1.17792201 | LP10: =IF(LP8,LP7/LP8) -> 1.17792201 | LQ10: 1.17792201 | LR10: 1.17792201 | LS10: 1.17792201 | LT10: 1.17792201 | LU10: 1.17792201 | LV10: 1.17792201 | LW10: 1.17792201 | LX10: 1.17792201 | LY10: 1.17792201 | LZ10: 1.17792201 | MA10: 1.17792201 | MB10: 1.17792201 | MC10: 1.17792201 | MD10: 1.17792201 | ME10: 1.17792201 | MF10: 1.17792201 | MG10: 1.17792201 | MH10: 1.17792201 | MI10: 1.17792201 | MJ10: 1.17792201 | MK10: 1.17792201 | ML10: 1.17792201 | MM10: 1.17792201 | MN10: 1.17792201 | MO10: 1.17792201 | MP10: 1.17792201 | MQ10: 1.17792201 | MR10: 1.17792201 | MS10: 1.17792201 | MT10: 1.17792201 | MU10: 1.17792201 | MV10: 1.17792201 | MW10: 1.17792201 | MX10: 1.17792201 | MY10: 1.17792201 | MZ10: 1.17792201 | NA10: 1.17792201 | NB10: 1.17792201 | NC10: 1.17792201 | ND10: 1.17792201 | NE10: 1.17792201 | NF10: 1.17792201 | NG10: 1.17792201 | NH10: FALSE | NI10: FALSE | NJ10: FALSE | NK10: FALSE | NL10: FALSE | NM10: FALSE | NN10: FALSE
C12: Applied Production | D12: Match | G12: =MATCH(G3,'Kwh Estimate'!$L:$L,0) -> 5 | H12: =MATCH(H3,'Kwh Estimate'!$L:$L,0) -> 5 | I12: =MATCH(I3,'Kwh Estimate'!$L:$L,0) -> 5 | J12: =MATCH(J3,'Kwh Estimate'!$L:$L,0) -> 5 | K12: =MATCH(K3,'Kwh Estimate'!$L:$L,0) -> 5 | L12: =MATCH(L3,'Kwh Estimate'!$L:$L,0) -> 5 | M12: =MATCH(M3,'Kwh Estimate'!$L:$L,0) -> 5 | N12: =MATCH(N3,'Kwh Estimate'!$L:$L,0) -> 5 | O12: =MATCH(O3,'Kwh Estimate'!$L:$L,0) -> 5 | P12: =MATCH(P3,'Kwh Estimate'!$L:$L,0) -> 5 | Q12: =MATCH(Q3,'Kwh Estimate'!$L:$L,0) -> 5 | R12: =MATCH(R3,'Kwh Estimate'!$L:$L,0) -> 5 | S12: =MATCH(S3,'Kwh Estimate'!$L:$L,0) -> 6 | T12: =MATCH(T3,'Kwh Estimate'!$L:$L,0) -> 6 | U12: =MATCH(U3,'Kwh Estimate'!$L:$L,0) -> 6 | V12: =MATCH(V3,'Kwh Estimate'!$L:$L,0) -> 6 | W12: =MATCH(W3,'Kwh Estimate'!$L:$L,0) -> 6 | X12: =MATCH(X3,'Kwh Estimate'!$L:$L,0) -> 6 | Y12: =MATCH(Y3,'Kwh Estimate'!$L:$L,0) -> 6 | Z12: =MATCH(Z3,'Kwh Estimate'!$L:$L,0) -> 6 | AA12: =MATCH(AA3,'Kwh Estimate'!$L:$L,0) -> 6 | AB12: =MATCH(AB3,'Kwh Estimate'!$L:$L,0) -> 6 | AC12: =MATCH(AC3,'Kwh Estimate'!$L:$L,0) -> 6 | AD12: =MATCH(AD3,'Kwh Estimate'!$L:$L,0) -> 6 | AE12: =MATCH(AE3,'Kwh Estimate'!$L:$L,0) -> 7 | AF12: =MATCH(AF3,'Kwh Estimate'!$L:$L,0) -> 7 | AG12: =MATCH(AG3,'Kwh Estimate'!$L:$L,0) -> 7 | AH12: =MATCH(AH3,'Kwh Estimate'!$L:$L,0) -> 7 | AI12: =MATCH(AI3,'Kwh Estimate'!$L:$L,0) -> 7 | AJ12: =MATCH(AJ3,'Kwh Estimate'!$L:$L,0) -> 7 | AK12: =MATCH(AK3,'Kwh Estimate'!$L:$L,0) -> 7 | AL12: =MATCH(AL3,'Kwh Estimate'!$L:$L,0) -> 7 | AM12: =MATCH(AM3,'Kwh Estimate'!$L:$L,0) -> 7 | AN12: =MATCH(AN3,'Kwh Estimate'!$L:$L,0) -> 7 | AO12: =MATCH(AO3,'Kwh Estimate'!$L:$L,0) -> 7 | AP12: =MATCH(AP3,'Kwh Estimate'!$L:$L,0) -> 7 | AQ12: =MATCH(AQ3,'Kwh Estimate'!$L:$L,0) -> 8 | AR12: =MATCH(AR3,'Kwh Estimate'!$L:$L,0) -> 8 | AS12: =MATCH(AS3,'Kwh Estimate'!$L:$L,0) -> 8 | AT12: =MATCH(AT3,'Kwh Estimate'!$L:$L,0) -> 8 | AU12: =MATCH(AU3,'Kwh Estimate'!$L:$L,0) -> 8 | AV12: =MATCH(AV3,'Kwh Estimate'!$L:$L,0) -> 8 | AW12: =MATCH(AW3,'Kwh Estimate'!$L:$L,0) -> 8 | AX12: =MATCH(AX3,'Kwh Estimate'!$L:$L,0) -> 8 | AY12: =MATCH(AY3,'Kwh Estimate'!$L:$L,0) -> 8 | AZ12: =MATCH(AZ3,'Kwh Estimate'!$L:$L,0) -> 8 | BA12: =MATCH(BA3,'Kwh Estimate'!$L:$L,0) -> 8 | BB12: =MATCH(BB3,'Kwh Estimate'!$L:$L,0) -> 8 | BC12: =MATCH(BC3,'Kwh Estimate'!$L:$L,0) -> 9 | BD12: =MATCH(BD3,'Kwh Estimate'!$L:$L,0) -> 9 | BE12: =MATCH(BE3,'Kwh Estimate'!$L:$L,0) -> 9 | BF12: =MATCH(BF3,'Kwh Estimate'!$L:$L,0) -> 9 | BG12: =MATCH(BG3,'Kwh Estimate'!$L:$L,0) -> 9 | BH12: =MATCH(BH3,'Kwh Estimate'!$L:$L,0) -> 9 | BI12: =MATCH(BI3,'Kwh Estimate'!$L:$L,0) -> 9 | BJ12: =MATCH(BJ3,'Kwh Estimate'!$L:$L,0) -> 9 | BK12: =MATCH(BK3,'Kwh Estimate'!$L:$L,0) -> 9 | BL12: =MATCH(BL3,'Kwh Estimate'!$L:$L,0) -> 9 | BM12: =MATCH(BM3,'Kwh Estimate'!$L:$L,0) -> 9 | BN12: =MATCH(BN3,'Kwh Estimate'!$L:$L,0) -> 9 | BO12: =MATCH(BO3,'Kwh Estimate'!$L:$L,0) -> 10 | BP12: =MATCH(BP3,'Kwh Estimate'!$L:$L,0) -> 10 | BQ12: =MATCH(BQ3,'Kwh Estimate'!$L:$L,0) -> 10 | BR12: =MATCH(BR3,'Kwh Estimate'!$L:$L,0) -> 10 | BS12: =MATCH(BS3,'Kwh Estimate'!$L:$L,0) -> 10 | BT12: =MATCH(BT3,'Kwh Estimate'!$L:$L,0) -> 10 | BU12: =MATCH(BU3,'Kwh Estimate'!$L:$L,0) -> 10 | BV12: =MATCH(BV3,'Kwh Estimate'!$L:$L,0) -> 10 | BW12: =MATCH(BW3,'Kwh Estimate'!$L:$L,0) -> 10 | BX12: =MATCH(BX3,'Kwh Estimate'!$L:$L,0) -> 10 | BY12: =MATCH(BY3,'Kwh Estimate'!$L:$L,0) -> 10 | BZ12: =MATCH(BZ3,'Kwh Estimate'!$L:$L,0) -> 10 | CA12: =MATCH(CA3,'Kwh Estimate'!$L:$L,0) -> 11 | CB12: =MATCH(CB3,'Kwh Estimate'!$L:$L,0) -> 11 | CC12: =MATCH(CC3,'Kwh Estimate'!$L:$L,0) -> 11 | CD12: =MATCH(CD3,'Kwh Estimate'!$L:$L,0) -> 11 | CE12: =MATCH(CE3,'Kwh Estimate'!$L:$L,0) -> 11 | CF12: =MATCH(CF3,'Kwh Estimate'!$L:$L,0) -> 11 | CG12: =MATCH(CG3,'Kwh Estimate'!$L:$L,0) -> 11 | CH12: =MATCH(CH3,'Kwh Estimate'!$L:$L,0) -> 11 | CI12: =MATCH(CI3,'Kwh Estimate'!$L:$L,0) -> 11 | CJ12: =MATCH(CJ3,'Kwh Estimate'!$L:$L,0) -> 11 | CK12: =MATCH(CK3,'Kwh Estimate'!$L:$L,0) -> 11 | CL12: =MATCH(CL3,'Kwh Estimate'!$L:$L,0) -> 11 | CM12: =MATCH(CM3,'Kwh Estimate'!$L:$L,0) -> 12 | CN12: =MATCH(CN3,'Kwh Estimate'!$L:$L,0) -> 12 | CO12: =MATCH(CO3,'Kwh Estimate'!$L:$L,0) -> 12 | CP12: =MATCH(CP3,'Kwh Estimate'!$L:$L,0) -> 12 | CQ12: =MATCH(CQ3,'Kwh Estimate'!$L:$L,0) -> 12 | CR12: =MATCH(CR3,'Kwh Estimate'!$L:$L,0) -> 12 | CS12: =MATCH(CS3,'Kwh Estimate'!$L:$L,0) -> 12 | CT12: =MATCH(CT3,'Kwh Estimate'!$L:$L,0) -> 12 | CU12: =MATCH(CU3,'Kwh Estimate'!$L:$L,0) -> 12 | CV12: =MATCH(CV3,'Kwh Estimate'!$L:$L,0) -> 12 | CW12: =MATCH(CW3,'Kwh Estimate'!$L:$L,0) -> 12 | CX12: =MATCH(CX3,'Kwh Estimate'!$L:$L,0) -> 12 | CY12: =MATCH(CY3,'Kwh Estimate'!$L:$L,0) -> 13 | CZ12: =MATCH(CZ3,'Kwh Estimate'!$L:$L,0) -> 13 | DA12: =MATCH(DA3,'Kwh Estimate'!$L:$L,0) -> 13 | DB12: =MATCH(DB3,'Kwh Estimate'!$L:$L,0) -> 13 | DC12: =MATCH(DC3,'Kwh Estimate'!$L:$L,0) -> 13 | DD12: =MATCH(DD3,'Kwh Estimate'!$L:$L,0) -> 13 | DE12: =MATCH(DE3,'Kwh Estimate'!$L:$L,0) -> 13 | DF12: =MATCH(DF3,'Kwh Estimate'!$L:$L,0) -> 13 | DG12: =MATCH(DG3,'Kwh Estimate'!$L:$L,0) -> 13 | DH12: =MATCH(DH3,'Kwh Estimate'!$L:$L,0) -> 13 | DI12: =MATCH(DI3,'Kwh Estimate'!$L:$L,0) -> 13 | DJ12: =MATCH(DJ3,'Kwh Estimate'!$L:$L,0) -> 13 | DK12: =MATCH(DK3,'Kwh Estimate'!$L:$L,0) -> 14 | DL12: =MATCH(DL3,'Kwh Estimate'!$L:$L,0) -> 14 | DM12: =MATCH(DM3,'Kwh Estimate'!$L:$L,0) -> 14 | DN12: =MATCH(DN3,'Kwh Estimate'!$L:$L,0) -> 14 | DO12: =MATCH(DO3,'Kwh Estimate'!$L:$L,0) -> 14 | DP12: =MATCH(DP3,'Kwh Estimate'!$L:$L,0) -> 14 | DQ12: =MATCH(DQ3,'Kwh Estimate'!$L:$L,0) -> 14 | DR12: =MATCH(DR3,'Kwh Estimate'!$L:$L,0) -> 14 | DS12: =MATCH(DS3,'Kwh Estimate'!$L:$L,0) -> 14 | DT12: =MATCH(DT3,'Kwh Estimate'!$L:$L,0) -> 14 | DU12: =MATCH(DU3,'Kwh Estimate'!$L:$L,0) -> 14 | DV12: =MATCH(DV3,'Kwh Estimate'!$L:$L,0) -> 14 | DW12: =MATCH(DW3,'Kwh Estimate'!$L:$L,0) -> 15 | DX12: =MATCH(DX3,'Kwh Estimate'!$L:$L,0) -> 15 | DY12: =MATCH(DY3,'Kwh Estimate'!$L:$L,0) -> 15 | DZ12: =MATCH(DZ3,'Kwh Estimate'!$L:$L,0) -> 15 | EA12: =MATCH(EA3,'Kwh Estimate'!$L:$L,0) -> 15 | EB12: =MATCH(EB3,'Kwh Estimate'!$L:$L,0) -> 15 | EC12: =MATCH(EC3,'Kwh Estimate'!$L:$L,0) -> 15 | ED12: =MATCH(ED3,'Kwh Estimate'!$L:$L,0) -> 15 | EE12: =MATCH(EE3,'Kwh Estimate'!$L:$L,0) -> 15 | EF12: =MATCH(EF3,'Kwh Estimate'!$L:$L,0) -> 15 | EG12: =MATCH(EG3,'Kwh Estimate'!$L:$L,0) -> 15 | EH12: =MATCH(EH3,'Kwh Estimate'!$L:$L,0) -> 15 | EI12: =MATCH(EI3,'Kwh Estimate'!$L:$L,0) -> 16 | EJ12: =MATCH(EJ3,'Kwh Estimate'!$L:$L,0) -> 16 | EK12: =MATCH(EK3,'Kwh Estimate'!$L:$L,0) -> 16 | EL12: =MATCH(EL3,'Kwh Estimate'!$L:$L,0) -> 16 | EM12: =MATCH(EM3,'Kwh Estimate'!$L:$L,0) -> 16 | EN12: =MATCH(EN3,'Kwh Estimate'!$L:$L,0) -> 16 | EO12: =MATCH(EO3,'Kwh Estimate'!$L:$L,0) -> 16 | EP12: =MATCH(EP3,'Kwh Estimate'!$L:$L,0) -> 16 | EQ12: =MATCH(EQ3,'Kwh Estimate'!$L:$L,0) -> 16 | ER12: =MATCH(ER3,'Kwh Estimate'!$L:$L,0) -> 16 | ES12: =MATCH(ES3,'Kwh Estimate'!$L:$L,0) -> 16 | ET12: =MATCH(ET3,'Kwh Estimate'!$L:$L,0) -> 16 | EU12: =MATCH(EU3,'Kwh Estimate'!$L:$L,0) -> 17 | EV12: =MATCH(EV3,'Kwh Estimate'!$L:$L,0) -> 17 | EW12: =MATCH(EW3,'Kwh Estimate'!$L:$L,0) -> 17 | EX12: =MATCH(EX3,'Kwh Estimate'!$L:$L,0) -> 17 | EY12: =MATCH(EY3,'Kwh Estimate'!$L:$L,0) -> 17 | EZ12: =MATCH(EZ3,'Kwh Estimate'!$L:$L,0) -> 17 | FA12: =MATCH(FA3,'Kwh Estimate'!$L:$L,0) -> 17 | FB12: =MATCH(FB3,'Kwh Estimate'!$L:$L,0) -> 17 | FC12: =MATCH(FC3,'Kwh Estimate'!$L:$L,0) -> 17 | FD12: =MATCH(FD3,'Kwh Estimate'!$L:$L,0) -> 17 | FE12: =MATCH(FE3,'Kwh Estimate'!$L:$L,0) -> 17 | FF12: =MATCH(FF3,'Kwh Estimate'!$L:$L,0) -> 17 | FG12: =MATCH(FG3,'Kwh Estimate'!$L:$L,0) -> 18 | FH12: =MATCH(FH3,'Kwh Estimate'!$L:$L,0) -> 18 | FI12: =MATCH(FI3,'Kwh Estimate'!$L:$L,0) -> 18 | FJ12: =MATCH(FJ3,'Kwh Estimate'!$L:$L,0) -> 18 | FK12: =MATCH(FK3,'Kwh Estimate'!$L:$L,0) -> 18 | FL12: =MATCH(FL3,'Kwh Estimate'!$L:$L,0) -> 18 | FM12: =MATCH(FM3,'Kwh Estimate'!$L:$L,0) -> 18 | FN12: =MATCH(FN3,'Kwh Estimate'!$L:$L,0) -> 18 | FO12: =MATCH(FO3,'Kwh Estimate'!$L:$L,0) -> 18 | FP12: =MATCH(FP3,'Kwh Estimate'!$L:$L,0) -> 18 | FQ12: =MATCH(FQ3,'Kwh Estimate'!$L:$L,0) -> 18 | FR12: =MATCH(FR3,'Kwh Estimate'!$L:$L,0) -> 18 | FS12: =MATCH(FS3,'Kwh Estimate'!$L:$L,0) -> 19 | FT12: =MATCH(FT3,'Kwh Estimate'!$L:$L,0) -> 19 | FU12: =MATCH(FU3,'Kwh Estimate'!$L:$L,0) -> 19 | FV12: =MATCH(FV3,'Kwh Estimate'!$L:$L,0) -> 19 | FW12: =MATCH(FW3,'Kwh Estimate'!$L:$L,0) -> 19 | FX12: =MATCH(FX3,'Kwh Estimate'!$L:$L,0) -> 19 | FY12: =MATCH(FY3,'Kwh Estimate'!$L:$L,0) -> 19 | FZ12: =MATCH(FZ3,'Kwh Estimate'!$L:$L,0) -> 19 | GA12: =MATCH(GA3,'Kwh Estimate'!$L:$L,0) -> 19 | GB12: =MATCH(GB3,'Kwh Estimate'!$L:$L,0) -> 19 | GC12: =MATCH(GC3,'Kwh Estimate'!$L:$L,0) -> 19 | GD12: =MATCH(GD3,'Kwh Estimate'!$L:$L,0) -> 19 | GE12: =MATCH(GE3,'Kwh Estimate'!$L:$L,0) -> 20 | GF12: =MATCH(GF3,'Kwh Estimate'!$L:$L,0) -> 20 | GG12: =MATCH(GG3,'Kwh Estimate'!$L:$L,0) -> 20 | GH12: =MATCH(GH3,'Kwh Estimate'!$L:$L,0) -> 20 | GI12: =MATCH(GI3,'Kwh Estimate'!$L:$L,0) -> 20 | GJ12: =MATCH(GJ3,'Kwh Estimate'!$L:$L,0) -> 20 | GK12: =MATCH(GK3,'Kwh Estimate'!$L:$L,0) -> 20 | GL12: =MATCH(GL3,'Kwh Estimate'!$L:$L,0) -> 20 | GM12: =MATCH(GM3,'Kwh Estimate'!$L:$L,0) -> 20 | GN12: =MATCH(GN3,'Kwh Estimate'!$L:$L,0) -> 20 | GO12: =MATCH(GO3,'Kwh Estimate'!$L:$L,0) -> 20 | GP12: =MATCH(GP3,'Kwh Estimate'!$L:$L,0) -> 20 | GQ12: =MATCH(GQ3,'Kwh Estimate'!$L:$L,0) -> 21 | GR12: =MATCH(GR3,'Kwh Estimate'!$L:$L,0) -> 21 | GS12: =MATCH(GS3,'Kwh Estimate'!$L:$L,0) -> 21 | GT12: =MATCH(GT3,'Kwh Estimate'!$L:$L,0) -> 21 | GU12: =MATCH(GU3,'Kwh Estimate'!$L:$L,0) -> 21 | GV12: =MATCH(GV3,'Kwh Estimate'!$L:$L,0) -> 21 | GW12: =MATCH(GW3,'Kwh Estimate'!$L:$L,0) -> 21 | GX12: =MATCH(GX3,'Kwh Estimate'!$L:$L,0) -> 21 | GY12: =MATCH(GY3,'Kwh Estimate'!$L:$L,0) -> 21 | GZ12: =MATCH(GZ3,'Kwh Estimate'!$L:$L,0) -> 21 | HA12: =MATCH(HA3,'Kwh Estimate'!$L:$L,0) -> 21 | HB12: =MATCH(HB3,'Kwh Estimate'!$L:$L,0) -> 21 | HC12: =MATCH(HC3,'Kwh Estimate'!$L:$L,0) -> 22 | HD12: =MATCH(HD3,'Kwh Estimate'!$L:$L,0) -> 22 | HE12: =MATCH(HE3,'Kwh Estimate'!$L:$L,0) -> 22 | HF12: =MATCH(HF3,'Kwh Estimate'!$L:$L,0) -> 22 | HG12: =MATCH(HG3,'Kwh Estimate'!$L:$L,0) -> 22 | HH12: =MATCH(HH3,'Kwh Estimate'!$L:$L,0) -> 22 | HI12: =MATCH(HI3,'Kwh Estimate'!$L:$L,0) -> 22 | HJ12: =MATCH(HJ3,'Kwh Estimate'!$L:$L,0) -> 22 | HK12: =MATCH(HK3,'Kwh Estimate'!$L:$L,0) -> 22 | HL12: =MATCH(HL3,'Kwh Estimate'!$L:$L,0) -> 22 | HM12: =MATCH(HM3,'Kwh Estimate'!$L:$L,0) -> 22 | HN12: =MATCH(HN3,'Kwh Estimate'!$L:$L,0) -> 22 | HO12: =MATCH(HO3,'Kwh Estimate'!$L:$L,0) -> 23 | HP12: =MATCH(HP3,'Kwh Estimate'!$L:$L,0) -> 23 | HQ12: =MATCH(HQ3,'Kwh Estimate'!$L:$L,0) -> 23 | HR12: =MATCH(HR3,'Kwh Estimate'!$L:$L,0) -> 23 | HS12: =MATCH(HS3,'Kwh Estimate'!$L:$L,0) -> 23 | HT12: =MATCH(HT3,'Kwh Estimate'!$L:$L,0) -> 23 | HU12: =MATCH(HU3,'Kwh Estimate'!$L:$L,0) -> 23 | HV12: =MATCH(HV3,'Kwh Estimate'!$L:$L,0) -> 23 | HW12: =MATCH(HW3,'Kwh Estimate'!$L:$L,0) -> 23 | HX12: =MATCH(HX3,'Kwh Estimate'!$L:$L,0) -> 23 | HY12: =MATCH(HY3,'Kwh Estimate'!$L:$L,0) -> 23 | HZ12: =MATCH(HZ3,'Kwh Estimate'!$L:$L,0) -> 23 | IA12: =MATCH(IA3,'Kwh Estimate'!$L:$L,0) -> 24 | IB12: =MATCH(IB3,'Kwh Estimate'!$L:$L,0) -> 24 | IC12: =MATCH(IC3,'Kwh Estimate'!$L:$L,0) -> 24 | ID12: =MATCH(ID3,'Kwh Estimate'!$L:$L,0) -> 24 | IE12: =MATCH(IE3,'Kwh Estimate'!$L:$L,0) -> 24 | IF12: =MATCH(IF3,'Kwh Estimate'!$L:$L,0) -> 24 | IG12: =MATCH(IG3,'Kwh Estimate'!$L:$L,0) -> 24 | IH12: =MATCH(IH3,'Kwh Estimate'!$L:$L,0) -> 24 | II12: =MATCH(II3,'Kwh Estimate'!$L:$L,0) -> 24 | IJ12: =MATCH(IJ3,'Kwh Estimate'!$L:$L,0) -> 24 | IK12: =MATCH(IK3,'Kwh Estimate'!$L:$L,0) -> 24 | IL12: =MATCH(IL3,'Kwh Estimate'!$L:$L,0) -> 24 | IM12: =MATCH(IM3,'Kwh Estimate'!$L:$L,0) -> 25 | IN12: =MATCH(IN3,'Kwh Estimate'!$L:$L,0) -> 25 | IO12: =MATCH(IO3,'Kwh Estimate'!$L:$L,0) -> 25 | IP12: =MATCH(IP3,'Kwh Estimate'!$L:$L,0) -> 25 | IQ12: =MATCH(IQ3,'Kwh Estimate'!$L:$L,0) -> 25 | IR12: =MATCH(IR3,'Kwh Estimate'!$L:$L,0) -> 25 | IS12: =MATCH(IS3,'Kwh Estimate'!$L:$L,0) -> 25 | IT12: =MATCH(IT3,'Kwh Estimate'!$L:$L,0) -> 25 | IU12: =MATCH(IU3,'Kwh Estimate'!$L:$L,0) -> 25 | IV12: =MATCH(IV3,'Kwh Estimate'!$L:$L,0) -> 25 | IW12: =MATCH(IW3,'Kwh Estimate'!$L:$L,0) -> 25 | IX12: =MATCH(IX3,'Kwh Estimate'!$L:$L,0) -> 25 | IY12: =MATCH(IY3,'Kwh Estimate'!$L:$L,0) -> 26 | IZ12: =MATCH(IZ3,'Kwh Estimate'!$L:$L,0) -> 26 | JA12: =MATCH(JA3,'Kwh Estimate'!$L:$L,0) -> 26 | JB12: =MATCH(JB3,'Kwh Estimate'!$L:$L,0) -> 26 | JC12: =MATCH(JC3,'Kwh Estimate'!$L:$L,0) -> 26 | JD12: =MATCH(JD3,'Kwh Estimate'!$L:$L,0) -> 26 | JE12: =MATCH(JE3,'Kwh Estimate'!$L:$L,0) -> 26 | JF12: =MATCH(JF3,'Kwh Estimate'!$L:$L,0) -> 26 | JG12: =MATCH(JG3,'Kwh Estimate'!$L:$L,0) -> 26 | JH12: =MATCH(JH3,'Kwh Estimate'!$L:$L,0) -> 26 | JI12: =MATCH(JI3,'Kwh Estimate'!$L:$L,0) -> 26 | JJ12: =MATCH(JJ3,'Kwh Estimate'!$L:$L,0) -> 26 | JK12: =MATCH(JK3,'Kwh Estimate'!$L:$L,0) -> 27 | JL12: =MATCH(JL3,'Kwh Estimate'!$L:$L,0) -> 27 | JM12: =MATCH(JM3,'Kwh Estimate'!$L:$L,0) -> 27 | JN12: =MATCH(JN3,'Kwh Estimate'!$L:$L,0) -> 27 | JO12: =MATCH(JO3,'Kwh Estimate'!$L:$L,0) -> 27 | JP12: =MATCH(JP3,'Kwh Estimate'!$L:$L,0) -> 27 | JQ12: =MATCH(JQ3,'Kwh Estimate'!$L:$L,0) -> 27 | JR12: =MATCH(JR3,'Kwh Estimate'!$L:$L,0) -> 27 | JS12: =MATCH(JS3,'Kwh Estimate'!$L:$L,0) -> 27 | JT12: =MATCH(JT3,'Kwh Estimate'!$L:$L,0) -> 27 | JU12: =MATCH(JU3,'Kwh Estimate'!$L:$L,0) -> 27 | JV12: =MATCH(JV3,'Kwh Estimate'!$L:$L,0) -> 27 | JW12: =MATCH(JW3,'Kwh Estimate'!$L:$L,0) -> 28 | JX12: =MATCH(JX3,'Kwh Estimate'!$L:$L,0) -> 28 | JY12: =MATCH(JY3,'Kwh Estimate'!$L:$L,0) -> 28 | JZ12: =MATCH(JZ3,'Kwh Estimate'!$L:$L,0) -> 28 | KA12: =MATCH(KA3,'Kwh Estimate'!$L:$L,0) -> 28 | KB12: =MATCH(KB3,'Kwh Estimate'!$L:$L,0) -> 28 | KC12: =MATCH(KC3,'Kwh Estimate'!$L:$L,0) -> 28 | KD12: =MATCH(KD3,'Kwh Estimate'!$L:$L,0) -> 28 | KE12: =MATCH(KE3,'Kwh Estimate'!$L:$L,0) -> 28 | KF12: =MATCH(KF3,'Kwh Estimate'!$L:$L,0) -> 28 | KG12: =MATCH(KG3,'Kwh Estimate'!$L:$L,0) -> 28 | KH12: =MATCH(KH3,'Kwh Estimate'!$L:$L,0) -> 28 | KI12: =MATCH(KI3,'Kwh Estimate'!$L:$L,0) -> 29 | KJ12: =MATCH(KJ3,'Kwh Estimate'!$L:$L,0) -> 29 | KK12: =MATCH(KK3,'Kwh Estimate'!$L:$L,0) -> 29 | KL12: =MATCH(KL3,'Kwh Estimate'!$L:$L,0) -> 29 | KM12: =MATCH(KM3,'Kwh Estimate'!$L:$L,0) -> 29 | KN12: =MATCH(KN3,'Kwh Estimate'!$L:$L,0) -> 29 | KO12: =MATCH(KO3,'Kwh Estimate'!$L:$L,0) -> 29 | KP12: =MATCH(KP3,'Kwh Estimate'!$L:$L,0) -> 29 | KQ12: =MATCH(KQ3,'Kwh Estimate'!$L:$L,0) -> 29 | KR12: =MATCH(KR3,'Kwh Estimate'!$L:$L,0) -> 29 | KS12: =MATCH(KS3,'Kwh Estimate'!$L:$L,0) -> 29 | KT12: =MATCH(KT3,'Kwh Estimate'!$L:$L,0) -> 29 | KU12: =MATCH(KU3,'Kwh Estimate'!$L:$L,0) -> 30 | KV12: =MATCH(KV3,'Kwh Estimate'!$L:$L,0) -> 30 | KW12: =MATCH(KW3,'Kwh Estimate'!$L:$L,0) -> 30 | KX12: =MATCH(KX3,'Kwh Estimate'!$L:$L,0) -> 30 | KY12: =MATCH(KY3,'Kwh Estimate'!$L:$L,0) -> 30 | KZ12: =MATCH(KZ3,'Kwh Estimate'!$L:$L,0) -> 30 | LA12: =MATCH(LA3,'Kwh Estimate'!$L:$L,0) -> 30 | LB12: =MATCH(LB3,'Kwh Estimate'!$L:$L,0) -> 30 | LC12: =MATCH(LC3,'Kwh Estimate'!$L:$L,0) -> 30 | LD12: =MATCH(LD3,'Kwh Estimate'!$L:$L,0) -> 30 | LE12: =MATCH(LE3,'Kwh Estimate'!$L:$L,0) -> 30 | LF12: =MATCH(LF3,'Kwh Estimate'!$L:$L,0) -> 30 | LG12: =MATCH(LG3,'Kwh Estimate'!$L:$L,0) -> 31 | LH12: =MATCH(LH3,'Kwh Estimate'!$L:$L,0) -> 31 | LI12: =MATCH(LI3,'Kwh Estimate'!$L:$L,0) -> 31 | LJ12: =MATCH(LJ3,'Kwh Estimate'!$L:$L,0) -> 31 | LK12: =MATCH(LK3,'Kwh Estimate'!$L:$L,0) -> 31 | LL12: =MATCH(LL3,'Kwh Estimate'!$L:$L,0) -> 31 | LM12: =MATCH(LM3,'Kwh Estimate'!$L:$L,0) -> 31 | LN12: =MATCH(LN3,'Kwh Estimate'!$L:$L,0) -> 31 | LO12: =MATCH(LO3,'Kwh Estimate'!$L:$L,0) -> 31 | LP12: =MATCH(LP3,'Kwh Estimate'!$L:$L,0) -> 31 | LQ12: =MATCH(LQ3,'Kwh Estimate'!$L:$L,0) -> 31 | LR12: =MATCH(LR3,'Kwh Estimate'!$L:$L,0) -> 31 | LS12: =MATCH(LS3,'Kwh Estimate'!$L:$L,0) -> 32 | LT12: =MATCH(LT3,'Kwh Estimate'!$L:$L,0) -> 32 | LU12: =MATCH(LU3,'Kwh Estimate'!$L:$L,0) -> 32 | LV12: =MATCH(LV3,'Kwh Estimate'!$L:$L,0) -> 32 | LW12: =MATCH(LW3,'Kwh Estimate'!$L:$L,0) -> 32 | LX12: =MATCH(LX3,'Kwh Estimate'!$L:$L,0) -> 32 | LY12: =MATCH(LY3,'Kwh Estimate'!$L:$L,0) -> 32 | LZ12: =MATCH(LZ3,'Kwh Estimate'!$L:$L,0) -> 32 | MA12: =MATCH(MA3,'Kwh Estimate'!$L:$L,0) -> 32 | MB12: =MATCH(MB3,'Kwh Estimate'!$L:$L,0) -> 32 | MC12: =MATCH(MC3,'Kwh Estimate'!$L:$L,0) -> 32 | MD12: =MATCH(MD3,'Kwh Estimate'!$L:$L,0) -> 32 | ME12: =MATCH(ME3,'Kwh Estimate'!$L:$L,0) -> 33 | MF12: =MATCH(MF3,'Kwh Estimate'!$L:$L,0) -> 33 | MG12: =MATCH(MG3,'Kwh Estimate'!$L:$L,0) -> 33 | MH12: =MATCH(MH3,'Kwh Estimate'!$L:$L,0) -> 33 | MI12: =MATCH(MI3,'Kwh Estimate'!$L:$L,0) -> 33 | MJ12: =MATCH(MJ3,'Kwh Estimate'!$L:$L,0) -> 33 | MK12: =MATCH(MK3,'Kwh Estimate'!$L:$L,0) -> 33 | ML12: =MATCH(ML3,'Kwh Estimate'!$L:$L,0) -> 33 | MM12: =MATCH(MM3,'Kwh Estimate'!$L:$L,0) -> 33 | MN12: =MATCH(MN3,'Kwh Estimate'!$L:$L,0) -> 33 | MO12: =MATCH(MO3,'Kwh Estimate'!$L:$L,0) -> 33 | MP12: =MATCH(MP3,'Kwh Estimate'!$L:$L,0) -> 33 | MQ12: =MATCH(MQ3,'Kwh Estimate'!$L:$L,0) -> 34 | MR12: =MATCH(MR3,'Kwh Estimate'!$L:$L,0) -> 34 | MS12: =MATCH(MS3,'Kwh Estimate'!$L:$L,0) -> 34 | MT12: =MATCH(MT3,'Kwh Estimate'!$L:$L,0) -> 34 | MU12: =MATCH(MU3,'Kwh Estimate'!$L:$L,0) -> 34 | MV12: =MATCH(MV3,'Kwh Estimate'!$L:$L,0) -> 34 | MW12: =MATCH(MW3,'Kwh Estimate'!$L:$L,0) -> 34 | MX12: =MATCH(MX3,'Kwh Estimate'!$L:$L,0) -> 34 | MY12: =MATCH(MY3,'Kwh Estimate'!$L:$L,0) -> 34 | MZ12: =MATCH(MZ3,'Kwh Estimate'!$L:$L,0) -> 34 | NA12: =MATCH(NA3,'Kwh Estimate'!$L:$L,0) -> 34 | NB12: =MATCH(NB3,'Kwh Estimate'!$L:$L,0) -> 34 | NC12: =MATCH(NC3,'Kwh Estimate'!$L:$L,0) -> 35 | ND12: =MATCH(ND3,'Kwh Estimate'!$L:$L,0) -> 35 | NE12: =MATCH(NE3,'Kwh Estimate'!$L:$L,0) -> 35 | NF12: =MATCH(NF3,'Kwh Estimate'!$L:$L,0) -> 35 | NG12: =MATCH(NG3,'Kwh Estimate'!$L:$L,0) -> 35 | NH12: =MATCH(NH3,'Kwh Estimate'!$L:$L,0) -> 35 | NI12: =MATCH(NI3,'Kwh Estimate'!$L:$L,0) -> 35 | NJ12: =MATCH(NJ3,'Kwh Estimate'!$L:$L,0) -> 35 | NK12: =MATCH(NK3,'Kwh Estimate'!$L:$L,0) -> 35 | NL12: =MATCH(NL3,'Kwh Estimate'!$L:$L,0) -> 35 | NM12: =MATCH(NM3,'Kwh Estimate'!$L:$L,0) -> 35 | NN12: =MATCH(NN3,'Kwh Estimate'!$L:$L,0) -> 35
C13: ='Kwh Estimate'!W12 -> P50, 1 year | D13: ='Kwh Estimate'!M1 -> 1 | G13: =INDEX('Kwh Estimate'!$O:$T,'Monthly Operations'!G12,'Monthly Operations'!$D$13)/12*G4 -> 0 | H13: =INDEX('Kwh Estimate'!$O:$T,'Monthly Operations'!H12,'Monthly Operations'!$D$13)/12*H4 -> 0 | I13: =INDEX('Kwh Estimate'!$O:$T,'Monthly Operations'!I12,'Monthly Operations'!$D$13)/12*I4 -> 0 | J13: =INDEX('Kwh Estimate'!$O:$T,'Monthly Operations'!J12,'Monthly Operations'!$D$13)/12*J4 -> 0 | K13: =INDEX('Kwh Estimate'!$O:$T,'Monthly Operations'!K12,'Monthly Operations'!$D$13)/12*K4 -> 0 | L13: =INDEX('Kwh Estimate'!$O:$T,'Monthly Operations'!L12,'Monthly Operations'!$D$13)/12*L4 -> 871.6849427 | M13: =INDEX('Kwh Estimate'!$O:$T,'Monthly Operations'!M12,'Monthly Operations'!$D$13)/12*M4 -> 871.6849427 | N13: =INDEX('Kwh Estimate'!$O:$T,'Monthly Operations'!N12,'Monthly Operations'!$D$13)/12*N4 -> 871.6849427 | O13: =INDEX('Kwh Estimate'!$O:$T,'Monthly Operations'!O12,'Monthly Operations'!$D$13)/12*O4 -> 871.6849427 | P13: =INDEX('Kwh Estimate'!$O:$T,'Monthly Operations'!P12,'Monthly Operations'!$D$13)/12*P4 -> 871.6849427 | Q13: =INDEX('Kwh Estimate'!$O:$T,'Monthly Operations'!Q12,'Monthly Operations'!$D$13)/12*Q4 -> 871.6849427 | R13: =INDEX('Kwh Estimate'!$O:$T,'Monthly Operations'!R12,'Monthly Operations'!$D$13)/12*R4 -> 871.6849427 | S13: =INDEX('Kwh Estimate'!$O:$T,'Monthly Operations'!S12,'Monthly Operations'!$D$13)/12*S4 -> 867.326518 | T13: =INDEX('Kwh Estimate'!$O:$T,'Monthly Operations'!T12,'Monthly Operations'!$D$13)/12*T4 -> 867.326518 | U13: =INDEX('Kwh Estimate'!$O:$T,'Monthly Operations'!U12,'Monthly Operations'!$D$13)/12*U4 -> 867.326518 | V13: =INDEX('Kwh Estimate'!$O:$T,'Monthly Operations'!V12,'Monthly Operations'!$D$13)/12*V4 -> 867.326518 | W13: =INDEX('Kwh Estimate'!$O:$T,'Monthly Operations'!W12,'Monthly Operations'!$D$13)/12*W4 -> 867.326518 | X13: =INDEX('Kwh Estimate'!$O:$T,'Monthly Operations'!X12,'Monthly Operations'!$D$13)/12*X4 -> 867.326518 | Y13: =INDEX('Kwh Estimate'!$O:$T,'Monthly Operations'!Y12,'Monthly Operations'!$D$13)/12*Y4 -> 867.326518 | Z13: =INDEX('Kwh Estimate'!$O:$T,'Monthly Operations'!Z12,'Monthly Operations'!$D$13)/12*Z4 -> 867.326518 | AA13: =INDEX('Kwh Estimate'!$O:$T,'Monthly Operations'!AA12,'Monthly Operations'!$D$13)/12*AA4 -> 867.326518 | AB13: =INDEX('Kwh Estimate'!$O:$T,'Monthly Operations'!AB12,'Monthly Operations'!$D$13)/12*AB4 -> 867.326518 | AC13: =INDEX('Kwh Estimate'!$O:$T,'Monthly Operations'!AC12,'Monthly Operations'!$D$13)/12*AC4 -> 867.326518 | AD13: =INDEX('Kwh Estimate'!$O:$T,'Monthly Operations'!AD12,'Monthly Operations'!$D$13)/12*AD4 -> 867.326518 | AE13: =INDEX('Kwh Estimate'!$O:$T,'Monthly Operations'!AE12,'Monthly Operations'!$D$13)/12*AE4 -> 862.9680933 | AF13: =INDEX('Kwh Estimate'!$O:$T,'Monthly Operations'!AF12,'Monthly Operations'!$D$13)/12*AF4 -> 862.9680933 | AG13: =INDEX('Kwh Estimate'!$O:$T,'Monthly Operations'!AG12,'Monthly Operations'!$D$13)/12*AG4 -> 862.9680933 | AH13: =INDEX('Kwh Estimate'!$O:$T,'Monthly Operations'!AH12,'Monthly Operations'!$D$13)/12*AH4 -> 862.9680933 | AI13: =INDEX('Kwh Estimate'!$O:$T,'Monthly Operations'!AI12,'Monthly Operations'!$D$13)/12*AI4 -> 862.9680933 | AJ13: =INDEX('Kwh Estimate'!$O:$T,'Monthly Operations'!AJ12,'Monthly Operations'!$D$13)/12*AJ4 -> 862.9680933 | AK13: =INDEX('Kwh Estimate'!$O:$T,'Monthly Operations'!AK12,'Monthly Operations'!$D$13)/12*AK4 -> 862.9680933 | AL13: =INDEX('Kwh Estimate'!$O:$T,'Monthly Operations'!AL12,'Monthly Operations'!$D$13)/12*AL4 -> 862.9680933 | AM13: =INDEX('Kwh Estimate'!$O:$T,'Monthly Operations'!AM12,'Monthly Operations'!$D$13)/12*AM4 -> 862.9680933 | AN13: =INDEX('Kwh Estimate'!$O:$T,'Monthly Operations'!AN12,'Monthly Operations'!$D$13)/12*AN4 -> 862.9680933 | AO13: =INDEX('Kwh Estimate'!$O:$T,'Monthly Operations'!AO12,'Monthly Operations'!$D$13)/12*AO4 -> 862.9680933 | AP13: =INDEX('Kwh Estimate'!$O:$T,'Monthly Operations'!AP12,'Monthly Operations'!$D$13)/12*AP4 -> 862.9680933 | AQ13: =INDEX('Kwh Estimate'!$O:$T,'Monthly Operations'!AQ12,'Monthly Operations'!$D$13)/12*AQ4 -> 858.6096686 | AR13: =INDEX('Kwh Estimate'!$O:$T,'Monthly Operations'!AR12,'Monthly Operations'!$D$13)/12*AR4 -> 858.6096686 | AS13: =INDEX('Kwh Estimate'!$O:$T,'Monthly Operations'!AS12,'Monthly Operations'!$D$13)/12*AS4 -> 858.6096686 | AT13: =INDEX('Kwh Estimate'!$O:$T,'Monthly Operations'!AT12,'Monthly Operations'!$D$13)/12*AT4 -> 858.6096686 | AU13: =INDEX('Kwh Estimate'!$O:$T,'Monthly Operations'!AU12,'Monthly Operations'!$D$13)/12*AU4 -> 858.6096686 | AV13: =INDEX('Kwh Estimate'!$O:$T,'Monthly Operations'!AV12,'Monthly Operations'!$D$13)/12*AV4 -> 858.6096686 | AW13: =INDEX('Kwh Estimate'!$O:$T,'Monthly Operations'!AW12,'Monthly Operations'!$D$13)/12*AW4 -> 858.6096686 | AX13: =INDEX('Kwh Estimate'!$O:$T,'Monthly Operations'!AX12,'Monthly Operations'!$D$13)/12*AX4 -> 858.6096686 | AY13: =INDEX('Kwh Estimate'!$O:$T,'Monthly Operations'!AY12,'Monthly Operations'!$D$13)/12*AY4 -> 858.6096686 | AZ13: =INDEX('Kwh Estimate'!$O:$T,'Monthly Operations'!AZ12,'Monthly Operations'!$D$13)/12*AZ4 -> 858.6096686 | BA13: =INDEX('Kwh Estimate'!$O:$T,'Monthly Operations'!BA12,'Monthly Operations'!$D$13)/12*BA4 -> 858.6096686 | BB13: =INDEX('Kwh Estimate'!$O:$T,'Monthly Operations'!BB12,'Monthly Operations'!$D$13)/12*BB4 -> 858.6096686 | BC13: =INDEX('Kwh Estimate'!$O:$T,'Monthly Operations'!BC12,'Monthly Operations'!$D$13)/12*BC4 -> 854.2512439 | BD13: =INDEX('Kwh Estimate'!$O:$T,'Monthly Operations'!BD12,'Monthly Operations'!$D$13)/12*BD4 -> 854.2512439 | BE13: =INDEX('Kwh Estimate'!$O:$T,'Monthly Operations'!BE12,'Monthly Operations'!$D$13)/12*BE4 -> 854.2512439 | BF13: =INDEX('Kwh Estimate'!$O:$T,'Monthly Operations'!BF12,'Monthly Operations'!$D$13)/12*BF4 -> 854.2512439 | BG13: =INDEX('Kwh Estimate'!$O:$T,'Monthly Operations'!BG12,'Monthly Operations'!$D$13)/12*BG4 -> 854.2512439 | BH13: =INDEX('Kwh Estimate'!$O:$T,'Monthly Operations'!BH12,'Monthly Operations'!$D$13)/12*BH4 -> 854.2512439 | BI13: =INDEX('Kwh Estimate'!$O:$T,'Monthly Operations'!BI12,'Monthly Operations'!$D$13)/12*BI4 -> 854.2512439 | BJ13: =INDEX('Kwh Estimate'!$O:$T,'Monthly Operations'!BJ12,'Monthly Operations'!$D$13)/12*BJ4 -> 854.2512439 | BK13: =INDEX('Kwh Estimate'!$O:$T,'Monthly Operations'!BK12,'Monthly Operations'!$D$13)/12*BK4 -> 854.2512439 | BL13: =INDEX('Kwh Estimate'!$O:$T,'Monthly Operations'!BL12,'Monthly Operations'!$D$13)/12*BL4 -> 854.2512439 | BM13: =INDEX('Kwh Estimate'!$O:$T,'Monthly Operations'!BM12,'Monthly Operations'!$D$13)/12*BM4 -> 854.2512439 | BN13: =INDEX('Kwh Estimate'!$O:$T,'Monthly Operations'!BN12,'Monthly Operations'!$D$13)/12*BN4 -> 854.2512439 | BO13: =INDEX('Kwh Estimate'!$O:$T,'Monthly Operations'!BO12,'Monthly Operations'!$D$13)/12*BO4 -> 849.8928192 | BP13: =INDEX('Kwh Estimate'!$O:$T,'Monthly Operations'!BP12,'Monthly Operations'!$D$13)/12*BP4 -> 849.8928192 | BQ13: =INDEX('Kwh Estimate'!$O:$T,'Monthly Operations'!BQ12,'Monthly Operations'!$D$13)/12*BQ4 -> 849.8928192 | BR13: =INDEX('Kwh Estimate'!$O:$T,'Monthly Operations'!BR12,'Monthly Operations'!$D$13)/12*BR4 -> 849.8928192 | BS13: =INDEX('Kwh Estimate'!$O:$T,'Monthly Operations'!BS12,'Monthly Operations'!$D$13)/12*BS4 -> 849.8928192 | BT13: =INDEX('Kwh Estimate'!$O:$T,'Monthly Operations'!BT12,'Monthly Operations'!$D$13)/12*BT4 -> 849.8928192 | BU13: =INDEX('Kwh Estimate'!$O:$T,'Monthly Operations'!BU12,'Monthly Operations'!$D$13)/12*BU4 -> 849.8928192 | BV13: =INDEX('Kwh Estimate'!$O:$T,'Monthly Operations'!BV12,'Monthly Operations'!$D$13)/12*BV4 -> 849.8928192 | BW13: =INDEX('Kwh Estimate'!$O:$T,'Monthly Operations'!BW12,'Monthly Operations'!$D$13)/12*BW4 -> 849.8928192 | BX13: =INDEX('Kwh Estimate'!$O:$T,'Monthly Operations'!BX12,'Monthly Operations'!$D$13)/12*BX4 -> 849.8928192 | BY13: =INDEX('Kwh Estimate'!$O:$T,'Monthly Operations'!BY12,'Monthly Operations'!$D$13)/12*BY4 -> 849.8928192 | BZ13: =INDEX('Kwh Estimate'!$O:$T,'Monthly Operations'!BZ12,'Monthly Operations'!$D$13)/12*BZ4 -> 849.8928192 | CA13: =INDEX('Kwh Estimate'!$O:$T,'Monthly Operations'!CA12,'Monthly Operations'!$D$13)/12*CA4 -> 845.5343945 | CB13: =INDEX('Kwh Estimate'!$O:$T,'Monthly Operations'!CB12,'Monthly Operations'!$D$13)/12*CB4 -> 845.5343945 | CC13: =INDEX('Kwh Estimate'!$O:$T,'Monthly Operations'!CC12,'Monthly Operations'!$D$13)/12*CC4 -> 845.5343945 | CD13: =INDEX('Kwh Estimate'!$O:$T,'Monthly Operations'!CD12,'Monthly Operations'!$D$13)/12*CD4 -> 845.5343945 | CE13: =INDEX('Kwh Estimate'!$O:$T,'Monthly Operations'!CE12,'Monthly Operations'!$D$13)/12*CE4 -> 845.5343945 | CF13: =INDEX('Kwh Estimate'!$O:$T,'Monthly Operations'!CF12,'Monthly Operations'!$D$13)/12*CF4 -> 845.5343945 | CG13: =INDEX('Kwh Estimate'!$O:$T,'Monthly Operations'!CG12,'Monthly Operations'!$D$13)/12*CG4 -> 845.5343945 | CH13: =INDEX('Kwh Estimate'!$O:$T,'Monthly Operations'!CH12,'Monthly Operations'!$D$13)/12*CH4 -> 845.5343945 | CI13: =INDEX('Kwh Estimate'!$O:$T,'Monthly Operations'!CI12,'Monthly Operations'!$D$13)/12*CI4 -> 845.5343945 | CJ13: =INDEX('Kwh Estimate'!$O:$T,'Monthly Operations'!CJ12,'Monthly Operations'!$D$13)/12*CJ4 -> 845.5343945 | CK13: =INDEX('Kwh Estimate'!$O:$T,'Monthly Operations'!CK12,'Monthly Operations'!$D$13)/12*CK4 -> 845.5343945 | CL13: =INDEX('Kwh Estimate'!$O:$T,'Monthly Operations'!CL12,'Monthly Operations'!$D$13)/12*CL4 -> 845.5343945 | CM13: =INDEX('Kwh Estimate'!$O:$T,'Monthly Operations'!CM12,'Monthly Operations'!$D$13)/12*CM4 -> 841.1759697 | CN13: =INDEX('Kwh Estimate'!$O:$T,'Monthly Operations'!CN12,'Monthly Operations'!$D$13)/12*CN4 -> 841.1759697 | CO13: =INDEX('Kwh Estimate'!$O:$T,'Monthly Operations'!CO12,'Monthly Operations'!$D$13)/12*CO4 -> 841.1759697 | CP13: =INDEX('Kwh Estimate'!$O:$T,'Monthly Operations'!CP12,'Monthly Operations'!$D$13)/12*CP4 -> 841.1759697 | CQ13: =INDEX('Kwh Estimate'!$O:$T,'Monthly Operations'!CQ12,'Monthly Operations'!$D$13)/12*CQ4 -> 841.1759697 | CR13: =INDEX('Kwh Estimate'!$O:$T,'Monthly Operations'!CR12,'Monthly Operations'!$D$13)/12*CR4 -> 841.1759697 | CS13: =INDEX('Kwh Estimate'!$O:$T,'Monthly Operations'!CS12,'Monthly Operations'!$D$13)/12*CS4 -> 841.1759697 | CT13: =INDEX('Kwh Estimate'!$O:$T,'Monthly Operations'!CT12,'Monthly Operations'!$D$13)/12*CT4 -> 841.1759697 | CU13: =INDEX('Kwh Estimate'!$O:$T,'Monthly Operations'!CU12,'Monthly Operations'!$D$13)/12*CU4 -> 841.1759697 | CV13: =INDEX('Kwh Estimate'!$O:$T,'Monthly Operations'!CV12,'Monthly Operations'!$D$13)/12*CV4 -> 841.1759697 | CW13: =INDEX('Kwh Estimate'!$O:$T,'Monthly Operations'!CW12,'Monthly Operations'!$D$13)/12*CW4 -> 841.1759697 | CX13: =INDEX('Kwh Estimate'!$O:$T,'Monthly Operations'!CX12,'Monthly Operations'!$D$13)/12*CX4 -> 841.1759697 | CY13: =INDEX('Kwh Estimate'!$O:$T,'Monthly Operations'!CY12,'Monthly Operations'!$D$13)/12*CY4 -> 836.817545 | CZ13: =INDEX('Kwh Estimate'!$O:$T,'Monthly Operations'!CZ12,'Monthly Operations'!$D$13)/12*CZ4 -> 836.817545 | DA13: =INDEX('Kwh Estimate'!$O:$T,'Monthly Operations'!DA12,'Monthly Operations'!$D$13)/12*DA4 -> 836.817545 | DB13: =INDEX('Kwh Estimate'!$O:$T,'Monthly Operations'!DB12,'Monthly Operations'!$D$13)/12*DB4 -> 836.817545 | DC13: =INDEX('Kwh Estimate'!$O:$T,'Monthly Operations'!DC12,'Monthly Operations'!$D$13)/12*DC4 -> 836.817545 | DD13: =INDEX('Kwh Estimate'!$O:$T,'Monthly Operations'!DD12,'Monthly Operations'!$D$13)/12*DD4 -> 836.817545 | DE13: =INDEX('Kwh Estimate'!$O:$T,'Monthly Operations'!DE12,'Monthly Operations'!$D$13)/12*DE4 -> 836.817545 | DF13: =INDEX('Kwh Estimate'!$O:$T,'Monthly Operations'!DF12,'Monthly Operations'!$D$13)/12*DF4 -> 836.817545 | DG13: =INDEX('Kwh Estimate'!$O:$T,'Monthly Operations'!DG12,'Monthly Operations'!$D$13)/12*DG4 -> 836.817545 | DH13: =INDEX('Kwh Estimate'!$O:$T,'Monthly Operations'!DH12,'Monthly Operations'!$D$13)/12*DH4 -> 836.817545 | DI13: =INDEX('Kwh Estimate'!$O:$T,'Monthly Operations'!DI12,'Monthly Operations'!$D$13)/12*DI4 -> 836.817545 | DJ13: =INDEX('Kwh Estimate'!$O:$T,'Monthly Operations'!DJ12,'Monthly Operations'!$D$13)/12*DJ4 -> 836.817545 | DK13: =INDEX('Kwh Estimate'!$O:$T,'Monthly Operations'!DK12,'Monthly Operations'!$D$13)/12*DK4 -> 832.4591203 | DL13: =INDEX('Kwh Estimate'!$O:$T,'Monthly Operations'!DL12,'Monthly Operations'!$D$13)/12*DL4 -> 832.4591203 | DM13: =INDEX('Kwh Estimate'!$O:$T,'Monthly Operations'!DM12,'Monthly Operations'!$D$13)/12*DM4 -> 832.4591203 | DN13: =INDEX('Kwh Estimate'!$O:$T,'Monthly Operations'!DN12,'Monthly Operations'!$D$13)/12*DN4 -> 832.4591203 | DO13: =INDEX('Kwh Estimate'!$O:$T,'Monthly Operations'!DO12,'Monthly Operations'!$D$13)/12*DO4 -> 832.4591203 | DP13: =INDEX('Kwh Estimate'!$O:$T,'Monthly Operations'!DP12,'Monthly Operations'!$D$13)/12*DP4 -> 832.4591203 | DQ13: =INDEX('Kwh Estimate'!$O:$T,'Monthly Operations'!DQ12,'Monthly Operations'!$D$13)/12*DQ4 -> 832.4591203 | DR13: =INDEX('Kwh Estimate'!$O:$T,'Monthly Operations'!DR12,'Monthly Operations'!$D$13)/12*DR4 -> 832.4591203 | DS13: =INDEX('Kwh Estimate'!$O:$T,'Monthly Operations'!DS12,'Monthly Operations'!$D$13)/12*DS4 -> 832.4591203 | DT13: =INDEX('Kwh Estimate'!$O:$T,'Monthly Operations'!DT12,'Monthly Operations'!$D$13)/12*DT4 -> 832.4591203 | DU13: =INDEX('Kwh Estimate'!$O:$T,'Monthly Operations'!DU12,'Monthly Operations'!$D$13)/12*DU4 -> 832.4591203 | DV13: =INDEX('Kwh Estimate'!$O:$T,'Monthly Operations'!DV12,'Monthly Operations'!$D$13)/12*DV4 -> 832.4591203 | DW13: =INDEX('Kwh Estimate'!$O:$T,'Monthly Operations'!DW12,'Monthly Operations'!$D$13)/12*DW4 -> 828.1006956 | DX13: =INDEX('Kwh Estimate'!$O:$T,'Monthly Operations'!DX12,'Monthly Operations'!$D$13)/12*DX4 -> 828.1006956 | DY13: =INDEX('Kwh Estimate'!$O:$T,'Monthly Operations'!DY12,'Monthly Operations'!$D$13)/12*DY4 -> 828.1006956 | DZ13: =INDEX('Kwh Estimate'!$O:$T,'Monthly Operations'!DZ12,'Monthly Operations'!$D$13)/12*DZ4 -> 828.1006956 | EA13: =INDEX('Kwh Estimate'!$O:$T,'Monthly Operations'!EA12,'Monthly Operations'!$D$13)/12*EA4 -> 828.1006956 | EB13: =INDEX('Kwh Estimate'!$O:$T,'Monthly Operations'!EB12,'Monthly Operations'!$D$13)/12*EB4 -> 828.1006956 | EC13: =INDEX('Kwh Estimate'!$O:$T,'Monthly Operations'!EC12,'Monthly Operations'!$D$13)/12*EC4 -> 828.1006956 | ED13: =INDEX('Kwh Estimate'!$O:$T,'Monthly Operations'!ED12,'Monthly Operations'!$D$13)/12*ED4 -> 828.1006956 | EE13: =INDEX('Kwh Estimate'!$O:$T,'Monthly Operations'!EE12,'Monthly Operations'!$D$13)/12*EE4 -> 828.1006956 | EF13: =INDEX('Kwh Estimate'!$O:$T,'Monthly Operations'!EF12,'Monthly Operations'!$D$13)/12*EF4 -> 828.1006956 | EG13: =INDEX('Kwh Estimate'!$O:$T,'Monthly Operations'!EG12,'Monthly Operations'!$D$13)/12*EG4 -> 828.1006956 | EH13: =INDEX('Kwh Estimate'!$O:$T,'Monthly Operations'!EH12,'Monthly Operations'!$D$13)/12*EH4 -> 828.1006956 | EI13: =INDEX('Kwh Estimate'!$O:$T,'Monthly Operations'!EI12,'Monthly Operations'!$D$13)/12*EI4 -> 823.7422709 | EJ13: =INDEX('Kwh Estimate'!$O:$T,'Monthly Operations'!EJ12,'Monthly Operations'!$D$13)/12*EJ4 -> 823.7422709 | EK13: =INDEX('Kwh Estimate'!$O:$T,'Monthly Operations'!EK12,'Monthly Operations'!$D$13)/12*EK4 -> 823.7422709 | EL13: =INDEX('Kwh Estimate'!$O:$T,'Monthly Operations'!EL12,'Monthly Operations'!$D$13)/12*EL4 -> 823.7422709 | EM13: =INDEX('Kwh Estimate'!$O:$T,'Monthly Operations'!EM12,'Monthly Operations'!$D$13)/12*EM4 -> 823.7422709 | EN13: =INDEX('Kwh Estimate'!$O:$T,'Monthly Operations'!EN12,'Monthly Operations'!$D$13)/12*EN4 -> 823.7422709 | EO13: =INDEX('Kwh Estimate'!$O:$T,'Monthly Operations'!EO12,'Monthly Operations'!$D$13)/12*EO4 -> 823.7422709 | EP13: =INDEX('Kwh Estimate'!$O:$T,'Monthly Operations'!EP12,'Monthly Operations'!$D$13)/12*EP4 -> 823.7422709 | EQ13: =INDEX('Kwh Estimate'!$O:$T,'Monthly Operations'!EQ12,'Monthly Operations'!$D$13)/12*EQ4 -> 823.7422709 | ER13: =INDEX('Kwh Estimate'!$O:$T,'Monthly Operations'!ER12,'Monthly Operations'!$D$13)/12*ER4 -> 823.7422709 | ES13: =INDEX('Kwh Estimate'!$O:$T,'Monthly Operations'!ES12,'Monthly Operations'!$D$13)/12*ES4 -> 823.7422709 | ET13: =INDEX('Kwh Estimate'!$O:$T,'Monthly Operations'!ET12,'Monthly Operations'!$D$13)/12*ET4 -> 823.7422709 | EU13: =INDEX('Kwh Estimate'!$O:$T,'Monthly Operations'!EU12,'Monthly Operations'!$D$13)/12*EU4 -> 819.3838462 | EV13: =INDEX('Kwh Estimate'!$O:$T,'Monthly Operations'!EV12,'Monthly Operations'!$D$13)/12*EV4 -> 819.3838462 | EW13: =INDEX('Kwh Estimate'!$O:$T,'Monthly Operations'!EW12,'Monthly Operations'!$D$13)/12*EW4 -> 819.3838462 | EX13: =INDEX('Kwh Estimate'!$O:$T,'Monthly Operations'!EX12,'Monthly Operations'!$D$13)/12*EX4 -> 819.3838462 | EY13: =INDEX('Kwh Estimate'!$O:$T,'Monthly Operations'!EY12,'Monthly Operations'!$D$13)/12*EY4 -> 819.3838462 | EZ13: =INDEX('Kwh Estimate'!$O:$T,'Monthly Operations'!EZ12,'Monthly Operations'!$D$13)/12*EZ4 -> 819.3838462 | FA13: =INDEX('Kwh Estimate'!$O:$T,'Monthly Operations'!FA12,'Monthly Operations'!$D$13)/12*FA4 -> 819.3838462 | FB13: =INDEX('Kwh Estimate'!$O:$T,'Monthly Operations'!FB12,'Monthly Operations'!$D$13)/12*FB4 -> 819.3838462 | FC13: =INDEX('Kwh Estimate'!$O:$T,'Monthly Operations'!FC12,'Monthly Operations'!$D$13)/12*FC4 -> 819.3838462 | FD13: =INDEX('Kwh Estimate'!$O:$T,'Monthly Operations'!FD12,'Monthly Operations'!$D$13)/12*FD4 -> 819.3838462 | FE13: =INDEX('Kwh Estimate'!$O:$T,'Monthly Operations'!FE12,'Monthly Operations'!$D$13)/12*FE4 -> 819.3838462 | FF13: =INDEX('Kwh Estimate'!$O:$T,'Monthly Operations'!FF12,'Monthly Operations'!$D$13)/12*FF4 -> 819.3838462 | FG13: =INDEX('Kwh Estimate'!$O:$T,'Monthly Operations'!FG12,'Monthly Operations'!$D$13)/12*FG4 -> 815.0254215 | FH13: =INDEX('Kwh Estimate'!$O:$T,'Monthly Operations'!FH12,'Monthly Operations'!$D$13)/12*FH4 -> 815.0254215 | FI13: =INDEX('Kwh Estimate'!$O:$T,'Monthly Operations'!FI12,'Monthly Operations'!$D$13)/12*FI4 -> 815.0254215 | FJ13: =INDEX('Kwh Estimate'!$O:$T,'Monthly Operations'!FJ12,'Monthly Operations'!$D$13)/12*FJ4 -> 815.0254215 | FK13: =INDEX('Kwh Estimate'!$O:$T,'Monthly Operations'!FK12,'Monthly Operations'!$D$13)/12*FK4 -> 815.0254215 | FL13: =INDEX('Kwh Estimate'!$O:$T,'Monthly Operations'!FL12,'Monthly Operations'!$D$13)/12*FL4 -> 815.0254215 | FM13: =INDEX('Kwh Estimate'!$O:$T,'Monthly Operations'!FM12,'Monthly Operations'!$D$13)/12*FM4 -> 815.0254215 | FN13: =INDEX('Kwh Estimate'!$O:$T,'Monthly Operations'!FN12,'Monthly Operations'!$D$13)/12*FN4 -> 815.0254215 | FO13: =INDEX('Kwh Estimate'!$O:$T,'Monthly Operations'!FO12,'Monthly Operations'!$D$13)/12*FO4 -> 815.0254215 | FP13: =INDEX('Kwh Estimate'!$O:$T,'Monthly Operations'!FP12,'Monthly Operations'!$D$13)/12*FP4 -> 815.0254215 | FQ13: =INDEX('Kwh Estimate'!$O:$T,'Monthly Operations'!FQ12,'Monthly Operations'!$D$13)/12*FQ4 -> 815.0254215 | FR13: =INDEX('Kwh Estimate'!$O:$T,'Monthly Operations'!FR12,'Monthly Operations'!$D$13)/12*FR4 -> 815.0254215 | FS13: =INDEX('Kwh Estimate'!$O:$T,'Monthly Operations'!FS12,'Monthly Operations'!$D$13)/12*FS4 -> 810.6669967 | FT13: =INDEX('Kwh Estimate'!$O:$T,'Monthly Operations'!FT12,'Monthly Operations'!$D$13)/12*FT4 -> 810.6669967 | FU13: =INDEX('Kwh Estimate'!$O:$T,'Monthly Operations'!FU12,'Monthly Operations'!$D$13)/12*FU4 -> 810.6669967 | FV13: =INDEX('Kwh Estimate'!$O:$T,'Monthly Operations'!FV12,'Monthly Operations'!$D$13)/12*FV4 -> 810.6669967 | FW13: =INDEX('Kwh Estimate'!$O:$T,'Monthly Operations'!FW12,'Monthly Operations'!$D$13)/12*FW4 -> 810.6669967 | FX13: =INDEX('Kwh Estimate'!$O:$T,'Monthly Operations'!FX12,'Monthly Operations'!$D$13)/12*FX4 -> 810.6669967 | FY13: =INDEX('Kwh Estimate'!$O:$T,'Monthly Operations'!FY12,'Monthly Operations'!$D$13)/12*FY4 -> 810.6669967 | FZ13: =INDEX('Kwh Estimate'!$O:$T,'Monthly Operations'!FZ12,'Monthly Operations'!$D$13)/12*FZ4 -> 810.6669967 | GA13: =INDEX('Kwh Estimate'!$O:$T,'Monthly Operations'!GA12,'Monthly Operations'!$D$13)/12*GA4 -> 810.6669967 | GB13: =INDEX('Kwh Estimate'!$O:$T,'Monthly Operations'!GB12,'Monthly Operations'!$D$13)/12*GB4 -> 810.6669967 | GC13: =INDEX('Kwh Estimate'!$O:$T,'Monthly Operations'!GC12,'Monthly Operations'!$D$13)/12*GC4 -> 810.6669967 | GD13: =INDEX('Kwh Estimate'!$O:$T,'Monthly Operations'!GD12,'Monthly Operations'!$D$13)/12*GD4 -> 810.6669967 | GE13: =INDEX('Kwh Estimate'!$O:$T,'Monthly Operations'!GE12,'Monthly Operations'!$D$13)/12*GE4 -> 806.308572 | GF13: =INDEX('Kwh Estimate'!$O:$T,'Monthly Operations'!GF12,'Monthly Operations'!$D$13)/12*GF4 -> 806.308572 | GG13: =INDEX('Kwh Estimate'!$O:$T,'Monthly Operations'!GG12,'Monthly Operations'!$D$13)/12*GG4 -> 806.308572 | GH13: =INDEX('Kwh Estimate'!$O:$T,'Monthly Operations'!GH12,'Monthly Operations'!$D$13)/12*GH4 -> 806.308572 | GI13: =INDEX('Kwh Estimate'!$O:$T,'Monthly Operations'!GI12,'Monthly Operations'!$D$13)/12*GI4 -> 806.308572 | GJ13: =INDEX('Kwh Estimate'!$O:$T,'Monthly Operations'!GJ12,'Monthly Operations'!$D$13)/12*GJ4 -> 806.308572 | GK13: =INDEX('Kwh Estimate'!$O:$T,'Monthly Operations'!GK12,'Monthly Operations'!$D$13)/12*GK4 -> 806.308572 | GL13: =INDEX('Kwh Estimate'!$O:$T,'Monthly Operations'!GL12,'Monthly Operations'!$D$13)/12*GL4 -> 806.308572 | GM13: =INDEX('Kwh Estimate'!$O:$T,'Monthly Operations'!GM12,'Monthly Operations'!$D$13)/12*GM4 -> 806.308572 | GN13: =INDEX('Kwh Estimate'!$O:$T,'Monthly Operations'!GN12,'Monthly Operations'!$D$13)/12*GN4 -> 806.308572 | GO13: =INDEX('Kwh Estimate'!$O:$T,'Monthly Operations'!GO12,'Monthly Operations'!$D$13)/12*GO4 -> 806.308572 | GP13: =INDEX('Kwh Estimate'!$O:$T,'Monthly Operations'!GP12,'Monthly Operations'!$D$13)/12*GP4 -> 806.308572 | GQ13: =INDEX('Kwh Estimate'!$O:$T,'Monthly Operations'!GQ12,'Monthly Operations'!$D$13)/12*GQ4 -> 801.9501473 | GR13: =INDEX('Kwh Estimate'!$O:$T,'Monthly Operations'!GR12,'Monthly Operations'!$D$13)/12*GR4 -> 801.9501473 | GS13: =INDEX('Kwh Estimate'!$O:$T,'Monthly Operations'!GS12,'Monthly Operations'!$D$13)/12*GS4 -> 801.9501473 | GT13: =INDEX('Kwh Estimate'!$O:$T,'Monthly Operations'!GT12,'Monthly Operations'!$D$13)/12*GT4 -> 801.9501473 | GU13: =INDEX('Kwh Estimate'!$O:$T,'Monthly Operations'!GU12,'Monthly Operations'!$D$13)/12*GU4 -> 801.9501473 | GV13: =INDEX('Kwh Estimate'!$O:$T,'Monthly Operations'!GV12,'Monthly Operations'!$D$13)/12*GV4 -> 801.9501473 | GW13: =INDEX('Kwh Estimate'!$O:$T,'Monthly Operations'!GW12,'Monthly Operations'!$D$13)/12*GW4 -> 801.9501473 | GX13: =INDEX('Kwh Estimate'!$O:$T,'Monthly Operations'!GX12,'Monthly Operations'!$D$13)/12*GX4 -> 801.9501473 | GY13: =INDEX('Kwh Estimate'!$O:$T,'Monthly Operations'!GY12,'Monthly Operations'!$D$13)/12*GY4 -> 801.9501473 | GZ13: =INDEX('Kwh Estimate'!$O:$T,'Monthly Operations'!GZ12,'Monthly Operations'!$D$13)/12*GZ4 -> 801.9501473 | HA13: =INDEX('Kwh Estimate'!$O:$T,'Monthly Operations'!HA12,'Monthly Operations'!$D$13)/12*HA4 -> 801.9501473 | HB13: =INDEX('Kwh Estimate'!$O:$T,'Monthly Operations'!HB12,'Monthly Operations'!$D$13)/12*HB4 -> 801.9501473 | HC13: =INDEX('Kwh Estimate'!$O:$T,'Monthly Operations'!HC12,'Monthly Operations'!$D$13)/12*HC4 -> 797.5917226 | HD13: =INDEX('Kwh Estimate'!$O:$T,'Monthly Operations'!HD12,'Monthly Operations'!$D$13)/12*HD4 -> 797.5917226 | HE13: =INDEX('Kwh Estimate'!$O:$T,'Monthly Operations'!HE12,'Monthly Operations'!$D$13)/12*HE4 -> 797.5917226 | HF13: =INDEX('Kwh Estimate'!$O:$T,'Monthly Operations'!HF12,'Monthly Operations'!$D$13)/12*HF4 -> 797.5917226 | HG13: =INDEX('Kwh Estimate'!$O:$T,'Monthly Operations'!HG12,'Monthly Operations'!$D$13)/12*HG4 -> 797.5917226 | HH13: =INDEX('Kwh Estimate'!$O:$T,'Monthly Operations'!HH12,'Monthly Operations'!$D$13)/12*HH4 -> 797.5917226 | HI13: =INDEX('Kwh Estimate'!$O:$T,'Monthly Operations'!HI12,'Monthly Operations'!$D$13)/12*HI4 -> 797.5917226 | HJ13: =INDEX('Kwh Estimate'!$O:$T,'Monthly Operations'!HJ12,'Monthly Operations'!$D$13)/12*HJ4 -> 797.5917226 | HK13: =INDEX('Kwh Estimate'!$O:$T,'Monthly Operations'!HK12,'Monthly Operations'!$D$13)/12*HK4 -> 797.5917226 | HL13: =INDEX('Kwh Estimate'!$O:$T,'Monthly Operations'!HL12,'Monthly Operations'!$D$13)/12*HL4 -> 797.5917226 | HM13: =INDEX('Kwh Estimate'!$O:$T,'Monthly Operations'!HM12,'Monthly Operations'!$D$13)/12*HM4 -> 797.5917226 | HN13: =INDEX('Kwh Estimate'!$O:$T,'Monthly Operations'!HN12,'Monthly Operations'!$D$13)/12*HN4 -> 797.5917226 | HO13: =INDEX('Kwh Estimate'!$O:$T,'Monthly Operations'!HO12,'Monthly Operations'!$D$13)/12*HO4 -> 793.2332979 | HP13: =INDEX('Kwh Estimate'!$O:$T,'Monthly Operations'!HP12,'Monthly Operations'!$D$13)/12*HP4 -> 793.2332979 | HQ13: =INDEX('Kwh Estimate'!$O:$T,'Monthly Operations'!HQ12,'Monthly Operations'!$D$13)/12*HQ4 -> 793.2332979 | HR13: =INDEX('Kwh Estimate'!$O:$T,'Monthly Operations'!HR12,'Monthly Operations'!$D$13)/12*HR4 -> 793.2332979 | HS13: =INDEX('Kwh Estimate'!$O:$T,'Monthly Operations'!HS12,'Monthly Operations'!$D$13)/12*HS4 -> 793.2332979 | HT13: =INDEX('Kwh Estimate'!$O:$T,'Monthly Operations'!HT12,'Monthly Operations'!$D$13)/12*HT4 -> 793.2332979 | HU13: =INDEX('Kwh Estimate'!$O:$T,'Monthly Operations'!HU12,'Monthly Operations'!$D$13)/12*HU4 -> 793.2332979 | HV13: =INDEX('Kwh Estimate'!$O:$T,'Monthly Operations'!HV12,'Monthly Operations'!$D$13)/12*HV4 -> 793.2332979 | HW13: =INDEX('Kwh Estimate'!$O:$T,'Monthly Operations'!HW12,'Monthly Operations'!$D$13)/12*HW4 -> 793.2332979 | HX13: =INDEX('Kwh Estimate'!$O:$T,'Monthly Operations'!HX12,'Monthly Operations'!$D$13)/12*HX4 -> 793.2332979 | HY13: =INDEX('Kwh Estimate'!$O:$T,'Monthly Operations'!HY12,'Monthly Operations'!$D$13)/12*HY4 -> 793.2332979 | HZ13: =INDEX('Kwh Estimate'!$O:$T,'Monthly Operations'!HZ12,'Monthly Operations'!$D$13)/12*HZ4 -> 793.2332979 | IA13: =INDEX('Kwh Estimate'!$O:$T,'Monthly Operations'!IA12,'Monthly Operations'!$D$13)/12*IA4 -> 788.8748732 | IB13: =INDEX('Kwh Estimate'!$O:$T,'Monthly Operations'!IB12,'Monthly Operations'!$D$13)/12*IB4 -> 788.8748732 | IC13: =INDEX('Kwh Estimate'!$O:$T,'Monthly Operations'!IC12,'Monthly Operations'!$D$13)/12*IC4 -> 788.8748732 | ID13: =INDEX('Kwh Estimate'!$O:$T,'Monthly Operations'!ID12,'Monthly Operations'!$D$13)/12*ID4 -> 788.8748732 | IE13: =INDEX('Kwh Estimate'!$O:$T,'Monthly Operations'!IE12,'Monthly Operations'!$D$13)/12*IE4 -> 788.8748732 | IF13: =INDEX('Kwh Estimate'!$O:$T,'Monthly Operations'!IF12,'Monthly Operations'!$D$13)/12*IF4 -> 788.8748732 | IG13: =INDEX('Kwh Estimate'!$O:$T,'Monthly Operations'!IG12,'Monthly Operations'!$D$13)/12*IG4 -> 788.8748732 | IH13: =INDEX('Kwh Estimate'!$O:$T,'Monthly Operations'!IH12,'Monthly Operations'!$D$13)/12*IH4 -> 788.8748732 | II13: =INDEX('Kwh Estimate'!$O:$T,'Monthly Operations'!II12,'Monthly Operations'!$D$13)/12*II4 -> 788.8748732 | IJ13: =INDEX('Kwh Estimate'!$O:$T,'Monthly Operations'!IJ12,'Monthly Operations'!$D$13)/12*IJ4 -> 788.8748732 | IK13: =INDEX('Kwh Estimate'!$O:$T,'Monthly Operations'!IK12,'Monthly Operations'!$D$13)/12*IK4 -> 788.8748732 | IL13: =INDEX('Kwh Estimate'!$O:$T,'Monthly Operations'!IL12,'Monthly Operations'!$D$13)/12*IL4 -> 788.8748732 | IM13: =INDEX('Kwh Estimate'!$O:$T,'Monthly Operations'!IM12,'Monthly Operations'!$D$13)/12*IM4 -> 784.5164485 | IN13: =INDEX('Kwh Estimate'!$O:$T,'Monthly Operations'!IN12,'Monthly Operations'!$D$13)/12*IN4 -> 784.5164485 | IO13: =INDEX('Kwh Estimate'!$O:$T,'Monthly Operations'!IO12,'Monthly Operations'!$D$13)/12*IO4 -> 784.5164485 | IP13: =INDEX('Kwh Estimate'!$O:$T,'Monthly Operations'!IP12,'Monthly Operations'!$D$13)/12*IP4 -> 784.5164485 | IQ13: =INDEX('Kwh Estimate'!$O:$T,'Monthly Operations'!IQ12,'Monthly Operations'!$D$13)/12*IQ4 -> 784.5164485 | IR13: =INDEX('Kwh Estimate'!$O:$T,'Monthly Operations'!IR12,'Monthly Operations'!$D$13)/12*IR4 -> 784.5164485 | IS13: =INDEX('Kwh Estimate'!$O:$T,'Monthly Operations'!IS12,'Monthly Operations'!$D$13)/12*IS4 -> 784.5164485 | IT13: =INDEX('Kwh Estimate'!$O:$T,'Monthly Operations'!IT12,'Monthly Operations'!$D$13)/12*IT4 -> 784.5164485 | IU13: =INDEX('Kwh Estimate'!$O:$T,'Monthly Operations'!IU12,'Monthly Operations'!$D$13)/12*IU4 -> 784.5164485 | IV13: =INDEX('Kwh Estimate'!$O:$T,'Monthly Operations'!IV12,'Monthly Operations'!$D$13)/12*IV4 -> 784.5164485 | IW13: =INDEX('Kwh Estimate'!$O:$T,'Monthly Operations'!IW12,'Monthly Operations'!$D$13)/12*IW4 -> 784.5164485 | IX13: =INDEX('Kwh Estimate'!$O:$T,'Monthly Operations'!IX12,'Monthly Operations'!$D$13)/12*IX4 -> 784.5164485 | IY13: =INDEX('Kwh Estimate'!$O:$T,'Monthly Operations'!IY12,'Monthly Operations'!$D$13)/12*IY4 -> 780.1580237 | IZ13: =INDEX('Kwh Estimate'!$O:$T,'Monthly Operations'!IZ12,'Monthly Operations'!$D$13)/12*IZ4 -> 780.1580237 | JA13: =INDEX('Kwh Estimate'!$O:$T,'Monthly Operations'!JA12,'Monthly Operations'!$D$13)/12*JA4 -> 780.1580237 | JB13: =INDEX('Kwh Estimate'!$O:$T,'Monthly Operations'!JB12,'Monthly Operations'!$D$13)/12*JB4 -> 780.1580237 | JC13: =INDEX('Kwh Estimate'!$O:$T,'Monthly Operations'!JC12,'Monthly Operations'!$D$13)/12*JC4 -> 780.1580237 | JD13: =INDEX('Kwh Estimate'!$O:$T,'Monthly Operations'!JD12,'Monthly Operations'!$D$13)/12*JD4 -> 780.1580237 | JE13: =INDEX('Kwh Estimate'!$O:$T,'Monthly Operations'!JE12,'Monthly Operations'!$D$13)/12*JE4 -> 780.1580237 | JF13: =INDEX('Kwh Estimate'!$O:$T,'Monthly Operations'!JF12,'Monthly Operations'!$D$13)/12*JF4 -> 780.1580237 | JG13: =INDEX('Kwh Estimate'!$O:$T,'Monthly Operations'!JG12,'Monthly Operations'!$D$13)/12*JG4 -> 780.1580237 | JH13: =INDEX('Kwh Estimate'!$O:$T,'Monthly Operations'!JH12,'Monthly Operations'!$D$13)/12*JH4 -> 780.1580237 | JI13: =INDEX('Kwh Estimate'!$O:$T,'Monthly Operations'!JI12,'Monthly Operations'!$D$13)/12*JI4 -> 780.1580237 | JJ13: =INDEX('Kwh Estimate'!$O:$T,'Monthly Operations'!JJ12,'Monthly Operations'!$D$13)/12*JJ4 -> 780.1580237 | JK13: =INDEX('Kwh Estimate'!$O:$T,'Monthly Operations'!JK12,'Monthly Operations'!$D$13)/12*JK4 -> 775.799599 | JL13: =INDEX('Kwh Estimate'!$O:$T,'Monthly Operations'!JL12,'Monthly Operations'!$D$13)/12*JL4 -> 775.799599 | JM13: =INDEX('Kwh Estimate'!$O:$T,'Monthly Operations'!JM12,'Monthly Operations'!$D$13)/12*JM4 -> 775.799599 | JN13: =INDEX('Kwh Estimate'!$O:$T,'Monthly Operations'!JN12,'Monthly Operations'!$D$13)/12*JN4 -> 775.799599 | JO13: =INDEX('Kwh Estimate'!$O:$T,'Monthly Operations'!JO12,'Monthly Operations'!$D$13)/12*JO4 -> 775.799599 | JP13: =INDEX('Kwh Estimate'!$O:$T,'Monthly Operations'!JP12,'Monthly Operations'!$D$13)/12*JP4 -> 775.799599 | JQ13: =INDEX('Kwh Estimate'!$O:$T,'Monthly Operations'!JQ12,'Monthly Operations'!$D$13)/12*JQ4 -> 775.799599 | JR13: =INDEX('Kwh Estimate'!$O:$T,'Monthly Operations'!JR12,'Monthly Operations'!$D$13)/12*JR4 -> 775.799599 | JS13: =INDEX('Kwh Estimate'!$O:$T,'Monthly Operations'!JS12,'Monthly Operations'!$D$13)/12*JS4 -> 775.799599 | JT13: =INDEX('Kwh Estimate'!$O:$T,'Monthly Operations'!JT12,'Monthly Operations'!$D$13)/12*JT4 -> 775.799599 | JU13: =INDEX('Kwh Estimate'!$O:$T,'Monthly Operations'!JU12,'Monthly Operations'!$D$13)/12*JU4 -> 775.799599 | JV13: =INDEX('Kwh Estimate'!$O:$T,'Monthly Operations'!JV12,'Monthly Operations'!$D$13)/12*JV4 -> 775.799599 | JW13: =INDEX('Kwh Estimate'!$O:$T,'Monthly Operations'!JW12,'Monthly Operations'!$D$13)/12*JW4 -> 771.4411743 | JX13: =INDEX('Kwh Estimate'!$O:$T,'Monthly Operations'!JX12,'Monthly Operations'!$D$13)/12*JX4 -> 771.4411743 | JY13: =INDEX('Kwh Estimate'!$O:$T,'Monthly Operations'!JY12,'Monthly Operations'!$D$13)/12*JY4 -> 771.4411743 | JZ13: =INDEX('Kwh Estimate'!$O:$T,'Monthly Operations'!JZ12,'Monthly Operations'!$D$13)/12*JZ4 -> 771.4411743 | KA13: =INDEX('Kwh Estimate'!$O:$T,'Monthly Operations'!KA12,'Monthly Operations'!$D$13)/12*KA4 -> 771.4411743 | KB13: =INDEX('Kwh Estimate'!$O:$T,'Monthly Operations'!KB12,'Monthly Operations'!$D$13)/12*KB4 -> 771.4411743 | KC13: =INDEX('Kwh Estimate'!$O:$T,'Monthly Operations'!KC12,'Monthly Operations'!$D$13)/12*KC4 -> 771.4411743 | KD13: =INDEX('Kwh Estimate'!$O:$T,'Monthly Operations'!KD12,'Monthly Operations'!$D$13)/12*KD4 -> 771.4411743 | KE13: =INDEX('Kwh Estimate'!$O:$T,'Monthly Operations'!KE12,'Monthly Operations'!$D$13)/12*KE4 -> 771.4411743 | KF13: =INDEX('Kwh Estimate'!$O:$T,'Monthly Operations'!KF12,'Monthly Operations'!$D$13)/12*KF4 -> 771.4411743 | KG13: =INDEX('Kwh Estimate'!$O:$T,'Monthly Operations'!KG12,'Monthly Operations'!$D$13)/12*KG4 -> 771.4411743 | KH13: =INDEX('Kwh Estimate'!$O:$T,'Monthly Operations'!KH12,'Monthly Operations'!$D$13)/12*KH4 -> 771.4411743 | KI13: =INDEX('Kwh Estimate'!$O:$T,'Monthly Operations'!KI12,'Monthly Operations'!$D$13)/12*KI4 -> 767.0827496 | KJ13: =INDEX('Kwh Estimate'!$O:$T,'Monthly Operations'!KJ12,'Monthly Operations'!$D$13)/12*KJ4 -> 767.0827496 | KK13: =INDEX('Kwh Estimate'!$O:$T,'Monthly Operations'!KK12,'Monthly Operations'!$D$13)/12*KK4 -> 767.0827496 | KL13: =INDEX('Kwh Estimate'!$O:$T,'Monthly Operations'!KL12,'Monthly Operations'!$D$13)/12*KL4 -> 767.0827496 | KM13: =INDEX('Kwh Estimate'!$O:$T,'Monthly Operations'!KM12,'Monthly Operations'!$D$13)/12*KM4 -> 767.0827496 | KN13: =INDEX('Kwh Estimate'!$O:$T,'Monthly Operations'!KN12,'Monthly Operations'!$D$13)/12*KN4 -> 767.0827496 | KO13: =INDEX('Kwh Estimate'!$O:$T,'Monthly Operations'!KO12,'Monthly Operations'!$D$13)/12*KO4 -> 767.0827496 | KP13: =INDEX('Kwh Estimate'!$O:$T,'Monthly Operations'!KP12,'Monthly Operations'!$D$13)/12*KP4 -> 767.0827496 | KQ13: =INDEX('Kwh Estimate'!$O:$T,'Monthly Operations'!KQ12,'Monthly Operations'!$D$13)/12*KQ4 -> 767.0827496 | KR13: =INDEX('Kwh Estimate'!$O:$T,'Monthly Operations'!KR12,'Monthly Operations'!$D$13)/12*KR4 -> 767.0827496 | KS13: =INDEX('Kwh Estimate'!$O:$T,'Monthly Operations'!KS12,'Monthly Operations'!$D$13)/12*KS4 -> 767.0827496 | KT13: =INDEX('Kwh Estimate'!$O:$T,'Monthly Operations'!KT12,'Monthly Operations'!$D$13)/12*KT4 -> 767.0827496 | KU13: =INDEX('Kwh Estimate'!$O:$T,'Monthly Operations'!KU12,'Monthly Operations'!$D$13)/12*KU4 -> 762.7243249 | KV13: =INDEX('Kwh Estimate'!$O:$T,'Monthly Operations'!KV12,'Monthly Operations'!$D$13)/12*KV4 -> 762.7243249 | KW13: =INDEX('Kwh Estimate'!$O:$T,'Monthly Operations'!KW12,'Monthly Operations'!$D$13)/12*KW4 -> 762.7243249 | KX13: =INDEX('Kwh Estimate'!$O:$T,'Monthly Operations'!KX12,'Monthly Operations'!$D$13)/12*KX4 -> 762.7243249 | KY13: =INDEX('Kwh Estimate'!$O:$T,'Monthly Operations'!KY12,'Monthly Operations'!$D$13)/12*KY4 -> 762.7243249 | KZ13: =INDEX('Kwh Estimate'!$O:$T,'Monthly Operations'!KZ12,'Monthly Operations'!$D$13)/12*KZ4 -> 762.7243249 | LA13: =INDEX('Kwh Estimate'!$O:$T,'Monthly Operations'!LA12,'Monthly Operations'!$D$13)/12*LA4 -> 762.7243249 | LB13: =INDEX('Kwh Estimate'!$O:$T,'Monthly Operations'!LB12,'Monthly Operations'!$D$13)/12*LB4 -> 762.7243249 | LC13: =INDEX('Kwh Estimate'!$O:$T,'Monthly Operations'!LC12,'Monthly Operations'!$D$13)/12*LC4 -> 762.7243249 | LD13: =INDEX('Kwh Estimate'!$O:$T,'Monthly Operations'!LD12,'Monthly Operations'!$D$13)/12*LD4 -> 762.7243249 | LE13: =INDEX('Kwh Estimate'!$O:$T,'Monthly Operations'!LE12,'Monthly Operations'!$D$13)/12*LE4 -> 762.7243249 | LF13: =INDEX('Kwh Estimate'!$O:$T,'Monthly Operations'!LF12,'Monthly Operations'!$D$13)/12*LF4 -> 762.7243249 | LG13: =INDEX('Kwh Estimate'!$O:$T,'Monthly Operations'!LG12,'Monthly Operations'!$D$13)/12*LG4 -> 758.3659002 | LH13: =INDEX('Kwh Estimate'!$O:$T,'Monthly Operations'!LH12,'Monthly Operations'!$D$13)/12*LH4 -> 758.3659002 | LI13: =INDEX('Kwh Estimate'!$O:$T,'Monthly Operations'!LI12,'Monthly Operations'!$D$13)/12*LI4 -> 758.3659002 | LJ13: =INDEX('Kwh Estimate'!$O:$T,'Monthly Operations'!LJ12,'Monthly Operations'!$D$13)/12*LJ4 -> 758.3659002 | LK13: =INDEX('Kwh Estimate'!$O:$T,'Monthly Operations'!LK12,'Monthly Operations'!$D$13)/12*LK4 -> 758.3659002 | LL13: =INDEX('Kwh Estimate'!$O:$T,'Monthly Operations'!LL12,'Monthly Operations'!$D$13)/12*LL4 -> 758.3659002 | LM13: =INDEX('Kwh Estimate'!$O:$T,'Monthly Operations'!LM12,'Monthly Operations'!$D$13)/12*LM4 -> 758.3659002 | LN13: =INDEX('Kwh Estimate'!$O:$T,'Monthly Operations'!LN12,'Monthly Operations'!$D$13)/12*LN4 -> 758.3659002 | LO13: =INDEX('Kwh Estimate'!$O:$T,'Monthly Operations'!LO12,'Monthly Operations'!$D$13)/12*LO4 -> 758.3659002 | LP13: =INDEX('Kwh Estimate'!$O:$T,'Monthly Operations'!LP12,'Monthly Operations'!$D$13)/12*LP4 -> 758.3659002 | LQ13: =INDEX('Kwh Estimate'!$O:$T,'Monthly Operations'!LQ12,'Monthly Operations'!$D$13)/12*LQ4 -> 758.3659002 | LR13: =INDEX('Kwh Estimate'!$O:$T,'Monthly Operations'!LR12,'Monthly Operations'!$D$13)/12*LR4 -> 758.3659002 | LS13: =INDEX('Kwh Estimate'!$O:$T,'Monthly Operations'!LS12,'Monthly Operations'!$D$13)/12*LS4 -> 754.0074755 | LT13: =INDEX('Kwh Estimate'!$O:$T,'Monthly Operations'!LT12,'Monthly Operations'!$D$13)/12*LT4 -> 754.0074755 | LU13: =INDEX('Kwh Estimate'!$O:$T,'Monthly Operations'!LU12,'Monthly Operations'!$D$13)/12*LU4 -> 754.0074755 | LV13: =INDEX('Kwh Estimate'!$O:$T,'Monthly Operations'!LV12,'Monthly Operations'!$D$13)/12*LV4 -> 754.0074755 | LW13: =INDEX('Kwh Estimate'!$O:$T,'Monthly Operations'!LW12,'Monthly Operations'!$D$13)/12*LW4 -> 754.0074755 | LX13: =INDEX('Kwh Estimate'!$O:$T,'Monthly Operations'!LX12,'Monthly Operations'!$D$13)/12*LX4 -> 754.0074755 | LY13: =INDEX('Kwh Estimate'!$O:$T,'Monthly Operations'!LY12,'Monthly Operations'!$D$13)/12*LY4 -> 754.0074755 | LZ13: =INDEX('Kwh Estimate'!$O:$T,'Monthly Operations'!LZ12,'Monthly Operations'!$D$13)/12*LZ4 -> 754.0074755 | MA13: =INDEX('Kwh Estimate'!$O:$T,'Monthly Operations'!MA12,'Monthly Operations'!$D$13)/12*MA4 -> 754.0074755 | MB13: =INDEX('Kwh Estimate'!$O:$T,'Monthly Operations'!MB12,'Monthly Operations'!$D$13)/12*MB4 -> 754.0074755 | MC13: =INDEX('Kwh Estimate'!$O:$T,'Monthly Operations'!MC12,'Monthly Operations'!$D$13)/12*MC4 -> 754.0074755 | MD13: =INDEX('Kwh Estimate'!$O:$T,'Monthly Operations'!MD12,'Monthly Operations'!$D$13)/12*MD4 -> 754.0074755 | ME13: =INDEX('Kwh Estimate'!$O:$T,'Monthly Operations'!ME12,'Monthly Operations'!$D$13)/12*ME4 -> 749.6490508 | MF13: =INDEX('Kwh Estimate'!$O:$T,'Monthly Operations'!MF12,'Monthly Operations'!$D$13)/12*MF4 -> 749.6490508 | MG13: =INDEX('Kwh Estimate'!$O:$T,'Monthly Operations'!MG12,'Monthly Operations'!$D$13)/12*MG4 -> 749.6490508 | MH13: =INDEX('Kwh Estimate'!$O:$T,'Monthly Operations'!MH12,'Monthly Operations'!$D$13)/12*MH4 -> 749.6490508 | MI13: =INDEX('Kwh Estimate'!$O:$T,'Monthly Operations'!MI12,'Monthly Operations'!$D$13)/12*MI4 -> 749.6490508 | MJ13: =INDEX('Kwh Estimate'!$O:$T,'Monthly Operations'!MJ12,'Monthly Operations'!$D$13)/12*MJ4 -> 749.6490508 | MK13: =INDEX('Kwh Estimate'!$O:$T,'Monthly Operations'!MK12,'Monthly Operations'!$D$13)/12*MK4 -> 749.6490508 | ML13: =INDEX('Kwh Estimate'!$O:$T,'Monthly Operations'!ML12,'Monthly Operations'!$D$13)/12*ML4 -> 749.6490508 | MM13: =INDEX('Kwh Estimate'!$O:$T,'Monthly Operations'!MM12,'Monthly Operations'!$D$13)/12*MM4 -> 749.6490508 | MN13: =INDEX('Kwh Estimate'!$O:$T,'Monthly Operations'!MN12,'Monthly Operations'!$D$13)/12*MN4 -> 749.6490508 | MO13: =INDEX('Kwh Estimate'!$O:$T,'Monthly Operations'!MO12,'Monthly Operations'!$D$13)/12*MO4 -> 749.6490508 | MP13: =INDEX('Kwh Estimate'!$O:$T,'Monthly Operations'!MP12,'Monthly Operations'!$D$13)/12*MP4 -> 749.6490508 | MQ13: =INDEX('Kwh Estimate'!$O:$T,'Monthly Operations'!MQ12,'Monthly Operations'!$D$13)/12*MQ4 -> 745.290626 | MR13: =INDEX('Kwh Estimate'!$O:$T,'Monthly Operations'!MR12,'Monthly Operations'!$D$13)/12*MR4 -> 745.290626 | MS13: =INDEX('Kwh Estimate'!$O:$T,'Monthly Operations'!MS12,'Monthly Operations'!$D$13)/12*MS4 -> 745.290626 | MT13: =INDEX('Kwh Estimate'!$O:$T,'Monthly Operations'!MT12,'Monthly Operations'!$D$13)/12*MT4 -> 745.290626 | MU13: =INDEX('Kwh Estimate'!$O:$T,'Monthly Operations'!MU12,'Monthly Operations'!$D$13)/12*MU4 -> 745.290626 | MV13: =INDEX('Kwh Estimate'!$O:$T,'Monthly Operations'!MV12,'Monthly Operations'!$D$13)/12*MV4 -> 745.290626 | MW13: =INDEX('Kwh Estimate'!$O:$T,'Monthly Operations'!MW12,'Monthly Operations'!$D$13)/12*MW4 -> 745.290626 | MX13: =INDEX('Kwh Estimate'!$O:$T,'Monthly Operations'!MX12,'Monthly Operations'!$D$13)/12*MX4 -> 745.290626 | MY13: =INDEX('Kwh Estimate'!$O:$T,'Monthly Operations'!MY12,'Monthly Operations'!$D$13)/12*MY4 -> 745.290626 | MZ13: =INDEX('Kwh Estimate'!$O:$T,'Monthly Operations'!MZ12,'Monthly Operations'!$D$13)/12*MZ4 -> 745.290626 | NA13: =INDEX('Kwh Estimate'!$O:$T,'Monthly Operations'!NA12,'Monthly Operations'!$D$13)/12*NA4 -> 745.290626 | NB13: =INDEX('Kwh Estimate'!$O:$T,'Monthly Operations'!NB12,'Monthly Operations'!$D$13)/12*NB4 -> 745.290626 | NC13: =INDEX('Kwh Estimate'!$O:$T,'Monthly Operations'!NC12,'Monthly Operations'!$D$13)/12*NC4 -> 740.9322013 | ND13: =INDEX('Kwh Estimate'!$O:$T,'Monthly Operations'!ND12,'Monthly Operations'!$D$13)/12*ND4 -> 740.9322013 | NE13: =INDEX('Kwh Estimate'!$O:$T,'Monthly Operations'!NE12,'Monthly Operations'!$D$13)/12*NE4 -> 740.9322013 | NF13: =INDEX('Kwh Estimate'!$O:$T,'Monthly Operations'!NF12,'Monthly Operations'!$D$13)/12*NF4 -> 740.9322013 | NG13: =INDEX('Kwh Estimate'!$O:$T,'Monthly Operations'!NG12,'Monthly Operations'!$D$13)/12*NG4 -> 740.9322013 | NH13: =INDEX('Kwh Estimate'!$O:$T,'Monthly Operations'!NH12,'Monthly Operations'!$D$13)/12*NH4 -> 0 | NI13: =INDEX('Kwh Estimate'!$O:$T,'Monthly Operations'!NI12,'Monthly Operations'!$D$13)/12*NI4 -> 0 | NJ13: =INDEX('Kwh Estimate'!$O:$T,'Monthly Operations'!NJ12,'Monthly Operations'!$D$13)/12*NJ4 -> 0 | NK13: =INDEX('Kwh Estimate'!$O:$T,'Monthly Operations'!NK12,'Monthly Operations'!$D$13)/12*NK4 -> 0 | NL13: =INDEX('Kwh Estimate'!$O:$T,'Monthly Operations'!NL12,'Monthly Operations'!$D$13)/12*NL4 -> 0 | NM13: =INDEX('Kwh Estimate'!$O:$T,'Monthly Operations'!NM12,'Monthly Operations'!$D$13)/12*NM4 -> 0 | NN13: =INDEX('Kwh Estimate'!$O:$T,'Monthly Operations'!NN12,'Monthly Operations'!$D$13)/12*NN4 -> 0
C14: Sensisitity | D14: ='Control Panel'!D20 -> 1 | G14: =G13*$D$14 -> 0 | H14: =H13*$D$14 -> 0 | I14: 0 | J14: 0 | K14: 0 | L14: 871.6849427 | M14: 871.6849427 | N14: 871.6849427 | O14: 871.6849427 | P14: 871.6849427 | Q14: 871.6849427 | R14: 871.6849427 | S14: 867.326518 | T14: 867.326518 | U14: 867.326518 | V14: 867.326518 | W14: 867.326518 | X14: 867.326518 | Y14: 867.326518 | Z14: 867.326518 | AA14: 867.326518 | AB14: 867.326518 | AC14: 867.326518 | AD14: 867.326518 | AE14: 862.9680933 | AF14: 862.9680933 | AG14: 862.9680933 | AH14: 862.9680933 | AI14: 862.9680933 | AJ14: 862.9680933 | AK14: 862.9680933 | AL14: 862.9680933 | AM14: 862.9680933 | AN14: 862.9680933 | AO14: 862.9680933 | AP14: 862.9680933 | AQ14: 858.6096686 | AR14: 858.6096686 | AS14: 858.6096686 | AT14: 858.6096686 | AU14: 858.6096686 | AV14: 858.6096686 | AW14: 858.6096686 | AX14: 858.6096686 | AY14: 858.6096686 | AZ14: 858.6096686 | BA14: 858.6096686 | BB14: 858.6096686 | BC14: 854.2512439 | BD14: 854.2512439 | BE14: 854.2512439 | BF14: 854.2512439 | BG14: 854.2512439 | BH14: 854.2512439 | BI14: 854.2512439 | BJ14: 854.2512439 | BK14: 854.2512439 | BL14: 854.2512439 | BM14: 854.2512439 | BN14: 854.2512439 | BO14: 849.8928192 | BP14: 849.8928192 | BQ14: 849.8928192 | BR14: 849.8928192 | BS14: 849.8928192 | BT14: =BT13*$D$14 -> 849.8928192 | BU14: 849.8928192 | BV14: 849.8928192 | BW14: 849.8928192 | BX14: 849.8928192 | BY14: 849.8928192 | BZ14: 849.8928192 | CA14: 845.5343945 | CB14: 845.5343945 | CC14: 845.5343945 | CD14: 845.5343945 | CE14: 845.5343945 | CF14: 845.5343945 | CG14: 845.5343945 | CH14: 845.5343945 | CI14: 845.5343945 | CJ14: 845.5343945 | CK14: 845.5343945 | CL14: 845.5343945 | CM14: 841.1759697 | CN14: 841.1759697 | CO14: 841.1759697 | CP14: 841.1759697 | CQ14: 841.1759697 | CR14: 841.1759697 | CS14: 841.1759697 | CT14: 841.1759697 | CU14: 841.1759697 | CV14: 841.1759697 | CW14: 841.1759697 | CX14: 841.1759697 | CY14: 836.817545 | CZ14: 836.817545 | DA14: 836.817545 | DB14: 836.817545 | DC14: 836.817545 | DD14: 836.817545 | DE14: 836.817545 | DF14: 836.817545 | DG14: 836.817545 | DH14: 836.817545 | DI14: 836.817545 | DJ14: 836.817545 | DK14: 832.4591203 | DL14: 832.4591203 | DM14: 832.4591203 | DN14: 832.4591203 | DO14: 832.4591203 | DP14: 832.4591203 | DQ14: 832.4591203 | DR14: 832.4591203 | DS14: 832.4591203 | DT14: 832.4591203 | DU14: 832.4591203 | DV14: 832.4591203 | DW14: 828.1006956 | DX14: 828.1006956 | DY14: 828.1006956 | DZ14: 828.1006956 | EA14: 828.1006956 | EB14: 828.1006956 | EC14: 828.1006956 | ED14: 828.1006956 | EE14: 828.1006956 | EF14: =EF13*$D$14 -> 828.1006956 | EG14: 828.1006956 | EH14: 828.1006956 | EI14: 823.7422709 | EJ14: 823.7422709 | EK14: 823.7422709 | EL14: 823.7422709 | EM14: 823.7422709 | EN14: 823.7422709 | EO14: 823.7422709 | EP14: 823.7422709 | EQ14: 823.7422709 | ER14: 823.7422709 | ES14: 823.7422709 | ET14: 823.7422709 | EU14: 819.3838462 | EV14: 819.3838462 | EW14: 819.3838462 | EX14: 819.3838462 | EY14: 819.3838462 | EZ14: 819.3838462 | FA14: 819.3838462 | FB14: 819.3838462 | FC14: 819.3838462 | FD14: 819.3838462 | FE14: 819.3838462 | FF14: 819.3838462 | FG14: 815.0254215 | FH14: 815.0254215 | FI14: 815.0254215 | FJ14: 815.0254215 | FK14: 815.0254215 | FL14: 815.0254215 | FM14: 815.0254215 | FN14: 815.0254215 | FO14: 815.0254215 | FP14: 815.0254215 | FQ14: 815.0254215 | FR14: 815.0254215 | FS14: 810.6669967 | FT14: 810.6669967 | FU14: 810.6669967 | FV14: 810.6669967 | FW14: 810.6669967 | FX14: 810.6669967 | FY14: 810.6669967 | FZ14: 810.6669967 | GA14: 810.6669967 | GB14: 810.6669967 | GC14: 810.6669967 | GD14: 810.6669967 | GE14: 806.308572 | GF14: 806.308572 | GG14: 806.308572 | GH14: 806.308572 | GI14: 806.308572 | GJ14: 806.308572 | GK14: 806.308572 | GL14: 806.308572 | GM14: 806.308572 | GN14: 806.308572 | GO14: 806.308572 | GP14: 806.308572 | GQ14: 801.9501473 | GR14: =GR13*$D$14 -> 801.9501473 | GS14: 801.9501473 | GT14: 801.9501473 | GU14: 801.9501473 | GV14: 801.9501473 | GW14: 801.9501473 | GX14: 801.9501473 | GY14: 801.9501473 | GZ14: 801.9501473 | HA14: 801.9501473 | HB14: 801.9501473 | HC14: 797.5917226 | HD14: 797.5917226 | HE14: 797.5917226 | HF14: 797.5917226 | HG14: 797.5917226 | HH14: 797.5917226 | HI14: 797.5917226 | HJ14: 797.5917226 | HK14: 797.5917226 | HL14: 797.5917226 | HM14: 797.5917226 | HN14: 797.5917226 | HO14: 793.2332979 | HP14: 793.2332979 | HQ14: 793.2332979 | HR14: 793.2332979 | HS14: 793.2332979 | HT14: 793.2332979 | HU14: 793.2332979 | HV14: 793.2332979 | HW14: 793.2332979 | HX14: 793.2332979 | HY14: 793.2332979 | HZ14: 793.2332979 | IA14: 788.8748732 | IB14: 788.8748732 | IC14: 788.8748732 | ID14: 788.8748732 | IE14: 788.8748732 | IF14: 788.8748732 | IG14: 788.8748732 | IH14: 788.8748732 | II14: 788.8748732 | IJ14: 788.8748732 | IK14: 788.8748732 | IL14: 788.8748732 | IM14: 784.5164485 | IN14: 784.5164485 | IO14: 784.5164485 | IP14: 784.5164485 | IQ14: 784.5164485 | IR14: 784.5164485 | IS14: 784.5164485 | IT14: 784.5164485 | IU14: 784.5164485 | IV14: 784.5164485 | IW14: 784.5164485 | IX14: 784.5164485 | IY14: 780.1580237 | IZ14: 780.1580237 | JA14: 780.1580237 | JB14: 780.1580237 | JC14: 780.1580237 | JD14: =JD13*$D$14 -> 780.1580237 | JE14: 780.1580237 | JF14: 780.1580237 | JG14: 780.1580237 | JH14: 780.1580237 | JI14: 780.1580237 | JJ14: 780.1580237 | JK14: 775.799599 | JL14: 775.799599 | JM14: 775.799599 | JN14: 775.799599 | JO14: 775.799599 | JP14: 775.799599 | JQ14: 775.799599 | JR14: 775.799599 | JS14: 775.799599 | JT14: 775.799599 | JU14: 775.799599 | JV14: 775.799599 | JW14: 771.4411743 | JX14: 771.4411743 | JY14: 771.4411743 | JZ14: 771.4411743 | KA14: 771.4411743 | KB14: 771.4411743 | KC14: 771.4411743 | KD14: 771.4411743 | KE14: 771.4411743 | KF14: 771.4411743 | KG14: 771.4411743 | KH14: 771.4411743 | KI14: 767.0827496 | KJ14: 767.0827496 | KK14: 767.0827496 | KL14: 767.0827496 | KM14: 767.0827496 | KN14: 767.0827496 | KO14: 767.0827496 | KP14: 767.0827496 | KQ14: 767.0827496 | KR14: 767.0827496 | KS14: 767.0827496 | KT14: 767.0827496 | KU14: 762.7243249 | KV14: 762.7243249 | KW14: 762.7243249 | KX14: 762.7243249 | KY14: 762.7243249 | KZ14: 762.7243249 | LA14: 762.7243249 | LB14: 762.7243249 | LC14: 762.7243249 | LD14: 762.7243249 | LE14: 762.7243249 | LF14: 762.7243249 | LG14: 758.3659002 | LH14: 758.3659002 | LI14: 758.3659002 | LJ14: 758.3659002 | LK14: 758.3659002 | LL14: 758.3659002 | LM14: 758.3659002 | LN14: 758.3659002 | LO14: 758.3659002 | LP14: =LP13*$D$14 -> 758.3659002 | LQ14: 758.3659002 | LR14: 758.3659002 | LS14: 754.0074755 | LT14: 754.0074755 | LU14: 754.0074755 | LV14: 754.0074755 | LW14: 754.0074755 | LX14: 754.0074755 | LY14: 754.0074755 | LZ14: 754.0074755 | MA14: 754.0074755 | MB14: 754.0074755 | MC14: 754.0074755 | MD14: 754.0074755 | ME14: 749.6490508 | MF14: 749.6490508 | MG14: 749.6490508 | MH14: 749.6490508 | MI14: 749.6490508 | MJ14: 749.6490508 | MK14: 749.6490508 | ML14: 749.6490508 | MM14: 749.6490508 | MN14: 749.6490508 | MO14: 749.6490508 | MP14: 749.6490508 | MQ14: 745.290626 | MR14: 745.290626 | MS14: 745.290626 | MT14: 745.290626 | MU14: 745.290626 | MV14: 745.290626 | MW14: 745.290626 | MX14: 745.290626 | MY14: 745.290626 | MZ14: 745.290626 | NA14: 745.290626 | NB14: 745.290626 | NC14: 740.9322013 | ND14: 740.9322013 | NE14: 740.9322013 | NF14: 740.9322013 | NG14: 740.9322013 | NH14: 0 | NI14: 0 | NJ14: 0 | NK14: 0 | NL14: 0 | NM14: 0 | NN14: 0
C16: PPA / Avoided Cost | G16: =LOOKUP('Monthly Operations'!G3,'Inputs S'!1:1,'Inputs S'!4:4) -> 170 | H16: =LOOKUP('Monthly Operations'!H3,'Inputs S'!1:1,'Inputs S'!4:4) -> 170 | I16: =LOOKUP('Monthly Operations'!I3,'Inputs S'!1:1,'Inputs S'!4:4) -> 170 | J16: =LOOKUP('Monthly Operations'!J3,'Inputs S'!1:1,'Inputs S'!4:4) -> 170 | K16: =LOOKUP('Monthly Operations'!K3,'Inputs S'!1:1,'Inputs S'!4:4) -> 170 | L16: =LOOKUP('Monthly Operations'!L3,'Inputs S'!1:1,'Inputs S'!4:4) -> 170 | M16: =LOOKUP('Monthly Operations'!M3,'Inputs S'!1:1,'Inputs S'!4:4) -> 170 | N16: =LOOKUP('Monthly Operations'!N3,'Inputs S'!1:1,'Inputs S'!4:4) -> 170 | O16: =LOOKUP('Monthly Operations'!O3,'Inputs S'!1:1,'Inputs S'!4:4) -> 170 | P16: =LOOKUP('Monthly Operations'!P3,'Inputs S'!1:1,'Inputs S'!4:4) -> 170 | Q16: =LOOKUP('Monthly Operations'!Q3,'Inputs S'!1:1,'Inputs S'!4:4) -> 170 | R16: =LOOKUP('Monthly Operations'!R3,'Inputs S'!1:1,'Inputs S'!4:4) -> 170 | S16: =LOOKUP('Monthly Operations'!S3,'Inputs S'!1:1,'Inputs S'!4:4) -> 173 | T16: =LOOKUP('Monthly Operations'!T3,'Inputs S'!1:1,'Inputs S'!4:4) -> 173 | U16: =LOOKUP('Monthly Operations'!U3,'Inputs S'!1:1,'Inputs S'!4:4) -> 173 | V16: =LOOKUP('Monthly Operations'!V3,'Inputs S'!1:1,'Inputs S'!4:4) -> 173 | W16: =LOOKUP('Monthly Operations'!W3,'Inputs S'!1:1,'Inputs S'!4:4) -> 173 | X16: =LOOKUP('Monthly Operations'!X3,'Inputs S'!1:1,'Inputs S'!4:4) -> 173 | Y16: =LOOKUP('Monthly Operations'!Y3,'Inputs S'!1:1,'Inputs S'!4:4) -> 173 | Z16: =LOOKUP('Monthly Operations'!Z3,'Inputs S'!1:1,'Inputs S'!4:4) -> 173 | AA16: =LOOKUP('Monthly Operations'!AA3,'Inputs S'!1:1,'Inputs S'!4:4) -> 173 | AB16: =LOOKUP('Monthly Operations'!AB3,'Inputs S'!1:1,'Inputs S'!4:4) -> 173 | AC16: =LOOKUP('Monthly Operations'!AC3,'Inputs S'!1:1,'Inputs S'!4:4) -> 173 | AD16: =LOOKUP('Monthly Operations'!AD3,'Inputs S'!1:1,'Inputs S'!4:4) -> 173 | AE16: =LOOKUP('Monthly Operations'!AE3,'Inputs S'!1:1,'Inputs S'!4:4) -> 175 | AF16: =LOOKUP('Monthly Operations'!AF3,'Inputs S'!1:1,'Inputs S'!4:4) -> 175 | AG16: =LOOKUP('Monthly Operations'!AG3,'Inputs S'!1:1,'Inputs S'!4:4) -> 175 | AH16: =LOOKUP('Monthly Operations'!AH3,'Inputs S'!1:1,'Inputs S'!4:4) -> 175 | AI16: =LOOKUP('Monthly Operations'!AI3,'Inputs S'!1:1,'Inputs S'!4:4) -> 175 | AJ16: =LOOKUP('Monthly Operations'!AJ3,'Inputs S'!1:1,'Inputs S'!4:4) -> 175 | AK16: =LOOKUP('Monthly Operations'!AK3,'Inputs S'!1:1,'Inputs S'!4:4) -> 175 | AL16: =LOOKUP('Monthly Operations'!AL3,'Inputs S'!1:1,'Inputs S'!4:4) -> 175 | AM16: =LOOKUP('Monthly Operations'!AM3,'Inputs S'!1:1,'Inputs S'!4:4) -> 175 | AN16: =LOOKUP('Monthly Operations'!AN3,'Inputs S'!1:1,'Inputs S'!4:4) -> 175 | AO16: =LOOKUP('Monthly Operations'!AO3,'Inputs S'!1:1,'Inputs S'!4:4) -> 175 | AP16: =LOOKUP('Monthly Operations'!AP3,'Inputs S'!1:1,'Inputs S'!4:4) -> 175 | AQ16: =LOOKUP('Monthly Operations'!AQ3,'Inputs S'!1:1,'Inputs S'!4:4) -> 178 | AR16: =LOOKUP('Monthly Operations'!AR3,'Inputs S'!1:1,'Inputs S'!4:4) -> 178 | AS16: =LOOKUP('Monthly Operations'!AS3,'Inputs S'!1:1,'Inputs S'!4:4) -> 178 | AT16: =LOOKUP('Monthly Operations'!AT3,'Inputs S'!1:1,'Inputs S'!4:4) -> 178 | AU16: =LOOKUP('Monthly Operations'!AU3,'Inputs S'!1:1,'Inputs S'!4:4) -> 178 | AV16: =LOOKUP('Monthly Operations'!AV3,'Inputs S'!1:1,'Inputs S'!4:4) -> 178 | AW16: =LOOKUP('Monthly Operations'!AW3,'Inputs S'!1:1,'Inputs S'!4:4) -> 178 | AX16: =LOOKUP('Monthly Operations'!AX3,'Inputs S'!1:1,'Inputs S'!4:4) -> 178 | AY16: =LOOKUP('Monthly Operations'!AY3,'Inputs S'!1:1,'Inputs S'!4:4) -> 178 | AZ16: =LOOKUP('Monthly Operations'!AZ3,'Inputs S'!1:1,'Inputs S'!4:4) -> 178 | BA16: =LOOKUP('Monthly Operations'!BA3,'Inputs S'!1:1,'Inputs S'!4:4) -> 178 | BB16: =LOOKUP('Monthly Operations'!BB3,'Inputs S'!1:1,'Inputs S'!4:4) -> 178 | BC16: =LOOKUP('Monthly Operations'!BC3,'Inputs S'!1:1,'Inputs S'!4:4) -> 180 | BD16: =LOOKUP('Monthly Operations'!BD3,'Inputs S'!1:1,'Inputs S'!4:4) -> 180 | BE16: =LOOKUP('Monthly Operations'!BE3,'Inputs S'!1:1,'Inputs S'!4:4) -> 180 | BF16: =LOOKUP('Monthly Operations'!BF3,'Inputs S'!1:1,'Inputs S'!4:4) -> 180 | BG16: =LOOKUP('Monthly Operations'!BG3,'Inputs S'!1:1,'Inputs S'!4:4) -> 180 | BH16: =LOOKUP('Monthly Operations'!BH3,'Inputs S'!1:1,'Inputs S'!4:4) -> 180 | BI16: =LOOKUP('Monthly Operations'!BI3,'Inputs S'!1:1,'Inputs S'!4:4) -> 180 | BJ16: =LOOKUP('Monthly Operations'!BJ3,'Inputs S'!1:1,'Inputs S'!4:4) -> 180 | BK16: =LOOKUP('Monthly Operations'!BK3,'Inputs S'!1:1,'Inputs S'!4:4) -> 180 | BL16: =LOOKUP('Monthly Operations'!BL3,'Inputs S'!1:1,'Inputs S'!4:4) -> 180 | BM16: =LOOKUP('Monthly Operations'!BM3,'Inputs S'!1:1,'Inputs S'!4:4) -> 180 | BN16: =LOOKUP('Monthly Operations'!BN3,'Inputs S'!1:1,'Inputs S'!4:4) -> 180 | BO16: =LOOKUP('Monthly Operations'!BO3,'Inputs S'!1:1,'Inputs S'!4:4) -> 183 | BP16: =LOOKUP('Monthly Operations'!BP3,'Inputs S'!1:1,'Inputs S'!4:4) -> 183 | BQ16: =LOOKUP('Monthly Operations'!BQ3,'Inputs S'!1:1,'Inputs S'!4:4) -> 183 | BR16: =LOOKUP('Monthly Operations'!BR3,'Inputs S'!1:1,'Inputs S'!4:4) -> 183 | BS16: =LOOKUP('Monthly Operations'!BS3,'Inputs S'!1:1,'Inputs S'!4:4) -> 183 | BT16: =LOOKUP('Monthly Operations'!BT3,'Inputs S'!1:1,'Inputs S'!4:4) -> 183 | BU16: =LOOKUP('Monthly Operations'!BU3,'Inputs S'!1:1,'Inputs S'!4:4) -> 183 | BV16: =LOOKUP('Monthly Operations'!BV3,'Inputs S'!1:1,'Inputs S'!4:4) -> 183 | BW16: =LOOKUP('Monthly Operations'!BW3,'Inputs S'!1:1,'Inputs S'!4:4) -> 183 | BX16: =LOOKUP('Monthly Operations'!BX3,'Inputs S'!1:1,'Inputs S'!4:4) -> 183 | BY16: =LOOKUP('Monthly Operations'!BY3,'Inputs S'!1:1,'Inputs S'!4:4) -> 183 | BZ16: =LOOKUP('Monthly Operations'!BZ3,'Inputs S'!1:1,'Inputs S'!4:4) -> 183 | CA16: =LOOKUP('Monthly Operations'!CA3,'Inputs S'!1:1,'Inputs S'!4:4) -> 186 | CB16: =LOOKUP('Monthly Operations'!CB3,'Inputs S'!1:1,'Inputs S'!4:4) -> 186 | CC16: =LOOKUP('Monthly Operations'!CC3,'Inputs S'!1:1,'Inputs S'!4:4) -> 186 | CD16: =LOOKUP('Monthly Operations'!CD3,'Inputs S'!1:1,'Inputs S'!4:4) -> 186 | CE16: =LOOKUP('Monthly Operations'!CE3,'Inputs S'!1:1,'Inputs S'!4:4) -> 186 | CF16: =LOOKUP('Monthly Operations'!CF3,'Inputs S'!1:1,'Inputs S'!4:4) -> 186 | CG16: =LOOKUP('Monthly Operations'!CG3,'Inputs S'!1:1,'Inputs S'!4:4) -> 186 | CH16: =LOOKUP('Monthly Operations'!CH3,'Inputs S'!1:1,'Inputs S'!4:4) -> 186 | CI16: =LOOKUP('Monthly Operations'!CI3,'Inputs S'!1:1,'Inputs S'!4:4) -> 186 | CJ16: =LOOKUP('Monthly Operations'!CJ3,'Inputs S'!1:1,'Inputs S'!4:4) -> 186 | CK16: =LOOKUP('Monthly Operations'!CK3,'Inputs S'!1:1,'Inputs S'!4:4) -> 186 | CL16: =LOOKUP('Monthly Operations'!CL3,'Inputs S'!1:1,'Inputs S'!4:4) -> 186 | CM16: =LOOKUP('Monthly Operations'!CM3,'Inputs S'!1:1,'Inputs S'!4:4) -> 189 | CN16: =LOOKUP('Monthly Operations'!CN3,'Inputs S'!1:1,'Inputs S'!4:4) -> 189 | CO16: =LOOKUP('Monthly Operations'!CO3,'Inputs S'!1:1,'Inputs S'!4:4) -> 189 | CP16: =LOOKUP('Monthly Operations'!CP3,'Inputs S'!1:1,'Inputs S'!4:4) -> 189 | CQ16: =LOOKUP('Monthly Operations'!CQ3,'Inputs S'!1:1,'Inputs S'!4:4) -> 189 | CR16: =LOOKUP('Monthly Operations'!CR3,'Inputs S'!1:1,'Inputs S'!4:4) -> 189 | CS16: =LOOKUP('Monthly Operations'!CS3,'Inputs S'!1:1,'Inputs S'!4:4) -> 189 | CT16: =LOOKUP('Monthly Operations'!CT3,'Inputs S'!1:1,'Inputs S'!4:4) -> 189 | CU16: =LOOKUP('Monthly Operations'!CU3,'Inputs S'!1:1,'Inputs S'!4:4) -> 189 | CV16: =LOOKUP('Monthly Operations'!CV3,'Inputs S'!1:1,'Inputs S'!4:4) -> 189 | CW16: =LOOKUP('Monthly Operations'!CW3,'Inputs S'!1:1,'Inputs S'!4:4) -> 189 | CX16: =LOOKUP('Monthly Operations'!CX3,'Inputs S'!1:1,'Inputs S'!4:4) -> 189 | CY16: =LOOKUP('Monthly Operations'!CY3,'Inputs S'!1:1,'Inputs S'!4:4) -> 192 | CZ16: =LOOKUP('Monthly Operations'!CZ3,'Inputs S'!1:1,'Inputs S'!4:4) -> 192 | DA16: =LOOKUP('Monthly Operations'!DA3,'Inputs S'!1:1,'Inputs S'!4:4) -> 192 | DB16: =LOOKUP('Monthly Operations'!DB3,'Inputs S'!1:1,'Inputs S'!4:4) -> 192 | DC16: =LOOKUP('Monthly Operations'!DC3,'Inputs S'!1:1,'Inputs S'!4:4) -> 192 | DD16: =LOOKUP('Monthly Operations'!DD3,'Inputs S'!1:1,'Inputs S'!4:4) -> 192 | DE16: =LOOKUP('Monthly Operations'!DE3,'Inputs S'!1:1,'Inputs S'!4:4) -> 192 | DF16: =LOOKUP('Monthly Operations'!DF3,'Inputs S'!1:1,'Inputs S'!4:4) -> 192 | DG16: =LOOKUP('Monthly Operations'!DG3,'Inputs S'!1:1,'Inputs S'!4:4) -> 192 | DH16: =LOOKUP('Monthly Operations'!DH3,'Inputs S'!1:1,'Inputs S'!4:4) -> 192 | DI16: =LOOKUP('Monthly Operations'!DI3,'Inputs S'!1:1,'Inputs S'!4:4) -> 192 | DJ16: =LOOKUP('Monthly Operations'!DJ3,'Inputs S'!1:1,'Inputs S'!4:4) -> 192 | DK16: =LOOKUP('Monthly Operations'!DK3,'Inputs S'!1:1,'Inputs S'!4:4) -> 194 | DL16: =LOOKUP('Monthly Operations'!DL3,'Inputs S'!1:1,'Inputs S'!4:4) -> 194 | DM16: =LOOKUP('Monthly Operations'!DM3,'Inputs S'!1:1,'Inputs S'!4:4) -> 194 | DN16: =LOOKUP('Monthly Operations'!DN3,'Inputs S'!1:1,'Inputs S'!4:4) -> 194 | DO16: =LOOKUP('Monthly Operations'!DO3,'Inputs S'!1:1,'Inputs S'!4:4) -> 194 | DP16: =LOOKUP('Monthly Operations'!DP3,'Inputs S'!1:1,'Inputs S'!4:4) -> 194 | DQ16: =LOOKUP('Monthly Operations'!DQ3,'Inputs S'!1:1,'Inputs S'!4:4) -> 194 | DR16: =LOOKUP('Monthly Operations'!DR3,'Inputs S'!1:1,'Inputs S'!4:4) -> 194 | DS16: =LOOKUP('Monthly Operations'!DS3,'Inputs S'!1:1,'Inputs S'!4:4) -> 194 | DT16: =LOOKUP('Monthly Operations'!DT3,'Inputs S'!1:1,'Inputs S'!4:4) -> 194 | DU16: =LOOKUP('Monthly Operations'!DU3,'Inputs S'!1:1,'Inputs S'!4:4) -> 194 | DV16: =LOOKUP('Monthly Operations'!DV3,'Inputs S'!1:1,'Inputs S'!4:4) -> 194 | DW16: =LOOKUP('Monthly Operations'!DW3,'Inputs S'!1:1,'Inputs S'!4:4) -> 197 | DX16: =LOOKUP('Monthly Operations'!DX3,'Inputs S'!1:1,'Inputs S'!4:4) -> 197 | DY16: =LOOKUP('Monthly Operations'!DY3,'Inputs S'!1:1,'Inputs S'!4:4) -> 197 | DZ16: =LOOKUP('Monthly Operations'!DZ3,'Inputs S'!1:1,'Inputs S'!4:4) -> 197 | EA16: =LOOKUP('Monthly Operations'!EA3,'Inputs S'!1:1,'Inputs S'!4:4) -> 197 | EB16: =LOOKUP('Monthly Operations'!EB3,'Inputs S'!1:1,'Inputs S'!4:4) -> 197 | EC16: =LOOKUP('Monthly Operations'!EC3,'Inputs S'!1:1,'Inputs S'!4:4) -> 197 | ED16: =LOOKUP('Monthly Operations'!ED3,'Inputs S'!1:1,'Inputs S'!4:4) -> 197 | EE16: =LOOKUP('Monthly Operations'!EE3,'Inputs S'!1:1,'Inputs S'!4:4) -> 197 | EF16: =LOOKUP('Monthly Operations'!EF3,'Inputs S'!1:1,'Inputs S'!4:4) -> 197 | EG16: =LOOKUP('Monthly Operations'!EG3,'Inputs S'!1:1,'Inputs S'!4:4) -> 197 | EH16: =LOOKUP('Monthly Operations'!EH3,'Inputs S'!1:1,'Inputs S'!4:4) -> 197 | EI16: =LOOKUP('Monthly Operations'!EI3,'Inputs S'!1:1,'Inputs S'!4:4) -> 200 | EJ16: =LOOKUP('Monthly Operations'!EJ3,'Inputs S'!1:1,'Inputs S'!4:4) -> 200 | EK16: =LOOKUP('Monthly Operations'!EK3,'Inputs S'!1:1,'Inputs S'!4:4) -> 200 | EL16: =LOOKUP('Monthly Operations'!EL3,'Inputs S'!1:1,'Inputs S'!4:4) -> 200 | EM16: =LOOKUP('Monthly Operations'!EM3,'Inputs S'!1:1,'Inputs S'!4:4) -> 200 | EN16: =LOOKUP('Monthly Operations'!EN3,'Inputs S'!1:1,'Inputs S'!4:4) -> 200 | EO16: =LOOKUP('Monthly Operations'!EO3,'Inputs S'!1:1,'Inputs S'!4:4) -> 200 | EP16: =LOOKUP('Monthly Operations'!EP3,'Inputs S'!1:1,'Inputs S'!4:4) -> 200 | EQ16: =LOOKUP('Monthly Operations'!EQ3,'Inputs S'!1:1,'Inputs S'!4:4) -> 200 | ER16: =LOOKUP('Monthly Operations'!ER3,'Inputs S'!1:1,'Inputs S'!4:4) -> 200 | ES16: =LOOKUP('Monthly Operations'!ES3,'Inputs S'!1:1,'Inputs S'!4:4) -> 200 | ET16: =LOOKUP('Monthly Operations'!ET3,'Inputs S'!1:1,'Inputs S'!4:4) -> 200 | EU16: =LOOKUP('Monthly Operations'!EU3,'Inputs S'!1:1,'Inputs S'!4:4) -> 203 | EV16: =LOOKUP('Monthly Operations'!EV3,'Inputs S'!1:1,'Inputs S'!4:4) -> 203 | EW16: =LOOKUP('Monthly Operations'!EW3,'Inputs S'!1:1,'Inputs S'!4:4) -> 203 | EX16: =LOOKUP('Monthly Operations'!EX3,'Inputs S'!1:1,'Inputs S'!4:4) -> 203 | EY16: =LOOKUP('Monthly Operations'!EY3,'Inputs S'!1:1,'Inputs S'!4:4) -> 203 | EZ16: =LOOKUP('Monthly Operations'!EZ3,'Inputs S'!1:1,'Inputs S'!4:4) -> 203 | FA16: =LOOKUP('Monthly Operations'!FA3,'Inputs S'!1:1,'Inputs S'!4:4) -> 203 | FB16: =LOOKUP('Monthly Operations'!FB3,'Inputs S'!1:1,'Inputs S'!4:4) -> 203 | FC16: =LOOKUP('Monthly Operations'!FC3,'Inputs S'!1:1,'Inputs S'!4:4) -> 203 | FD16: =LOOKUP('Monthly Operations'!FD3,'Inputs S'!1:1,'Inputs S'!4:4) -> 203 | FE16: =LOOKUP('Monthly Operations'!FE3,'Inputs S'!1:1,'Inputs S'!4:4) -> 203 | FF16: =LOOKUP('Monthly Operations'!FF3,'Inputs S'!1:1,'Inputs S'!4:4) -> 203 | FG16: =LOOKUP('Monthly Operations'!FG3,'Inputs S'!1:1,'Inputs S'!4:4) -> 206 | FH16: =LOOKUP('Monthly Operations'!FH3,'Inputs S'!1:1,'Inputs S'!4:4) -> 206 | FI16: =LOOKUP('Monthly Operations'!FI3,'Inputs S'!1:1,'Inputs S'!4:4) -> 206 | FJ16: =LOOKUP('Monthly Operations'!FJ3,'Inputs S'!1:1,'Inputs S'!4:4) -> 206 | FK16: =LOOKUP('Monthly Operations'!FK3,'Inputs S'!1:1,'Inputs S'!4:4) -> 206 | FL16: =LOOKUP('Monthly Operations'!FL3,'Inputs S'!1:1,'Inputs S'!4:4) -> 206 | FM16: =LOOKUP('Monthly Operations'!FM3,'Inputs S'!1:1,'Inputs S'!4:4) -> 206 | FN16: =LOOKUP('Monthly Operations'!FN3,'Inputs S'!1:1,'Inputs S'!4:4) -> 206 | FO16: =LOOKUP('Monthly Operations'!FO3,'Inputs S'!1:1,'Inputs S'!4:4) -> 206 | FP16: =LOOKUP('Monthly Operations'!FP3,'Inputs S'!1:1,'Inputs S'!4:4) -> 206 | FQ16: =LOOKUP('Monthly Operations'!FQ3,'Inputs S'!1:1,'Inputs S'!4:4) -> 206 | FR16: =LOOKUP('Monthly Operations'!FR3,'Inputs S'!1:1,'Inputs S'!4:4) -> 206 | FS16: =LOOKUP('Monthly Operations'!FS3,'Inputs S'!1:1,'Inputs S'!4:4) -> 209 | FT16: =LOOKUP('Monthly Operations'!FT3,'Inputs S'!1:1,'Inputs S'!4:4) -> 209 | FU16: =LOOKUP('Monthly Operations'!FU3,'Inputs S'!1:1,'Inputs S'!4:4) -> 209 | FV16: =LOOKUP('Monthly Operations'!FV3,'Inputs S'!1:1,'Inputs S'!4:4) -> 209 | FW16: =LOOKUP('Monthly Operations'!FW3,'Inputs S'!1:1,'Inputs S'!4:4) -> 209 | FX16: =LOOKUP('Monthly Operations'!FX3,'Inputs S'!1:1,'Inputs S'!4:4) -> 209 | FY16: =LOOKUP('Monthly Operations'!FY3,'Inputs S'!1:1,'Inputs S'!4:4) -> 209 | FZ16: =LOOKUP('Monthly Operations'!FZ3,'Inputs S'!1:1,'Inputs S'!4:4) -> 209 | GA16: =LOOKUP('Monthly Operations'!GA3,'Inputs S'!1:1,'Inputs S'!4:4) -> 209 | GB16: =LOOKUP('Monthly Operations'!GB3,'Inputs S'!1:1,'Inputs S'!4:4) -> 209 | GC16: =LOOKUP('Monthly Operations'!GC3,'Inputs S'!1:1,'Inputs S'!4:4) -> 209 | GD16: =LOOKUP('Monthly Operations'!GD3,'Inputs S'!1:1,'Inputs S'!4:4) -> 209 | GE16: =LOOKUP('Monthly Operations'!GE3,'Inputs S'!1:1,'Inputs S'!4:4) -> 213 | GF16: =LOOKUP('Monthly Operations'!GF3,'Inputs S'!1:1,'Inputs S'!4:4) -> 213 | GG16: =LOOKUP('Monthly Operations'!GG3,'Inputs S'!1:1,'Inputs S'!4:4) -> 213 | GH16: =LOOKUP('Monthly Operations'!GH3,'Inputs S'!1:1,'Inputs S'!4:4) -> 213 | GI16: =LOOKUP('Monthly Operations'!GI3,'Inputs S'!1:1,'Inputs S'!4:4) -> 213 | GJ16: =LOOKUP('Monthly Operations'!GJ3,'Inputs S'!1:1,'Inputs S'!4:4) -> 213 | GK16: =LOOKUP('Monthly Operations'!GK3,'Inputs S'!1:1,'Inputs S'!4:4) -> 213 | GL16: =LOOKUP('Monthly Operations'!GL3,'Inputs S'!1:1,'Inputs S'!4:4) -> 213 | GM16: =LOOKUP('Monthly Operations'!GM3,'Inputs S'!1:1,'Inputs S'!4:4) -> 213 | GN16: =LOOKUP('Monthly Operations'!GN3,'Inputs S'!1:1,'Inputs S'!4:4) -> 213 | GO16: =LOOKUP('Monthly Operations'!GO3,'Inputs S'!1:1,'Inputs S'!4:4) -> 213 | GP16: =LOOKUP('Monthly Operations'!GP3,'Inputs S'!1:1,'Inputs S'!4:4) -> 213 | GQ16: =LOOKUP('Monthly Operations'!GQ3,'Inputs S'!1:1,'Inputs S'!4:4) -> 216 | GR16: =LOOKUP('Monthly Operations'!GR3,'Inputs S'!1:1,'Inputs S'!4:4) -> 216 | GS16: =LOOKUP('Monthly Operations'!GS3,'Inputs S'!1:1,'Inputs S'!4:4) -> 216 | GT16: =LOOKUP('Monthly Operations'!GT3,'Inputs S'!1:1,'Inputs S'!4:4) -> 216 | GU16: =LOOKUP('Monthly Operations'!GU3,'Inputs S'!1:1,'Inputs S'!4:4) -> 216 | GV16: =LOOKUP('Monthly Operations'!GV3,'Inputs S'!1:1,'Inputs S'!4:4) -> 216 | GW16: =LOOKUP('Monthly Operations'!GW3,'Inputs S'!1:1,'Inputs S'!4:4) -> 216 | GX16: =LOOKUP('Monthly Operations'!GX3,'Inputs S'!1:1,'Inputs S'!4:4) -> 216 | GY16: =LOOKUP('Monthly Operations'!GY3,'Inputs S'!1:1,'Inputs S'!4:4) -> 216 | GZ16: =LOOKUP('Monthly Operations'!GZ3,'Inputs S'!1:1,'Inputs S'!4:4) -> 216 | HA16: =LOOKUP('Monthly Operations'!HA3,'Inputs S'!1:1,'Inputs S'!4:4) -> 216 | HB16: =LOOKUP('Monthly Operations'!HB3,'Inputs S'!1:1,'Inputs S'!4:4) -> 216 | HC16: =LOOKUP('Monthly Operations'!HC3,'Inputs S'!1:1,'Inputs S'!4:4) -> 219 | HD16: =LOOKUP('Monthly Operations'!HD3,'Inputs S'!1:1,'Inputs S'!4:4) -> 219 | HE16: =LOOKUP('Monthly Operations'!HE3,'Inputs S'!1:1,'Inputs S'!4:4) -> 219 | HF16: =LOOKUP('Monthly Operations'!HF3,'Inputs S'!1:1,'Inputs S'!4:4) -> 219 | HG16: =LOOKUP('Monthly Operations'!HG3,'Inputs S'!1:1,'Inputs S'!4:4) -> 219 | HH16: =LOOKUP('Monthly Operations'!HH3,'Inputs S'!1:1,'Inputs S'!4:4) -> 219 | HI16: =LOOKUP('Monthly Operations'!HI3,'Inputs S'!1:1,'Inputs S'!4:4) -> 219 | HJ16: =LOOKUP('Monthly Operations'!HJ3,'Inputs S'!1:1,'Inputs S'!4:4) -> 219 | HK16: =LOOKUP('Monthly Operations'!HK3,'Inputs S'!1:1,'Inputs S'!4:4) -> 219 | HL16: =LOOKUP('Monthly Operations'!HL3,'Inputs S'!1:1,'Inputs S'!4:4) -> 219 | HM16: =LOOKUP('Monthly Operations'!HM3,'Inputs S'!1:1,'Inputs S'!4:4) -> 219 | HN16: =LOOKUP('Monthly Operations'!HN3,'Inputs S'!1:1,'Inputs S'!4:4) -> 219 | HO16: =LOOKUP('Monthly Operations'!HO3,'Inputs S'!1:1,'Inputs S'!4:4) -> 222 | HP16: =LOOKUP('Monthly Operations'!HP3,'Inputs S'!1:1,'Inputs S'!4:4) -> 222 | HQ16: =LOOKUP('Monthly Operations'!HQ3,'Inputs S'!1:1,'Inputs S'!4:4) -> 222 | HR16: =LOOKUP('Monthly Operations'!HR3,'Inputs S'!1:1,'Inputs S'!4:4) -> 222 | HS16: =LOOKUP('Monthly Operations'!HS3,'Inputs S'!1:1,'Inputs S'!4:4) -> 222 | HT16: =LOOKUP('Monthly Operations'!HT3,'Inputs S'!1:1,'Inputs S'!4:4) -> 222 | HU16: =LOOKUP('Monthly Operations'!HU3,'Inputs S'!1:1,'Inputs S'!4:4) -> 222 | HV16: =LOOKUP('Monthly Operations'!HV3,'Inputs S'!1:1,'Inputs S'!4:4) -> 222 | HW16: =LOOKUP('Monthly Operations'!HW3,'Inputs S'!1:1,'Inputs S'!4:4) -> 222 | HX16: =LOOKUP('Monthly Operations'!HX3,'Inputs S'!1:1,'Inputs S'!4:4) -> 222 | HY16: =LOOKUP('Monthly Operations'!HY3,'Inputs S'!1:1,'Inputs S'!4:4) -> 222 | HZ16: =LOOKUP('Monthly Operations'!HZ3,'Inputs S'!1:1,'Inputs S'!4:4) -> 222 | IA16: =LOOKUP('Monthly Operations'!IA3,'Inputs S'!1:1,'Inputs S'!4:4) -> 226 | IB16: =LOOKUP('Monthly Operations'!IB3,'Inputs S'!1:1,'Inputs S'!4:4) -> 226 | IC16: =LOOKUP('Monthly Operations'!IC3,'Inputs S'!1:1,'Inputs S'!4:4) -> 226 | ID16: =LOOKUP('Monthly Operations'!ID3,'Inputs S'!1:1,'Inputs S'!4:4) -> 226 | IE16: =LOOKUP('Monthly Operations'!IE3,'Inputs S'!1:1,'Inputs S'!4:4) -> 226 | IF16: =LOOKUP('Monthly Operations'!IF3,'Inputs S'!1:1,'Inputs S'!4:4) -> 226 | IG16: =LOOKUP('Monthly Operations'!IG3,'Inputs S'!1:1,'Inputs S'!4:4) -> 226 | IH16: =LOOKUP('Monthly Operations'!IH3,'Inputs S'!1:1,'Inputs S'!4:4) -> 226 | II16: =LOOKUP('Monthly Operations'!II3,'Inputs S'!1:1,'Inputs S'!4:4) -> 226 | IJ16: =LOOKUP('Monthly Operations'!IJ3,'Inputs S'!1:1,'Inputs S'!4:4) -> 226 | IK16: =LOOKUP('Monthly Operations'!IK3,'Inputs S'!1:1,'Inputs S'!4:4) -> 226 | IL16: =LOOKUP('Monthly Operations'!IL3,'Inputs S'!1:1,'Inputs S'!4:4) -> 226 | IM16: =LOOKUP('Monthly Operations'!IM3,'Inputs S'!1:1,'Inputs S'!4:4) -> 229 | IN16: =LOOKUP('Monthly Operations'!IN3,'Inputs S'!1:1,'Inputs S'!4:4) -> 229 | IO16: =LOOKUP('Monthly Operations'!IO3,'Inputs S'!1:1,'Inputs S'!4:4) -> 229 | IP16: =LOOKUP('Monthly Operations'!IP3,'Inputs S'!1:1,'Inputs S'!4:4) -> 229 | IQ16: =LOOKUP('Monthly Operations'!IQ3,'Inputs S'!1:1,'Inputs S'!4:4) -> 229 | IR16: =LOOKUP('Monthly Operations'!IR3,'Inputs S'!1:1,'Inputs S'!4:4) -> 229 | IS16: =LOOKUP('Monthly Operations'!IS3,'Inputs S'!1:1,'Inputs S'!4:4) -> 229 | IT16: =LOOKUP('Monthly Operations'!IT3,'Inputs S'!1:1,'Inputs S'!4:4) -> 229 | IU16: =LOOKUP('Monthly Operations'!IU3,'Inputs S'!1:1,'Inputs S'!4:4) -> 229 | IV16: =LOOKUP('Monthly Operations'!IV3,'Inputs S'!1:1,'Inputs S'!4:4) -> 229 | IW16: =LOOKUP('Monthly Operations'!IW3,'Inputs S'!1:1,'Inputs S'!4:4) -> 229 | IX16: =LOOKUP('Monthly Operations'!IX3,'Inputs S'!1:1,'Inputs S'!4:4) -> 229 | IY16: =LOOKUP('Monthly Operations'!IY3,'Inputs S'!1:1,'Inputs S'!4:4) -> 232 | IZ16: =LOOKUP('Monthly Operations'!IZ3,'Inputs S'!1:1,'Inputs S'!4:4) -> 232 | JA16: =LOOKUP('Monthly Operations'!JA3,'Inputs S'!1:1,'Inputs S'!4:4) -> 232 | JB16: =LOOKUP('Monthly Operations'!JB3,'Inputs S'!1:1,'Inputs S'!4:4) -> 232 | JC16: =LOOKUP('Monthly Operations'!JC3,'Inputs S'!1:1,'Inputs S'!4:4) -> 232 | JD16: =LOOKUP('Monthly Operations'!JD3,'Inputs S'!1:1,'Inputs S'!4:4) -> 232 | JE16: =LOOKUP('Monthly Operations'!JE3,'Inputs S'!1:1,'Inputs S'!4:4) -> 232 | JF16: =LOOKUP('Monthly Operations'!JF3,'Inputs S'!1:1,'Inputs S'!4:4) -> 232 | JG16: =LOOKUP('Monthly Operations'!JG3,'Inputs S'!1:1,'Inputs S'!4:4) -> 232 | JH16: =LOOKUP('Monthly Operations'!JH3,'Inputs S'!1:1,'Inputs S'!4:4) -> 232 | JI16: =LOOKUP('Monthly Operations'!JI3,'Inputs S'!1:1,'Inputs S'!4:4) -> 232 | JJ16: =LOOKUP('Monthly Operations'!JJ3,'Inputs S'!1:1,'Inputs S'!4:4) -> 232 | JK16: =LOOKUP('Monthly Operations'!JK3,'Inputs S'!1:1,'Inputs S'!4:4) -> 236 | JL16: =LOOKUP('Monthly Operations'!JL3,'Inputs S'!1:1,'Inputs S'!4:4) -> 236 | JM16: =LOOKUP('Monthly Operations'!JM3,'Inputs S'!1:1,'Inputs S'!4:4) -> 236 | JN16: =LOOKUP('Monthly Operations'!JN3,'Inputs S'!1:1,'Inputs S'!4:4) -> 236 | JO16: =LOOKUP('Monthly Operations'!JO3,'Inputs S'!1:1,'Inputs S'!4:4) -> 236 | JP16: =LOOKUP('Monthly Operations'!JP3,'Inputs S'!1:1,'Inputs S'!4:4) -> 236 | JQ16: =LOOKUP('Monthly Operations'!JQ3,'Inputs S'!1:1,'Inputs S'!4:4) -> 236 | JR16: =LOOKUP('Monthly Operations'!JR3,'Inputs S'!1:1,'Inputs S'!4:4) -> 236 | JS16: =LOOKUP('Monthly Operations'!JS3,'Inputs S'!1:1,'Inputs S'!4:4) -> 236 | JT16: =LOOKUP('Monthly Operations'!JT3,'Inputs S'!1:1,'Inputs S'!4:4) -> 236 | JU16: =LOOKUP('Monthly Operations'!JU3,'Inputs S'!1:1,'Inputs S'!4:4) -> 236 | JV16: =LOOKUP('Monthly Operations'!JV3,'Inputs S'!1:1,'Inputs S'!4:4) -> 236 | JW16: =LOOKUP('Monthly Operations'!JW3,'Inputs S'!1:1,'Inputs S'!4:4) -> 239 | JX16: =LOOKUP('Monthly Operations'!JX3,'Inputs S'!1:1,'Inputs S'!4:4) -> 239 | JY16: =LOOKUP('Monthly Operations'!JY3,'Inputs S'!1:1,'Inputs S'!4:4) -> 239 | JZ16: =LOOKUP('Monthly Operations'!JZ3,'Inputs S'!1:1,'Inputs S'!4:4) -> 239 | KA16: =LOOKUP('Monthly Operations'!KA3,'Inputs S'!1:1,'Inputs S'!4:4) -> 239 | KB16: =LOOKUP('Monthly Operations'!KB3,'Inputs S'!1:1,'Inputs S'!4:4) -> 239 | KC16: =LOOKUP('Monthly Operations'!KC3,'Inputs S'!1:1,'Inputs S'!4:4) -> 239 | KD16: =LOOKUP('Monthly Operations'!KD3,'Inputs S'!1:1,'Inputs S'!4:4) -> 239 | KE16: =LOOKUP('Monthly Operations'!KE3,'Inputs S'!1:1,'Inputs S'!4:4) -> 239 | KF16: =LOOKUP('Monthly Operations'!KF3,'Inputs S'!1:1,'Inputs S'!4:4) -> 239 | KG16: =LOOKUP('Monthly Operations'!KG3,'Inputs S'!1:1,'Inputs S'!4:4) -> 239 | KH16: =LOOKUP('Monthly Operations'!KH3,'Inputs S'!1:1,'Inputs S'!4:4) -> 239 | KI16: =LOOKUP('Monthly Operations'!KI3,'Inputs S'!1:1,'Inputs S'!4:4) -> 243 | KJ16: =LOOKUP('Monthly Operations'!KJ3,'Inputs S'!1:1,'Inputs S'!4:4) -> 243 | KK16: =LOOKUP('Monthly Operations'!KK3,'Inputs S'!1:1,'Inputs S'!4:4) -> 243 | KL16: =LOOKUP('Monthly Operations'!KL3,'Inputs S'!1:1,'Inputs S'!4:4) -> 243 | KM16: =LOOKUP('Monthly Operations'!KM3,'Inputs S'!1:1,'Inputs S'!4:4) -> 243 | KN16: =LOOKUP('Monthly Operations'!KN3,'Inputs S'!1:1,'Inputs S'!4:4) -> 243 | KO16: =LOOKUP('Monthly Operations'!KO3,'Inputs S'!1:1,'Inputs S'!4:4) -> 243 | KP16: =LOOKUP('Monthly Operations'!KP3,'Inputs S'!1:1,'Inputs S'!4:4) -> 243 | KQ16: =LOOKUP('Monthly Operations'!KQ3,'Inputs S'!1:1,'Inputs S'!4:4) -> 243 | KR16: =LOOKUP('Monthly Operations'!KR3,'Inputs S'!1:1,'Inputs S'!4:4) -> 243 | KS16: =LOOKUP('Monthly Operations'!KS3,'Inputs S'!1:1,'Inputs S'!4:4) -> 243 | KT16: =LOOKUP('Monthly Operations'!KT3,'Inputs S'!1:1,'Inputs S'!4:4) -> 243 | KU16: =LOOKUP('Monthly Operations'!KU3,'Inputs S'!1:1,'Inputs S'!4:4) -> 243 | KV16: =LOOKUP('Monthly Operations'!KV3,'Inputs S'!1:1,'Inputs S'!4:4) -> 243 | KW16: =LOOKUP('Monthly Operations'!KW3,'Inputs S'!1:1,'Inputs S'!4:4) -> 243 | KX16: =LOOKUP('Monthly Operations'!KX3,'Inputs S'!1:1,'Inputs S'!4:4) -> 243 | KY16: =LOOKUP('Monthly Operations'!KY3,'Inputs S'!1:1,'Inputs S'!4:4) -> 243 | KZ16: =LOOKUP('Monthly Operations'!KZ3,'Inputs S'!1:1,'Inputs S'!4:4) -> 243 | LA16: =LOOKUP('Monthly Operations'!LA3,'Inputs S'!1:1,'Inputs S'!4:4) -> 243 | LB16: =LOOKUP('Monthly Operations'!LB3,'Inputs S'!1:1,'Inputs S'!4:4) -> 243 | LC16: =LOOKUP('Monthly Operations'!LC3,'Inputs S'!1:1,'Inputs S'!4:4) -> 243 | LD16: =LOOKUP('Monthly Operations'!LD3,'Inputs S'!1:1,'Inputs S'!4:4) -> 243 | LE16: =LOOKUP('Monthly Operations'!LE3,'Inputs S'!1:1,'Inputs S'!4:4) -> 243 | LF16: =LOOKUP('Monthly Operations'!LF3,'Inputs S'!1:1,'Inputs S'!4:4) -> 243 | LG16: =LOOKUP('Monthly Operations'!LG3,'Inputs S'!1:1,'Inputs S'!4:4) -> 243 | LH16: =LOOKUP('Monthly Operations'!LH3,'Inputs S'!1:1,'Inputs S'!4:4) -> 243 | LI16: =LOOKUP('Monthly Operations'!LI3,'Inputs S'!1:1,'Inputs S'!4:4) -> 243 | LJ16: =LOOKUP('Monthly Operations'!LJ3,'Inputs S'!1:1,'Inputs S'!4:4) -> 243 | LK16: =LOOKUP('Monthly Operations'!LK3,'Inputs S'!1:1,'Inputs S'!4:4) -> 243 | LL16: =LOOKUP('Monthly Operations'!LL3,'Inputs S'!1:1,'Inputs S'!4:4) -> 243 | LM16: =LOOKUP('Monthly Operations'!LM3,'Inputs S'!1:1,'Inputs S'!4:4) -> 243 | LN16: =LOOKUP('Monthly Operations'!LN3,'Inputs S'!1:1,'Inputs S'!4:4) -> 243 | LO16: =LOOKUP('Monthly Operations'!LO3,'Inputs S'!1:1,'Inputs S'!4:4) -> 243 | LP16: =LOOKUP('Monthly Operations'!LP3,'Inputs S'!1:1,'Inputs S'!4:4) -> 243 | LQ16: =LOOKUP('Monthly Operations'!LQ3,'Inputs S'!1:1,'Inputs S'!4:4) -> 243 | LR16: =LOOKUP('Monthly Operations'!LR3,'Inputs S'!1:1,'Inputs S'!4:4) -> 243 | LS16: =LOOKUP('Monthly Operations'!LS3,'Inputs S'!1:1,'Inputs S'!4:4) -> 243 | LT16: =LOOKUP('Monthly Operations'!LT3,'Inputs S'!1:1,'Inputs S'!4:4) -> 243 | LU16: =LOOKUP('Monthly Operations'!LU3,'Inputs S'!1:1,'Inputs S'!4:4) -> 243 | LV16: =LOOKUP('Monthly Operations'!LV3,'Inputs S'!1:1,'Inputs S'!4:4) -> 243 | LW16: =LOOKUP('Monthly Operations'!LW3,'Inputs S'!1:1,'Inputs S'!4:4) -> 243 | LX16: =LOOKUP('Monthly Operations'!LX3,'Inputs S'!1:1,'Inputs S'!4:4) -> 243 | LY16: =LOOKUP('Monthly Operations'!LY3,'Inputs S'!1:1,'Inputs S'!4:4) -> 243 | LZ16: =LOOKUP('Monthly Operations'!LZ3,'Inputs S'!1:1,'Inputs S'!4:4) -> 243 | MA16: =LOOKUP('Monthly Operations'!MA3,'Inputs S'!1:1,'Inputs S'!4:4) -> 243 | MB16: =LOOKUP('Monthly Operations'!MB3,'Inputs S'!1:1,'Inputs S'!4:4) -> 243 | MC16: =LOOKUP('Monthly Operations'!MC3,'Inputs S'!1:1,'Inputs S'!4:4) -> 243 | MD16: =LOOKUP('Monthly Operations'!MD3,'Inputs S'!1:1,'Inputs S'!4:4) -> 243 | ME16: =LOOKUP('Monthly Operations'!ME3,'Inputs S'!1:1,'Inputs S'!4:4) -> 243 | MF16: =LOOKUP('Monthly Operations'!MF3,'Inputs S'!1:1,'Inputs S'!4:4) -> 243 | MG16: =LOOKUP('Monthly Operations'!MG3,'Inputs S'!1:1,'Inputs S'!4:4) -> 243 | MH16: =LOOKUP('Monthly Operations'!MH3,'Inputs S'!1:1,'Inputs S'!4:4) -> 243 | MI16: =LOOKUP('Monthly Operations'!MI3,'Inputs S'!1:1,'Inputs S'!4:4) -> 243 | MJ16: =LOOKUP('Monthly Operations'!MJ3,'Inputs S'!1:1,'Inputs S'!4:4) -> 243 | MK16: =LOOKUP('Monthly Operations'!MK3,'Inputs S'!1:1,'Inputs S'!4:4) -> 243 | ML16: =LOOKUP('Monthly Operations'!ML3,'Inputs S'!1:1,'Inputs S'!4:4) -> 243 | MM16: =LOOKUP('Monthly Operations'!MM3,'Inputs S'!1:1,'Inputs S'!4:4) -> 243 | MN16: =LOOKUP('Monthly Operations'!MN3,'Inputs S'!1:1,'Inputs S'!4:4) -> 243 | MO16: =LOOKUP('Monthly Operations'!MO3,'Inputs S'!1:1,'Inputs S'!4:4) -> 243 | MP16: =LOOKUP('Monthly Operations'!MP3,'Inputs S'!1:1,'Inputs S'!4:4) -> 243 | MQ16: =LOOKUP('Monthly Operations'!MQ3,'Inputs S'!1:1,'Inputs S'!4:4) -> 243 | MR16: =LOOKUP('Monthly Operations'!MR3,'Inputs S'!1:1,'Inputs S'!4:4) -> 243 | MS16: =LOOKUP('Monthly Operations'!MS3,'Inputs S'!1:1,'Inputs S'!4:4) -> 243 | MT16: =LOOKUP('Monthly Operations'!MT3,'Inputs S'!1:1,'Inputs S'!4:4) -> 243 | MU16: =LOOKUP('Monthly Operations'!MU3,'Inputs S'!1:1,'Inputs S'!4:4) -> 243 | MV16: =LOOKUP('Monthly Operations'!MV3,'Inputs S'!1:1,'Inputs S'!4:4) -> 243 | MW16: =LOOKUP('Monthly Operations'!MW3,'Inputs S'!1:1,'Inputs S'!4:4) -> 243 | MX16: =LOOKUP('Monthly Operations'!MX3,'Inputs S'!1:1,'Inputs S'!4:4) -> 243 | MY16: =LOOKUP('Monthly Operations'!MY3,'Inputs S'!1:1,'Inputs S'!4:4) -> 243 | MZ16: =LOOKUP('Monthly Operations'!MZ3,'Inputs S'!1:1,'Inputs S'!4:4) -> 243 | NA16: =LOOKUP('Monthly Operations'!NA3,'Inputs S'!1:1,'Inputs S'!4:4) -> 243 | NB16: =LOOKUP('Monthly Operations'!NB3,'Inputs S'!1:1,'Inputs S'!4:4) -> 243 | NC16: =LOOKUP('Monthly Operations'!NC3,'Inputs S'!1:1,'Inputs S'!4:4) -> 243 | ND16: =LOOKUP('Monthly Operations'!ND3,'Inputs S'!1:1,'Inputs S'!4:4) -> 243 | NE16: =LOOKUP('Monthly Operations'!NE3,'Inputs S'!1:1,'Inputs S'!4:4) -> 243 | NF16: =LOOKUP('Monthly Operations'!NF3,'Inputs S'!1:1,'Inputs S'!4:4) -> 243 | NG16: =LOOKUP('Monthly Operations'!NG3,'Inputs S'!1:1,'Inputs S'!4:4) -> 243 | NH16: =LOOKUP('Monthly Operations'!NH3,'Inputs S'!1:1,'Inputs S'!4:4) -> 243 | NI16: =LOOKUP('Monthly Operations'!NI3,'Inputs S'!1:1,'Inputs S'!4:4) -> 243 | NJ16: =LOOKUP('Monthly Operations'!NJ3,'Inputs S'!1:1,'Inputs S'!4:4) -> 243 | NK16: =LOOKUP('Monthly Operations'!NK3,'Inputs S'!1:1,'Inputs S'!4:4) -> 243 | NL16: =LOOKUP('Monthly Operations'!NL3,'Inputs S'!1:1,'Inputs S'!4:4) -> 243 | NM16: =LOOKUP('Monthly Operations'!NM3,'Inputs S'!1:1,'Inputs S'!4:4) -> 243 | NN16: =LOOKUP('Monthly Operations'!NN3,'Inputs S'!1:1,'Inputs S'!4:4) -> 243
C17: REC | G17: 0 | H17: 0 | I17: 0 | J17: 0 | K17: 0 | L17: 0 | M17: 0 | N17: 0 | O17: 0 | P17: 0 | Q17: 0 | R17: 0 | S17: 0 | T17: 0 | U17: 0 | V17: 0 | W17: 0 | X17: 0 | Y17: 0 | Z17: 0 | AA17: 0 | AB17: 0 | AC17: 0 | AD17: 0 | AE17: 0 | AF17: 0 | AG17: 0 | AH17: 0 | AI17: 0 | AJ17: 0 | AK17: 0 | AL17: 0 | AM17: 0 | AN17: 0 | AO17: 0 | AP17: 0 | AQ17: 0 | AR17: 0 | AS17: 0 | AT17: 0 | AU17: 0 | AV17: 0 | AW17: 0 | AX17: 0 | AY17: 0 | AZ17: 0 | BA17: 0 | BB17: 0 | BC17: 0 | BD17: 0 | BE17: 0 | BF17: 0 | BG17: 0 | BH17: 0 | BI17: 0 | BJ17: 0 | BK17: 0 | BL17: 0 | BM17: 0 | BN17: 0 | BO17: 0 | BP17: 0 | BQ17: 0 | BR17: 0 | BS17: 0 | BT17: 0 | BU17: 0 | BV17: 0 | BW17: 0 | BX17: 0 | BY17: 0 | BZ17: 0 | CA17: 0 | CB17: 0 | CC17: 0 | CD17: 0 | CE17: 0 | CF17: 0 | CG17: 0 | CH17: 0 | CI17: 0 | CJ17: 0 | CK17: 0 | CL17: 0 | CM17: 0 | CN17: 0 | CO17: 0 | CP17: 0 | CQ17: 0 | CR17: 0 | CS17: 0 | CT17: 0 | CU17: 0 | CV17: 0 | CW17: 0 | CX17: 0 | CY17: 0 | CZ17: 0 | DA17: 0 | DB17: 0 | DC17: 0 | DD17: 0 | DE17: 0 | DF17: 0 | DG17: 0 | DH17: 0 | DI17: 0 | DJ17: 0 | DK17: 0 | DL17: 0 | DM17: 0 | DN17: 0 | DO17: 0 | DP17: 0 | DQ17: 0 | DR17: 0 | DS17: 0 | DT17: 0 | DU17: 0 | DV17: 0 | DW17: 0 | DX17: 0 | DY17: 0 | DZ17: 0 | EA17: 0 | EB17: 0 | EC17: 0 | ED17: 0 | EE17: 0 | EF17: 0 | EG17: 0 | EH17: 0 | EI17: 0 | EJ17: 0 | EK17: 0 | EL17: 0 | EM17: 0 | EN17: 0 | EO17: 0 | EP17: 0 | EQ17: 0 | ER17: 0 | ES17: 0 | ET17: 0 | EU17: 0 | EV17: 0 | EW17: 0 | EX17: 0 | EY17: 0 | EZ17: 0 | FA17: 0 | FB17: 0 | FC17: 0 | FD17: 0 | FE17: 0 | FF17: 0 | FG17: 0 | FH17: 0 | FI17: 0 | FJ17: 0 | FK17: 0 | FL17: 0 | FM17: 0 | FN17: 0 | FO17: 0 | FP17: 0 | FQ17: 0 | FR17: 0 | FS17: 0 | FT17: 0 | FU17: 0 | FV17: 0 | FW17: 0 | FX17: 0 | FY17: 0 | FZ17: 0 | GA17: 0 | GB17: 0 | GC17: 0 | GD17: 0 | GE17: 0 | GF17: 0 | GG17: 0 | GH17: 0 | GI17: 0 | GJ17: 0 | GK17: 0 | GL17: 0 | GM17: 0 | GN17: 0 | GO17: 0 | GP17: 0 | GQ17: 0 | GR17: 0 | GS17: 0 | GT17: 0 | GU17: 0 | GV17: 0 | GW17: 0 | GX17: 0 | GY17: 0 | GZ17: 0 | HA17: 0 | HB17: 0 | HC17: 0 | HD17: 0 | HE17: 0 | HF17: 0 | HG17: 0 | HH17: 0 | HI17: 0 | HJ17: 0 | HK17: 0 | HL17: 0 | HM17: 0 | HN17: 0 | HO17: 0 | HP17: 0 | HQ17: 0 | HR17: 0 | HS17: 0 | HT17: 0 | HU17: 0 | HV17: 0 | HW17: 0 | HX17: 0 | HY17: 0 | HZ17: 0 | IA17: 0 | IB17: 0 | IC17: 0 | ID17: 0 | IE17: 0 | IF17: 0 | IG17: 0 | IH17: 0 | II17: 0 | IJ17: 0 | IK17: 0 | IL17: 0 | IM17: 0 | IN17: 0 | IO17: 0 | IP17: 0 | IQ17: 0 | IR17: 0 | IS17: 0 | IT17: 0 | IU17: 0 | IV17: 0 | IW17: 0 | IX17: 0 | IY17: 0 | IZ17: 0 | JA17: 0 | JB17: 0 | JC17: 0 | JD17: 0 | JE17: 0 | JF17: 0 | JG17: 0 | JH17: 0 | JI17: 0 | JJ17: 0 | JK17: 0 | JL17: 0 | JM17: 0 | JN17: 0 | JO17: 0 | JP17: 0 | JQ17: 0 | JR17: 0 | JS17: 0 | JT17: 0 | JU17: 0 | JV17: 0 | JW17: 0 | JX17: 0 | JY17: 0 | JZ17: 0 | KA17: 0 | KB17: 0 | KC17: 0 | KD17: 0 | KE17: 0 | KF17: 0 | KG17: 0 | KH17: 0 | KI17: 0 | KJ17: 0 | KK17: 0 | KL17: 0 | KM17: 0 | KN17: 0 | KO17: 0 | KP17: 0 | KQ17: 0 | KR17: 0 | KS17: 0 | KT17: 0 | KU17: 0 | KV17: 0 | KW17: 0 | KX17: 0 | KY17: 0 | KZ17: 0 | LA17: 0 | LB17: 0 | LC17: 0 | LD17: 0 | LE17: 0 | LF17: 0 | LG17: 0 | LH17: 0 | LI17: 0 | LJ17: 0 | LK17: 0 | LL17: 0 | LM17: 0 | LN17: 0 | LO17: 0 | LP17: 0 | LQ17: 0 | LR17: 0 | LS17: 0 | LT17: 0 | LU17: 0 | LV17: 0 | LW17: 0 | LX17: 0 | LY17: 0 | LZ17: 0 | MA17: 0 | MB17: 0 | MC17: 0 | MD17: 0 | ME17: 0 | MF17: 0 | MG17: 0 | MH17: 0 | MI17: 0 | MJ17: 0 | MK17: 0 | ML17: 0 | MM17: 0 | MN17: 0 | MO17: 0 | MP17: 0 | MQ17: 0 | MR17: 0 | MS17: 0 | MT17: 0 | MU17: 0 | MV17: 0 | MW17: 0 | MX17: 0 | MY17: 0 | MZ17: 0 | NA17: 0 | NB17: 0 | NC17: 0 | ND17: 0 | NE17: 0 | NF17: 0 | NG17: 0 | NH17: 0 | NI17: 0 | NJ17: 0 | NK17: 0 | NL17: 0 | NM17: 0 | NN17: 0
C19: Revenue - P50 | G19: =G7*(G16+G17) -> 0 | H19: =H7*(H16+H17) -> 0 | I19: 0 | J19: 0 | K19: 0 | L19: 148186.4403 | M19: 148186.4403 | N19: 148186.4403 | O19: 148186.4403 | P19: 148186.4403 | Q19: 148186.4403 | R19: 148186.4403 | S19: 150047.4876 | T19: 150047.4876 | U19: 150047.4876 | V19: 150047.4876 | W19: 150047.4876 | X19: 150047.4876 | Y19: 150047.4876 | Z19: 150047.4876 | AA19: 150047.4876 | AB19: 150047.4876 | AC19: 150047.4876 | AD19: 150047.4876 | AE19: 151019.4163 | AF19: 151019.4163 | AG19: 151019.4163 | AH19: 151019.4163 | AI19: 151019.4163 | AJ19: 151019.4163 | AK19: 151019.4163 | AL19: 151019.4163 | AM19: 151019.4163 | AN19: 151019.4163 | AO19: 151019.4163 | AP19: 151019.4163 | AQ19: 152832.521 | AR19: 152832.521 | AS19: 152832.521 | AT19: 152832.521 | AU19: 152832.521 | AV19: 152832.521 | AW19: 152832.521 | AX19: 152832.521 | AY19: 152832.521 | AZ19: 152832.521 | BA19: 152832.521 | BB19: 152832.521 | BC19: 153765.2239 | BD19: 153765.2239 | BE19: 153765.2239 | BF19: 153765.2239 | BG19: 153765.2239 | BH19: 153765.2239 | BI19: 153765.2239 | BJ19: 153765.2239 | BK19: 153765.2239 | BL19: 153765.2239 | BM19: 153765.2239 | BN19: 153765.2239 | BO19: 155530.3859 | BP19: 155530.3859 | BQ19: 155530.3859 | BR19: 155530.3859 | BS19: 155530.3859 | BT19: =BT7*(BT16+BT17) -> 155530.3859 | BU19: 155530.3859 | BV19: 155530.3859 | BW19: 155530.3859 | BX19: 155530.3859 | BY19: 155530.3859 | BZ19: 155530.3859 | CA19: 157269.3974 | CB19: 157269.3974 | CC19: 157269.3974 | CD19: 157269.3974 | CE19: 157269.3974 | CF19: 157269.3974 | CG19: 157269.3974 | CH19: 157269.3974 | CI19: 157269.3974 | CJ19: 157269.3974 | CK19: 157269.3974 | CL19: 157269.3974 | CM19: 158982.2583 | CN19: 158982.2583 | CO19: 158982.2583 | CP19: 158982.2583 | CQ19: 158982.2583 | CR19: 158982.2583 | CS19: 158982.2583 | CT19: 158982.2583 | CU19: 158982.2583 | CV19: 158982.2583 | CW19: 158982.2583 | CX19: 158982.2583 | CY19: 160668.9686 | CZ19: 160668.9686 | DA19: 160668.9686 | DB19: 160668.9686 | DC19: 160668.9686 | DD19: 160668.9686 | DE19: 160668.9686 | DF19: 160668.9686 | DG19: 160668.9686 | DH19: 160668.9686 | DI19: 160668.9686 | DJ19: 160668.9686 | DK19: 161497.0693 | DL19: 161497.0693 | DM19: 161497.0693 | DN19: 161497.0693 | DO19: 161497.0693 | DP19: 161497.0693 | DQ19: 161497.0693 | DR19: 161497.0693 | DS19: 161497.0693 | DT19: 161497.0693 | DU19: 161497.0693 | DV19: 161497.0693 | DW19: 163135.837 | DX19: 163135.837 | DY19: 163135.837 | DZ19: 163135.837 | EA19: 163135.837 | EB19: 163135.837 | EC19: 163135.837 | ED19: 163135.837 | EE19: 163135.837 | EF19: =EF7*(EF16+EF17) -> 163135.837 | EG19: 163135.837 | EH19: 163135.837 | EI19: 164748.4542 | EJ19: 164748.4542 | EK19: 164748.4542 | EL19: 164748.4542 | EM19: 164748.4542 | EN19: 164748.4542 | EO19: 164748.4542 | EP19: 164748.4542 | EQ19: 164748.4542 | ER19: 164748.4542 | ES19: 164748.4542 | ET19: 164748.4542 | EU19: 166334.9208 | EV19: 166334.9208 | EW19: 166334.9208 | EX19: 166334.9208 | EY19: 166334.9208 | EZ19: 166334.9208 | FA19: 166334.9208 | FB19: 166334.9208 | FC19: 166334.9208 | FD19: 166334.9208 | FE19: 166334.9208 | FF19: 166334.9208 | FG19: 167895.2368 | FH19: 167895.2368 | FI19: 167895.2368 | FJ19: 167895.2368 | FK19: 167895.2368 | FL19: 167895.2368 | FM19: 167895.2368 | FN19: 167895.2368 | FO19: 167895.2368 | FP19: 167895.2368 | FQ19: 167895.2368 | FR19: 167895.2368 | FS19: 169429.4023 | FT19: 169429.4023 | FU19: 169429.4023 | FV19: 169429.4023 | FW19: 169429.4023 | FX19: 169429.4023 | FY19: 169429.4023 | FZ19: 169429.4023 | GA19: 169429.4023 | GB19: 169429.4023 | GC19: 169429.4023 | GD19: 169429.4023 | GE19: 171743.7258 | GF19: 171743.7258 | GG19: 171743.7258 | GH19: 171743.7258 | GI19: 171743.7258 | GJ19: 171743.7258 | GK19: 171743.7258 | GL19: 171743.7258 | GM19: 171743.7258 | GN19: 171743.7258 | GO19: 171743.7258 | GP19: 171743.7258 | GQ19: 173221.2318 | GR19: =GR7*(GR16+GR17) -> 173221.2318 | GS19: 173221.2318 | GT19: 173221.2318 | GU19: 173221.2318 | GV19: 173221.2318 | GW19: 173221.2318 | GX19: 173221.2318 | GY19: 173221.2318 | GZ19: 173221.2318 | HA19: 173221.2318 | HB19: 173221.2318 | HC19: 174672.5872 | HD19: 174672.5872 | HE19: 174672.5872 | HF19: 174672.5872 | HG19: 174672.5872 | HH19: 174672.5872 | HI19: 174672.5872 | HJ19: 174672.5872 | HK19: 174672.5872 | HL19: 174672.5872 | HM19: 174672.5872 | HN19: 174672.5872 | HO19: 176097.7921 | HP19: 176097.7921 | HQ19: 176097.7921 | HR19: 176097.7921 | HS19: 176097.7921 | HT19: 176097.7921 | HU19: 176097.7921 | HV19: 176097.7921 | HW19: 176097.7921 | HX19: 176097.7921 | HY19: 176097.7921 | HZ19: 176097.7921 | IA19: 178285.7213 | IB19: 178285.7213 | IC19: 178285.7213 | ID19: 178285.7213 | IE19: 178285.7213 | IF19: 178285.7213 | IG19: 178285.7213 | IH19: 178285.7213 | II19: 178285.7213 | IJ19: 178285.7213 | IK19: 178285.7213 | IL19: 178285.7213 | IM19: 179654.2667 | IN19: 179654.2667 | IO19: 179654.2667 | IP19: 179654.2667 | IQ19: 179654.2667 | IR19: 179654.2667 | IS19: 179654.2667 | IT19: 179654.2667 | IU19: 179654.2667 | IV19: 179654.2667 | IW19: 179654.2667 | IX19: 179654.2667 | IY19: 180996.6615 | IZ19: 180996.6615 | JA19: 180996.6615 | JB19: 180996.6615 | JC19: 180996.6615 | JD19: =JD7*(JD16+JD17) -> 180996.6615 | JE19: 180996.6615 | JF19: 180996.6615 | JG19: 180996.6615 | JH19: 180996.6615 | JI19: 180996.6615 | JJ19: 180996.6615 | JK19: 183088.7054 | JL19: 183088.7054 | JM19: 183088.7054 | JN19: 183088.7054 | JO19: 183088.7054 | JP19: 183088.7054 | JQ19: 183088.7054 | JR19: 183088.7054 | JS19: 183088.7054 | JT19: 183088.7054 | JU19: 183088.7054 | JV19: 183088.7054 | JW19: 184374.4407 | JX19: 184374.4407 | JY19: 184374.4407 | JZ19: 184374.4407 | KA19: 184374.4407 | KB19: 184374.4407 | KC19: 184374.4407 | KD19: 184374.4407 | KE19: 184374.4407 | KF19: 184374.4407 | KG19: 184374.4407 | KH19: 184374.4407 | KI19: 186401.1082 | KJ19: 186401.1082 | KK19: 186401.1082 | KL19: 186401.1082 | KM19: 186401.1082 | KN19: 186401.1082 | KO19: 186401.1082 | KP19: 186401.1082 | KQ19: 186401.1082 | KR19: 186401.1082 | KS19: 186401.1082 | KT19: 186401.1082 | KU19: 185342.0109 | KV19: 185342.0109 | KW19: 185342.0109 | KX19: 185342.0109 | KY19: 185342.0109 | KZ19: 185342.0109 | LA19: 185342.0109 | LB19: 185342.0109 | LC19: 185342.0109 | LD19: 185342.0109 | LE19: 185342.0109 | LF19: 185342.0109 | LG19: 184282.9137 | LH19: 184282.9137 | LI19: 184282.9137 | LJ19: 184282.9137 | LK19: 184282.9137 | LL19: 184282.9137 | LM19: 184282.9137 | LN19: 184282.9137 | LO19: 184282.9137 | LP19: =LP7*(LP16+LP17) -> 184282.9137 | LQ19: 184282.9137 | LR19: 184282.9137 | LS19: 183223.8165 | LT19: 183223.8165 | LU19: 183223.8165 | LV19: 183223.8165 | LW19: 183223.8165 | LX19: 183223.8165 | LY19: 183223.8165 | LZ19: 183223.8165 | MA19: 183223.8165 | MB19: 183223.8165 | MC19: 183223.8165 | MD19: 183223.8165 | ME19: 182164.7193 | MF19: 182164.7193 | MG19: 182164.7193 | MH19: 182164.7193 | MI19: 182164.7193 | MJ19: 182164.7193 | MK19: 182164.7193 | ML19: 182164.7193 | MM19: 182164.7193 | MN19: 182164.7193 | MO19: 182164.7193 | MP19: 182164.7193 | MQ19: 181105.6221 | MR19: 181105.6221 | MS19: 181105.6221 | MT19: 181105.6221 | MU19: 181105.6221 | MV19: 181105.6221 | MW19: 181105.6221 | MX19: 181105.6221 | MY19: 181105.6221 | MZ19: 181105.6221 | NA19: 181105.6221 | NB19: 181105.6221 | NC19: 180046.5249 | ND19: 180046.5249 | NE19: 180046.5249 | NF19: 180046.5249 | NG19: 180046.5249 | NH19: 0 | NI19: 0 | NJ19: 0 | NK19: 0 | NL19: 0 | NM19: 0 | NN19: 0
C20: Revenue - 1 Year P99 | G20: =(G16-G17)*G8 -> 0 | H20: =(H16-H17)*H8 -> 0 | I20: 0 | J20: 0 | K20: 0 | L20: 125803.2697 | M20: 125803.2697 | N20: 125803.2697 | O20: 125803.2697 | P20: 125803.2697 | Q20: 125803.2697 | R20: 125803.2697 | S20: 127383.2108 | T20: 127383.2108 | U20: 127383.2108 | V20: 127383.2108 | W20: 127383.2108 | X20: 127383.2108 | Y20: 127383.2108 | Z20: 127383.2108 | AA20: 127383.2108 | AB20: 127383.2108 | AC20: 127383.2108 | AD20: 127383.2108 | AE20: 128208.3322 | AF20: 128208.3322 | AG20: 128208.3322 | AH20: 128208.3322 | AI20: 128208.3322 | AJ20: 128208.3322 | AK20: 128208.3322 | AL20: 128208.3322 | AM20: 128208.3322 | AN20: 128208.3322 | AO20: 128208.3322 | AP20: 128208.3322 | AQ20: 129747.5722 | AR20: 129747.5722 | AS20: 129747.5722 | AT20: 129747.5722 | AU20: 129747.5722 | AV20: 129747.5722 | AW20: 129747.5722 | AX20: 129747.5722 | AY20: 129747.5722 | AZ20: 129747.5722 | BA20: 129747.5722 | BB20: 129747.5722 | BC20: 130539.3928 | BD20: 130539.3928 | BE20: 130539.3928 | BF20: 130539.3928 | BG20: 130539.3928 | BH20: 130539.3928 | BI20: 130539.3928 | BJ20: 130539.3928 | BK20: 130539.3928 | BL20: 130539.3928 | BM20: 130539.3928 | BN20: 130539.3928 | BO20: 132037.9318 | BP20: 132037.9318 | BQ20: 132037.9318 | BR20: 132037.9318 | BS20: 132037.9318 | BT20: =(BT16-BT17)*BT8 -> 132037.9318 | BU20: 132037.9318 | BV20: 132037.9318 | BW20: 132037.9318 | BX20: 132037.9318 | BY20: 132037.9318 | BZ20: 132037.9318 | CA20: 133514.2701 | CB20: 133514.2701 | CC20: 133514.2701 | CD20: 133514.2701 | CE20: 133514.2701 | CF20: 133514.2701 | CG20: 133514.2701 | CH20: 133514.2701 | CI20: 133514.2701 | CJ20: 133514.2701 | CK20: 133514.2701 | CL20: 133514.2701 | CM20: 134968.4079 | CN20: 134968.4079 | CO20: 134968.4079 | CP20: 134968.4079 | CQ20: 134968.4079 | CR20: 134968.4079 | CS20: 134968.4079 | CT20: 134968.4079 | CU20: 134968.4079 | CV20: 134968.4079 | CW20: 134968.4079 | CX20: 134968.4079 | CY20: 136400.3451 | CZ20: 136400.3451 | DA20: 136400.3451 | DB20: 136400.3451 | DC20: 136400.3451 | DD20: 136400.3451 | DE20: 136400.3451 | DF20: 136400.3451 | DG20: 136400.3451 | DH20: 136400.3451 | DI20: 136400.3451 | DJ20: 136400.3451 | DK20: 137103.3634 | DL20: 137103.3634 | DM20: 137103.3634 | DN20: 137103.3634 | DO20: 137103.3634 | DP20: 137103.3634 | DQ20: 137103.3634 | DR20: 137103.3634 | DS20: 137103.3634 | DT20: 137103.3634 | DU20: 137103.3634 | DV20: 137103.3634 | DW20: 138494.5996 | DX20: 138494.5996 | DY20: 138494.5996 | DZ20: 138494.5996 | EA20: 138494.5996 | EB20: 138494.5996 | EC20: 138494.5996 | ED20: 138494.5996 | EE20: 138494.5996 | EF20: =(EF16-EF17)*EF8 -> 138494.5996 | EG20: 138494.5996 | EH20: 138494.5996 | EI20: 139863.6352 | EJ20: 139863.6352 | EK20: 139863.6352 | EL20: 139863.6352 | EM20: 139863.6352 | EN20: 139863.6352 | EO20: 139863.6352 | EP20: 139863.6352 | EQ20: 139863.6352 | ER20: 139863.6352 | ES20: 139863.6352 | ET20: 139863.6352 | EU20: 141210.4702 | EV20: 141210.4702 | EW20: 141210.4702 | EX20: 141210.4702 | EY20: 141210.4702 | EZ20: 141210.4702 | FA20: 141210.4702 | FB20: 141210.4702 | FC20: 141210.4702 | FD20: 141210.4702 | FE20: 141210.4702 | FF20: 141210.4702 | FG20: 142535.1046 | FH20: 142535.1046 | FI20: 142535.1046 | FJ20: 142535.1046 | FK20: 142535.1046 | FL20: 142535.1046 | FM20: 142535.1046 | FN20: 142535.1046 | FO20: 142535.1046 | FP20: 142535.1046 | FQ20: 142535.1046 | FR20: 142535.1046 | FS20: 143837.5384 | FT20: 143837.5384 | FU20: 143837.5384 | FV20: 143837.5384 | FW20: 143837.5384 | FX20: 143837.5384 | FY20: 143837.5384 | FZ20: 143837.5384 | GA20: 143837.5384 | GB20: 143837.5384 | GC20: 143837.5384 | GD20: 143837.5384 | GE20: 145802.2895 | GF20: 145802.2895 | GG20: 145802.2895 | GH20: 145802.2895 | GI20: 145802.2895 | GJ20: 145802.2895 | GK20: 145802.2895 | GL20: 145802.2895 | GM20: 145802.2895 | GN20: 145802.2895 | GO20: 145802.2895 | GP20: 145802.2895 | GQ20: 147056.6221 | GR20: =(GR16-GR17)*GR8 -> 147056.6221 | GS20: 147056.6221 | GT20: 147056.6221 | GU20: 147056.6221 | GV20: 147056.6221 | GW20: 147056.6221 | GX20: 147056.6221 | GY20: 147056.6221 | GZ20: 147056.6221 | HA20: 147056.6221 | HB20: 147056.6221 | HC20: 148288.7541 | HD20: 148288.7541 | HE20: 148288.7541 | HF20: 148288.7541 | HG20: 148288.7541 | HH20: 148288.7541 | HI20: 148288.7541 | HJ20: 148288.7541 | HK20: 148288.7541 | HL20: 148288.7541 | HM20: 148288.7541 | HN20: 148288.7541 | HO20: 149498.6856 | HP20: 149498.6856 | HQ20: 149498.6856 | HR20: 149498.6856 | HS20: 149498.6856 | HT20: 149498.6856 | HU20: 149498.6856 | HV20: 149498.6856 | HW20: 149498.6856 | HX20: 149498.6856 | HY20: 149498.6856 | HZ20: 149498.6856 | IA20: 151356.1338 | IB20: 151356.1338 | IC20: 151356.1338 | ID20: 151356.1338 | IE20: 151356.1338 | IF20: 151356.1338 | IG20: 151356.1338 | IH20: 151356.1338 | II20: 151356.1338 | IJ20: 151356.1338 | IK20: 151356.1338 | IL20: 151356.1338 | IM20: 152517.964 | IN20: 152517.964 | IO20: 152517.964 | IP20: 152517.964 | IQ20: 152517.964 | IR20: 152517.964 | IS20: 152517.964 | IT20: 152517.964 | IU20: 152517.964 | IV20: 152517.964 | IW20: 152517.964 | IX20: 152517.964 | IY20: 153657.5937 | IZ20: 153657.5937 | JA20: 153657.5937 | JB20: 153657.5937 | JC20: 153657.5937 | JD20: =(JD16-JD17)*JD8 -> 153657.5937 | JE20: 153657.5937 | JF20: 153657.5937 | JG20: 153657.5937 | JH20: 153657.5937 | JI20: 153657.5937 | JJ20: 153657.5937 | JK20: 155433.6398 | JL20: 155433.6398 | JM20: 155433.6398 | JN20: 155433.6398 | JO20: 155433.6398 | JP20: 155433.6398 | JQ20: 155433.6398 | JR20: 155433.6398 | JS20: 155433.6398 | JT20: 155433.6398 | JU20: 155433.6398 | JV20: 155433.6398 | JW20: 156525.1682 | JX20: 156525.1682 | JY20: 156525.1682 | JZ20: 156525.1682 | KA20: 156525.1682 | KB20: 156525.1682 | KC20: 156525.1682 | KD20: 156525.1682 | KE20: 156525.1682 | KF20: 156525.1682 | KG20: 156525.1682 | KH20: 156525.1682 | KI20: 158245.7129 | KJ20: 158245.7129 | KK20: 158245.7129 | KL20: 158245.7129 | KM20: 158245.7129 | KN20: 158245.7129 | KO20: 158245.7129 | KP20: 158245.7129 | KQ20: 158245.7129 | KR20: 158245.7129 | KS20: 158245.7129 | KT20: 158245.7129 | KU20: 157346.5895 | KV20: 157346.5895 | KW20: 157346.5895 | KX20: 157346.5895 | KY20: 157346.5895 | KZ20: 157346.5895 | LA20: 157346.5895 | LB20: 157346.5895 | LC20: 157346.5895 | LD20: 157346.5895 | LE20: 157346.5895 | LF20: 157346.5895 | LG20: 156447.4662 | LH20: 156447.4662 | LI20: 156447.4662 | LJ20: 156447.4662 | LK20: 156447.4662 | LL20: 156447.4662 | LM20: 156447.4662 | LN20: 156447.4662 | LO20: 156447.4662 | LP20: =(LP16-LP17)*LP8 -> 156447.4662 | LQ20: 156447.4662 | LR20: 156447.4662 | LS20: 155548.3428 | LT20: 155548.3428 | LU20: 155548.3428 | LV20: 155548.3428 | LW20: 155548.3428 | LX20: 155548.3428 | LY20: 155548.3428 | LZ20: 155548.3428 | MA20: 155548.3428 | MB20: 155548.3428 | MC20: 155548.3428 | MD20: 155548.3428 | ME20: 154649.2194 | MF20: 154649.2194 | MG20: 154649.2194 | MH20: 154649.2194 | MI20: 154649.2194 | MJ20: 154649.2194 | MK20: 154649.2194 | ML20: 154649.2194 | MM20: 154649.2194 | MN20: 154649.2194 | MO20: 154649.2194 | MP20: 154649.2194 | MQ20: 153750.0961 | MR20: 153750.0961 | MS20: 153750.0961 | MT20: 153750.0961 | MU20: 153750.0961 | MV20: 153750.0961 | MW20: 153750.0961 | MX20: 153750.0961 | MY20: 153750.0961 | MZ20: 153750.0961 | NA20: 153750.0961 | NB20: 153750.0961 | NC20: 152850.9727 | ND20: 152850.9727 | NE20: 152850.9727 | NF20: 152850.9727 | NG20: 152850.9727 | NH20: 0 | NI20: 0 | NJ20: 0 | NK20: 0 | NL20: 0 | NM20: 0 | NN20: 0
C21: Revenue - Applied | G21: =(G16+G17)*G14 -> 0 | H21: =(H16+H17)*H14 -> 0 | I21: 0 | J21: 0 | K21: 0 | L21: 148186.4403 | M21: 148186.4403 | N21: 148186.4403 | O21: 148186.4403 | P21: 148186.4403 | Q21: 148186.4403 | R21: 148186.4403 | S21: 150047.4876 | T21: 150047.4876 | U21: 150047.4876 | V21: 150047.4876 | W21: 150047.4876 | X21: 150047.4876 | Y21: 150047.4876 | Z21: 150047.4876 | AA21: 150047.4876 | AB21: 150047.4876 | AC21: 150047.4876 | AD21: 150047.4876 | AE21: 151019.4163 | AF21: 151019.4163 | AG21: 151019.4163 | AH21: 151019.4163 | AI21: 151019.4163 | AJ21: 151019.4163 | AK21: 151019.4163 | AL21: 151019.4163 | AM21: 151019.4163 | AN21: 151019.4163 | AO21: 151019.4163 | AP21: 151019.4163 | AQ21: 152832.521 | AR21: 152832.521 | AS21: 152832.521 | AT21: 152832.521 | AU21: 152832.521 | AV21: 152832.521 | AW21: 152832.521 | AX21: 152832.521 | AY21: 152832.521 | AZ21: 152832.521 | BA21: 152832.521 | BB21: 152832.521 | BC21: 153765.2239 | BD21: 153765.2239 | BE21: 153765.2239 | BF21: 153765.2239 | BG21: 153765.2239 | BH21: 153765.2239 | BI21: 153765.2239 | BJ21: 153765.2239 | BK21: 153765.2239 | BL21: 153765.2239 | BM21: 153765.2239 | BN21: 153765.2239 | BO21: 155530.3859 | BP21: 155530.3859 | BQ21: 155530.3859 | BR21: 155530.3859 | BS21: 155530.3859 | BT21: =(BT16+BT17)*BT14 -> 155530.3859 | BU21: 155530.3859 | BV21: 155530.3859 | BW21: 155530.3859 | BX21: 155530.3859 | BY21: 155530.3859 | BZ21: 155530.3859 | CA21: 157269.3974 | CB21: 157269.3974 | CC21: 157269.3974 | CD21: 157269.3974 | CE21: 157269.3974 | CF21: 157269.3974 | CG21: 157269.3974 | CH21: 157269.3974 | CI21: 157269.3974 | CJ21: 157269.3974 | CK21: 157269.3974 | CL21: 157269.3974 | CM21: 158982.2583 | CN21: 158982.2583 | CO21: 158982.2583 | CP21: 158982.2583 | CQ21: 158982.2583 | CR21: 158982.2583 | CS21: 158982.2583 | CT21: 158982.2583 | CU21: 158982.2583 | CV21: 158982.2583 | CW21: 158982.2583 | CX21: 158982.2583 | CY21: 160668.9686 | CZ21: 160668.9686 | DA21: 160668.9686 | DB21: 160668.9686 | DC21: 160668.9686 | DD21: 160668.9686 | DE21: 160668.9686 | DF21: 160668.9686 | DG21: 160668.9686 | DH21: 160668.9686 | DI21: 160668.9686 | DJ21: 160668.9686 | DK21: 161497.0693 | DL21: 161497.0693 | DM21: 161497.0693 | DN21: 161497.0693 | DO21: 161497.0693 | DP21: 161497.0693 | DQ21: 161497.0693 | DR21: 161497.0693 | DS21: 161497.0693 | DT21: 161497.0693 | DU21: 161497.0693 | DV21: 161497.0693 | DW21: 163135.837 | DX21: 163135.837 | DY21: 163135.837 | DZ21: 163135.837 | EA21: 163135.837 | EB21: 163135.837 | EC21: 163135.837 | ED21: 163135.837 | EE21: 163135.837 | EF21: =(EF16+EF17)*EF14 -> 163135.837 | EG21: 163135.837 | EH21: 163135.837 | EI21: 164748.4542 | EJ21: 164748.4542 | EK21: 164748.4542 | EL21: 164748.4542 | EM21: 164748.4542 | EN21: 164748.4542 | EO21: 164748.4542 | EP21: 164748.4542 | EQ21: 164748.4542 | ER21: 164748.4542 | ES21: 164748.4542 | ET21: 164748.4542 | EU21: 166334.9208 | EV21: 166334.9208 | EW21: 166334.9208 | EX21: 166334.9208 | EY21: 166334.9208 | EZ21: 166334.9208 | FA21: 166334.9208 | FB21: 166334.9208 | FC21: 166334.9208 | FD21: 166334.9208 | FE21: 166334.9208 | FF21: 166334.9208 | FG21: 167895.2368 | FH21: 167895.2368 | FI21: 167895.2368 | FJ21: 167895.2368 | FK21: 167895.2368 | FL21: 167895.2368 | FM21: 167895.2368 | FN21: 167895.2368 | FO21: 167895.2368 | FP21: 167895.2368 | FQ21: 167895.2368 | FR21: 167895.2368 | FS21: 169429.4023 | FT21: 169429.4023 | FU21: 169429.4023 | FV21: 169429.4023 | FW21: 169429.4023 | FX21: 169429.4023 | FY21: 169429.4023 | FZ21: 169429.4023 | GA21: 169429.4023 | GB21: 169429.4023 | GC21: 169429.4023 | GD21: 169429.4023 | GE21: 171743.7258 | GF21: 171743.7258 | GG21: 171743.7258 | GH21: 171743.7258 | GI21: 171743.7258 | GJ21: 171743.7258 | GK21: 171743.7258 | GL21: 171743.7258 | GM21: 171743.7258 | GN21: 171743.7258 | GO21: 171743.7258 | GP21: 171743.7258 | GQ21: 173221.2318 | GR21: =(GR16+GR17)*GR14 -> 173221.2318 | GS21: 173221.2318 | GT21: 173221.2318 | GU21: 173221.2318 | GV21: 173221.2318 | GW21: 173221.2318 | GX21: 173221.2318 | GY21: 173221.2318 | GZ21: 173221.2318 | HA21: 173221.2318 | HB21: 173221.2318 | HC21: 174672.5872 | HD21: 174672.5872 | HE21: 174672.5872 | HF21: 174672.5872 | HG21: 174672.5872 | HH21: 174672.5872 | HI21: 174672.5872 | HJ21: 174672.5872 | HK21: 174672.5872 | HL21: 174672.5872 | HM21: 174672.5872 | HN21: 174672.5872 | HO21: 176097.7921 | HP21: 176097.7921 | HQ21: 176097.7921 | HR21: 176097.7921 | HS21: 176097.7921 | HT21: 176097.7921 | HU21: 176097.7921 | HV21: 176097.7921 | HW21: 176097.7921 | HX21: 176097.7921 | HY21: 176097.7921 | HZ21: 176097.7921 | IA21: 178285.7213 | IB21: 178285.7213 | IC21: 178285.7213 | ID21: 178285.7213 | IE21: 178285.7213 | IF21: 178285.7213 | IG21: 178285.7213 | IH21: 178285.7213 | II21: 178285.7213 | IJ21: 178285.7213 | IK21: 178285.7213 | IL21: 178285.7213 | IM21: 179654.2667 | IN21: 179654.2667 | IO21: 179654.2667 | IP21: 179654.2667 | IQ21: 179654.2667 | IR21: 179654.2667 | IS21: 179654.2667 | IT21: 179654.2667 | IU21: 179654.2667 | IV21: 179654.2667 | IW21: 179654.2667 | IX21: 179654.2667 | IY21: 180996.6615 | IZ21: 180996.6615 | JA21: 180996.6615 | JB21: 180996.6615 | JC21: 180996.6615 | JD21: =(JD16+JD17)*JD14 -> 180996.6615 | JE21: 180996.6615 | JF21: 180996.6615 | JG21: 180996.6615 | JH21: 180996.6615 | JI21: 180996.6615 | JJ21: 180996.6615 | JK21: 183088.7054 | JL21: 183088.7054 | JM21: 183088.7054 | JN21: 183088.7054 | JO21: 183088.7054 | JP21: 183088.7054 | JQ21: 183088.7054 | JR21: 183088.7054 | JS21: 183088.7054 | JT21: 183088.7054 | JU21: 183088.7054 | JV21: 183088.7054 | JW21: 184374.4407 | JX21: 184374.4407 | JY21: 184374.4407 | JZ21: 184374.4407 | KA21: 184374.4407 | KB21: 184374.4407 | KC21: 184374.4407 | KD21: 184374.4407 | KE21: 184374.4407 | KF21: 184374.4407 | KG21: 184374.4407 | KH21: 184374.4407 | KI21: 186401.1082 | KJ21: 186401.1082 | KK21: 186401.1082 | KL21: 186401.1082 | KM21: 186401.1082 | KN21: 186401.1082 | KO21: 186401.1082 | KP21: 186401.1082 | KQ21: 186401.1082 | KR21: 186401.1082 | KS21: 186401.1082 | KT21: 186401.1082 | KU21: 185342.0109 | KV21: 185342.0109 | KW21: 185342.0109 | KX21: 185342.0109 | KY21: 185342.0109 | KZ21: 185342.0109 | LA21: 185342.0109 | LB21: 185342.0109 | LC21: 185342.0109 | LD21: 185342.0109 | LE21: 185342.0109 | LF21: 185342.0109 | LG21: 184282.9137 | LH21: 184282.9137 | LI21: 184282.9137 | LJ21: 184282.9137 | LK21: 184282.9137 | LL21: 184282.9137 | LM21: 184282.9137 | LN21: 184282.9137 | LO21: 184282.9137 | LP21: =(LP16+LP17)*LP14 -> 184282.9137 | LQ21: 184282.9137 | LR21: 184282.9137 | LS21: 183223.8165 | LT21: 183223.8165 | LU21: 183223.8165 | LV21: 183223.8165 | LW21: 183223.8165 | LX21: 183223.8165 | LY21: 183223.8165 | LZ21: 183223.8165 | MA21: 183223.8165 | MB21: 183223.8165 | MC21: 183223.8165 | MD21: 183223.8165 | ME21: 182164.7193 | MF21: 182164.7193 | MG21: 182164.7193 | MH21: 182164.7193 | MI21: 182164.7193 | MJ21: 182164.7193 | MK21: 182164.7193 | ML21: 182164.7193 | MM21: 182164.7193 | MN21: 182164.7193 | MO21: 182164.7193 | MP21: 182164.7193 | MQ21: 181105.6221 | MR21: 181105.6221 | MS21: 181105.6221 | MT21: 181105.6221 | MU21: 181105.6221 | MV21: 181105.6221 | MW21: 181105.6221 | MX21: 181105.6221 | MY21: 181105.6221 | MZ21: 181105.6221 | NA21: 181105.6221 | NB21: 181105.6221 | NC21: 180046.5249 | ND21: 180046.5249 | NE21: 180046.5249 | NF21: 180046.5249 | NG21: 180046.5249 | NH21: 0 | NI21: 0 | NJ21: 0 | NK21: 0 | NL21: 0 | NM21: 0 | NN21: 0
B23: Operating Cost
C24: Operation & Maintenance | G24: =-IF(G7=0,0,'Inputs S'!$E$12*'Control Panel'!$D$9/12*(1+'Inputs S'!$E$13/12)^('Monthly Operations'!G65-1))*'Control Panel'!$D$21 -> 0 | H24: =-IF(H7=0,0,'Inputs S'!$E$12*'Control Panel'!$D$9/12*(1+'Inputs S'!$E$13/12)^('Monthly Operations'!H65-1))*'Control Panel'!$D$21 -> 0 | I24: =-IF(I7=0,0,'Inputs S'!$E$12*'Control Panel'!$D$9/12*(1+'Inputs S'!$E$13/12)^('Monthly Operations'!I65-1))*'Control Panel'!$D$21 -> 0 | J24: =-IF(J7=0,0,'Inputs S'!$E$12*'Control Panel'!$D$9/12*(1+'Inputs S'!$E$13/12)^('Monthly Operations'!J65-1))*'Control Panel'!$D$21 -> 0 | K24: =-IF(K7=0,0,'Inputs S'!$E$12*'Control Panel'!$D$9/12*(1+'Inputs S'!$E$13/12)^('Monthly Operations'!K65-1))*'Control Panel'!$D$21 -> 0 | L24: =-IF(L7=0,0,'Inputs S'!$E$12*'Control Panel'!$D$9/12*(1+'Inputs S'!$E$13/12)^('Monthly Operations'!L65-1))*'Control Panel'!$D$21 -> -15867.91667 | M24: =-IF(M7=0,0,'Inputs S'!$E$12*'Control Panel'!$D$9/12*(1+'Inputs S'!$E$13/12)^('Monthly Operations'!M65-1))*'Control Panel'!$D$21 -> -15894.36319 | N24: =-IF(N7=0,0,'Inputs S'!$E$12*'Control Panel'!$D$9/12*(1+'Inputs S'!$E$13/12)^('Monthly Operations'!N65-1))*'Control Panel'!$D$21 -> -15920.8538 | O24: =-IF(O7=0,0,'Inputs S'!$E$12*'Control Panel'!$D$9/12*(1+'Inputs S'!$E$13/12)^('Monthly Operations'!O65-1))*'Control Panel'!$D$21 -> -15947.38856 | P24: =-IF(P7=0,0,'Inputs S'!$E$12*'Control Panel'!$D$9/12*(1+'Inputs S'!$E$13/12)^('Monthly Operations'!P65-1))*'Control Panel'!$D$21 -> -15973.96754 | Q24: =-IF(Q7=0,0,'Inputs S'!$E$12*'Control Panel'!$D$9/12*(1+'Inputs S'!$E$13/12)^('Monthly Operations'!Q65-1))*'Control Panel'!$D$21 -> -16000.59082 | R24: =-IF(R7=0,0,'Inputs S'!$E$12*'Control Panel'!$D$9/12*(1+'Inputs S'!$E$13/12)^('Monthly Operations'!R65-1))*'Control Panel'!$D$21 -> -16027.25847 | S24: =-IF(S7=0,0,'Inputs S'!$E$12*'Control Panel'!$D$9/12*(1+'Inputs S'!$E$13/12)^('Monthly Operations'!S65-1))*'Control Panel'!$D$21 -> -16053.97057 | T24: =-IF(T7=0,0,'Inputs S'!$E$12*'Control Panel'!$D$9/12*(1+'Inputs S'!$E$13/12)^('Monthly Operations'!T65-1))*'Control Panel'!$D$21 -> -16080.72718 | U24: =-IF(U7=0,0,'Inputs S'!$E$12*'Control Panel'!$D$9/12*(1+'Inputs S'!$E$13/12)^('Monthly Operations'!U65-1))*'Control Panel'!$D$21 -> -16107.52839 | V24: =-IF(V7=0,0,'Inputs S'!$E$12*'Control Panel'!$D$9/12*(1+'Inputs S'!$E$13/12)^('Monthly Operations'!V65-1))*'Control Panel'!$D$21 -> -16134.37428 | W24: =-IF(W7=0,0,'Inputs S'!$E$12*'Control Panel'!$D$9/12*(1+'Inputs S'!$E$13/12)^('Monthly Operations'!W65-1))*'Control Panel'!$D$21 -> -16161.2649 | X24: =-IF(X7=0,0,'Inputs S'!$E$12*'Control Panel'!$D$9/12*(1+'Inputs S'!$E$13/12)^('Monthly Operations'!X65-1))*'Control Panel'!$D$21 -> -16188.20034 | Y24: =-IF(Y7=0,0,'Inputs S'!$E$12*'Control Panel'!$D$9/12*(1+'Inputs S'!$E$13/12)^('Monthly Operations'!Y65-1))*'Control Panel'!$D$21 -> -16215.18067 | Z24: =-IF(Z7=0,0,'Inputs S'!$E$12*'Control Panel'!$D$9/12*(1+'Inputs S'!$E$13/12)^('Monthly Operations'!Z65-1))*'Control Panel'!$D$21 -> -16242.20598 | AA24: =-IF(AA7=0,0,'Inputs S'!$E$12*'Control Panel'!$D$9/12*(1+'Inputs S'!$E$13/12)^('Monthly Operations'!AA65-1))*'Control Panel'!$D$21 -> -16269.27632 | AB24: =-IF(AB7=0,0,'Inputs S'!$E$12*'Control Panel'!$D$9/12*(1+'Inputs S'!$E$13/12)^('Monthly Operations'!AB65-1))*'Control Panel'!$D$21 -> -16296.39178 | AC24: =-IF(AC7=0,0,'Inputs S'!$E$12*'Control Panel'!$D$9/12*(1+'Inputs S'!$E$13/12)^('Monthly Operations'!AC65-1))*'Control Panel'!$D$21 -> -16323.55243 | AD24: =-IF(AD7=0,0,'Inputs S'!$E$12*'Control Panel'!$D$9/12*(1+'Inputs S'!$E$13/12)^('Monthly Operations'!AD65-1))*'Control Panel'!$D$21 -> -16350.75835 | AE24: =-IF(AE7=0,0,'Inputs S'!$E$12*'Control Panel'!$D$9/12*(1+'Inputs S'!$E$13/12)^('Monthly Operations'!AE65-1))*'Control Panel'!$D$21 -> -16378.00962 | AF24: =-IF(AF7=0,0,'Inputs S'!$E$12*'Control Panel'!$D$9/12*(1+'Inputs S'!$E$13/12)^('Monthly Operations'!AF65-1))*'Control Panel'!$D$21 -> -16405.3063 | AG24: =-IF(AG7=0,0,'Inputs S'!$E$12*'Control Panel'!$D$9/12*(1+'Inputs S'!$E$13/12)^('Monthly Operations'!AG65-1))*'Control Panel'!$D$21 -> -16432.64848 | AH24: =-IF(AH7=0,0,'Inputs S'!$E$12*'Control Panel'!$D$9/12*(1+'Inputs S'!$E$13/12)^('Monthly Operations'!AH65-1))*'Control Panel'!$D$21 -> -16460.03622 | AI24: =-IF(AI7=0,0,'Inputs S'!$E$12*'Control Panel'!$D$9/12*(1+'Inputs S'!$E$13/12)^('Monthly Operations'!AI65-1))*'Control Panel'!$D$21 -> -16487.46962 | AJ24: =-IF(AJ7=0,0,'Inputs S'!$E$12*'Control Panel'!$D$9/12*(1+'Inputs S'!$E$13/12)^('Monthly Operations'!AJ65-1))*'Control Panel'!$D$21 -> -16514.94873 | AK24: =-IF(AK7=0,0,'Inputs S'!$E$12*'Control Panel'!$D$9/12*(1+'Inputs S'!$E$13/12)^('Monthly Operations'!AK65-1))*'Control Panel'!$D$21 -> -16542.47365 | AL24: =-IF(AL7=0,0,'Inputs S'!$E$12*'Control Panel'!$D$9/12*(1+'Inputs S'!$E$13/12)^('Monthly Operations'!AL65-1))*'Control Panel'!$D$21 -> -16570.04444 | AM24: =-IF(AM7=0,0,'Inputs S'!$E$12*'Control Panel'!$D$9/12*(1+'Inputs S'!$E$13/12)^('Monthly Operations'!AM65-1))*'Control Panel'!$D$21 -> -16597.66118 | AN24: =-IF(AN7=0,0,'Inputs S'!$E$12*'Control Panel'!$D$9/12*(1+'Inputs S'!$E$13/12)^('Monthly Operations'!AN65-1))*'Control Panel'!$D$21 -> -16625.32395 | AO24: =-IF(AO7=0,0,'Inputs S'!$E$12*'Control Panel'!$D$9/12*(1+'Inputs S'!$E$13/12)^('Monthly Operations'!AO65-1))*'Control Panel'!$D$21 -> -16653.03282 | AP24: =-IF(AP7=0,0,'Inputs S'!$E$12*'Control Panel'!$D$9/12*(1+'Inputs S'!$E$13/12)^('Monthly Operations'!AP65-1))*'Control Panel'!$D$21 -> -16680.78788 | AQ24: =-IF(AQ7=0,0,'Inputs S'!$E$12*'Control Panel'!$D$9/12*(1+'Inputs S'!$E$13/12)^('Monthly Operations'!AQ65-1))*'Control Panel'!$D$21 -> -16708.58919 | AR24: =-IF(AR7=0,0,'Inputs S'!$E$12*'Control Panel'!$D$9/12*(1+'Inputs S'!$E$13/12)^('Monthly Operations'!AR65-1))*'Control Panel'!$D$21 -> -16736.43684 | AS24: =-IF(AS7=0,0,'Inputs S'!$E$12*'Control Panel'!$D$9/12*(1+'Inputs S'!$E$13/12)^('Monthly Operations'!AS65-1))*'Control Panel'!$D$21 -> -16764.3309 | AT24: =-IF(AT7=0,0,'Inputs S'!$E$12*'Control Panel'!$D$9/12*(1+'Inputs S'!$E$13/12)^('Monthly Operations'!AT65-1))*'Control Panel'!$D$21 -> -16792.27145 | AU24: =-IF(AU7=0,0,'Inputs S'!$E$12*'Control Panel'!$D$9/12*(1+'Inputs S'!$E$13/12)^('Monthly Operations'!AU65-1))*'Control Panel'!$D$21 -> -16820.25857 | AV24: =-IF(AV7=0,0,'Inputs S'!$E$12*'Control Panel'!$D$9/12*(1+'Inputs S'!$E$13/12)^('Monthly Operations'!AV65-1))*'Control Panel'!$D$21 -> -16848.29233 | AW24: =-IF(AW7=0,0,'Inputs S'!$E$12*'Control Panel'!$D$9/12*(1+'Inputs S'!$E$13/12)^('Monthly Operations'!AW65-1))*'Control Panel'!$D$21 -> -16876.37282 | AX24: =-IF(AX7=0,0,'Inputs S'!$E$12*'Control Panel'!$D$9/12*(1+'Inputs S'!$E$13/12)^('Monthly Operations'!AX65-1))*'Control Panel'!$D$21 -> -16904.50011 | AY24: =-IF(AY7=0,0,'Inputs S'!$E$12*'Control Panel'!$D$9/12*(1+'Inputs S'!$E$13/12)^('Monthly Operations'!AY65-1))*'Control Panel'!$D$21 -> -16932.67428 | AZ24: =-IF(AZ7=0,0,'Inputs S'!$E$12*'Control Panel'!$D$9/12*(1+'Inputs S'!$E$13/12)^('Monthly Operations'!AZ65-1))*'Control Panel'!$D$21 -> -16960.8954 | BA24: =-IF(BA7=0,0,'Inputs S'!$E$12*'Control Panel'!$D$9/12*(1+'Inputs S'!$E$13/12)^('Monthly Operations'!BA65-1))*'Control Panel'!$D$21 -> -16989.16356 | BB24: =-IF(BB7=0,0,'Inputs S'!$E$12*'Control Panel'!$D$9/12*(1+'Inputs S'!$E$13/12)^('Monthly Operations'!BB65-1))*'Control Panel'!$D$21 -> -17017.47883 | BC24: =-IF(BC7=0,0,'Inputs S'!$E$12*'Control Panel'!$D$9/12*(1+'Inputs S'!$E$13/12)^('Monthly Operations'!BC65-1))*'Control Panel'!$D$21 -> -17045.8413 | BD24: =-IF(BD7=0,0,'Inputs S'!$E$12*'Control Panel'!$D$9/12*(1+'Inputs S'!$E$13/12)^('Monthly Operations'!BD65-1))*'Control Panel'!$D$21 -> -17074.25103 | BE24: =-IF(BE7=0,0,'Inputs S'!$E$12*'Control Panel'!$D$9/12*(1+'Inputs S'!$E$13/12)^('Monthly Operations'!BE65-1))*'Control Panel'!$D$21 -> -17102.70812 | BF24: =-IF(BF7=0,0,'Inputs S'!$E$12*'Control Panel'!$D$9/12*(1+'Inputs S'!$E$13/12)^('Monthly Operations'!BF65-1))*'Control Panel'!$D$21 -> -17131.21263 | BG24: =-IF(BG7=0,0,'Inputs S'!$E$12*'Control Panel'!$D$9/12*(1+'Inputs S'!$E$13/12)^('Monthly Operations'!BG65-1))*'Control Panel'!$D$21 -> -17159.76465 | BH24: =-IF(BH7=0,0,'Inputs S'!$E$12*'Control Panel'!$D$9/12*(1+'Inputs S'!$E$13/12)^('Monthly Operations'!BH65-1))*'Control Panel'!$D$21 -> -17188.36426 | BI24: =-IF(BI7=0,0,'Inputs S'!$E$12*'Control Panel'!$D$9/12*(1+'Inputs S'!$E$13/12)^('Monthly Operations'!BI65-1))*'Control Panel'!$D$21 -> -17217.01153 | BJ24: =-IF(BJ7=0,0,'Inputs S'!$E$12*'Control Panel'!$D$9/12*(1+'Inputs S'!$E$13/12)^('Monthly Operations'!BJ65-1))*'Control Panel'!$D$21 -> -17245.70655 | BK24: =-IF(BK7=0,0,'Inputs S'!$E$12*'Control Panel'!$D$9/12*(1+'Inputs S'!$E$13/12)^('Monthly Operations'!BK65-1))*'Control Panel'!$D$21 -> -17274.4494 | BL24: =-IF(BL7=0,0,'Inputs S'!$E$12*'Control Panel'!$D$9/12*(1+'Inputs S'!$E$13/12)^('Monthly Operations'!BL65-1))*'Control Panel'!$D$21 -> -17303.24014 | BM24: =-IF(BM7=0,0,'Inputs S'!$E$12*'Control Panel'!$D$9/12*(1+'Inputs S'!$E$13/12)^('Monthly Operations'!BM65-1))*'Control Panel'!$D$21 -> -17332.07888 | BN24: =-IF(BN7=0,0,'Inputs S'!$E$12*'Control Panel'!$D$9/12*(1+'Inputs S'!$E$13/12)^('Monthly Operations'!BN65-1))*'Control Panel'!$D$21 -> -17360.96568 | BO24: =-IF(BO7=0,0,'Inputs S'!$E$12*'Control Panel'!$D$9/12*(1+'Inputs S'!$E$13/12)^('Monthly Operations'!BO65-1))*'Control Panel'!$D$21 -> -17389.90062 | BP24: =-IF(BP7=0,0,'Inputs S'!$E$12*'Control Panel'!$D$9/12*(1+'Inputs S'!$E$13/12)^('Monthly Operations'!BP65-1))*'Control Panel'!$D$21 -> -17418.88379 | BQ24: =-IF(BQ7=0,0,'Inputs S'!$E$12*'Control Panel'!$D$9/12*(1+'Inputs S'!$E$13/12)^('Monthly Operations'!BQ65-1))*'Control Panel'!$D$21 -> -17447.91526 | BR24: =-IF(BR7=0,0,'Inputs S'!$E$12*'Control Panel'!$D$9/12*(1+'Inputs S'!$E$13/12)^('Monthly Operations'!BR65-1))*'Control Panel'!$D$21 -> -17476.99512 | BS24: =-IF(BS7=0,0,'Inputs S'!$E$12*'Control Panel'!$D$9/12*(1+'Inputs S'!$E$13/12)^('Monthly Operations'!BS65-1))*'Control Panel'!$D$21 -> -17506.12344 | BT24: =-IF(BT7=0,0,'Inputs S'!$E$12*'Control Panel'!$D$9/12*(1+'Inputs S'!$E$13/12)^('Monthly Operations'!BT65-1))*'Control Panel'!$D$21 -> -17535.30032 | BU24: =-IF(BU7=0,0,'Inputs S'!$E$12*'Control Panel'!$D$9/12*(1+'Inputs S'!$E$13/12)^('Monthly Operations'!BU65-1))*'Control Panel'!$D$21 -> -17564.52582 | BV24: =-IF(BV7=0,0,'Inputs S'!$E$12*'Control Panel'!$D$9/12*(1+'Inputs S'!$E$13/12)^('Monthly Operations'!BV65-1))*'Control Panel'!$D$21 -> -17593.80003 | BW24: =-IF(BW7=0,0,'Inputs S'!$E$12*'Control Panel'!$D$9/12*(1+'Inputs S'!$E$13/12)^('Monthly Operations'!BW65-1))*'Control Panel'!$D$21 -> -17623.12303 | BX24: =-IF(BX7=0,0,'Inputs S'!$E$12*'Control Panel'!$D$9/12*(1+'Inputs S'!$E$13/12)^('Monthly Operations'!BX65-1))*'Control Panel'!$D$21 -> -17652.4949 | BY24: =-IF(BY7=0,0,'Inputs S'!$E$12*'Control Panel'!$D$9/12*(1+'Inputs S'!$E$13/12)^('Monthly Operations'!BY65-1))*'Control Panel'!$D$21 -> -17681.91572 | BZ24: =-IF(BZ7=0,0,'Inputs S'!$E$12*'Control Panel'!$D$9/12*(1+'Inputs S'!$E$13/12)^('Monthly Operations'!BZ65-1))*'Control Panel'!$D$21 -> -17711.38558 | CA24: =-IF(CA7=0,0,'Inputs S'!$E$12*'Control Panel'!$D$9/12*(1+'Inputs S'!$E$13/12)^('Monthly Operations'!CA65-1))*'Control Panel'!$D$21 -> -17740.90456 | CB24: =-IF(CB7=0,0,'Inputs S'!$E$12*'Control Panel'!$D$9/12*(1+'Inputs S'!$E$13/12)^('Monthly Operations'!CB65-1))*'Control Panel'!$D$21 -> -17770.47273 | CC24: =-IF(CC7=0,0,'Inputs S'!$E$12*'Control Panel'!$D$9/12*(1+'Inputs S'!$E$13/12)^('Monthly Operations'!CC65-1))*'Control Panel'!$D$21 -> -17800.09019 | CD24: =-IF(CD7=0,0,'Inputs S'!$E$12*'Control Panel'!$D$9/12*(1+'Inputs S'!$E$13/12)^('Monthly Operations'!CD65-1))*'Control Panel'!$D$21 -> -17829.757 | CE24: =-IF(CE7=0,0,'Inputs S'!$E$12*'Control Panel'!$D$9/12*(1+'Inputs S'!$E$13/12)^('Monthly Operations'!CE65-1))*'Control Panel'!$D$21 -> -17859.47327 | CF24: =-IF(CF7=0,0,'Inputs S'!$E$12*'Control Panel'!$D$9/12*(1+'Inputs S'!$E$13/12)^('Monthly Operations'!CF65-1))*'Control Panel'!$D$21 -> -17889.23905 | CG24: =-IF(CG7=0,0,'Inputs S'!$E$12*'Control Panel'!$D$9/12*(1+'Inputs S'!$E$13/12)^('Monthly Operations'!CG65-1))*'Control Panel'!$D$21 -> -17919.05445 | CH24: =-IF(CH7=0,0,'Inputs S'!$E$12*'Control Panel'!$D$9/12*(1+'Inputs S'!$E$13/12)^('Monthly Operations'!CH65-1))*'Control Panel'!$D$21 -> -17948.91954 | CI24: =-IF(CI7=0,0,'Inputs S'!$E$12*'Control Panel'!$D$9/12*(1+'Inputs S'!$E$13/12)^('Monthly Operations'!CI65-1))*'Control Panel'!$D$21 -> -17978.83441 | CJ24: =-IF(CJ7=0,0,'Inputs S'!$E$12*'Control Panel'!$D$9/12*(1+'Inputs S'!$E$13/12)^('Monthly Operations'!CJ65-1))*'Control Panel'!$D$21 -> -18008.79913 | CK24: =-IF(CK7=0,0,'Inputs S'!$E$12*'Control Panel'!$D$9/12*(1+'Inputs S'!$E$13/12)^('Monthly Operations'!CK65-1))*'Control Panel'!$D$21 -> -18038.8138 | CL24: =-IF(CL7=0,0,'Inputs S'!$E$12*'Control Panel'!$D$9/12*(1+'Inputs S'!$E$13/12)^('Monthly Operations'!CL65-1))*'Control Panel'!$D$21 -> -18068.87849 | CM24: =-IF(CM7=0,0,'Inputs S'!$E$12*'Control Panel'!$D$9/12*(1+'Inputs S'!$E$13/12)^('Monthly Operations'!CM65-1))*'Control Panel'!$D$21 -> -18098.99329 | CN24: =-IF(CN7=0,0,'Inputs S'!$E$12*'Control Panel'!$D$9/12*(1+'Inputs S'!$E$13/12)^('Monthly Operations'!CN65-1))*'Control Panel'!$D$21 -> -18129.15828 | CO24: =-IF(CO7=0,0,'Inputs S'!$E$12*'Control Panel'!$D$9/12*(1+'Inputs S'!$E$13/12)^('Monthly Operations'!CO65-1))*'Control Panel'!$D$21 -> -18159.37354 | CP24: =-IF(CP7=0,0,'Inputs S'!$E$12*'Control Panel'!$D$9/12*(1+'Inputs S'!$E$13/12)^('Monthly Operations'!CP65-1))*'Control Panel'!$D$21 -> -18189.63916 | CQ24: =-IF(CQ7=0,0,'Inputs S'!$E$12*'Control Panel'!$D$9/12*(1+'Inputs S'!$E$13/12)^('Monthly Operations'!CQ65-1))*'Control Panel'!$D$21 -> -18219.95523 | CR24: =-IF(CR7=0,0,'Inputs S'!$E$12*'Control Panel'!$D$9/12*(1+'Inputs S'!$E$13/12)^('Monthly Operations'!CR65-1))*'Control Panel'!$D$21 -> -18250.32182 | CS24: =-IF(CS7=0,0,'Inputs S'!$E$12*'Control Panel'!$D$9/12*(1+'Inputs S'!$E$13/12)^('Monthly Operations'!CS65-1))*'Control Panel'!$D$21 -> -18280.73902 | CT24: =-IF(CT7=0,0,'Inputs S'!$E$12*'Control Panel'!$D$9/12*(1+'Inputs S'!$E$13/12)^('Monthly Operations'!CT65-1))*'Control Panel'!$D$21 -> -18311.20692 | CU24: =-IF(CU7=0,0,'Inputs S'!$E$12*'Control Panel'!$D$9/12*(1+'Inputs S'!$E$13/12)^('Monthly Operations'!CU65-1))*'Control Panel'!$D$21 -> -18341.7256 | CV24: =-IF(CV7=0,0,'Inputs S'!$E$12*'Control Panel'!$D$9/12*(1+'Inputs S'!$E$13/12)^('Monthly Operations'!CV65-1))*'Control Panel'!$D$21 -> -18372.29514 | CW24: =-IF(CW7=0,0,'Inputs S'!$E$12*'Control Panel'!$D$9/12*(1+'Inputs S'!$E$13/12)^('Monthly Operations'!CW65-1))*'Control Panel'!$D$21 -> -18402.91563 | CX24: =-IF(CX7=0,0,'Inputs S'!$E$12*'Control Panel'!$D$9/12*(1+'Inputs S'!$E$13/12)^('Monthly Operations'!CX65-1))*'Control Panel'!$D$21 -> -18433.58716 | CY24: =-IF(CY7=0,0,'Inputs S'!$E$12*'Control Panel'!$D$9/12*(1+'Inputs S'!$E$13/12)^('Monthly Operations'!CY65-1))*'Control Panel'!$D$21 -> -18464.3098 | CZ24: =-IF(CZ7=0,0,'Inputs S'!$E$12*'Control Panel'!$D$9/12*(1+'Inputs S'!$E$13/12)^('Monthly Operations'!CZ65-1))*'Control Panel'!$D$21 -> -18495.08365 | DA24: =-IF(DA7=0,0,'Inputs S'!$E$12*'Control Panel'!$D$9/12*(1+'Inputs S'!$E$13/12)^('Monthly Operations'!DA65-1))*'Control Panel'!$D$21 -> -18525.90879 | DB24: =-IF(DB7=0,0,'Inputs S'!$E$12*'Control Panel'!$D$9/12*(1+'Inputs S'!$E$13/12)^('Monthly Operations'!DB65-1))*'Control Panel'!$D$21 -> -18556.78531 | DC24: =-IF(DC7=0,0,'Inputs S'!$E$12*'Control Panel'!$D$9/12*(1+'Inputs S'!$E$13/12)^('Monthly Operations'!DC65-1))*'Control Panel'!$D$21 -> -18587.71328 | DD24: =-IF(DD7=0,0,'Inputs S'!$E$12*'Control Panel'!$D$9/12*(1+'Inputs S'!$E$13/12)^('Monthly Operations'!DD65-1))*'Control Panel'!$D$21 -> -18618.69281 | DE24: =-IF(DE7=0,0,'Inputs S'!$E$12*'Control Panel'!$D$9/12*(1+'Inputs S'!$E$13/12)^('Monthly Operations'!DE65-1))*'Control Panel'!$D$21 -> -18649.72396 | DF24: =-IF(DF7=0,0,'Inputs S'!$E$12*'Control Panel'!$D$9/12*(1+'Inputs S'!$E$13/12)^('Monthly Operations'!DF65-1))*'Control Panel'!$D$21 -> -18680.80683 | DG24: =-IF(DG7=0,0,'Inputs S'!$E$12*'Control Panel'!$D$9/12*(1+'Inputs S'!$E$13/12)^('Monthly Operations'!DG65-1))*'Control Panel'!$D$21 -> -18711.94151 | DH24: =-IF(DH7=0,0,'Inputs S'!$E$12*'Control Panel'!$D$9/12*(1+'Inputs S'!$E$13/12)^('Monthly Operations'!DH65-1))*'Control Panel'!$D$21 -> -18743.12808 | DI24: =-IF(DI7=0,0,'Inputs S'!$E$12*'Control Panel'!$D$9/12*(1+'Inputs S'!$E$13/12)^('Monthly Operations'!DI65-1))*'Control Panel'!$D$21 -> -18774.36663 | DJ24: =-IF(DJ7=0,0,'Inputs S'!$E$12*'Control Panel'!$D$9/12*(1+'Inputs S'!$E$13/12)^('Monthly Operations'!DJ65-1))*'Control Panel'!$D$21 -> -18805.65724 | DK24: =-IF(DK7=0,0,'Inputs S'!$E$12*'Control Panel'!$D$9/12*(1+'Inputs S'!$E$13/12)^('Monthly Operations'!DK65-1))*'Control Panel'!$D$21 -> -18837 | DL24: =-IF(DL7=0,0,'Inputs S'!$E$12*'Control Panel'!$D$9/12*(1+'Inputs S'!$E$13/12)^('Monthly Operations'!DL65-1))*'Control Panel'!$D$21 -> -18868.395 | DM24: =-IF(DM7=0,0,'Inputs S'!$E$12*'Control Panel'!$D$9/12*(1+'Inputs S'!$E$13/12)^('Monthly Operations'!DM65-1))*'Control Panel'!$D$21 -> -18899.84233 | DN24: =-IF(DN7=0,0,'Inputs S'!$E$12*'Control Panel'!$D$9/12*(1+'Inputs S'!$E$13/12)^('Monthly Operations'!DN65-1))*'Control Panel'!$D$21 -> -18931.34206 | DO24: =-IF(DO7=0,0,'Inputs S'!$E$12*'Control Panel'!$D$9/12*(1+'Inputs S'!$E$13/12)^('Monthly Operations'!DO65-1))*'Control Panel'!$D$21 -> -18962.8943 | DP24: =-IF(DP7=0,0,'Inputs S'!$E$12*'Control Panel'!$D$9/12*(1+'Inputs S'!$E$13/12)^('Monthly Operations'!DP65-1))*'Control Panel'!$D$21 -> -18994.49912 | DQ24: =-IF(DQ7=0,0,'Inputs S'!$E$12*'Control Panel'!$D$9/12*(1+'Inputs S'!$E$13/12)^('Monthly Operations'!DQ65-1))*'Control Panel'!$D$21 -> -19026.15662 | DR24: =-IF(DR7=0,0,'Inputs S'!$E$12*'Control Panel'!$D$9/12*(1+'Inputs S'!$E$13/12)^('Monthly Operations'!DR65-1))*'Control Panel'!$D$21 -> -19057.86688 | DS24: =-IF(DS7=0,0,'Inputs S'!$E$12*'Control Panel'!$D$9/12*(1+'Inputs S'!$E$13/12)^('Monthly Operations'!DS65-1))*'Control Panel'!$D$21 -> -19089.62999 | DT24: =-IF(DT7=0,0,'Inputs S'!$E$12*'Control Panel'!$D$9/12*(1+'Inputs S'!$E$13/12)^('Monthly Operations'!DT65-1))*'Control Panel'!$D$21 -> -19121.44604 | DU24: =-IF(DU7=0,0,'Inputs S'!$E$12*'Control Panel'!$D$9/12*(1+'Inputs S'!$E$13/12)^('Monthly Operations'!DU65-1))*'Control Panel'!$D$21 -> -19153.31512 | DV24: =-IF(DV7=0,0,'Inputs S'!$E$12*'Control Panel'!$D$9/12*(1+'Inputs S'!$E$13/12)^('Monthly Operations'!DV65-1))*'Control Panel'!$D$21 -> -19185.23731 | DW24: =-IF(DW7=0,0,'Inputs S'!$E$12*'Control Panel'!$D$9/12*(1+'Inputs S'!$E$13/12)^('Monthly Operations'!DW65-1))*'Control Panel'!$D$21 -> -19217.21271 | DX24: =-IF(DX7=0,0,'Inputs S'!$E$12*'Control Panel'!$D$9/12*(1+'Inputs S'!$E$13/12)^('Monthly Operations'!DX65-1))*'Control Panel'!$D$21 -> -19249.2414 | DY24: =-IF(DY7=0,0,'Inputs S'!$E$12*'Control Panel'!$D$9/12*(1+'Inputs S'!$E$13/12)^('Monthly Operations'!DY65-1))*'Control Panel'!$D$21 -> -19281.32347 | DZ24: =-IF(DZ7=0,0,'Inputs S'!$E$12*'Control Panel'!$D$9/12*(1+'Inputs S'!$E$13/12)^('Monthly Operations'!DZ65-1))*'Control Panel'!$D$21 -> -19313.459 | EA24: =-IF(EA7=0,0,'Inputs S'!$E$12*'Control Panel'!$D$9/12*(1+'Inputs S'!$E$13/12)^('Monthly Operations'!EA65-1))*'Control Panel'!$D$21 -> -19345.6481 | EB24: =-IF(EB7=0,0,'Inputs S'!$E$12*'Control Panel'!$D$9/12*(1+'Inputs S'!$E$13/12)^('Monthly Operations'!EB65-1))*'Control Panel'!$D$21 -> -19377.89085 | EC24: =-IF(EC7=0,0,'Inputs S'!$E$12*'Control Panel'!$D$9/12*(1+'Inputs S'!$E$13/12)^('Monthly Operations'!EC65-1))*'Control Panel'!$D$21 -> -19410.18733 | ED24: =-IF(ED7=0,0,'Inputs S'!$E$12*'Control Panel'!$D$9/12*(1+'Inputs S'!$E$13/12)^('Monthly Operations'!ED65-1))*'Control Panel'!$D$21 -> -19442.53765 | EE24: =-IF(EE7=0,0,'Inputs S'!$E$12*'Control Panel'!$D$9/12*(1+'Inputs S'!$E$13/12)^('Monthly Operations'!EE65-1))*'Control Panel'!$D$21 -> -19474.94188 | EF24: =-IF(EF7=0,0,'Inputs S'!$E$12*'Control Panel'!$D$9/12*(1+'Inputs S'!$E$13/12)^('Monthly Operations'!EF65-1))*'Control Panel'!$D$21 -> -19507.40011 | EG24: =-IF(EG7=0,0,'Inputs S'!$E$12*'Control Panel'!$D$9/12*(1+'Inputs S'!$E$13/12)^('Monthly Operations'!EG65-1))*'Control Panel'!$D$21 -> -19539.91245 | EH24: =-IF(EH7=0,0,'Inputs S'!$E$12*'Control Panel'!$D$9/12*(1+'Inputs S'!$E$13/12)^('Monthly Operations'!EH65-1))*'Control Panel'!$D$21 -> -19572.47897 | EI24: =-IF(EI7=0,0,'Inputs S'!$E$12*'Control Panel'!$D$9/12*(1+'Inputs S'!$E$13/12)^('Monthly Operations'!EI65-1))*'Control Panel'!$D$21 -> -19605.09977 | EJ24: =-IF(EJ7=0,0,'Inputs S'!$E$12*'Control Panel'!$D$9/12*(1+'Inputs S'!$E$13/12)^('Monthly Operations'!EJ65-1))*'Control Panel'!$D$21 -> -19637.77493 | EK24: =-IF(EK7=0,0,'Inputs S'!$E$12*'Control Panel'!$D$9/12*(1+'Inputs S'!$E$13/12)^('Monthly Operations'!EK65-1))*'Control Panel'!$D$21 -> -19670.50456 | EL24: =-IF(EL7=0,0,'Inputs S'!$E$12*'Control Panel'!$D$9/12*(1+'Inputs S'!$E$13/12)^('Monthly Operations'!EL65-1))*'Control Panel'!$D$21 -> -19703.28873 | EM24: =-IF(EM7=0,0,'Inputs S'!$E$12*'Control Panel'!$D$9/12*(1+'Inputs S'!$E$13/12)^('Monthly Operations'!EM65-1))*'Control Panel'!$D$21 -> -19736.12755 | EN24: =-IF(EN7=0,0,'Inputs S'!$E$12*'Control Panel'!$D$9/12*(1+'Inputs S'!$E$13/12)^('Monthly Operations'!EN65-1))*'Control Panel'!$D$21 -> -19769.02109 | EO24: =-IF(EO7=0,0,'Inputs S'!$E$12*'Control Panel'!$D$9/12*(1+'Inputs S'!$E$13/12)^('Monthly Operations'!EO65-1))*'Control Panel'!$D$21 -> -19801.96946 | EP24: =-IF(EP7=0,0,'Inputs S'!$E$12*'Control Panel'!$D$9/12*(1+'Inputs S'!$E$13/12)^('Monthly Operations'!EP65-1))*'Control Panel'!$D$21 -> -19834.97274 | EQ24: =-IF(EQ7=0,0,'Inputs S'!$E$12*'Control Panel'!$D$9/12*(1+'Inputs S'!$E$13/12)^('Monthly Operations'!EQ65-1))*'Control Panel'!$D$21 -> -19868.03103 | ER24: =-IF(ER7=0,0,'Inputs S'!$E$12*'Control Panel'!$D$9/12*(1+'Inputs S'!$E$13/12)^('Monthly Operations'!ER65-1))*'Control Panel'!$D$21 -> -19901.14442 | ES24: =-IF(ES7=0,0,'Inputs S'!$E$12*'Control Panel'!$D$9/12*(1+'Inputs S'!$E$13/12)^('Monthly Operations'!ES65-1))*'Control Panel'!$D$21 -> -19934.31299 | ET24: =-IF(ET7=0,0,'Inputs S'!$E$12*'Control Panel'!$D$9/12*(1+'Inputs S'!$E$13/12)^('Monthly Operations'!ET65-1))*'Control Panel'!$D$21 -> -19967.53684 | EU24: =-IF(EU7=0,0,'Inputs S'!$E$12*'Control Panel'!$D$9/12*(1+'Inputs S'!$E$13/12)^('Monthly Operations'!EU65-1))*'Control Panel'!$D$21 -> -20000.81607 | EV24: =-IF(EV7=0,0,'Inputs S'!$E$12*'Control Panel'!$D$9/12*(1+'Inputs S'!$E$13/12)^('Monthly Operations'!EV65-1))*'Control Panel'!$D$21 -> -20034.15077 | EW24: =-IF(EW7=0,0,'Inputs S'!$E$12*'Control Panel'!$D$9/12*(1+'Inputs S'!$E$13/12)^('Monthly Operations'!EW65-1))*'Control Panel'!$D$21 -> -20067.54102 | EX24: =-IF(EX7=0,0,'Inputs S'!$E$12*'Control Panel'!$D$9/12*(1+'Inputs S'!$E$13/12)^('Monthly Operations'!EX65-1))*'Control Panel'!$D$21 -> -20100.98692 | EY24: =-IF(EY7=0,0,'Inputs S'!$E$12*'Control Panel'!$D$9/12*(1+'Inputs S'!$E$13/12)^('Monthly Operations'!EY65-1))*'Control Panel'!$D$21 -> -20134.48856 | EZ24: =-IF(EZ7=0,0,'Inputs S'!$E$12*'Control Panel'!$D$9/12*(1+'Inputs S'!$E$13/12)^('Monthly Operations'!EZ65-1))*'Control Panel'!$D$21 -> -20168.04604 | FA24: =-IF(FA7=0,0,'Inputs S'!$E$12*'Control Panel'!$D$9/12*(1+'Inputs S'!$E$13/12)^('Monthly Operations'!FA65-1))*'Control Panel'!$D$21 -> -20201.65945 | FB24: =-IF(FB7=0,0,'Inputs S'!$E$12*'Control Panel'!$D$9/12*(1+'Inputs S'!$E$13/12)^('Monthly Operations'!FB65-1))*'Control Panel'!$D$21 -> -20235.32889 | FC24: =-IF(FC7=0,0,'Inputs S'!$E$12*'Control Panel'!$D$9/12*(1+'Inputs S'!$E$13/12)^('Monthly Operations'!FC65-1))*'Control Panel'!$D$21 -> -20269.05444 | FD24: =-IF(FD7=0,0,'Inputs S'!$E$12*'Control Panel'!$D$9/12*(1+'Inputs S'!$E$13/12)^('Monthly Operations'!FD65-1))*'Control Panel'!$D$21 -> -20302.83619 | FE24: =-IF(FE7=0,0,'Inputs S'!$E$12*'Control Panel'!$D$9/12*(1+'Inputs S'!$E$13/12)^('Monthly Operations'!FE65-1))*'Control Panel'!$D$21 -> -20336.67425 | FF24: =-IF(FF7=0,0,'Inputs S'!$E$12*'Control Panel'!$D$9/12*(1+'Inputs S'!$E$13/12)^('Monthly Operations'!FF65-1))*'Control Panel'!$D$21 -> -20370.56871 | FG24: =-IF(FG7=0,0,'Inputs S'!$E$12*'Control Panel'!$D$9/12*(1+'Inputs S'!$E$13/12)^('Monthly Operations'!FG65-1))*'Control Panel'!$D$21 -> -20404.51966 | FH24: =-IF(FH7=0,0,'Inputs S'!$E$12*'Control Panel'!$D$9/12*(1+'Inputs S'!$E$13/12)^('Monthly Operations'!FH65-1))*'Control Panel'!$D$21 -> -20438.52719 | FI24: =-IF(FI7=0,0,'Inputs S'!$E$12*'Control Panel'!$D$9/12*(1+'Inputs S'!$E$13/12)^('Monthly Operations'!FI65-1))*'Control Panel'!$D$21 -> -20472.5914 | FJ24: =-IF(FJ7=0,0,'Inputs S'!$E$12*'Control Panel'!$D$9/12*(1+'Inputs S'!$E$13/12)^('Monthly Operations'!FJ65-1))*'Control Panel'!$D$21 -> -20506.71239 | FK24: =-IF(FK7=0,0,'Inputs S'!$E$12*'Control Panel'!$D$9/12*(1+'Inputs S'!$E$13/12)^('Monthly Operations'!FK65-1))*'Control Panel'!$D$21 -> -20540.89024 | FL24: =-IF(FL7=0,0,'Inputs S'!$E$12*'Control Panel'!$D$9/12*(1+'Inputs S'!$E$13/12)^('Monthly Operations'!FL65-1))*'Control Panel'!$D$21 -> -20575.12506 | FM24: =-IF(FM7=0,0,'Inputs S'!$E$12*'Control Panel'!$D$9/12*(1+'Inputs S'!$E$13/12)^('Monthly Operations'!FM65-1))*'Control Panel'!$D$21 -> -20609.41693 | FN24: =-IF(FN7=0,0,'Inputs S'!$E$12*'Control Panel'!$D$9/12*(1+'Inputs S'!$E$13/12)^('Monthly Operations'!FN65-1))*'Control Panel'!$D$21 -> -20643.76596 | FO24: =-IF(FO7=0,0,'Inputs S'!$E$12*'Control Panel'!$D$9/12*(1+'Inputs S'!$E$13/12)^('Monthly Operations'!FO65-1))*'Control Panel'!$D$21 -> -20678.17224 | FP24: =-IF(FP7=0,0,'Inputs S'!$E$12*'Control Panel'!$D$9/12*(1+'Inputs S'!$E$13/12)^('Monthly Operations'!FP65-1))*'Control Panel'!$D$21 -> -20712.63586 | FQ24: =-IF(FQ7=0,0,'Inputs S'!$E$12*'Control Panel'!$D$9/12*(1+'Inputs S'!$E$13/12)^('Monthly Operations'!FQ65-1))*'Control Panel'!$D$21 -> -20747.15692 | FR24: =-IF(FR7=0,0,'Inputs S'!$E$12*'Control Panel'!$D$9/12*(1+'Inputs S'!$E$13/12)^('Monthly Operations'!FR65-1))*'Control Panel'!$D$21 -> -20781.73551 | FS24: =-IF(FS7=0,0,'Inputs S'!$E$12*'Control Panel'!$D$9/12*(1+'Inputs S'!$E$13/12)^('Monthly Operations'!FS65-1))*'Control Panel'!$D$21 -> -20816.37174 | FT24: =-IF(FT7=0,0,'Inputs S'!$E$12*'Control Panel'!$D$9/12*(1+'Inputs S'!$E$13/12)^('Monthly Operations'!FT65-1))*'Control Panel'!$D$21 -> -20851.06569 | FU24: =-IF(FU7=0,0,'Inputs S'!$E$12*'Control Panel'!$D$9/12*(1+'Inputs S'!$E$13/12)^('Monthly Operations'!FU65-1))*'Control Panel'!$D$21 -> -20885.81747 | FV24: =-IF(FV7=0,0,'Inputs S'!$E$12*'Control Panel'!$D$9/12*(1+'Inputs S'!$E$13/12)^('Monthly Operations'!FV65-1))*'Control Panel'!$D$21 -> -20920.62716 | FW24: =-IF(FW7=0,0,'Inputs S'!$E$12*'Control Panel'!$D$9/12*(1+'Inputs S'!$E$13/12)^('Monthly Operations'!FW65-1))*'Control Panel'!$D$21 -> -20955.49488 | FX24: =-IF(FX7=0,0,'Inputs S'!$E$12*'Control Panel'!$D$9/12*(1+'Inputs S'!$E$13/12)^('Monthly Operations'!FX65-1))*'Control Panel'!$D$21 -> -20990.4207 | FY24: =-IF(FY7=0,0,'Inputs S'!$E$12*'Control Panel'!$D$9/12*(1+'Inputs S'!$E$13/12)^('Monthly Operations'!FY65-1))*'Control Panel'!$D$21 -> -21025.40474 | FZ24: =-IF(FZ7=0,0,'Inputs S'!$E$12*'Control Panel'!$D$9/12*(1+'Inputs S'!$E$13/12)^('Monthly Operations'!FZ65-1))*'Control Panel'!$D$21 -> -21060.44708 | GA24: =-IF(GA7=0,0,'Inputs S'!$E$12*'Control Panel'!$D$9/12*(1+'Inputs S'!$E$13/12)^('Monthly Operations'!GA65-1))*'Control Panel'!$D$21 -> -21095.54782 | GB24: =-IF(GB7=0,0,'Inputs S'!$E$12*'Control Panel'!$D$9/12*(1+'Inputs S'!$E$13/12)^('Monthly Operations'!GB65-1))*'Control Panel'!$D$21 -> -21130.70707 | GC24: =-IF(GC7=0,0,'Inputs S'!$E$12*'Control Panel'!$D$9/12*(1+'Inputs S'!$E$13/12)^('Monthly Operations'!GC65-1))*'Control Panel'!$D$21 -> -21165.92491 | GD24: =-IF(GD7=0,0,'Inputs S'!$E$12*'Control Panel'!$D$9/12*(1+'Inputs S'!$E$13/12)^('Monthly Operations'!GD65-1))*'Control Panel'!$D$21 -> -21201.20146 | GE24: =-IF(GE7=0,0,'Inputs S'!$E$12*'Control Panel'!$D$9/12*(1+'Inputs S'!$E$13/12)^('Monthly Operations'!GE65-1))*'Control Panel'!$D$21 -> -21236.53679 | GF24: =-IF(GF7=0,0,'Inputs S'!$E$12*'Control Panel'!$D$9/12*(1+'Inputs S'!$E$13/12)^('Monthly Operations'!GF65-1))*'Control Panel'!$D$21 -> -21271.93102 | GG24: =-IF(GG7=0,0,'Inputs S'!$E$12*'Control Panel'!$D$9/12*(1+'Inputs S'!$E$13/12)^('Monthly Operations'!GG65-1))*'Control Panel'!$D$21 -> -21307.38424 | GH24: =-IF(GH7=0,0,'Inputs S'!$E$12*'Control Panel'!$D$9/12*(1+'Inputs S'!$E$13/12)^('Monthly Operations'!GH65-1))*'Control Panel'!$D$21 -> -21342.89654 | GI24: =-IF(GI7=0,0,'Inputs S'!$E$12*'Control Panel'!$D$9/12*(1+'Inputs S'!$E$13/12)^('Monthly Operations'!GI65-1))*'Control Panel'!$D$21 -> -21378.46804 | GJ24: =-IF(GJ7=0,0,'Inputs S'!$E$12*'Control Panel'!$D$9/12*(1+'Inputs S'!$E$13/12)^('Monthly Operations'!GJ65-1))*'Control Panel'!$D$21 -> -21414.09882 | GK24: =-IF(GK7=0,0,'Inputs S'!$E$12*'Control Panel'!$D$9/12*(1+'Inputs S'!$E$13/12)^('Monthly Operations'!GK65-1))*'Control Panel'!$D$21 -> -21449.78898 | GL24: =-IF(GL7=0,0,'Inputs S'!$E$12*'Control Panel'!$D$9/12*(1+'Inputs S'!$E$13/12)^('Monthly Operations'!GL65-1))*'Control Panel'!$D$21 -> -21485.53863 | GM24: =-IF(GM7=0,0,'Inputs S'!$E$12*'Control Panel'!$D$9/12*(1+'Inputs S'!$E$13/12)^('Monthly Operations'!GM65-1))*'Control Panel'!$D$21 -> -21521.34786 | GN24: =-IF(GN7=0,0,'Inputs S'!$E$12*'Control Panel'!$D$9/12*(1+'Inputs S'!$E$13/12)^('Monthly Operations'!GN65-1))*'Control Panel'!$D$21 -> -21557.21678 | GO24: =-IF(GO7=0,0,'Inputs S'!$E$12*'Control Panel'!$D$9/12*(1+'Inputs S'!$E$13/12)^('Monthly Operations'!GO65-1))*'Control Panel'!$D$21 -> -21593.14547 | GP24: =-IF(GP7=0,0,'Inputs S'!$E$12*'Control Panel'!$D$9/12*(1+'Inputs S'!$E$13/12)^('Monthly Operations'!GP65-1))*'Control Panel'!$D$21 -> -21629.13405 | GQ24: =-IF(GQ7=0,0,'Inputs S'!$E$12*'Control Panel'!$D$9/12*(1+'Inputs S'!$E$13/12)^('Monthly Operations'!GQ65-1))*'Control Panel'!$D$21 -> -21665.1826 | GR24: =-IF(GR7=0,0,'Inputs S'!$E$12*'Control Panel'!$D$9/12*(1+'Inputs S'!$E$13/12)^('Monthly Operations'!GR65-1))*'Control Panel'!$D$21 -> -21701.29124 | GS24: =-IF(GS7=0,0,'Inputs S'!$E$12*'Control Panel'!$D$9/12*(1+'Inputs S'!$E$13/12)^('Monthly Operations'!GS65-1))*'Control Panel'!$D$21 -> -21737.46006 | GT24: =-IF(GT7=0,0,'Inputs S'!$E$12*'Control Panel'!$D$9/12*(1+'Inputs S'!$E$13/12)^('Monthly Operations'!GT65-1))*'Control Panel'!$D$21 -> -21773.68916 | GU24: =-IF(GU7=0,0,'Inputs S'!$E$12*'Control Panel'!$D$9/12*(1+'Inputs S'!$E$13/12)^('Monthly Operations'!GU65-1))*'Control Panel'!$D$21 -> -21809.97864 | GV24: =-IF(GV7=0,0,'Inputs S'!$E$12*'Control Panel'!$D$9/12*(1+'Inputs S'!$E$13/12)^('Monthly Operations'!GV65-1))*'Control Panel'!$D$21 -> -21846.32861 | GW24: =-IF(GW7=0,0,'Inputs S'!$E$12*'Control Panel'!$D$9/12*(1+'Inputs S'!$E$13/12)^('Monthly Operations'!GW65-1))*'Control Panel'!$D$21 -> -21882.73915 | GX24: =-IF(GX7=0,0,'Inputs S'!$E$12*'Control Panel'!$D$9/12*(1+'Inputs S'!$E$13/12)^('Monthly Operations'!GX65-1))*'Control Panel'!$D$21 -> -21919.21039 | GY24: =-IF(GY7=0,0,'Inputs S'!$E$12*'Control Panel'!$D$9/12*(1+'Inputs S'!$E$13/12)^('Monthly Operations'!GY65-1))*'Control Panel'!$D$21 -> -21955.7424 | GZ24: =-IF(GZ7=0,0,'Inputs S'!$E$12*'Control Panel'!$D$9/12*(1+'Inputs S'!$E$13/12)^('Monthly Operations'!GZ65-1))*'Control Panel'!$D$21 -> -21992.33531 | HA24: =-IF(HA7=0,0,'Inputs S'!$E$12*'Control Panel'!$D$9/12*(1+'Inputs S'!$E$13/12)^('Monthly Operations'!HA65-1))*'Control Panel'!$D$21 -> -22028.9892 | HB24: =-IF(HB7=0,0,'Inputs S'!$E$12*'Control Panel'!$D$9/12*(1+'Inputs S'!$E$13/12)^('Monthly Operations'!HB65-1))*'Control Panel'!$D$21 -> -22065.70418 | HC24: =-IF(HC7=0,0,'Inputs S'!$E$12*'Control Panel'!$D$9/12*(1+'Inputs S'!$E$13/12)^('Monthly Operations'!HC65-1))*'Control Panel'!$D$21 -> -22102.48035 | HD24: =-IF(HD7=0,0,'Inputs S'!$E$12*'Control Panel'!$D$9/12*(1+'Inputs S'!$E$13/12)^('Monthly Operations'!HD65-1))*'Control Panel'!$D$21 -> -22139.31782 | HE24: =-IF(HE7=0,0,'Inputs S'!$E$12*'Control Panel'!$D$9/12*(1+'Inputs S'!$E$13/12)^('Monthly Operations'!HE65-1))*'Control Panel'!$D$21 -> -22176.21669 | HF24: =-IF(HF7=0,0,'Inputs S'!$E$12*'Control Panel'!$D$9/12*(1+'Inputs S'!$E$13/12)^('Monthly Operations'!HF65-1))*'Control Panel'!$D$21 -> -22213.17705 | HG24: =-IF(HG7=0,0,'Inputs S'!$E$12*'Control Panel'!$D$9/12*(1+'Inputs S'!$E$13/12)^('Monthly Operations'!HG65-1))*'Control Panel'!$D$21 -> -22250.19901 | HH24: =-IF(HH7=0,0,'Inputs S'!$E$12*'Control Panel'!$D$9/12*(1+'Inputs S'!$E$13/12)^('Monthly Operations'!HH65-1))*'Control Panel'!$D$21 -> -22287.28267 | HI24: =-IF(HI7=0,0,'Inputs S'!$E$12*'Control Panel'!$D$9/12*(1+'Inputs S'!$E$13/12)^('Monthly Operations'!HI65-1))*'Control Panel'!$D$21 -> -22324.42814 | HJ24: =-IF(HJ7=0,0,'Inputs S'!$E$12*'Control Panel'!$D$9/12*(1+'Inputs S'!$E$13/12)^('Monthly Operations'!HJ65-1))*'Control Panel'!$D$21 -> -22361.63552 | HK24: =-IF(HK7=0,0,'Inputs S'!$E$12*'Control Panel'!$D$9/12*(1+'Inputs S'!$E$13/12)^('Monthly Operations'!HK65-1))*'Control Panel'!$D$21 -> -22398.90492 | HL24: =-IF(HL7=0,0,'Inputs S'!$E$12*'Control Panel'!$D$9/12*(1+'Inputs S'!$E$13/12)^('Monthly Operations'!HL65-1))*'Control Panel'!$D$21 -> -22436.23643 | HM24: =-IF(HM7=0,0,'Inputs S'!$E$12*'Control Panel'!$D$9/12*(1+'Inputs S'!$E$13/12)^('Monthly Operations'!HM65-1))*'Control Panel'!$D$21 -> -22473.63015 | HN24: =-IF(HN7=0,0,'Inputs S'!$E$12*'Control Panel'!$D$9/12*(1+'Inputs S'!$E$13/12)^('Monthly Operations'!HN65-1))*'Control Panel'!$D$21 -> -22511.0862 | HO24: =-IF(HO7=0,0,'Inputs S'!$E$12*'Control Panel'!$D$9/12*(1+'Inputs S'!$E$13/12)^('Monthly Operations'!HO65-1))*'Control Panel'!$D$21 -> -22548.60468 | HP24: =-IF(HP7=0,0,'Inputs S'!$E$12*'Control Panel'!$D$9/12*(1+'Inputs S'!$E$13/12)^('Monthly Operations'!HP65-1))*'Control Panel'!$D$21 -> -22586.18569 | HQ24: =-IF(HQ7=0,0,'Inputs S'!$E$12*'Control Panel'!$D$9/12*(1+'Inputs S'!$E$13/12)^('Monthly Operations'!HQ65-1))*'Control Panel'!$D$21 -> -22623.82933 | HR24: =-IF(HR7=0,0,'Inputs S'!$E$12*'Control Panel'!$D$9/12*(1+'Inputs S'!$E$13/12)^('Monthly Operations'!HR65-1))*'Control Panel'!$D$21 -> -22661.53571 | HS24: =-IF(HS7=0,0,'Inputs S'!$E$12*'Control Panel'!$D$9/12*(1+'Inputs S'!$E$13/12)^('Monthly Operations'!HS65-1))*'Control Panel'!$D$21 -> -22699.30494 | HT24: =-IF(HT7=0,0,'Inputs S'!$E$12*'Control Panel'!$D$9/12*(1+'Inputs S'!$E$13/12)^('Monthly Operations'!HT65-1))*'Control Panel'!$D$21 -> -22737.13711 | HU24: =-IF(HU7=0,0,'Inputs S'!$E$12*'Control Panel'!$D$9/12*(1+'Inputs S'!$E$13/12)^('Monthly Operations'!HU65-1))*'Control Panel'!$D$21 -> -22775.03234 | HV24: =-IF(HV7=0,0,'Inputs S'!$E$12*'Control Panel'!$D$9/12*(1+'Inputs S'!$E$13/12)^('Monthly Operations'!HV65-1))*'Control Panel'!$D$21 -> -22812.99073 | HW24: =-IF(HW7=0,0,'Inputs S'!$E$12*'Control Panel'!$D$9/12*(1+'Inputs S'!$E$13/12)^('Monthly Operations'!HW65-1))*'Control Panel'!$D$21 -> -22851.01238 | HX24: =-IF(HX7=0,0,'Inputs S'!$E$12*'Control Panel'!$D$9/12*(1+'Inputs S'!$E$13/12)^('Monthly Operations'!HX65-1))*'Control Panel'!$D$21 -> -22889.0974 | HY24: =-IF(HY7=0,0,'Inputs S'!$E$12*'Control Panel'!$D$9/12*(1+'Inputs S'!$E$13/12)^('Monthly Operations'!HY65-1))*'Control Panel'!$D$21 -> -22927.2459 | HZ24: =-IF(HZ7=0,0,'Inputs S'!$E$12*'Control Panel'!$D$9/12*(1+'Inputs S'!$E$13/12)^('Monthly Operations'!HZ65-1))*'Control Panel'!$D$21 -> -22965.45797 | IA24: =-IF(IA7=0,0,'Inputs S'!$E$12*'Control Panel'!$D$9/12*(1+'Inputs S'!$E$13/12)^('Monthly Operations'!IA65-1))*'Control Panel'!$D$21 -> -23003.73374 | IB24: =-IF(IB7=0,0,'Inputs S'!$E$12*'Control Panel'!$D$9/12*(1+'Inputs S'!$E$13/12)^('Monthly Operations'!IB65-1))*'Control Panel'!$D$21 -> -23042.07329 | IC24: =-IF(IC7=0,0,'Inputs S'!$E$12*'Control Panel'!$D$9/12*(1+'Inputs S'!$E$13/12)^('Monthly Operations'!IC65-1))*'Control Panel'!$D$21 -> -23080.47675 | ID24: =-IF(ID7=0,0,'Inputs S'!$E$12*'Control Panel'!$D$9/12*(1+'Inputs S'!$E$13/12)^('Monthly Operations'!ID65-1))*'Control Panel'!$D$21 -> -23118.94421 | IE24: =-IF(IE7=0,0,'Inputs S'!$E$12*'Control Panel'!$D$9/12*(1+'Inputs S'!$E$13/12)^('Monthly Operations'!IE65-1))*'Control Panel'!$D$21 -> -23157.47578 | IF24: =-IF(IF7=0,0,'Inputs S'!$E$12*'Control Panel'!$D$9/12*(1+'Inputs S'!$E$13/12)^('Monthly Operations'!IF65-1))*'Control Panel'!$D$21 -> -23196.07158 | IG24: =-IF(IG7=0,0,'Inputs S'!$E$12*'Control Panel'!$D$9/12*(1+'Inputs S'!$E$13/12)^('Monthly Operations'!IG65-1))*'Control Panel'!$D$21 -> -23234.7317 | IH24: =-IF(IH7=0,0,'Inputs S'!$E$12*'Control Panel'!$D$9/12*(1+'Inputs S'!$E$13/12)^('Monthly Operations'!IH65-1))*'Control Panel'!$D$21 -> -23273.45625 | II24: =-IF(II7=0,0,'Inputs S'!$E$12*'Control Panel'!$D$9/12*(1+'Inputs S'!$E$13/12)^('Monthly Operations'!II65-1))*'Control Panel'!$D$21 -> -23312.24534 | IJ24: =-IF(IJ7=0,0,'Inputs S'!$E$12*'Control Panel'!$D$9/12*(1+'Inputs S'!$E$13/12)^('Monthly Operations'!IJ65-1))*'Control Panel'!$D$21 -> -23351.09908 | IK24: =-IF(IK7=0,0,'Inputs S'!$E$12*'Control Panel'!$D$9/12*(1+'Inputs S'!$E$13/12)^('Monthly Operations'!IK65-1))*'Control Panel'!$D$21 -> -23390.01758 | IL24: =-IF(IL7=0,0,'Inputs S'!$E$12*'Control Panel'!$D$9/12*(1+'Inputs S'!$E$13/12)^('Monthly Operations'!IL65-1))*'Control Panel'!$D$21 -> -23429.00095 | IM24: =-IF(IM7=0,0,'Inputs S'!$E$12*'Control Panel'!$D$9/12*(1+'Inputs S'!$E$13/12)^('Monthly Operations'!IM65-1))*'Control Panel'!$D$21 -> -23468.04928 | IN24: =-IF(IN7=0,0,'Inputs S'!$E$12*'Control Panel'!$D$9/12*(1+'Inputs S'!$E$13/12)^('Monthly Operations'!IN65-1))*'Control Panel'!$D$21 -> -23507.1627 | IO24: =-IF(IO7=0,0,'Inputs S'!$E$12*'Control Panel'!$D$9/12*(1+'Inputs S'!$E$13/12)^('Monthly Operations'!IO65-1))*'Control Panel'!$D$21 -> -23546.3413 | IP24: =-IF(IP7=0,0,'Inputs S'!$E$12*'Control Panel'!$D$9/12*(1+'Inputs S'!$E$13/12)^('Monthly Operations'!IP65-1))*'Control Panel'!$D$21 -> -23585.5852 | IQ24: =-IF(IQ7=0,0,'Inputs S'!$E$12*'Control Panel'!$D$9/12*(1+'Inputs S'!$E$13/12)^('Monthly Operations'!IQ65-1))*'Control Panel'!$D$21 -> -23624.89451 | IR24: =-IF(IR7=0,0,'Inputs S'!$E$12*'Control Panel'!$D$9/12*(1+'Inputs S'!$E$13/12)^('Monthly Operations'!IR65-1))*'Control Panel'!$D$21 -> -23664.26934 | IS24: =-IF(IS7=0,0,'Inputs S'!$E$12*'Control Panel'!$D$9/12*(1+'Inputs S'!$E$13/12)^('Monthly Operations'!IS65-1))*'Control Panel'!$D$21 -> -23703.70978 | IT24: =-IF(IT7=0,0,'Inputs S'!$E$12*'Control Panel'!$D$9/12*(1+'Inputs S'!$E$13/12)^('Monthly Operations'!IT65-1))*'Control Panel'!$D$21 -> -23743.21597 | IU24: =-IF(IU7=0,0,'Inputs S'!$E$12*'Control Panel'!$D$9/12*(1+'Inputs S'!$E$13/12)^('Monthly Operations'!IU65-1))*'Control Panel'!$D$21 -> -23782.78799 | IV24: =-IF(IV7=0,0,'Inputs S'!$E$12*'Control Panel'!$D$9/12*(1+'Inputs S'!$E$13/12)^('Monthly Operations'!IV65-1))*'Control Panel'!$D$21 -> -23822.42597 | IW24: =-IF(IW7=0,0,'Inputs S'!$E$12*'Control Panel'!$D$9/12*(1+'Inputs S'!$E$13/12)^('Monthly Operations'!IW65-1))*'Control Panel'!$D$21 -> -23862.13002 | IX24: =-IF(IX7=0,0,'Inputs S'!$E$12*'Control Panel'!$D$9/12*(1+'Inputs S'!$E$13/12)^('Monthly Operations'!IX65-1))*'Control Panel'!$D$21 -> -23901.90023 | IY24: =-IF(IY7=0,0,'Inputs S'!$E$12*'Control Panel'!$D$9/12*(1+'Inputs S'!$E$13/12)^('Monthly Operations'!IY65-1))*'Control Panel'!$D$21 -> -23941.73673 | IZ24: =-IF(IZ7=0,0,'Inputs S'!$E$12*'Control Panel'!$D$9/12*(1+'Inputs S'!$E$13/12)^('Monthly Operations'!IZ65-1))*'Control Panel'!$D$21 -> -23981.63963 | JA24: =-IF(JA7=0,0,'Inputs S'!$E$12*'Control Panel'!$D$9/12*(1+'Inputs S'!$E$13/12)^('Monthly Operations'!JA65-1))*'Control Panel'!$D$21 -> -24021.60903 | JB24: =-IF(JB7=0,0,'Inputs S'!$E$12*'Control Panel'!$D$9/12*(1+'Inputs S'!$E$13/12)^('Monthly Operations'!JB65-1))*'Control Panel'!$D$21 -> -24061.64504 | JC24: =-IF(JC7=0,0,'Inputs S'!$E$12*'Control Panel'!$D$9/12*(1+'Inputs S'!$E$13/12)^('Monthly Operations'!JC65-1))*'Control Panel'!$D$21 -> -24101.74778 | JD24: =-IF(JD7=0,0,'Inputs S'!$E$12*'Control Panel'!$D$9/12*(1+'Inputs S'!$E$13/12)^('Monthly Operations'!JD65-1))*'Control Panel'!$D$21 -> -24141.91736 | JE24: =-IF(JE7=0,0,'Inputs S'!$E$12*'Control Panel'!$D$9/12*(1+'Inputs S'!$E$13/12)^('Monthly Operations'!JE65-1))*'Control Panel'!$D$21 -> -24182.15389 | JF24: =-IF(JF7=0,0,'Inputs S'!$E$12*'Control Panel'!$D$9/12*(1+'Inputs S'!$E$13/12)^('Monthly Operations'!JF65-1))*'Control Panel'!$D$21 -> -24222.45748 | JG24: =-IF(JG7=0,0,'Inputs S'!$E$12*'Control Panel'!$D$9/12*(1+'Inputs S'!$E$13/12)^('Monthly Operations'!JG65-1))*'Control Panel'!$D$21 -> -24262.82825 | JH24: =-IF(JH7=0,0,'Inputs S'!$E$12*'Control Panel'!$D$9/12*(1+'Inputs S'!$E$13/12)^('Monthly Operations'!JH65-1))*'Control Panel'!$D$21 -> -24303.26629 | JI24: =-IF(JI7=0,0,'Inputs S'!$E$12*'Control Panel'!$D$9/12*(1+'Inputs S'!$E$13/12)^('Monthly Operations'!JI65-1))*'Control Panel'!$D$21 -> -24343.77174 | JJ24: =-IF(JJ7=0,0,'Inputs S'!$E$12*'Control Panel'!$D$9/12*(1+'Inputs S'!$E$13/12)^('Monthly Operations'!JJ65-1))*'Control Panel'!$D$21 -> -24384.34469 | JK24: =-IF(JK7=0,0,'Inputs S'!$E$12*'Control Panel'!$D$9/12*(1+'Inputs S'!$E$13/12)^('Monthly Operations'!JK65-1))*'Control Panel'!$D$21 -> -24424.98526 | JL24: =-IF(JL7=0,0,'Inputs S'!$E$12*'Control Panel'!$D$9/12*(1+'Inputs S'!$E$13/12)^('Monthly Operations'!JL65-1))*'Control Panel'!$D$21 -> -24465.69357 | JM24: =-IF(JM7=0,0,'Inputs S'!$E$12*'Control Panel'!$D$9/12*(1+'Inputs S'!$E$13/12)^('Monthly Operations'!JM65-1))*'Control Panel'!$D$21 -> -24506.46973 | JN24: =-IF(JN7=0,0,'Inputs S'!$E$12*'Control Panel'!$D$9/12*(1+'Inputs S'!$E$13/12)^('Monthly Operations'!JN65-1))*'Control Panel'!$D$21 -> -24547.31385 | JO24: =-IF(JO7=0,0,'Inputs S'!$E$12*'Control Panel'!$D$9/12*(1+'Inputs S'!$E$13/12)^('Monthly Operations'!JO65-1))*'Control Panel'!$D$21 -> -24588.22603 | JP24: =-IF(JP7=0,0,'Inputs S'!$E$12*'Control Panel'!$D$9/12*(1+'Inputs S'!$E$13/12)^('Monthly Operations'!JP65-1))*'Control Panel'!$D$21 -> -24629.20641 | JQ24: =-IF(JQ7=0,0,'Inputs S'!$E$12*'Control Panel'!$D$9/12*(1+'Inputs S'!$E$13/12)^('Monthly Operations'!JQ65-1))*'Control Panel'!$D$21 -> -24670.25509 | JR24: =-IF(JR7=0,0,'Inputs S'!$E$12*'Control Panel'!$D$9/12*(1+'Inputs S'!$E$13/12)^('Monthly Operations'!JR65-1))*'Control Panel'!$D$21 -> -24711.37218 | JS24: =-IF(JS7=0,0,'Inputs S'!$E$12*'Control Panel'!$D$9/12*(1+'Inputs S'!$E$13/12)^('Monthly Operations'!JS65-1))*'Control Panel'!$D$21 -> -24752.5578 | JT24: =-IF(JT7=0,0,'Inputs S'!$E$12*'Control Panel'!$D$9/12*(1+'Inputs S'!$E$13/12)^('Monthly Operations'!JT65-1))*'Control Panel'!$D$21 -> -24793.81206 | JU24: =-IF(JU7=0,0,'Inputs S'!$E$12*'Control Panel'!$D$9/12*(1+'Inputs S'!$E$13/12)^('Monthly Operations'!JU65-1))*'Control Panel'!$D$21 -> -24835.13508 | JV24: =-IF(JV7=0,0,'Inputs S'!$E$12*'Control Panel'!$D$9/12*(1+'Inputs S'!$E$13/12)^('Monthly Operations'!JV65-1))*'Control Panel'!$D$21 -> -24876.52698 | JW24: =-IF(JW7=0,0,'Inputs S'!$E$12*'Control Panel'!$D$9/12*(1+'Inputs S'!$E$13/12)^('Monthly Operations'!JW65-1))*'Control Panel'!$D$21 -> -24917.98785 | JX24: =-IF(JX7=0,0,'Inputs S'!$E$12*'Control Panel'!$D$9/12*(1+'Inputs S'!$E$13/12)^('Monthly Operations'!JX65-1))*'Control Panel'!$D$21 -> -24959.51783 | JY24: =-IF(JY7=0,0,'Inputs S'!$E$12*'Control Panel'!$D$9/12*(1+'Inputs S'!$E$13/12)^('Monthly Operations'!JY65-1))*'Control Panel'!$D$21 -> -25001.11703 | JZ24: =-IF(JZ7=0,0,'Inputs S'!$E$12*'Control Panel'!$D$9/12*(1+'Inputs S'!$E$13/12)^('Monthly Operations'!JZ65-1))*'Control Panel'!$D$21 -> -25042.78556 | KA24: =-IF(KA7=0,0,'Inputs S'!$E$12*'Control Panel'!$D$9/12*(1+'Inputs S'!$E$13/12)^('Monthly Operations'!KA65-1))*'Control Panel'!$D$21 -> -25084.52353 | KB24: =-IF(KB7=0,0,'Inputs S'!$E$12*'Control Panel'!$D$9/12*(1+'Inputs S'!$E$13/12)^('Monthly Operations'!KB65-1))*'Control Panel'!$D$21 -> -25126.33107 | KC24: =-IF(KC7=0,0,'Inputs S'!$E$12*'Control Panel'!$D$9/12*(1+'Inputs S'!$E$13/12)^('Monthly Operations'!KC65-1))*'Control Panel'!$D$21 -> -25168.20829 | KD24: =-IF(KD7=0,0,'Inputs S'!$E$12*'Control Panel'!$D$9/12*(1+'Inputs S'!$E$13/12)^('Monthly Operations'!KD65-1))*'Control Panel'!$D$21 -> -25210.15531 | KE24: =-IF(KE7=0,0,'Inputs S'!$E$12*'Control Panel'!$D$9/12*(1+'Inputs S'!$E$13/12)^('Monthly Operations'!KE65-1))*'Control Panel'!$D$21 -> -25252.17223 | KF24: =-IF(KF7=0,0,'Inputs S'!$E$12*'Control Panel'!$D$9/12*(1+'Inputs S'!$E$13/12)^('Monthly Operations'!KF65-1))*'Control Panel'!$D$21 -> -25294.25919 | KG24: =-IF(KG7=0,0,'Inputs S'!$E$12*'Control Panel'!$D$9/12*(1+'Inputs S'!$E$13/12)^('Monthly Operations'!KG65-1))*'Control Panel'!$D$21 -> -25336.41628 | KH24: =-IF(KH7=0,0,'Inputs S'!$E$12*'Control Panel'!$D$9/12*(1+'Inputs S'!$E$13/12)^('Monthly Operations'!KH65-1))*'Control Panel'!$D$21 -> -25378.64364 | KI24: =-IF(KI7=0,0,'Inputs S'!$E$12*'Control Panel'!$D$9/12*(1+'Inputs S'!$E$13/12)^('Monthly Operations'!KI65-1))*'Control Panel'!$D$21 -> -25420.94138 | KJ24: =-IF(KJ7=0,0,'Inputs S'!$E$12*'Control Panel'!$D$9/12*(1+'Inputs S'!$E$13/12)^('Monthly Operations'!KJ65-1))*'Control Panel'!$D$21 -> -25463.30962 | KK24: =-IF(KK7=0,0,'Inputs S'!$E$12*'Control Panel'!$D$9/12*(1+'Inputs S'!$E$13/12)^('Monthly Operations'!KK65-1))*'Control Panel'!$D$21 -> -25505.74847 | KL24: =-IF(KL7=0,0,'Inputs S'!$E$12*'Control Panel'!$D$9/12*(1+'Inputs S'!$E$13/12)^('Monthly Operations'!KL65-1))*'Control Panel'!$D$21 -> -25548.25805 | KM24: =-IF(KM7=0,0,'Inputs S'!$E$12*'Control Panel'!$D$9/12*(1+'Inputs S'!$E$13/12)^('Monthly Operations'!KM65-1))*'Control Panel'!$D$21 -> -25590.83848 | KN24: =-IF(KN7=0,0,'Inputs S'!$E$12*'Control Panel'!$D$9/12*(1+'Inputs S'!$E$13/12)^('Monthly Operations'!KN65-1))*'Control Panel'!$D$21 -> -25633.48988 | KO24: =-IF(KO7=0,0,'Inputs S'!$E$12*'Control Panel'!$D$9/12*(1+'Inputs S'!$E$13/12)^('Monthly Operations'!KO65-1))*'Control Panel'!$D$21 -> -25676.21236 | KP24: =-IF(KP7=0,0,'Inputs S'!$E$12*'Control Panel'!$D$9/12*(1+'Inputs S'!$E$13/12)^('Monthly Operations'!KP65-1))*'Control Panel'!$D$21 -> -25719.00605 | KQ24: =-IF(KQ7=0,0,'Inputs S'!$E$12*'Control Panel'!$D$9/12*(1+'Inputs S'!$E$13/12)^('Monthly Operations'!KQ65-1))*'Control Panel'!$D$21 -> -25761.87106 | KR24: =-IF(KR7=0,0,'Inputs S'!$E$12*'Control Panel'!$D$9/12*(1+'Inputs S'!$E$13/12)^('Monthly Operations'!KR65-1))*'Control Panel'!$D$21 -> -25804.80751 | KS24: =-IF(KS7=0,0,'Inputs S'!$E$12*'Control Panel'!$D$9/12*(1+'Inputs S'!$E$13/12)^('Monthly Operations'!KS65-1))*'Control Panel'!$D$21 -> -25847.81552 | KT24: =-IF(KT7=0,0,'Inputs S'!$E$12*'Control Panel'!$D$9/12*(1+'Inputs S'!$E$13/12)^('Monthly Operations'!KT65-1))*'Control Panel'!$D$21 -> -25890.89521 | KU24: =-IF(KU7=0,0,'Inputs S'!$E$12*'Control Panel'!$D$9/12*(1+'Inputs S'!$E$13/12)^('Monthly Operations'!KU65-1))*'Control Panel'!$D$21 -> -25934.04671 | KV24: =-IF(KV7=0,0,'Inputs S'!$E$12*'Control Panel'!$D$9/12*(1+'Inputs S'!$E$13/12)^('Monthly Operations'!KV65-1))*'Control Panel'!$D$21 -> -25977.27012 | KW24: =-IF(KW7=0,0,'Inputs S'!$E$12*'Control Panel'!$D$9/12*(1+'Inputs S'!$E$13/12)^('Monthly Operations'!KW65-1))*'Control Panel'!$D$21 -> -26020.56557 | KX24: =-IF(KX7=0,0,'Inputs S'!$E$12*'Control Panel'!$D$9/12*(1+'Inputs S'!$E$13/12)^('Monthly Operations'!KX65-1))*'Control Panel'!$D$21 -> -26063.93318 | KY24: =-IF(KY7=0,0,'Inputs S'!$E$12*'Control Panel'!$D$9/12*(1+'Inputs S'!$E$13/12)^('Monthly Operations'!KY65-1))*'Control Panel'!$D$21 -> -26107.37307 | KZ24: =-IF(KZ7=0,0,'Inputs S'!$E$12*'Control Panel'!$D$9/12*(1+'Inputs S'!$E$13/12)^('Monthly Operations'!KZ65-1))*'Control Panel'!$D$21 -> -26150.88535 | LA24: =-IF(LA7=0,0,'Inputs S'!$E$12*'Control Panel'!$D$9/12*(1+'Inputs S'!$E$13/12)^('Monthly Operations'!LA65-1))*'Control Panel'!$D$21 -> -26194.47016 | LB24: =-IF(LB7=0,0,'Inputs S'!$E$12*'Control Panel'!$D$9/12*(1+'Inputs S'!$E$13/12)^('Monthly Operations'!LB65-1))*'Control Panel'!$D$21 -> -26238.12761 | LC24: =-IF(LC7=0,0,'Inputs S'!$E$12*'Control Panel'!$D$9/12*(1+'Inputs S'!$E$13/12)^('Monthly Operations'!LC65-1))*'Control Panel'!$D$21 -> -26281.85783 | LD24: =-IF(LD7=0,0,'Inputs S'!$E$12*'Control Panel'!$D$9/12*(1+'Inputs S'!$E$13/12)^('Monthly Operations'!LD65-1))*'Control Panel'!$D$21 -> -26325.66092 | LE24: =-IF(LE7=0,0,'Inputs S'!$E$12*'Control Panel'!$D$9/12*(1+'Inputs S'!$E$13/12)^('Monthly Operations'!LE65-1))*'Control Panel'!$D$21 -> -26369.53702 | LF24: =-IF(LF7=0,0,'Inputs S'!$E$12*'Control Panel'!$D$9/12*(1+'Inputs S'!$E$13/12)^('Monthly Operations'!LF65-1))*'Control Panel'!$D$21 -> -26413.48625 | LG24: =-IF(LG7=0,0,'Inputs S'!$E$12*'Control Panel'!$D$9/12*(1+'Inputs S'!$E$13/12)^('Monthly Operations'!LG65-1))*'Control Panel'!$D$21 -> -26457.50873 | LH24: =-IF(LH7=0,0,'Inputs S'!$E$12*'Control Panel'!$D$9/12*(1+'Inputs S'!$E$13/12)^('Monthly Operations'!LH65-1))*'Control Panel'!$D$21 -> -26501.60458 | LI24: =-IF(LI7=0,0,'Inputs S'!$E$12*'Control Panel'!$D$9/12*(1+'Inputs S'!$E$13/12)^('Monthly Operations'!LI65-1))*'Control Panel'!$D$21 -> -26545.77392 | LJ24: =-IF(LJ7=0,0,'Inputs S'!$E$12*'Control Panel'!$D$9/12*(1+'Inputs S'!$E$13/12)^('Monthly Operations'!LJ65-1))*'Control Panel'!$D$21 -> -26590.01687 | LK24: =-IF(LK7=0,0,'Inputs S'!$E$12*'Control Panel'!$D$9/12*(1+'Inputs S'!$E$13/12)^('Monthly Operations'!LK65-1))*'Control Panel'!$D$21 -> -26634.33357 | LL24: =-IF(LL7=0,0,'Inputs S'!$E$12*'Control Panel'!$D$9/12*(1+'Inputs S'!$E$13/12)^('Monthly Operations'!LL65-1))*'Control Panel'!$D$21 -> -26678.72413 | LM24: =-IF(LM7=0,0,'Inputs S'!$E$12*'Control Panel'!$D$9/12*(1+'Inputs S'!$E$13/12)^('Monthly Operations'!LM65-1))*'Control Panel'!$D$21 -> -26723.18867 | LN24: =-IF(LN7=0,0,'Inputs S'!$E$12*'Control Panel'!$D$9/12*(1+'Inputs S'!$E$13/12)^('Monthly Operations'!LN65-1))*'Control Panel'!$D$21 -> -26767.72731 | LO24: =-IF(LO7=0,0,'Inputs S'!$E$12*'Control Panel'!$D$9/12*(1+'Inputs S'!$E$13/12)^('Monthly Operations'!LO65-1))*'Control Panel'!$D$21 -> -26812.34019 | LP24: =-IF(LP7=0,0,'Inputs S'!$E$12*'Control Panel'!$D$9/12*(1+'Inputs S'!$E$13/12)^('Monthly Operations'!LP65-1))*'Control Panel'!$D$21 -> -26857.02743 | LQ24: =-IF(LQ7=0,0,'Inputs S'!$E$12*'Control Panel'!$D$9/12*(1+'Inputs S'!$E$13/12)^('Monthly Operations'!LQ65-1))*'Control Panel'!$D$21 -> -26901.78914 | LR24: =-IF(LR7=0,0,'Inputs S'!$E$12*'Control Panel'!$D$9/12*(1+'Inputs S'!$E$13/12)^('Monthly Operations'!LR65-1))*'Control Panel'!$D$21 -> -26946.62545 | LS24: =-IF(LS7=0,0,'Inputs S'!$E$12*'Control Panel'!$D$9/12*(1+'Inputs S'!$E$13/12)^('Monthly Operations'!LS65-1))*'Control Panel'!$D$21 -> -26991.5365 | LT24: =-IF(LT7=0,0,'Inputs S'!$E$12*'Control Panel'!$D$9/12*(1+'Inputs S'!$E$13/12)^('Monthly Operations'!LT65-1))*'Control Panel'!$D$21 -> -27036.52239 | LU24: =-IF(LU7=0,0,'Inputs S'!$E$12*'Control Panel'!$D$9/12*(1+'Inputs S'!$E$13/12)^('Monthly Operations'!LU65-1))*'Control Panel'!$D$21 -> -27081.58326 | LV24: =-IF(LV7=0,0,'Inputs S'!$E$12*'Control Panel'!$D$9/12*(1+'Inputs S'!$E$13/12)^('Monthly Operations'!LV65-1))*'Control Panel'!$D$21 -> -27126.71923 | LW24: =-IF(LW7=0,0,'Inputs S'!$E$12*'Control Panel'!$D$9/12*(1+'Inputs S'!$E$13/12)^('Monthly Operations'!LW65-1))*'Control Panel'!$D$21 -> -27171.93043 | LX24: =-IF(LX7=0,0,'Inputs S'!$E$12*'Control Panel'!$D$9/12*(1+'Inputs S'!$E$13/12)^('Monthly Operations'!LX65-1))*'Control Panel'!$D$21 -> -27217.21698 | LY24: =-IF(LY7=0,0,'Inputs S'!$E$12*'Control Panel'!$D$9/12*(1+'Inputs S'!$E$13/12)^('Monthly Operations'!LY65-1))*'Control Panel'!$D$21 -> -27262.57901 | LZ24: =-IF(LZ7=0,0,'Inputs S'!$E$12*'Control Panel'!$D$9/12*(1+'Inputs S'!$E$13/12)^('Monthly Operations'!LZ65-1))*'Control Panel'!$D$21 -> -27308.01664 | MA24: =-IF(MA7=0,0,'Inputs S'!$E$12*'Control Panel'!$D$9/12*(1+'Inputs S'!$E$13/12)^('Monthly Operations'!MA65-1))*'Control Panel'!$D$21 -> -27353.53 | MB24: =-IF(MB7=0,0,'Inputs S'!$E$12*'Control Panel'!$D$9/12*(1+'Inputs S'!$E$13/12)^('Monthly Operations'!MB65-1))*'Control Panel'!$D$21 -> -27399.11922 | MC24: =-IF(MC7=0,0,'Inputs S'!$E$12*'Control Panel'!$D$9/12*(1+'Inputs S'!$E$13/12)^('Monthly Operations'!MC65-1))*'Control Panel'!$D$21 -> -27444.78442 | MD24: =-IF(MD7=0,0,'Inputs S'!$E$12*'Control Panel'!$D$9/12*(1+'Inputs S'!$E$13/12)^('Monthly Operations'!MD65-1))*'Control Panel'!$D$21 -> -27490.52573 | ME24: =-IF(ME7=0,0,'Inputs S'!$E$12*'Control Panel'!$D$9/12*(1+'Inputs S'!$E$13/12)^('Monthly Operations'!ME65-1))*'Control Panel'!$D$21 -> -27536.34327 | MF24: =-IF(MF7=0,0,'Inputs S'!$E$12*'Control Panel'!$D$9/12*(1+'Inputs S'!$E$13/12)^('Monthly Operations'!MF65-1))*'Control Panel'!$D$21 -> -27582.23717 | MG24: =-IF(MG7=0,0,'Inputs S'!$E$12*'Control Panel'!$D$9/12*(1+'Inputs S'!$E$13/12)^('Monthly Operations'!MG65-1))*'Control Panel'!$D$21 -> -27628.20757 | MH24: =-IF(MH7=0,0,'Inputs S'!$E$12*'Control Panel'!$D$9/12*(1+'Inputs S'!$E$13/12)^('Monthly Operations'!MH65-1))*'Control Panel'!$D$21 -> -27674.25458 | MI24: =-IF(MI7=0,0,'Inputs S'!$E$12*'Control Panel'!$D$9/12*(1+'Inputs S'!$E$13/12)^('Monthly Operations'!MI65-1))*'Control Panel'!$D$21 -> -27720.37834 | MJ24: =-IF(MJ7=0,0,'Inputs S'!$E$12*'Control Panel'!$D$9/12*(1+'Inputs S'!$E$13/12)^('Monthly Operations'!MJ65-1))*'Control Panel'!$D$21 -> -27766.57897 | MK24: =-IF(MK7=0,0,'Inputs S'!$E$12*'Control Panel'!$D$9/12*(1+'Inputs S'!$E$13/12)^('Monthly Operations'!MK65-1))*'Control Panel'!$D$21 -> -27812.8566 | ML24: =-IF(ML7=0,0,'Inputs S'!$E$12*'Control Panel'!$D$9/12*(1+'Inputs S'!$E$13/12)^('Monthly Operations'!ML65-1))*'Control Panel'!$D$21 -> -27859.21136 | MM24: =-IF(MM7=0,0,'Inputs S'!$E$12*'Control Panel'!$D$9/12*(1+'Inputs S'!$E$13/12)^('Monthly Operations'!MM65-1))*'Control Panel'!$D$21 -> -27905.64338 | MN24: =-IF(MN7=0,0,'Inputs S'!$E$12*'Control Panel'!$D$9/12*(1+'Inputs S'!$E$13/12)^('Monthly Operations'!MN65-1))*'Control Panel'!$D$21 -> -27952.15279 | MO24: =-IF(MO7=0,0,'Inputs S'!$E$12*'Control Panel'!$D$9/12*(1+'Inputs S'!$E$13/12)^('Monthly Operations'!MO65-1))*'Control Panel'!$D$21 -> -27998.73971 | MP24: =-IF(MP7=0,0,'Inputs S'!$E$12*'Control Panel'!$D$9/12*(1+'Inputs S'!$E$13/12)^('Monthly Operations'!MP65-1))*'Control Panel'!$D$21 -> -28045.40428 | MQ24: =-IF(MQ7=0,0,'Inputs S'!$E$12*'Control Panel'!$D$9/12*(1+'Inputs S'!$E$13/12)^('Monthly Operations'!MQ65-1))*'Control Panel'!$D$21 -> -28092.14662 | MR24: =-IF(MR7=0,0,'Inputs S'!$E$12*'Control Panel'!$D$9/12*(1+'Inputs S'!$E$13/12)^('Monthly Operations'!MR65-1))*'Control Panel'!$D$21 -> -28138.96686 | MS24: =-IF(MS7=0,0,'Inputs S'!$E$12*'Control Panel'!$D$9/12*(1+'Inputs S'!$E$13/12)^('Monthly Operations'!MS65-1))*'Control Panel'!$D$21 -> -28185.86514 | MT24: =-IF(MT7=0,0,'Inputs S'!$E$12*'Control Panel'!$D$9/12*(1+'Inputs S'!$E$13/12)^('Monthly Operations'!MT65-1))*'Control Panel'!$D$21 -> -28232.84158 | MU24: =-IF(MU7=0,0,'Inputs S'!$E$12*'Control Panel'!$D$9/12*(1+'Inputs S'!$E$13/12)^('Monthly Operations'!MU65-1))*'Control Panel'!$D$21 -> -28279.89632 | MV24: =-IF(MV7=0,0,'Inputs S'!$E$12*'Control Panel'!$D$9/12*(1+'Inputs S'!$E$13/12)^('Monthly Operations'!MV65-1))*'Control Panel'!$D$21 -> -28327.02948 | MW24: =-IF(MW7=0,0,'Inputs S'!$E$12*'Control Panel'!$D$9/12*(1+'Inputs S'!$E$13/12)^('Monthly Operations'!MW65-1))*'Control Panel'!$D$21 -> -28374.24119 | MX24: =-IF(MX7=0,0,'Inputs S'!$E$12*'Control Panel'!$D$9/12*(1+'Inputs S'!$E$13/12)^('Monthly Operations'!MX65-1))*'Control Panel'!$D$21 -> -28421.53159 | MY24: =-IF(MY7=0,0,'Inputs S'!$E$12*'Control Panel'!$D$9/12*(1+'Inputs S'!$E$13/12)^('Monthly Operations'!MY65-1))*'Control Panel'!$D$21 -> -28468.90081 | MZ24: =-IF(MZ7=0,0,'Inputs S'!$E$12*'Control Panel'!$D$9/12*(1+'Inputs S'!$E$13/12)^('Monthly Operations'!MZ65-1))*'Control Panel'!$D$21 -> -28516.34898 | NA24: =-IF(NA7=0,0,'Inputs S'!$E$12*'Control Panel'!$D$9/12*(1+'Inputs S'!$E$13/12)^('Monthly Operations'!NA65-1))*'Control Panel'!$D$21 -> -28563.87623 | NB24: =-IF(NB7=0,0,'Inputs S'!$E$12*'Control Panel'!$D$9/12*(1+'Inputs S'!$E$13/12)^('Monthly Operations'!NB65-1))*'Control Panel'!$D$21 -> -28611.48269 | NC24: =-IF(NC7=0,0,'Inputs S'!$E$12*'Control Panel'!$D$9/12*(1+'Inputs S'!$E$13/12)^('Monthly Operations'!NC65-1))*'Control Panel'!$D$21 -> -28659.1685 | ND24: =-IF(ND7=0,0,'Inputs S'!$E$12*'Control Panel'!$D$9/12*(1+'Inputs S'!$E$13/12)^('Monthly Operations'!ND65-1))*'Control Panel'!$D$21 -> -28706.93378 | NE24: =-IF(NE7=0,0,'Inputs S'!$E$12*'Control Panel'!$D$9/12*(1+'Inputs S'!$E$13/12)^('Monthly Operations'!NE65-1))*'Control Panel'!$D$21 -> -28754.77867 | NF24: =-IF(NF7=0,0,'Inputs S'!$E$12*'Control Panel'!$D$9/12*(1+'Inputs S'!$E$13/12)^('Monthly Operations'!NF65-1))*'Control Panel'!$D$21 -> -28802.7033 | NG24: =-IF(NG7=0,0,'Inputs S'!$E$12*'Control Panel'!$D$9/12*(1+'Inputs S'!$E$13/12)^('Monthly Operations'!NG65-1))*'Control Panel'!$D$21 -> -28850.7078 | NH24: =-IF(NH7=0,0,'Inputs S'!$E$12*'Control Panel'!$D$9/12*(1+'Inputs S'!$E$13/12)^('Monthly Operations'!NH65-1))*'Control Panel'!$D$21 -> 0 | NI24: =-IF(NI7=0,0,'Inputs S'!$E$12*'Control Panel'!$D$9/12*(1+'Inputs S'!$E$13/12)^('Monthly Operations'!NI65-1))*'Control Panel'!$D$21 -> 0 | NJ24: =-IF(NJ7=0,0,'Inputs S'!$E$12*'Control Panel'!$D$9/12*(1+'Inputs S'!$E$13/12)^('Monthly Operations'!NJ65-1))*'Control Panel'!$D$21 -> 0 | NK24: =-IF(NK7=0,0,'Inputs S'!$E$12*'Control Panel'!$D$9/12*(1+'Inputs S'!$E$13/12)^('Monthly Operations'!NK65-1))*'Control Panel'!$D$21 -> 0 | NL24: =-IF(NL7=0,0,'Inputs S'!$E$12*'Control Panel'!$D$9/12*(1+'Inputs S'!$E$13/12)^('Monthly Operations'!NL65-1))*'Control Panel'!$D$21 -> 0 | NM24: =-IF(NM7=0,0,'Inputs S'!$E$12*'Control Panel'!$D$9/12*(1+'Inputs S'!$E$13/12)^('Monthly Operations'!NM65-1))*'Control Panel'!$D$21 -> 0 | NN24: =-IF(NN7=0,0,'Inputs S'!$E$12*'Control Panel'!$D$9/12*(1+'Inputs S'!$E$13/12)^('Monthly Operations'!NN65-1))*'Control Panel'!$D$21 -> 0
